Workbook

Sheet Summary
B20: Project IRR Pre-tax | D20: ='Financial Model'!F29 -> 0.05563730896 | J20: EBITDA | K20: =InputC!F20 -> 100000
B21: Debt IRR Pre-tax | D21: ='Financial Model'!F92 -> 0.04038467705 | J21: Cap Exp | K21: =InputC!F19 -> 1400000
B22: Equity IRR | D22: ='Financial Model'!F90 -> 0.0855960995 | J22: Growth | K22: =InputC!F21 -> 0.01

Sheet InputC
D2: Scenario | E2: =scenario -> 5 | F2: Project IRR | G2: ='Financial Model'!F29 -> 0.05563730896
F3: Rf + Premium | G3: ='Financial Model'!G158 -> 0.04215831042
I4: 1 | J4: 2 | K4: 3 | L4: 4 | M4: 5 | N4: 6 | O4: 7 | P4: 8 | Q4: 9 | R4: 10 | S4: 11 | T4: 12
F5: =INDEX(I5:XFD5,Sensitivity!G50) -> Higher Capital Expenditure | I5: Base Case - Annual | J5: Base Case Alternative Timing | K5: Longer-Construction | L5: Shorter-Life | M5: Higher Capital Expenditure | N5: Lower Base EBITDA | O5: Lower Growth Rate | P5: Base Case | Q5: Break-Even DSCR Case | R5: Break-Even LLCR Case | S5: Break-Even PLCR Case | T5: Loss Case
B6: Timeline
D7: Start Date | E7: Date | F7: =INDEX(I7:AG7,Sensitivity!$G$50) -> 2026-01-01 | I7: 2026-01-01 | J7: 2026-01-01 | K7: 2026-01-01 | L7: 2026-01-01 | M7: 2026-01-01 | N7: 2026-01-01 | O7: 2026-01-01 | P7: 2026-01-01 | Q7: 2026-01-01 | R7: 2026-01-01 | S7: 2026-01-01 | T7: 2026-01-01
D8: Construction months | E8: months | F8: =INDEX(I8:AG8,Sensitivity!$G$50) -> 36 | I8: 12 | J8: 12 | K8: 36 | L8: 36 | M8: 36 | N8: 36 | O8: 36 | P8: 12 | Q8: 12 | R8: 12 | S8: 12 | T8: 12
D10: Commercial Operation Date | E10: date | F10: =INDEX(I10:AG10,Sensitivity!$G$50) -> 2029-01-01 | I10: =EDATE(I7,I8) -> 2027-01-01 | J10: 2027-01-01 | K10: 2029-01-01 | L10: 2029-01-01 | M10: 2029-01-01 | N10: 2029-01-01 | O10: 2029-01-01 | P10: 2027-01-01 | Q10: 2027-01-01 | R10: 2027-01-01 | S10: 2027-01-01 | T10: 2027-01-01
D11: Months in period - construction | E11: months | F11: =INDEX(I11:AG11,Sensitivity!$G$50) -> 12 | I11: 12 | J11: 1 | K11: 12 | L11: 12 | M11: 12 | N11: 12 | O11: 12 | P11: 12 | Q11: 12 | R11: 12 | S11: 12 | T11: 12
D12: Months in period - operations | E12: months | F12: =INDEX(I12:AG12,Sensitivity!$G$50) -> 12 | I12: 12 | J12: 6 | K12: 12 | L12: 12 | M12: 12 | N12: 12 | O12: 12 | P12: 12 | Q12: 12 | R12: 12 | S12: 12 | T12: 12
D14: Operations Period | E14: years | F14: =INDEX(I14:AG14,Sensitivity!$G$50) -> 25 | I14: 30 | J14: 30 | K14: 30 | L14: 25 | M14: 25 | N14: 25 | O14: 25 | P14: 30 | Q14: 30 | R14: 30 | S14: 30 | T14: 30
D15: Operations End Date | E15: date | F15: =INDEX(I15:AG15,Sensitivity!$G$50) -> 2054-01-01 | I15: =EDATE(I10,I14*12) -> 2057-01-01 | J15: 2057-01-01 | K15: 2059-01-01 | L15: 2054-01-01 | M15: 2054-01-01 | N15: 2054-01-01 | O15: 2054-01-01 | P15: 2057-01-01 | Q15: 2057-01-01 | R15: 2057-01-01 | S15: 2057-01-01 | T15: 2057-01-01
B17: Operations
D19: Capex | E19: EUR | F19: =INDEX(I19:AG19,Sensitivity!$G$50) -> 1400000 | I19: 1000000 | J19: 1000000 | K19: 1000000 | L19: 1000000 | M19: 1400000 | N19: 1400000 | O19: 1400000 | P19: 1000000 | Q19: 1000000 | R19: 1000000 | S19: 1000000 | T19: 1000000
D20: EBITDA | E20: EUR p.a. | F20: =INDEX(I20:AG20,Sensitivity!$G$50) -> 100000 | I20: 100000 | J20: 100000 | K20: 100000 | L20: 100000 | M20: 100000 | N20: 90000 | O20: 90000 | P20: 70000 | Q20: 60891.9955 | R20: 56112.50764 | S20: 43308.41911 | T20: 40000
D21: EBITDA Growth | E21: % p.a. | F21: =INDEX(I21:AG21,Sensitivity!$G$50) -> 0.01 | I21: 0 | J21: 0.01 | K21: 0.01 | L21: 0.01 | M21: 0.01 | N21: 0.01 | O21: 0 | P21: 0.01 | Q21: 0.01 | R21: 0.01 | S21: 0.01 | T21: 0.01
D23: Volatility | E23: % p.a. | F23: =G23/100 -> 0 | G23: 0 | I23: 0.3 | J23: 0.2 | K23: 0.2 | L23: 0.2 | M23: 0.2 | N23: 0.2 | O23: 0.2 | P23: 0.2 | Q23: 0.2 | R23: 0.2 | S23: 0.2 | T23: 0.2
D24: Mean Reversion | E24: % | F24: =G24/100 -> 0.1 | G24: 10 | I24: 0 | J24: 0 | K24: 0 | L24: 0 | M24: 0 | N24: 0 | O24: 0 | P24: 0 | Q24: 0 | R24: 0 | S24: 0 | T24: 0
B26: Valuation
D27: Risk Free Rate | E27: % p.a. | F27: =INDEX(I27:AG27,Sensitivity!$G$50) -> 0.035 | I27: 0.035 | J27: 0.035 | K27: 0.035 | L27: 0.035 | M27: 0.035 | N27: 0.035 | O27: 0.035 | P27: 0.035 | Q27: 0.035 | R27: 0.035 | S27: 0.035 | T27: 0.035
D28: Valuation Discount Rate | E28: % p.a. | F28: =INDEX(I28:AG28,Sensitivity!$G$50) -> 0.06 | I28: 0.06 | J28: 0.06 | K28: 0.06 | L28: 0.06 | M28: 0.06 | N28: 0.06 | O28: 0.06 | P28: 0.06 | Q28: 0.06 | R28: 0.06 | S28: 0.06 | T28: 0.06
B30: Debt Structuring
C31: Max Debt to Capital | E31: % | F31: =INDEX(I31:AG31,Sensitivity!$G$50) -> 0.8 | I31: 0.8 | J31: 0.8 | K31: 0.8 | L31: 0.8 | M31: 0.8 | N31: 0.8 | O31: 0.8 | P31: 0.8 | Q31: 0.8 | R31: 0.8 | S31: 0.8 | T31: 0.8
C32: Min DSCR | E32: x | F32: =INDEX(I32:AG32,Sensitivity!$G$50) -> 1.4 | I32: 1.4 | J32: 1.4 | K32: 1.4 | L32: 1.4 | M32: 1.4 | N32: 1.4 | O32: 1.4 | P32: 1.4 | Q32: 1.4 | R32: 1.4 | S32: 1.4 | T32: 1.4
C34: Debt Tenure | E34: Years | F34: =INDEX(I34:AG34,Sensitivity!$G$50) -> 20 | I34: 20 | J34: 20 | K34: 20 | L34: 20 | M34: 20 | N34: 20 | O34: 20 | P34: 20 | Q34: 20 | R34: 20 | S34: 20 | T34: 20
C36: Base SOFR Swap Rate | E36: % p.a. | F36: =INDEX(I36:AG36,Sensitivity!$G$50) -> 0.035 | I36: 0.035 | J36: 0.035 | K36: 0.035 | L36: 0.035 | M36: 0.035 | N36: 0.035 | O36: 0.035 | P36: 0.035 | Q36: 0.035 | R36: 0.035 | S36: 0.035 | T36: 0.035
C37: Credit Spread | E37: % p.a. | F37: =INDEX(I37:AG37,Sensitivity!$G$50) -> 0.01 | I37: 0.01 | J37: 0.01 | K37: 0.01 | L37: 0.01 | M37: 0.01 | N37: 0.01 | O37: 0.01 | P37: 0.01 | Q37: 0.01 | R37: 0.01 | S37: 0.01 | T37: 0.01
C39: Pro-Rata Funding | E39: Flag | F39: =INDEX(I39:AG39,Sensitivity!$G$50) -> TRUE | I39: TRUE | J39: TRUE | K39: TRUE | L39: TRUE | M39: TRUE | N39: TRUE | O39: TRUE | P39: TRUE | Q39: TRUE | R39: TRUE | S39: TRUE | T39: TRUE
C40: Equity Up-front | E40: Flag | F40: =INDEX(I40:AG40,Sensitivity!$G$50) -> FALSE | I40: =NOT(I39) -> FALSE | J40: FALSE | K40: FALSE | L40: FALSE | M40: FALSE | N40: FALSE | O40: FALSE | P40: FALSE | Q40: FALSE | R40: FALSE | S40: FALSE | T40: FALSE
B42: Constants
D43: Months in a year | F43: 12 | G43: months
D44: One Range Name | F44: 1 | G44: One
D101: =TRANSPOSE(I5:AK5) -> Base Case - Annual
D102: Base Case Alternative Timing
D103: Longer-Construction
D104: Shorter-Life
D105: Higher Capital Expenditure
D106: Lower Base EBITDA
D107: Lower Growth Rate
D108: Base Case
D109: Break-Even DSCR Case
D110: Break-Even LLCR Case
D111: Break-Even PLCR Case
D112: Loss Case
D113: 0
D114: 0
D115: 0
D116: 0
D117: 0
D118: 0
D119: 0
D120: 0
D121: 0
D122: 0
D123: 0
D124: 0
D125: 0
D126: 0
D127: 0
D128: 0
D129: 0

Sheet Financial Model
B2: Timeline | F2: Constants | G2: Constants | H2: Sum | I2: Model Units | J2: Initial
D3: Time Period | I3: Period | K3: 1 | L3: 2 | M3: 3 | N3: 4 | O3: 5 | P3: 6 | Q3: 7 | R3: 8 | S3: 9 | T3: 10 | U3: 11 | V3: 12 | W3: 13 | X3: 14 | Y3: 15 | Z3: 16 | AA3: 17 | AB3: 18 | AC3: 19 | AD3: 20 | AE3: 21 | AF3: 22 | AG3: 23 | AH3: 24 | AI3: 25 | AJ3: 26 | AK3: 27 | AL3: 28 | AM3: 29 | AN3: 30 | AO3: 31 | AP3: 32 | AQ3: 33 | AR3: 34 | AS3: 35 | AT3: 36 | AU3: 37 | AV3: 38 | AW3: 39 | AX3: 40 | AY3: 41 | AZ3: 42 | BA3: 43 | BB3: 44 | BC3: 45 | BD3: 46 | BE3: 47 | BF3: 48 | BG3: 49 | BH3: 50 | BI3: 51 | BJ3: 52 | BK3: 53 | BL3: 54 | BM3: 55 | BN3: 56 | BO3: 57 | BP3: 58 | BQ3: 59 | BR3: 60 | BS3: 61 | BT3: 62 | BU3: 63 | BV3: 64 | BW3: 65 | BX3: 66 | BY3: 67 | BZ3: 68 | CA3: 69 | CB3: 70 | CC3: 71 | CD3: 72 | CE3: 73 | CF3: 74 | CG3: 75 | CH3: 76 | CI3: 77 | CJ3: 78 | CK3: 79 | CL3: 80 | CM3: 81 | CN3: 82 | CO3: 83 | CP3: 84 | CQ3: 85 | CR3: 86 | CS3: 87 | CT3: 88 | CU3: 89 | CV3: 90 | CW3: 91 | CX3: 92 | CY3: 93 | CZ3: 94 | DA3: 95 | DB3: 96 | DC3: 97 | DD3: 98 | DE3: 99 | DF3: 100 | DG3: 101 | DH3: 102 | DI3: 103 | DJ3: 104 | DK3: 105 | DL3: 106 | DM3: 107 | DN3: 108 | DO3: 109 | DP3: 110 | DQ3: 111 | DR3: 112 | DS3: 113 | DT3: 114 | DU3: 115 | DV3: 116 | DW3: 117 | DX3: 118 | DY3: 119 | DZ3: 120 | EA3: 121 | EB3: 122 | EC3: 123 | ED3: 124 | EE3: 125 | EF3: 126 | EG3: 127 | EH3: 128 | EI3: 129 | EJ3: 130 | EK3: 131 | EL3: 132 | EM3: 133 | EN3: 134 | EO3: 135 | EP3: 136 | EQ3: 137 | ER3: 138 | ES3: 139 | ET3: 140 | EU3: 141 | EV3: 142 | EW3: 143 | EX3: 144 | EY3: 145 | EZ3: 146 | FA3: 147 | FB3: 148 | FC3: 149 | FD3: 150 | FE3: 151 | FF3: 152 | FG3: 153 | FH3: 154 | FI3: 155 | FJ3: 156 | FK3: 157 | FL3: 158 | FM3: 159 | FN3: 160 | FO3: 161 | FP3: 162 | FQ3: 163 | FR3: 164 | FS3: 165 | FT3: 166 | FU3: 167 | FV3: 168 | FW3: 169 | FX3: 170 | FY3: 171 | FZ3: 172 | GA3: 173 | GB3: 174 | GC3: 175 | GD3: 176 | GE3: 177 | GF3: 178 | GG3: 179 | GH3: 180 | GI3: 181 | GJ3: 182 | GK3: 183 | GL3: 184 | GM3: 185 | GN3: 186 | GO3: 187 | GP3: 188 | GQ3: 189 | GR3: 190 | GS3: 191 | GT3: 192 | GU3: 193 | GV3: 194 | GW3: 195 | GX3: 196 | GY3: 197 | GZ3: 198 | HA3: 199 | HB3: 200 | HC3: 201 | HD3: 202 | HE3: 203 | HF3: 204 | HG3: 205 | HH3: 206 | HI3: 207 | HJ3: 208 | HK3: 209 | HL3: 210 | HM3: 211 | HN3: 212 | HO3: 213 | HP3: 214 | HQ3: 215 | HR3: 216 | HS3: 217 | HT3: 218 | HU3: 219 | HV3: 220 | HW3: 221 | HX3: 222 | HY3: 223 | HZ3: 224 | IA3: 225 | IB3: 226 | IC3: 227 | ID3: 228 | IE3: 229 | IF3: 230 | IG3: 231 | IH3: 232 | II3: 233 | IJ3: 234 | IK3: 235 | IL3: 236 | IM3: 237 | IN3: 238 | IO3: 239 | IP3: 240 | IQ3: 241 | IR3: 242 | IS3: 243 | IT3: 244 | IU3: 245 | IV3: 246 | IW3: 247 | IX3: 248 | IY3: 249 | IZ3: 250
D4: Construction Periods | E4: Months | F4: =InputC!F8 -> 36
D5: Construction in Periods | E5: Periods | F5: =F4/F6 -> 3 | H5: =SUM(K5:XFD5) -> 3 | I5: Flag | K5: =(K3<=$F$5)*1 -> 1 | L5: =(L3<=$F$5)*1 -> 1 | M5: 1 | N5: 0 | O5: 0 | P5: 0 | Q5: 0 | R5: 0 | S5: 0 | T5: 0 | U5: 0 | V5: 0 | W5: 0 | X5: 0 | Y5: 0 | Z5: 0 | AA5: 0 | AB5: 0 | AC5: 0 | AD5: 0 | AE5: 0 | AF5: 0 | AG5: 0 | AH5: 0 | AI5: 0 | AJ5: 0 | AK5: 0 | AL5: 0 | AM5: 0 | AN5: 0 | AO5: 0 | AP5: 0 | AQ5: 0 | AR5: 0 | AS5: 0 | AT5: 0 | AU5: 0 | AV5: 0 | AW5: 0 | AX5: 0 | AY5: 0 | AZ5: 0 | BA5: 0 | BB5: 0 | BC5: 0 | BD5: 0 | BE5: 0 | BF5: 0 | BG5: 0 | BH5: 0 | BI5: 0 | BJ5: 0 | BK5: 0 | BL5: 0 | BM5: 0 | BN5: 0 | BO5: 0 | BP5: 0 | BQ5: 0 | BR5: 0 | BS5: 0 | BT5: 0 | BU5: 0 | BV5: 0 | BW5: 0 | BX5: =(BX3<=$F$5)*1 -> 0 | BY5: 0 | BZ5: 0 | CA5: 0 | CB5: 0 | CC5: 0 | CD5: 0 | CE5: 0 | CF5: 0 | CG5: 0 | CH5: 0 | CI5: 0 | CJ5: 0 | CK5: 0 | CL5: 0 | CM5: 0 | CN5: 0 | CO5: 0 | CP5: 0 | CQ5: 0 | CR5: 0 | CS5: 0 | CT5: 0 | CU5: 0 | CV5: 0 | CW5: 0 | CX5: 0 | CY5: 0 | CZ5: 0 | DA5: 0 | DB5: 0 | DC5: 0 | DD5: 0 | DE5: 0 | DF5: 0 | DG5: 0 | DH5: 0 | DI5: 0 | DJ5: 0 | DK5: 0 | DL5: 0 | DM5: 0 | DN5: 0 | DO5: 0 | DP5: 0 | DQ5: 0 | DR5: 0 | DS5: 0 | DT5: 0 | DU5: 0 | DV5: 0 | DW5: 0 | DX5: 0 | DY5: 0 | DZ5: 0 | EA5: 0 | EB5: 0 | EC5: 0 | ED5: 0 | EE5: 0 | EF5: 0 | EG5: 0 | EH5: 0 | EI5: 0 | EJ5: =(EJ3<=$F$5)*1 -> 0 | EK5: 0 | EL5: 0 | EM5: 0 | EN5: 0 | EO5: 0 | EP5: 0 | EQ5: 0 | ER5: 0 | ES5: 0 | ET5: 0 | EU5: 0 | EV5: 0 | EW5: 0 | EX5: 0 | EY5: 0 | EZ5: 0 | FA5: 0 | FB5: 0 | FC5: 0 | FD5: 0 | FE5: 0 | FF5: 0 | FG5: 0 | FH5: 0 | FI5: 0 | FJ5: 0 | FK5: 0 | FL5: 0 | FM5: 0 | FN5: 0 | FO5: 0 | FP5: 0 | FQ5: 0 | FR5: 0 | FS5: 0 | FT5: 0 | FU5: 0 | FV5: 0 | FW5: 0 | FX5: 0 | FY5: 0 | FZ5: 0 | GA5: 0 | GB5: 0 | GC5: 0 | GD5: 0 | GE5: 0 | GF5: 0 | GG5: 0 | GH5: 0 | GI5: 0 | GJ5: 0 | GK5: 0 | GL5: 0 | GM5: 0 | GN5: 0 | GO5: 0 | GP5: 0 | GQ5: 0 | GR5: 0 | GS5: 0 | GT5: 0 | GU5: 0 | GV5: =(GV3<=$F$5)*1 -> 0 | GW5: 0 | GX5: 0 | GY5: 0 | GZ5: 0 | HA5: 0 | HB5: 0 | HC5: 0 | HD5: 0 | HE5: 0 | HF5: 0 | HG5: 0 | HH5: 0 | HI5: 0 | HJ5: 0 | HK5: 0 | HL5: 0 | HM5: 0 | HN5: 0 | HO5: 0 | HP5: 0 | HQ5: 0 | HR5: 0 | HS5: 0 | HT5: 0 | HU5: 0 | HV5: 0 | HW5: 0 | HX5: 0 | HY5: 0 | HZ5: 0 | IA5: 0 | IB5: 0 | IC5: 0 | ID5: 0 | IE5: 0 | IF5: 0 | IG5: 0 | IH5: 0 | II5: 0 | IJ5: 0 | IK5: 0 | IL5: 0 | IM5: 0 | IN5: 0 | IO5: 0 | IP5: 0 | IQ5: 0 | IR5: 0 | IS5: 0 | IT5: 0 | IU5: 0 | IV5: 0 | IW5: 0 | IX5: 0 | IY5: 0 | IZ5: 0
D6: Months in period | E6: Months/Per | F6: =InputC!F11 -> 12 | G6: =InputC!F12 -> 12 | I6: Months/Per | K6: =IF(K5,$F$6,$G$6) -> 12 | L6: 12 | M6: 12 | N6: 12 | O6: 12 | P6: 12 | Q6: 12 | R6: 12 | S6: 12 | T6: 12 | U6: 12 | V6: 12 | W6: 12 | X6: 12 | Y6: 12 | Z6: 12 | AA6: 12 | AB6: 12 | AC6: 12 | AD6: 12 | AE6: 12 | AF6: 12 | AG6: 12 | AH6: 12 | AI6: 12 | AJ6: 12 | AK6: 12 | AL6: 12 | AM6: 12 | AN6: 12 | AO6: 12 | AP6: 12 | AQ6: 12 | AR6: 12 | AS6: 12 | AT6: 12 | AU6: 12 | AV6: 12 | AW6: 12 | AX6: 12 | AY6: 12 | AZ6: 12 | BA6: 12 | BB6: 12 | BC6: 12 | BD6: 12 | BE6: 12 | BF6: 12 | BG6: 12 | BH6: 12 | BI6: 12 | BJ6: 12 | BK6: 12 | BL6: 12 | BM6: 12 | BN6: 12 | BO6: 12 | BP6: 12 | BQ6: 12 | BR6: 12 | BS6: 12 | BT6: 12 | BU6: 12 | BV6: 12 | BW6: =IF(BW5,$F$6,$G$6) -> 12 | BX6: 12 | BY6: 12 | BZ6: 12 | CA6: 12 | CB6: 12 | CC6: 12 | CD6: 12 | CE6: 12 | CF6: 12 | CG6: 12 | CH6: 12 | CI6: 12 | CJ6: 12 | CK6: 12 | CL6: 12 | CM6: 12 | CN6: 12 | CO6: 12 | CP6: 12 | CQ6: 12 | CR6: 12 | CS6: 12 | CT6: 12 | CU6: 12 | CV6: 12 | CW6: 12 | CX6: 12 | CY6: 12 | CZ6: 12 | DA6: 12 | DB6: 12 | DC6: 12 | DD6: 12 | DE6: 12 | DF6: 12 | DG6: 12 | DH6: 12 | DI6: 12 | DJ6: 12 | DK6: 12 | DL6: 12 | DM6: 12 | DN6: 12 | DO6: 12 | DP6: 12 | DQ6: 12 | DR6: 12 | DS6: 12 | DT6: 12 | DU6: 12 | DV6: 12 | DW6: 12 | DX6: 12 | DY6: 12 | DZ6: 12 | EA6: 12 | EB6: 12 | EC6: 12 | ED6: 12 | EE6: 12 | EF6: 12 | EG6: 12 | EH6: 12 | EI6: =IF(EI5,$F$6,$G$6) -> 12 | EJ6: 12 | EK6: 12 | EL6: 12 | EM6: 12 | EN6: 12 | EO6: 12 | EP6: 12 | EQ6: 12 | ER6: 12 | ES6: 12 | ET6: 12 | EU6: 12 | EV6: 12 | EW6: 12 | EX6: 12 | EY6: 12 | EZ6: 12 | FA6: 12 | FB6: 12 | FC6: 12 | FD6: 12 | FE6: 12 | FF6: 12 | FG6: 12 | FH6: 12 | FI6: 12 | FJ6: 12 | FK6: 12 | FL6: 12 | FM6: 12 | FN6: 12 | FO6: 12 | FP6: 12 | FQ6: 12 | FR6: 12 | FS6: 12 | FT6: 12 | FU6: 12 | FV6: 12 | FW6: 12 | FX6: 12 | FY6: 12 | FZ6: 12 | GA6: 12 | GB6: 12 | GC6: 12 | GD6: 12 | GE6: 12 | GF6: 12 | GG6: 12 | GH6: 12 | GI6: 12 | GJ6: 12 | GK6: 12 | GL6: 12 | GM6: 12 | GN6: 12 | GO6: 12 | GP6: 12 | GQ6: 12 | GR6: 12 | GS6: 12 | GT6: 12 | GU6: =IF(GU5,$F$6,$G$6) -> 12 | GV6: 12 | GW6: 12 | GX6: 12 | GY6: 12 | GZ6: 12 | HA6: 12 | HB6: 12 | HC6: 12 | HD6: 12 | HE6: 12 | HF6: 12 | HG6: 12 | HH6: 12 | HI6: 12 | HJ6: 12 | HK6: 12 | HL6: 12 | HM6: 12 | HN6: 12 | HO6: 12 | HP6: 12 | HQ6: 12 | HR6: 12 | HS6: 12 | HT6: 12 | HU6: 12 | HV6: 12 | HW6: 12 | HX6: 12 | HY6: 12 | HZ6: 12 | IA6: 12 | IB6: 12 | IC6: 12 | ID6: 12 | IE6: 12 | IF6: 12 | IG6: 12 | IH6: 12 | II6: 12 | IJ6: 12 | IK6: 12 | IL6: 12 | IM6: 12 | IN6: 12 | IO6: 12 | IP6: 12 | IQ6: 12 | IR6: 12 | IS6: 12 | IT6: 12 | IU6: 12 | IV6: 12 | IW6: 12 | IX6: 12 | IY6: 12 | IZ6: 12
D7: Start of period | E7: Data | I7: Date | K7: =J8+1 -> 2026-01-01 | L7: =K8+1 -> 2027-01-01 | M7: 2028-01-01 | N7: 2029-01-01 | O7: 2030-01-01 | P7: 2031-01-01 | Q7: 2032-01-01 | R7: 2033-01-01 | S7: 2034-01-01 | T7: 2035-01-01 | U7: 2036-01-01 | V7: 2037-01-01 | W7: 2038-01-01 | X7: 2039-01-01 | Y7: 2040-01-01 | Z7: 2041-01-01 | AA7: 2042-01-01 | AB7: 2043-01-01 | AC7: 2044-01-01 | AD7: 2045-01-01 | AE7: 2046-01-01 | AF7: 2047-01-01 | AG7: 2048-01-01 | AH7: 2049-01-01 | AI7: 2050-01-01 | AJ7: 2051-01-01 | AK7: 2052-01-01 | AL7: 2053-01-01 | AM7: 2054-01-01 | AN7: 2055-01-01 | AO7: 2056-01-01 | AP7: 2057-01-01 | AQ7: 2058-01-01 | AR7: 2059-01-01 | AS7: 2060-01-01 | AT7: 2061-01-01 | AU7: 2062-01-01 | AV7: 2063-01-01 | AW7: 2064-01-01 | AX7: 2065-01-01 | AY7: 2066-01-01 | AZ7: 2067-01-01 | BA7: 2068-01-01 | BB7: 2069-01-01 | BC7: 2070-01-01 | BD7: 2071-01-01 | BE7: 2072-01-01 | BF7: 2073-01-01 | BG7: 2074-01-01 | BH7: 2075-01-01 | BI7: 2076-01-01 | BJ7: 2077-01-01 | BK7: 2078-01-01 | BL7: 2079-01-01 | BM7: 2080-01-01 | BN7: 2081-01-01 | BO7: 2082-01-01 | BP7: 2083-01-01 | BQ7: 2084-01-01 | BR7: 2085-01-01 | BS7: 2086-01-01 | BT7: 2087-01-01 | BU7: 2088-01-01 | BV7: 2089-01-01 | BW7: 2090-01-01 | BX7: =BW8+1 -> 2091-01-01 | BY7: 2092-01-01 | BZ7: 2093-01-01 | CA7: 2094-01-01 | CB7: 2095-01-01 | CC7: 2096-01-01 | CD7: 2097-01-01 | CE7: 2098-01-01 | CF7: 2099-01-01 | CG7: 2100-01-01 | CH7: 2101-01-01 | CI7: 2102-01-01 | CJ7: 2103-01-01 | CK7: 2104-01-01 | CL7: 2105-01-01 | CM7: 2106-01-01 | CN7: 2107-01-01 | CO7: 2108-01-01 | CP7: 2109-01-01 | CQ7: 2110-01-01 | CR7: 2111-01-01 | CS7: 2112-01-01 | CT7: 2113-01-01 | CU7: 2114-01-01 | CV7: 2115-01-01 | CW7: 2116-01-01 | CX7: 2117-01-01 | CY7: 2118-01-01 | CZ7: 2119-01-01 | DA7: 2120-01-01 | DB7: 2121-01-01 | DC7: 2122-01-01 | DD7: 2123-01-01 | DE7: 2124-01-01 | DF7: 2125-01-01 | DG7: 2126-01-01 | DH7: 2127-01-01 | DI7: 2128-01-01 | DJ7: 2129-01-01 | DK7: 2130-01-01 | DL7: 2131-01-01 | DM7: 2132-01-01 | DN7: 2133-01-01 | DO7: 2134-01-01 | DP7: 2135-01-01 | DQ7: 2136-01-01 | DR7: 2137-01-01 | DS7: 2138-01-01 | DT7: 2139-01-01 | DU7: 2140-01-01 | DV7: 2141-01-01 | DW7: 2142-01-01 | DX7: 2143-01-01 | DY7: 2144-01-01 | DZ7: 2145-01-01 | EA7: 2146-01-01 | EB7: 2147-01-01 | EC7: 2148-01-01 | ED7: 2149-01-01 | EE7: 2150-01-01 | EF7: 2151-01-01 | EG7: 2152-01-01 | EH7: 2153-01-01 | EI7: 2154-01-01 | EJ7: =EI8+1 -> 2155-01-01 | EK7: 2156-01-01 | EL7: 2157-01-01 | EM7: 2158-01-01 | EN7: 2159-01-01 | EO7: 2160-01-01 | EP7: 2161-01-01 | EQ7: 2162-01-01 | ER7: 2163-01-01 | ES7: 2164-01-01 | ET7: 2165-01-01 | EU7: 2166-01-01 | EV7: 2167-01-01 | EW7: 2168-01-01 | EX7: 2169-01-01 | EY7: 2170-01-01 | EZ7: 2171-01-01 | FA7: 2172-01-01 | FB7: 2173-01-01 | FC7: 2174-01-01 | FD7: 2175-01-01 | FE7: 2176-01-01 | FF7: 2177-01-01 | FG7: 2178-01-01 | FH7: 2179-01-01 | FI7: 2180-01-01 | FJ7: 2181-01-01 | FK7: 2182-01-01 | FL7: 2183-01-01 | FM7: 2184-01-01 | FN7: 2185-01-01 | FO7: 2186-01-01 | FP7: 2187-01-01 | FQ7: 2188-01-01 | FR7: 2189-01-01 | FS7: 2190-01-01 | FT7: 2191-01-01 | FU7: 2192-01-01 | FV7: 2193-01-01 | FW7: 2194-01-01 | FX7: 2195-01-01 | FY7: 2196-01-01 | FZ7: 2197-01-01 | GA7: 2198-01-01 | GB7: 2199-01-01 | GC7: 2200-01-01 | GD7: 2201-01-01 | GE7: 2202-01-01 | GF7: 2203-01-01 | GG7: 2204-01-01 | GH7: 2205-01-01 | GI7: 2206-01-01 | GJ7: 2207-01-01 | GK7: 2208-01-01 | GL7: 2209-01-01 | GM7: 2210-01-01 | GN7: 2211-01-01 | GO7: 2212-01-01 | GP7: 2213-01-01 | GQ7: 2214-01-01 | GR7: 2215-01-01 | GS7: 2216-01-01 | GT7: 2217-01-01 | GU7: 2218-01-01 | GV7: =GU8+1 -> 2219-01-01 | GW7: 2220-01-01 | GX7: 2221-01-01 | GY7: 2222-01-01 | GZ7: 2223-01-01 | HA7: 2224-01-01 | HB7: 2225-01-01 | HC7: 2226-01-01 | HD7: 2227-01-01 | HE7: 2228-01-01 | HF7: 2229-01-01 | HG7: 2230-01-01 | HH7: 2231-01-01 | HI7: 2232-01-01 | HJ7: 2233-01-01 | HK7: 2234-01-01 | HL7: 2235-01-01 | HM7: 2236-01-01 | HN7: 2237-01-01 | HO7: 2238-01-01 | HP7: 2239-01-01 | HQ7: 2240-01-01 | HR7: 2241-01-01 | HS7: 2242-01-01 | HT7: 2243-01-01 | HU7: 2244-01-01 | HV7: 2245-01-01 | HW7: 2246-01-01 | HX7: 2247-01-01 | HY7: 2248-01-01 | HZ7: 2249-01-01 | IA7: 2250-01-01 | IB7: 2251-01-01 | IC7: 2252-01-01 | ID7: 2253-01-01 | IE7: 2254-01-01 | IF7: 2255-01-01 | IG7: 2256-01-01 | IH7: 2257-01-01 | II7: 2258-01-01 | IJ7: 2259-01-01 | IK7: 2260-01-01 | IL7: 2261-01-01 | IM7: 2262-01-01 | IN7: 2263-01-01 | IO7: 2264-01-01 | IP7: 2265-01-01 | IQ7: 2266-01-01 | IR7: 2267-01-01 | IS7: 2268-01-01 | IT7: 2269-01-01 | IU7: 2270-01-01 | IV7: 2271-01-01 | IW7: 2272-01-01 | IX7: 2273-01-01 | IY7: 2274-01-01 | IZ7: 2275-01-01
D8: End of period | E8: Date | I8: Date | J8: =InputC!F7-1 -> 2025-12-31 | K8: =EDATE(K7,K6)-1 -> 2026-12-31 | L8: =EDATE(L7,L6)-1 -> 2027-12-31 | M8: 2028-12-31 | N8: 2029-12-31 | O8: 2030-12-31 | P8: 2031-12-31 | Q8: 2032-12-31 | R8: 2033-12-31 | S8: 2034-12-31 | T8: 2035-12-31 | U8: 2036-12-31 | V8: 2037-12-31 | W8: 2038-12-31 | X8: 2039-12-31 | Y8: 2040-12-31 | Z8: 2041-12-31 | AA8: 2042-12-31 | AB8: 2043-12-31 | AC8: 2044-12-31 | AD8: 2045-12-31 | AE8: 2046-12-31 | AF8: 2047-12-31 | AG8: 2048-12-31 | AH8: 2049-12-31 | AI8: 2050-12-31 | AJ8: 2051-12-31 | AK8: 2052-12-31 | AL8: 2053-12-31 | AM8: 2054-12-31 | AN8: 2055-12-31 | AO8: 2056-12-31 | AP8: 2057-12-31 | AQ8: 2058-12-31 | AR8: 2059-12-31 | AS8: 2060-12-31 | AT8: 2061-12-31 | AU8: 2062-12-31 | AV8: 2063-12-31 | AW8: 2064-12-31 | AX8: 2065-12-31 | AY8: 2066-12-31 | AZ8: 2067-12-31 | BA8: 2068-12-31 | BB8: 2069-12-31 | BC8: 2070-12-31 | BD8: 2071-12-31 | BE8: 2072-12-31 | BF8: 2073-12-31 | BG8: 2074-12-31 | BH8: 2075-12-31 | BI8: 2076-12-31 | BJ8: 2077-12-31 | BK8: 2078-12-31 | BL8: 2079-12-31 | BM8: 2080-12-31 | BN8: 2081-12-31 | BO8: 2082-12-31 | BP8: 2083-12-31 | BQ8: 2084-12-31 | BR8: 2085-12-31 | BS8: 2086-12-31 | BT8: 2087-12-31 | BU8: 2088-12-31 | BV8: 2089-12-31 | BW8: 2090-12-31 | BX8: =EDATE(BX7,BX6)-1 -> 2091-12-31 | BY8: 2092-12-31 | BZ8: 2093-12-31 | CA8: 2094-12-31 | CB8: 2095-12-31 | CC8: 2096-12-31 | CD8: 2097-12-31 | CE8: 2098-12-31 | CF8: 2099-12-31 | CG8: 2100-12-31 | CH8: 2101-12-31 | CI8: 2102-12-31 | CJ8: 2103-12-31 | CK8: 2104-12-31 | CL8: 2105-12-31 | CM8: 2106-12-31 | CN8: 2107-12-31 | CO8: 2108-12-31 | CP8: 2109-12-31 | CQ8: 2110-12-31 | CR8: 2111-12-31 | CS8: 2112-12-31 | CT8: 2113-12-31 | CU8: 2114-12-31 | CV8: 2115-12-31 | CW8: 2116-12-31 | CX8: 2117-12-31 | CY8: 2118-12-31 | CZ8: 2119-12-31 | DA8: 2120-12-31 | DB8: 2121-12-31 | DC8: 2122-12-31 | DD8: 2123-12-31 | DE8: 2124-12-31 | DF8: 2125-12-31 | DG8: 2126-12-31 | DH8: 2127-12-31 | DI8: 2128-12-31 | DJ8: 2129-12-31 | DK8: 2130-12-31 | DL8: 2131-12-31 | DM8: 2132-12-31 | DN8: 2133-12-31 | DO8: 2134-12-31 | DP8: 2135-12-31 | DQ8: 2136-12-31 | DR8: 2137-12-31 | DS8: 2138-12-31 | DT8: 2139-12-31 | DU8: 2140-12-31 | DV8: 2141-12-31 | DW8: 2142-12-31 | DX8: 2143-12-31 | DY8: 2144-12-31 | DZ8: 2145-12-31 | EA8: 2146-12-31 | EB8: 2147-12-31 | EC8: 2148-12-31 | ED8: 2149-12-31 | EE8: 2150-12-31 | EF8: 2151-12-31 | EG8: 2152-12-31 | EH8: 2153-12-31 | EI8: 2154-12-31 | EJ8: =EDATE(EJ7,EJ6)-1 -> 2155-12-31 | EK8: 2156-12-31 | EL8: 2157-12-31 | EM8: 2158-12-31 | EN8: 2159-12-31 | EO8: 2160-12-31 | EP8: 2161-12-31 | EQ8: 2162-12-31 | ER8: 2163-12-31 | ES8: 2164-12-31 | ET8: 2165-12-31 | EU8: 2166-12-31 | EV8: 2167-12-31 | EW8: 2168-12-31 | EX8: 2169-12-31 | EY8: 2170-12-31 | EZ8: 2171-12-31 | FA8: 2172-12-31 | FB8: 2173-12-31 | FC8: 2174-12-31 | FD8: 2175-12-31 | FE8: 2176-12-31 | FF8: 2177-12-31 | FG8: 2178-12-31 | FH8: 2179-12-31 | FI8: 2180-12-31 | FJ8: 2181-12-31 | FK8: 2182-12-31 | FL8: 2183-12-31 | FM8: 2184-12-31 | FN8: 2185-12-31 | FO8: 2186-12-31 | FP8: 2187-12-31 | FQ8: 2188-12-31 | FR8: 2189-12-31 | FS8: 2190-12-31 | FT8: 2191-12-31 | FU8: 2192-12-31 | FV8: 2193-12-31 | FW8: 2194-12-31 | FX8: 2195-12-31 | FY8: 2196-12-31 | FZ8: 2197-12-31 | GA8: 2198-12-31 | GB8: 2199-12-31 | GC8: 2200-12-31 | GD8: 2201-12-31 | GE8: 2202-12-31 | GF8: 2203-12-31 | GG8: 2204-12-31 | GH8: 2205-12-31 | GI8: 2206-12-31 | GJ8: 2207-12-31 | GK8: 2208-12-31 | GL8: 2209-12-31 | GM8: 2210-12-31 | GN8: 2211-12-31 | GO8: 2212-12-31 | GP8: 2213-12-31 | GQ8: 2214-12-31 | GR8: 2215-12-31 | GS8: 2216-12-31 | GT8: 2217-12-31 | GU8: 2218-12-31 | GV8: =EDATE(GV7,GV6)-1 -> 2219-12-31 | GW8: 2220-12-31 | GX8: 2221-12-31 | GY8: 2222-12-31 | GZ8: 2223-12-31 | HA8: 2224-12-31 | HB8: 2225-12-31 | HC8: 2226-12-31 | HD8: 2227-12-31 | HE8: 2228-12-31 | HF8: 2229-12-31 | HG8: 2230-12-31 | HH8: 2231-12-31 | HI8: 2232-12-31 | HJ8: 2233-12-31 | HK8: 2234-12-31 | HL8: 2235-12-31 | HM8: 2236-12-31 | HN8: 2237-12-31 | HO8: 2238-12-31 | HP8: 2239-12-31 | HQ8: 2240-12-31 | HR8: 2241-12-31 | HS8: 2242-12-31 | HT8: 2243-12-31 | HU8: 2244-12-31 | HV8: 2245-12-31 | HW8: 2246-12-31 | HX8: 2247-12-31 | HY8: 2248-12-31 | HZ8: 2249-12-31 | IA8: 2250-12-31 | IB8: 2251-12-31 | IC8: 2252-12-31 | ID8: 2253-12-31 | IE8: 2254-12-31 | IF8: 2255-12-31 | IG8: 2256-12-31 | IH8: 2257-12-31 | II8: 2258-12-31 | IJ8: 2259-12-31 | IK8: 2260-12-31 | IL8: 2261-12-31 | IM8: 2262-12-31 | IN8: 2263-12-31 | IO8: 2264-12-31 | IP8: 2265-12-31 | IQ8: 2266-12-31 | IR8: 2267-12-31 | IS8: 2268-12-31 | IT8: 2269-12-31 | IU8: 2270-12-31 | IV8: 2271-12-31 | IW8: 2272-12-31 | IX8: 2273-12-31 | IY8: 2274-12-31 | IZ8: 2275-12-31
D9: Operation period | E9: Flag | F9: =InputC!F10 -> 2029-01-01 | G9: =InputC!F15 -> 2054-01-01 | H9: =SUM(K9:XFD9) -> 25 | I9: Flag | K9: =(AND(K7>=$F$9,K7<$G$9))*1 -> 0 | L9: =(AND(L7>=$F$9,L7<$G$9))*1 -> 0 | M9: 0 | N9: 1 | O9: 1 | P9: 1 | Q9: 1 | R9: 1 | S9: 1 | T9: 1 | U9: 1 | V9: 1 | W9: 1 | X9: 1 | Y9: 1 | Z9: 1 | AA9: 1 | AB9: 1 | AC9: 1 | AD9: 1 | AE9: 1 | AF9: 1 | AG9: 1 | AH9: 1 | AI9: 1 | AJ9: 1 | AK9: 1 | AL9: 1 | AM9: 0 | AN9: 0 | AO9: 0 | AP9: 0 | AQ9: 0 | AR9: 0 | AS9: 0 | AT9: 0 | AU9: 0 | AV9: 0 | AW9: 0 | AX9: 0 | AY9: 0 | AZ9: 0 | BA9: 0 | BB9: 0 | BC9: 0 | BD9: 0 | BE9: 0 | BF9: 0 | BG9: 0 | BH9: 0 | BI9: 0 | BJ9: 0 | BK9: 0 | BL9: 0 | BM9: 0 | BN9: 0 | BO9: 0 | BP9: 0 | BQ9: 0 | BR9: 0 | BS9: 0 | BT9: 0 | BU9: 0 | BV9: 0 | BW9: 0 | BX9: =(AND(BX7>=$F$9,BX7<$G$9))*1 -> 0 | BY9: 0 | BZ9: 0 | CA9: 0 | CB9: 0 | CC9: 0 | CD9: 0 | CE9: 0 | CF9: 0 | CG9: 0 | CH9: 0 | CI9: 0 | CJ9: 0 | CK9: 0 | CL9: 0 | CM9: 0 | CN9: 0 | CO9: 0 | CP9: 0 | CQ9: 0 | CR9: 0 | CS9: 0 | CT9: 0 | CU9: 0 | CV9: 0 | CW9: 0 | CX9: 0 | CY9: 0 | CZ9: 0 | DA9: 0 | DB9: 0 | DC9: 0 | DD9: 0 | DE9: 0 | DF9: 0 | DG9: 0 | DH9: 0 | DI9: 0 | DJ9: 0 | DK9: 0 | DL9: 0 | DM9: 0 | DN9: 0 | DO9: 0 | DP9: 0 | DQ9: 0 | DR9: 0 | DS9: 0 | DT9: 0 | DU9: 0 | DV9: 0 | DW9: 0 | DX9: 0 | DY9: 0 | DZ9: 0 | EA9: 0 | EB9: 0 | EC9: 0 | ED9: 0 | EE9: 0 | EF9: 0 | EG9: 0 | EH9: 0 | EI9: 0 | EJ9: =(AND(EJ7>=$F$9,EJ7<$G$9))*1 -> 0 | EK9: 0 | EL9: 0 | EM9: 0 | EN9: 0 | EO9: 0 | EP9: 0 | EQ9: 0 | ER9: 0 | ES9: 0 | ET9: 0 | EU9: 0 | EV9: 0 | EW9: 0 | EX9: 0 | EY9: 0 | EZ9: 0 | FA9: 0 | FB9: 0 | FC9: 0 | FD9: 0 | FE9: 0 | FF9: 0 | FG9: 0 | FH9: 0 | FI9: 0 | FJ9: 0 | FK9: 0 | FL9: 0 | FM9: 0 | FN9: 0 | FO9: 0 | FP9: 0 | FQ9: 0 | FR9: 0 | FS9: 0 | FT9: 0 | FU9: 0 | FV9: 0 | FW9: 0 | FX9: 0 | FY9: 0 | FZ9: 0 | GA9: 0 | GB9: 0 | GC9: 0 | GD9: 0 | GE9: 0 | GF9: 0 | GG9: 0 | GH9: 0 | GI9: 0 | GJ9: 0 | GK9: 0 | GL9: 0 | GM9: 0 | GN9: 0 | GO9: 0 | GP9: 0 | GQ9: 0 | GR9: 0 | GS9: 0 | GT9: 0 | GU9: 0 | GV9: =(AND(GV7>=$F$9,GV7<$G$9))*1 -> 0 | GW9: 0 | GX9: 0 | GY9: 0 | GZ9: 0 | HA9: 0 | HB9: 0 | HC9: 0 | HD9: 0 | HE9: 0 | HF9: 0 | HG9: 0 | HH9: 0 | HI9: 0 | HJ9: 0 | HK9: 0 | HL9: 0 | HM9: 0 | HN9: 0 | HO9: 0 | HP9: 0 | HQ9: 0 | HR9: 0 | HS9: 0 | HT9: 0 | HU9: 0 | HV9: 0 | HW9: 0 | HX9: 0 | HY9: 0 | HZ9: 0 | IA9: 0 | IB9: 0 | IC9: 0 | ID9: 0 | IE9: 0 | IF9: 0 | IG9: 0 | IH9: 0 | II9: 0 | IJ9: 0 | IK9: 0 | IL9: 0 | IM9: 0 | IN9: 0 | IO9: 0 | IP9: 0 | IQ9: 0 | IR9: 0 | IS9: 0 | IT9: 0 | IU9: 0 | IV9: 0 | IW9: 0 | IX9: 0 | IY9: 0 | IZ9: 0
D10: Operating Life in Periods | I10: Counter | K10: =J10+K9 -> 0 | L10: =K10+L9 -> 0 | M10: 0 | N10: 1 | O10: 2 | P10: 3 | Q10: 4 | R10: 5 | S10: 6 | T10: 7 | U10: 8 | V10: 9 | W10: 10 | X10: 11 | Y10: 12 | Z10: 13 | AA10: 14 | AB10: 15 | AC10: 16 | AD10: 17 | AE10: 18 | AF10: 19 | AG10: 20 | AH10: 21 | AI10: 22 | AJ10: 23 | AK10: 24 | AL10: 25 | AM10: 25 | AN10: 25 | AO10: 25 | AP10: 25 | AQ10: 25 | AR10: 25 | AS10: 25 | AT10: 25 | AU10: 25 | AV10: 25 | AW10: 25 | AX10: 25 | AY10: 25 | AZ10: 25 | BA10: 25 | BB10: 25 | BC10: 25 | BD10: 25 | BE10: 25 | BF10: 25 | BG10: 25 | BH10: 25 | BI10: 25 | BJ10: 25 | BK10: 25 | BL10: 25 | BM10: 25 | BN10: 25 | BO10: 25 | BP10: 25 | BQ10: 25 | BR10: 25 | BS10: 25 | BT10: 25 | BU10: 25 | BV10: 25 | BW10: 25 | BX10: =BW10+BX9 -> 25 | BY10: 25 | BZ10: 25 | CA10: 25 | CB10: 25 | CC10: 25 | CD10: 25 | CE10: 25 | CF10: 25 | CG10: 25 | CH10: 25 | CI10: 25 | CJ10: 25 | CK10: 25 | CL10: 25 | CM10: 25 | CN10: 25 | CO10: 25 | CP10: 25 | CQ10: 25 | CR10: 25 | CS10: 25 | CT10: 25 | CU10: 25 | CV10: 25 | CW10: 25 | CX10: 25 | CY10: 25 | CZ10: 25 | DA10: 25 | DB10: 25 | DC10: 25 | DD10: 25 | DE10: 25 | DF10: 25 | DG10: 25 | DH10: 25 | DI10: 25 | DJ10: 25 | DK10: 25 | DL10: 25 | DM10: 25 | DN10: 25 | DO10: 25 | DP10: 25 | DQ10: 25 | DR10: 25 | DS10: 25 | DT10: 25 | DU10: 25 | DV10: 25 | DW10: 25 | DX10: 25 | DY10: 25 | DZ10: 25 | EA10: 25 | EB10: 25 | EC10: 25 | ED10: 25 | EE10: 25 | EF10: 25 | EG10: 25 | EH10: 25 | EI10: 25 | EJ10: =EI10+EJ9 -> 25 | EK10: 25 | EL10: 25 | EM10: 25 | EN10: 25 | EO10: 25 | EP10: 25 | EQ10: 25 | ER10: 25 | ES10: 25 | ET10: 25 | EU10: 25 | EV10: 25 | EW10: 25 | EX10: 25 | EY10: 25 | EZ10: 25 | FA10: 25 | FB10: 25 | FC10: 25 | FD10: 25 | FE10: 25 | FF10: 25 | FG10: 25 | FH10: 25 | FI10: 25 | FJ10: 25 | FK10: 25 | FL10: 25 | FM10: 25 | FN10: 25 | FO10: 25 | FP10: 25 | FQ10: 25 | FR10: 25 | FS10: 25 | FT10: 25 | FU10: 25 | FV10: 25 | FW10: 25 | FX10: 25 | FY10: 25 | FZ10: 25 | GA10: 25 | GB10: 25 | GC10: 25 | GD10: 25 | GE10: 25 | GF10: 25 | GG10: 25 | GH10: 25 | GI10: 25 | GJ10: 25 | GK10: 25 | GL10: 25 | GM10: 25 | GN10: 25 | GO10: 25 | GP10: 25 | GQ10: 25 | GR10: 25 | GS10: 25 | GT10: 25 | GU10: 25 | GV10: =GU10+GV9 -> 25 | GW10: 25 | GX10: 25 | GY10: 25 | GZ10: 25 | HA10: 25 | HB10: 25 | HC10: 25 | HD10: 25 | HE10: 25 | HF10: 25 | HG10: 25 | HH10: 25 | HI10: 25 | HJ10: 25 | HK10: 25 | HL10: 25 | HM10: 25 | HN10: 25 | HO10: 25 | HP10: 25 | HQ10: 25 | HR10: 25 | HS10: 25 | HT10: 25 | HU10: 25 | HV10: 25 | HW10: 25 | HX10: 25 | HY10: 25 | HZ10: 25 | IA10: 25 | IB10: 25 | IC10: 25 | ID10: 25 | IE10: 25 | IF10: 25 | IG10: 25 | IH10: 25 | II10: 25 | IJ10: 25 | IK10: 25 | IL10: 25 | IM10: 25 | IN10: 25 | IO10: 25 | IP10: 25 | IQ10: 25 | IR10: 25 | IS10: 25 | IT10: 25 | IU10: 25 | IV10: 25 | IW10: 25 | IX10: 25 | IY10: 25 | IZ10: 25
B11: Operations
C13: Capital Expenditures
D14: Total Cost | E14: EUR | F14: =InputC!F19 -> 1400000 | I14: EUR | K14: =$F$14 -> 1400000 | L14: 1400000 | M14: 1400000 | N14: 1400000 | O14: 1400000 | P14: 1400000 | Q14: 1400000 | R14: 1400000 | S14: 1400000 | T14: 1400000 | U14: 1400000 | V14: 1400000 | W14: 1400000 | X14: 1400000 | Y14: 1400000 | Z14: 1400000 | AA14: 1400000 | AB14: 1400000 | AC14: 1400000 | AD14: 1400000 | AE14: 1400000 | AF14: 1400000 | AG14: 1400000 | AH14: 1400000 | AI14: 1400000 | AJ14: 1400000 | AK14: 1400000 | AL14: 1400000 | AM14: 1400000 | AN14: 1400000 | AO14: 1400000 | AP14: 1400000 | AQ14: 1400000 | AR14: 1400000 | AS14: 1400000 | AT14: 1400000 | AU14: 1400000 | AV14: 1400000 | AW14: 1400000 | AX14: 1400000 | AY14: 1400000 | AZ14: 1400000 | BA14: 1400000 | BB14: 1400000 | BC14: 1400000 | BD14: 1400000 | BE14: 1400000 | BF14: 1400000 | BG14: 1400000 | BH14: 1400000 | BI14: 1400000 | BJ14: 1400000 | BK14: 1400000 | BL14: 1400000 | BM14: 1400000 | BN14: 1400000 | BO14: 1400000 | BP14: 1400000 | BQ14: 1400000 | BR14: 1400000 | BS14: 1400000 | BT14: 1400000 | BU14: 1400000 | BV14: 1400000 | BW14: =$F$14 -> 1400000 | BX14: 1400000 | BY14: 1400000 | BZ14: 1400000 | CA14: 1400000 | CB14: 1400000 | CC14: 1400000 | CD14: 1400000 | CE14: 1400000 | CF14: 1400000 | CG14: 1400000 | CH14: 1400000 | CI14: 1400000 | CJ14: 1400000 | CK14: 1400000 | CL14: 1400000 | CM14: 1400000 | CN14: 1400000 | CO14: 1400000 | CP14: 1400000 | CQ14: 1400000 | CR14: 1400000 | CS14: 1400000 | CT14: 1400000 | CU14: 1400000 | CV14: 1400000 | CW14: 1400000 | CX14: 1400000 | CY14: 1400000 | CZ14: 1400000 | DA14: 1400000 | DB14: 1400000 | DC14: 1400000 | DD14: 1400000 | DE14: 1400000 | DF14: 1400000 | DG14: 1400000 | DH14: 1400000 | DI14: 1400000 | DJ14: 1400000 | DK14: 1400000 | DL14: 1400000 | DM14: 1400000 | DN14: 1400000 | DO14: 1400000 | DP14: 1400000 | DQ14: 1400000 | DR14: 1400000 | DS14: 1400000 | DT14: 1400000 | DU14: 1400000 | DV14: 1400000 | DW14: 1400000 | DX14: 1400000 | DY14: 1400000 | DZ14: 1400000 | EA14: 1400000 | EB14: 1400000 | EC14: 1400000 | ED14: 1400000 | EE14: 1400000 | EF14: 1400000 | EG14: 1400000 | EH14: 1400000 | EI14: =$F$14 -> 1400000 | EJ14: 1400000 | EK14: 1400000 | EL14: 1400000 | EM14: 1400000 | EN14: 1400000 | EO14: 1400000 | EP14: 1400000 | EQ14: 1400000 | ER14: 1400000 | ES14: 1400000 | ET14: 1400000 | EU14: 1400000 | EV14: 1400000 | EW14: 1400000 | EX14: 1400000 | EY14: 1400000 | EZ14: 1400000 | FA14: 1400000 | FB14: 1400000 | FC14: 1400000 | FD14: 1400000 | FE14: 1400000 | FF14: 1400000 | FG14: 1400000 | FH14: 1400000 | FI14: 1400000 | FJ14: 1400000 | FK14: 1400000 | FL14: 1400000 | FM14: 1400000 | FN14: 1400000 | FO14: 1400000 | FP14: 1400000 | FQ14: 1400000 | FR14: 1400000 | FS14: 1400000 | FT14: 1400000 | FU14: 1400000 | FV14: 1400000 | FW14: 1400000 | FX14: 1400000 | FY14: 1400000 | FZ14: 1400000 | GA14: 1400000 | GB14: 1400000 | GC14: 1400000 | GD14: 1400000 | GE14: 1400000 | GF14: 1400000 | GG14: 1400000 | GH14: 1400000 | GI14: 1400000 | GJ14: 1400000 | GK14: 1400000 | GL14: 1400000 | GM14: 1400000 | GN14: 1400000 | GO14: 1400000 | GP14: 1400000 | GQ14: 1400000 | GR14: 1400000 | GS14: 1400000 | GT14: 1400000 | GU14: =$F$14 -> 1400000 | GV14: 1400000 | GW14: 1400000 | GX14: 1400000 | GY14: 1400000 | GZ14: 1400000 | HA14: 1400000 | HB14: 1400000 | HC14: 1400000 | HD14: 1400000 | HE14: 1400000 | HF14: 1400000 | HG14: 1400000 | HH14: 1400000 | HI14: 1400000 | HJ14: 1400000 | HK14: 1400000 | HL14: 1400000 | HM14: 1400000 | HN14: 1400000 | HO14: 1400000 | HP14: 1400000 | HQ14: 1400000 | HR14: 1400000 | HS14: 1400000 | HT14: 1400000 | HU14: 1400000 | HV14: 1400000 | HW14: 1400000 | HX14: 1400000 | HY14: 1400000 | HZ14: 1400000 | IA14: 1400000 | IB14: 1400000 | IC14: 1400000 | ID14: 1400000 | IE14: 1400000 | IF14: 1400000 | IG14: 1400000 | IH14: 1400000 | II14: 1400000 | IJ14: 1400000 | IK14: 1400000 | IL14: 1400000 | IM14: 1400000 | IN14: 1400000 | IO14: 1400000 | IP14: 1400000 | IQ14: 1400000 | IR14: 1400000 | IS14: 1400000 | IT14: 1400000 | IU14: 1400000 | IV14: 1400000 | IW14: 1400000 | IX14: 1400000 | IY14: 1400000 | IZ14: 1400000
D15: Percent Spent | E15: Months/Per | F15: =F6/F4 -> 0.3333333333 | I15: % | K15: =$F$15*K5 -> 0.3333333333 | L15: =$F$15*L5 -> 0.3333333333 | M15: 0.3333333333 | N15: 0 | O15: 0 | P15: 0 | Q15: 0 | R15: 0 | S15: 0 | T15: 0 | U15: 0 | V15: 0 | W15: 0 | X15: 0 | Y15: 0 | Z15: 0 | AA15: 0 | AB15: 0 | AC15: 0 | AD15: 0 | AE15: 0 | AF15: 0 | AG15: 0 | AH15: 0 | AI15: 0 | AJ15: 0 | AK15: 0 | AL15: 0 | AM15: 0 | AN15: 0 | AO15: 0 | AP15: 0 | AQ15: 0 | AR15: 0 | AS15: 0 | AT15: 0 | AU15: 0 | AV15: 0 | AW15: 0 | AX15: 0 | AY15: 0 | AZ15: 0 | BA15: 0 | BB15: 0 | BC15: 0 | BD15: 0 | BE15: 0 | BF15: 0 | BG15: 0 | BH15: 0 | BI15: 0 | BJ15: 0 | BK15: 0 | BL15: 0 | BM15: 0 | BN15: 0 | BO15: 0 | BP15: 0 | BQ15: 0 | BR15: 0 | BS15: 0 | BT15: 0 | BU15: 0 | BV15: 0 | BW15: 0 | BX15: =$F$15*BX5 -> 0 | BY15: 0 | BZ15: 0 | CA15: 0 | CB15: 0 | CC15: 0 | CD15: 0 | CE15: 0 | CF15: 0 | CG15: 0 | CH15: 0 | CI15: 0 | CJ15: 0 | CK15: 0 | CL15: 0 | CM15: 0 | CN15: 0 | CO15: 0 | CP15: 0 | CQ15: 0 | CR15: 0 | CS15: 0 | CT15: 0 | CU15: 0 | CV15: 0 | CW15: 0 | CX15: 0 | CY15: 0 | CZ15: 0 | DA15: 0 | DB15: 0 | DC15: 0 | DD15: 0 | DE15: 0 | DF15: 0 | DG15: 0 | DH15: 0 | DI15: 0 | DJ15: 0 | DK15: 0 | DL15: 0 | DM15: 0 | DN15: 0 | DO15: 0 | DP15: 0 | DQ15: 0 | DR15: 0 | DS15: 0 | DT15: 0 | DU15: 0 | DV15: 0 | DW15: 0 | DX15: 0 | DY15: 0 | DZ15: 0 | EA15: 0 | EB15: 0 | EC15: 0 | ED15: 0 | EE15: 0 | EF15: 0 | EG15: 0 | EH15: 0 | EI15: 0 | EJ15: =$F$15*EJ5 -> 0 | EK15: 0 | EL15: 0 | EM15: 0 | EN15: 0 | EO15: 0 | EP15: 0 | EQ15: 0 | ER15: 0 | ES15: 0 | ET15: 0 | EU15: 0 | EV15: 0 | EW15: 0 | EX15: 0 | EY15: 0 | EZ15: 0 | FA15: 0 | FB15: 0 | FC15: 0 | FD15: 0 | FE15: 0 | FF15: 0 | FG15: 0 | FH15: 0 | FI15: 0 | FJ15: 0 | FK15: 0 | FL15: 0 | FM15: 0 | FN15: 0 | FO15: 0 | FP15: 0 | FQ15: 0 | FR15: 0 | FS15: 0 | FT15: 0 | FU15: 0 | FV15: 0 | FW15: 0 | FX15: 0 | FY15: 0 | FZ15: 0 | GA15: 0 | GB15: 0 | GC15: 0 | GD15: 0 | GE15: 0 | GF15: 0 | GG15: 0 | GH15: 0 | GI15: 0 | GJ15: 0 | GK15: 0 | GL15: 0 | GM15: 0 | GN15: 0 | GO15: 0 | GP15: 0 | GQ15: 0 | GR15: 0 | GS15: 0 | GT15: 0 | GU15: 0 | GV15: =$F$15*GV5 -> 0 | GW15: 0 | GX15: 0 | GY15: 0 | GZ15: 0 | HA15: 0 | HB15: 0 | HC15: 0 | HD15: 0 | HE15: 0 | HF15: 0 | HG15: 0 | HH15: 0 | HI15: 0 | HJ15: 0 | HK15: 0 | HL15: 0 | HM15: 0 | HN15: 0 | HO15: 0 | HP15: 0 | HQ15: 0 | HR15: 0 | HS15: 0 | HT15: 0 | HU15: 0 | HV15: 0 | HW15: 0 | HX15: 0 | HY15: 0 | HZ15: 0 | IA15: 0 | IB15: 0 | IC15: 0 | ID15: 0 | IE15: 0 | IF15: 0 | IG15: 0 | IH15: 0 | II15: 0 | IJ15: 0 | IK15: 0 | IL15: 0 | IM15: 0 | IN15: 0 | IO15: 0 | IP15: 0 | IQ15: 0 | IR15: 0 | IS15: 0 | IT15: 0 | IU15: 0 | IV15: 0 | IW15: 0 | IX15: 0 | IY15: 0 | IZ15: 0
D16: Capital Expenditues | H16: =SUM(K16:XFD16) -> 1400000 | I16: EUR | K16: =K14*K15 -> 466666.6667 | L16: =L14*L15 -> 466666.6667 | M16: 466666.6667 | N16: 0 | O16: 0 | P16: 0 | Q16: 0 | R16: 0 | S16: 0 | T16: 0 | U16: 0 | V16: 0 | W16: 0 | X16: 0 | Y16: 0 | Z16: 0 | AA16: 0 | AB16: 0 | AC16: 0 | AD16: 0 | AE16: 0 | AF16: 0 | AG16: 0 | AH16: 0 | AI16: 0 | AJ16: 0 | AK16: 0 | AL16: 0 | AM16: 0 | AN16: 0 | AO16: 0 | AP16: 0 | AQ16: 0 | AR16: 0 | AS16: 0 | AT16: 0 | AU16: 0 | AV16: 0 | AW16: 0 | AX16: 0 | AY16: 0 | AZ16: 0 | BA16: 0 | BB16: 0 | BC16: 0 | BD16: 0 | BE16: 0 | BF16: 0 | BG16: 0 | BH16: 0 | BI16: 0 | BJ16: 0 | BK16: 0 | BL16: 0 | BM16: 0 | BN16: 0 | BO16: 0 | BP16: 0 | BQ16: 0 | BR16: 0 | BS16: 0 | BT16: 0 | BU16: 0 | BV16: 0 | BW16: 0 | BX16: =BX14*BX15 -> 0 | BY16: 0 | BZ16: 0 | CA16: 0 | CB16: 0 | CC16: 0 | CD16: 0 | CE16: 0 | CF16: 0 | CG16: 0 | CH16: 0 | CI16: 0 | CJ16: 0 | CK16: 0 | CL16: 0 | CM16: 0 | CN16: 0 | CO16: 0 | CP16: 0 | CQ16: 0 | CR16: 0 | CS16: 0 | CT16: 0 | CU16: 0 | CV16: 0 | CW16: 0 | CX16: 0 | CY16: 0 | CZ16: 0 | DA16: 0 | DB16: 0 | DC16: 0 | DD16: 0 | DE16: 0 | DF16: 0 | DG16: 0 | DH16: 0 | DI16: 0 | DJ16: 0 | DK16: 0 | DL16: 0 | DM16: 0 | DN16: 0 | DO16: 0 | DP16: 0 | DQ16: 0 | DR16: 0 | DS16: 0 | DT16: 0 | DU16: 0 | DV16: 0 | DW16: 0 | DX16: 0 | DY16: 0 | DZ16: 0 | EA16: 0 | EB16: 0 | EC16: 0 | ED16: 0 | EE16: 0 | EF16: 0 | EG16: 0 | EH16: 0 | EI16: 0 | EJ16: =EJ14*EJ15 -> 0 | EK16: 0 | EL16: 0 | EM16: 0 | EN16: 0 | EO16: 0 | EP16: 0 | EQ16: 0 | ER16: 0 | ES16: 0 | ET16: 0 | EU16: 0 | EV16: 0 | EW16: 0 | EX16: 0 | EY16: 0 | EZ16: 0 | FA16: 0 | FB16: 0 | FC16: 0 | FD16: 0 | FE16: 0 | FF16: 0 | FG16: 0 | FH16: 0 | FI16: 0 | FJ16: 0 | FK16: 0 | FL16: 0 | FM16: 0 | FN16: 0 | FO16: 0 | FP16: 0 | FQ16: 0 | FR16: 0 | FS16: 0 | FT16: 0 | FU16: 0 | FV16: 0 | FW16: 0 | FX16: 0 | FY16: 0 | FZ16: 0 | GA16: 0 | GB16: 0 | GC16: 0 | GD16: 0 | GE16: 0 | GF16: 0 | GG16: 0 | GH16: 0 | GI16: 0 | GJ16: 0 | GK16: 0 | GL16: 0 | GM16: 0 | GN16: 0 | GO16: 0 | GP16: 0 | GQ16: 0 | GR16: 0 | GS16: 0 | GT16: 0 | GU16: 0 | GV16: =GV14*GV15 -> 0 | GW16: 0 | GX16: 0 | GY16: 0 | GZ16: 0 | HA16: 0 | HB16: 0 | HC16: 0 | HD16: 0 | HE16: 0 | HF16: 0 | HG16: 0 | HH16: 0 | HI16: 0 | HJ16: 0 | HK16: 0 | HL16: 0 | HM16: 0 | HN16: 0 | HO16: 0 | HP16: 0 | HQ16: 0 | HR16: 0 | HS16: 0 | HT16: 0 | HU16: 0 | HV16: 0 | HW16: 0 | HX16: 0 | HY16: 0 | HZ16: 0 | IA16: 0 | IB16: 0 | IC16: 0 | ID16: 0 | IE16: 0 | IF16: 0 | IG16: 0 | IH16: 0 | II16: 0 | IJ16: 0 | IK16: 0 | IL16: 0 | IM16: 0 | IN16: 0 | IO16: 0 | IP16: 0 | IQ16: 0 | IR16: 0 | IS16: 0 | IT16: 0 | IU16: 0 | IV16: 0 | IW16: 0 | IX16: 0 | IY16: 0 | IZ16: 0
C18: EBITDA
D19: Base EBITDA | E19: EUR/yr | F19: =InputC!F20 -> 100000 | G19: =F19*G6/months -> 100000 | I19: EUR/period | K19: =$G$19*K9 -> 0 | L19: =$G$19*L9 -> 0 | M19: 0 | N19: 100000 | O19: 100000 | P19: 100000 | Q19: 100000 | R19: 100000 | S19: 100000 | T19: 100000 | U19: 100000 | V19: 100000 | W19: 100000 | X19: 100000 | Y19: 100000 | Z19: 100000 | AA19: 100000 | AB19: 100000 | AC19: 100000 | AD19: 100000 | AE19: 100000 | AF19: 100000 | AG19: 100000 | AH19: 100000 | AI19: 100000 | AJ19: 100000 | AK19: 100000 | AL19: 100000 | AM19: 0 | AN19: 0 | AO19: 0 | AP19: 0 | AQ19: 0 | AR19: 0 | AS19: 0 | AT19: 0 | AU19: 0 | AV19: 0 | AW19: 0 | AX19: 0 | AY19: 0 | AZ19: 0 | BA19: 0 | BB19: 0 | BC19: 0 | BD19: 0 | BE19: 0 | BF19: 0 | BG19: 0 | BH19: 0 | BI19: 0 | BJ19: 0 | BK19: 0 | BL19: 0 | BM19: 0 | BN19: 0 | BO19: 0 | BP19: 0 | BQ19: 0 | BR19: 0 | BS19: 0 | BT19: 0 | BU19: 0 | BV19: 0 | BW19: 0 | BX19: =$G$19*BX9 -> 0 | BY19: 0 | BZ19: 0 | CA19: 0 | CB19: 0 | CC19: 0 | CD19: 0 | CE19: 0 | CF19: 0 | CG19: 0 | CH19: 0 | CI19: 0 | CJ19: 0 | CK19: 0 | CL19: 0 | CM19: 0 | CN19: 0 | CO19: 0 | CP19: 0 | CQ19: 0 | CR19: 0 | CS19: 0 | CT19: 0 | CU19: 0 | CV19: 0 | CW19: 0 | CX19: 0 | CY19: 0 | CZ19: 0 | DA19: 0 | DB19: 0 | DC19: 0 | DD19: 0 | DE19: 0 | DF19: 0 | DG19: 0 | DH19: 0 | DI19: 0 | DJ19: 0 | DK19: 0 | DL19: 0 | DM19: 0 | DN19: 0 | DO19: 0 | DP19: 0 | DQ19: 0 | DR19: 0 | DS19: 0 | DT19: 0 | DU19: 0 | DV19: 0 | DW19: 0 | DX19: 0 | DY19: 0 | DZ19: 0 | EA19: 0 | EB19: 0 | EC19: 0 | ED19: 0 | EE19: 0 | EF19: 0 | EG19: 0 | EH19: 0 | EI19: 0 | EJ19: =$G$19*EJ9 -> 0 | EK19: 0 | EL19: 0 | EM19: 0 | EN19: 0 | EO19: 0 | EP19: 0 | EQ19: 0 | ER19: 0 | ES19: 0 | ET19: 0 | EU19: 0 | EV19: 0 | EW19: 0 | EX19: 0 | EY19: 0 | EZ19: 0 | FA19: 0 | FB19: 0 | FC19: 0 | FD19: 0 | FE19: 0 | FF19: 0 | FG19: 0 | FH19: 0 | FI19: 0 | FJ19: 0 | FK19: 0 | FL19: 0 | FM19: 0 | FN19: 0 | FO19: 0 | FP19: 0 | FQ19: 0 | FR19: 0 | FS19: 0 | FT19: 0 | FU19: 0 | FV19: 0 | FW19: 0 | FX19: 0 | FY19: 0 | FZ19: 0 | GA19: 0 | GB19: 0 | GC19: 0 | GD19: 0 | GE19: 0 | GF19: 0 | GG19: 0 | GH19: 0 | GI19: 0 | GJ19: 0 | GK19: 0 | GL19: 0 | GM19: 0 | GN19: 0 | GO19: 0 | GP19: 0 | GQ19: 0 | GR19: 0 | GS19: 0 | GT19: 0 | GU19: 0 | GV19: =$G$19*GV9 -> 0 | GW19: 0 | GX19: 0 | GY19: 0 | GZ19: 0 | HA19: 0 | HB19: 0 | HC19: 0 | HD19: 0 | HE19: 0 | HF19: 0 | HG19: 0 | HH19: 0 | HI19: 0 | HJ19: 0 | HK19: 0 | HL19: 0 | HM19: 0 | HN19: 0 | HO19: 0 | HP19: 0 | HQ19: 0 | HR19: 0 | HS19: 0 | HT19: 0 | HU19: 0 | HV19: 0 | HW19: 0 | HX19: 0 | HY19: 0 | HZ19: 0 | IA19: 0 | IB19: 0 | IC19: 0 | ID19: 0 | IE19: 0 | IF19: 0 | IG19: 0 | IH19: 0 | II19: 0 | IJ19: 0 | IK19: 0 | IL19: 0 | IM19: 0 | IN19: 0 | IO19: 0 | IP19: 0 | IQ19: 0 | IR19: 0 | IS19: 0 | IT19: 0 | IU19: 0 | IV19: 0 | IW19: 0 | IX19: 0 | IY19: 0 | IZ19: 0
D20: Growth Rate | E20: % p.a. | F20: =InputC!F21 -> 0.01 | G20: =G6 -> 12 | I20: % p.p. | K20: =(1+$F$20)^($G$20/months)-1 -> 0.01 | L20: =(1+$F$20)^($G$20/months)-1 -> 0.01 | M20: 0.01 | N20: 0.01 | O20: 0.01 | P20: 0.01 | Q20: 0.01 | R20: 0.01 | S20: 0.01 | T20: 0.01 | U20: 0.01 | V20: 0.01 | W20: 0.01 | X20: 0.01 | Y20: 0.01 | Z20: 0.01 | AA20: 0.01 | AB20: 0.01 | AC20: 0.01 | AD20: 0.01 | AE20: 0.01 | AF20: 0.01 | AG20: 0.01 | AH20: 0.01 | AI20: 0.01 | AJ20: 0.01 | AK20: 0.01 | AL20: 0.01 | AM20: 0.01 | AN20: 0.01 | AO20: 0.01 | AP20: 0.01 | AQ20: 0.01 | AR20: 0.01 | AS20: 0.01 | AT20: 0.01 | AU20: 0.01 | AV20: 0.01 | AW20: 0.01 | AX20: 0.01 | AY20: 0.01 | AZ20: 0.01 | BA20: 0.01 | BB20: 0.01 | BC20: 0.01 | BD20: 0.01 | BE20: 0.01 | BF20: 0.01 | BG20: 0.01 | BH20: 0.01 | BI20: 0.01 | BJ20: 0.01 | BK20: 0.01 | BL20: 0.01 | BM20: 0.01 | BN20: 0.01 | BO20: 0.01 | BP20: 0.01 | BQ20: 0.01 | BR20: 0.01 | BS20: 0.01 | BT20: 0.01 | BU20: 0.01 | BV20: 0.01 | BW20: =(1+$F$20)^($G$20/months)-1 -> 0.01 | BX20: 0.01 | BY20: 0.01 | BZ20: 0.01 | CA20: 0.01 | CB20: 0.01 | CC20: 0.01 | CD20: 0.01 | CE20: 0.01 | CF20: 0.01 | CG20: 0.01 | CH20: 0.01 | CI20: 0.01 | CJ20: 0.01 | CK20: 0.01 | CL20: 0.01 | CM20: 0.01 | CN20: 0.01 | CO20: 0.01 | CP20: 0.01 | CQ20: 0.01 | CR20: 0.01 | CS20: 0.01 | CT20: 0.01 | CU20: 0.01 | CV20: 0.01 | CW20: 0.01 | CX20: 0.01 | CY20: 0.01 | CZ20: 0.01 | DA20: 0.01 | DB20: 0.01 | DC20: 0.01 | DD20: 0.01 | DE20: 0.01 | DF20: 0.01 | DG20: 0.01 | DH20: 0.01 | DI20: 0.01 | DJ20: 0.01 | DK20: 0.01 | DL20: 0.01 | DM20: 0.01 | DN20: 0.01 | DO20: 0.01 | DP20: 0.01 | DQ20: 0.01 | DR20: 0.01 | DS20: 0.01 | DT20: 0.01 | DU20: 0.01 | DV20: 0.01 | DW20: 0.01 | DX20: 0.01 | DY20: 0.01 | DZ20: 0.01 | EA20: 0.01 | EB20: 0.01 | EC20: 0.01 | ED20: 0.01 | EE20: 0.01 | EF20: 0.01 | EG20: 0.01 | EH20: 0.01 | EI20: =(1+$F$20)^($G$20/months)-1 -> 0.01 | EJ20: 0.01 | EK20: 0.01 | EL20: 0.01 | EM20: 0.01 | EN20: 0.01 | EO20: 0.01 | EP20: 0.01 | EQ20: 0.01 | ER20: 0.01 | ES20: 0.01 | ET20: 0.01 | EU20: 0.01 | EV20: 0.01 | EW20: 0.01 | EX20: 0.01 | EY20: 0.01 | EZ20: 0.01 | FA20: 0.01 | FB20: 0.01 | FC20: 0.01 | FD20: 0.01 | FE20: 0.01 | FF20: 0.01 | FG20: 0.01 | FH20: 0.01 | FI20: 0.01 | FJ20: 0.01 | FK20: 0.01 | FL20: 0.01 | FM20: 0.01 | FN20: 0.01 | FO20: 0.01 | FP20: 0.01 | FQ20: 0.01 | FR20: 0.01 | FS20: 0.01 | FT20: 0.01 | FU20: 0.01 | FV20: 0.01 | FW20: 0.01 | FX20: 0.01 | FY20: 0.01 | FZ20: 0.01 | GA20: 0.01 | GB20: 0.01 | GC20: 0.01 | GD20: 0.01 | GE20: 0.01 | GF20: 0.01 | GG20: 0.01 | GH20: 0.01 | GI20: 0.01 | GJ20: 0.01 | GK20: 0.01 | GL20: 0.01 | GM20: 0.01 | GN20: 0.01 | GO20: 0.01 | GP20: 0.01 | GQ20: 0.01 | GR20: 0.01 | GS20: 0.01 | GT20: 0.01 | GU20: =(1+$F$20)^($G$20/months)-1 -> 0.01 | GV20: 0.01 | GW20: 0.01 | GX20: 0.01 | GY20: 0.01 | GZ20: 0.01 | HA20: 0.01 | HB20: 0.01 | HC20: 0.01 | HD20: 0.01 | HE20: 0.01 | HF20: 0.01 | HG20: 0.01 | HH20: 0.01 | HI20: 0.01 | HJ20: 0.01 | HK20: 0.01 | HL20: 0.01 | HM20: 0.01 | HN20: 0.01 | HO20: 0.01 | HP20: 0.01 | HQ20: 0.01 | HR20: 0.01 | HS20: 0.01 | HT20: 0.01 | HU20: 0.01 | HV20: 0.01 | HW20: 0.01 | HX20: 0.01 | HY20: 0.01 | HZ20: 0.01 | IA20: 0.01 | IB20: 0.01 | IC20: 0.01 | ID20: 0.01 | IE20: 0.01 | IF20: 0.01 | IG20: 0.01 | IH20: 0.01 | II20: 0.01 | IJ20: 0.01 | IK20: 0.01 | IL20: 0.01 | IM20: 0.01 | IN20: 0.01 | IO20: 0.01 | IP20: 0.01 | IQ20: 0.01 | IR20: 0.01 | IS20: 0.01 | IT20: 0.01 | IU20: 0.01 | IV20: 0.01 | IW20: 0.01 | IX20: 0.01 | IY20: 0.01 | IZ20: 0.01
D21: Inflation Index | I21: Index | J21: =One -> 1 | K21: =J21*(1+K20*K9) -> 1 | L21: =K21*(1+L20*L9) -> 1 | M21: 1 | N21: 1.01 | O21: 1.0201 | P21: 1.030301 | Q21: 1.04060401 | R21: 1.05101005 | S21: 1.061520151 | T21: 1.072135352 | U21: 1.082856706 | V21: 1.093685273 | W21: 1.104622125 | X21: 1.115668347 | Y21: 1.12682503 | Z21: 1.13809328 | AA21: 1.149474213 | AB21: 1.160968955 | AC21: 1.172578645 | AD21: 1.184304431 | AE21: 1.196147476 | AF21: 1.20810895 | AG21: 1.22019004 | AH21: 1.23239194 | AI21: 1.24471586 | AJ21: 1.257163018 | AK21: 1.269734649 | AL21: 1.282431995 | AM21: 1.282431995 | AN21: 1.282431995 | AO21: 1.282431995 | AP21: 1.282431995 | AQ21: 1.282431995 | AR21: 1.282431995 | AS21: 1.282431995 | AT21: 1.282431995 | AU21: 1.282431995 | AV21: 1.282431995 | AW21: 1.282431995 | AX21: 1.282431995 | AY21: 1.282431995 | AZ21: 1.282431995 | BA21: 1.282431995 | BB21: 1.282431995 | BC21: 1.282431995 | BD21: 1.282431995 | BE21: 1.282431995 | BF21: 1.282431995 | BG21: 1.282431995 | BH21: 1.282431995 | BI21: 1.282431995 | BJ21: 1.282431995 | BK21: 1.282431995 | BL21: 1.282431995 | BM21: 1.282431995 | BN21: 1.282431995 | BO21: 1.282431995 | BP21: 1.282431995 | BQ21: 1.282431995 | BR21: 1.282431995 | BS21: 1.282431995 | BT21: 1.282431995 | BU21: 1.282431995 | BV21: 1.282431995 | BW21: 1.282431995 | BX21: =BW21*(1+BX20*BX9) -> 1.282431995 | BY21: 1.282431995 | BZ21: 1.282431995 | CA21: 1.282431995 | CB21: 1.282431995 | CC21: 1.282431995 | CD21: 1.282431995 | CE21: 1.282431995 | CF21: 1.282431995 | CG21: 1.282431995 | CH21: 1.282431995 | CI21: 1.282431995 | CJ21: 1.282431995 | CK21: 1.282431995 | CL21: 1.282431995 | CM21: 1.282431995 | CN21: 1.282431995 | CO21: 1.282431995 | CP21: 1.282431995 | CQ21: 1.282431995 | CR21: 1.282431995 | CS21: 1.282431995 | CT21: 1.282431995 | CU21: 1.282431995 | CV21: 1.282431995 | CW21: 1.282431995 | CX21: 1.282431995 | CY21: 1.282431995 | CZ21: 1.282431995 | DA21: 1.282431995 | DB21: 1.282431995 | DC21: 1.282431995 | DD21: 1.282431995 | DE21: 1.282431995 | DF21: 1.282431995 | DG21: 1.282431995 | DH21: 1.282431995 | DI21: 1.282431995 | DJ21: 1.282431995 | DK21: 1.282431995 | DL21: 1.282431995 | DM21: 1.282431995 | DN21: 1.282431995 | DO21: 1.282431995 | DP21: 1.282431995 | DQ21: 1.282431995 | DR21: 1.282431995 | DS21: 1.282431995 | DT21: 1.282431995 | DU21: 1.282431995 | DV21: 1.282431995 | DW21: 1.282431995 | DX21: 1.282431995 | DY21: 1.282431995 | DZ21: 1.282431995 | EA21: 1.282431995 | EB21: 1.282431995 | EC21: 1.282431995 | ED21: 1.282431995 | EE21: 1.282431995 | EF21: 1.282431995 | EG21: 1.282431995 | EH21: 1.282431995 | EI21: 1.282431995 | EJ21: =EI21*(1+EJ20*EJ9) -> 1.282431995 | EK21: 1.282431995 | EL21: 1.282431995 | EM21: 1.282431995 | EN21: 1.282431995 | EO21: 1.282431995 | EP21: 1.282431995 | EQ21: 1.282431995 | ER21: 1.282431995 | ES21: 1.282431995 | ET21: 1.282431995 | EU21: 1.282431995 | EV21: 1.282431995 | EW21: 1.282431995 | EX21: 1.282431995 | EY21: 1.282431995 | EZ21: 1.282431995 | FA21: 1.282431995 | FB21: 1.282431995 | FC21: 1.282431995 | FD21: 1.282431995 | FE21: 1.282431995 | FF21: 1.282431995 | FG21: 1.282431995 | FH21: 1.282431995 | FI21: 1.282431995 | FJ21: 1.282431995 | FK21: 1.282431995 | FL21: 1.282431995 | FM21: 1.282431995 | FN21: 1.282431995 | FO21: 1.282431995 | FP21: 1.282431995 | FQ21: 1.282431995 | FR21: 1.282431995 | FS21: 1.282431995 | FT21: 1.282431995 | FU21: 1.282431995 | FV21: 1.282431995 | FW21: 1.282431995 | FX21: 1.282431995 | FY21: 1.282431995 | FZ21: 1.282431995 | GA21: 1.282431995 | GB21: 1.282431995 | GC21: 1.282431995 | GD21: 1.282431995 | GE21: 1.282431995 | GF21: 1.282431995 | GG21: 1.282431995 | GH21: 1.282431995 | GI21: 1.282431995 | GJ21: 1.282431995 | GK21: 1.282431995 | GL21: 1.282431995 | GM21: 1.282431995 | GN21: 1.282431995 | GO21: 1.282431995 | GP21: 1.282431995 | GQ21: 1.282431995 | GR21: 1.282431995 | GS21: 1.282431995 | GT21: 1.282431995 | GU21: 1.282431995 | GV21: =GU21*(1+GV20*GV9) -> 1.282431995 | GW21: 1.282431995 | GX21: 1.282431995 | GY21: 1.282431995 | GZ21: 1.282431995 | HA21: 1.282431995 | HB21: 1.282431995 | HC21: 1.282431995 | HD21: 1.282431995 | HE21: 1.282431995 | HF21: 1.282431995 | HG21: 1.282431995 | HH21: 1.282431995 | HI21: 1.282431995 | HJ21: 1.282431995 | HK21: 1.282431995 | HL21: 1.282431995 | HM21: 1.282431995 | HN21: 1.282431995 | HO21: 1.282431995 | HP21: 1.282431995 | HQ21: 1.282431995 | HR21: 1.282431995 | HS21: 1.282431995 | HT21: 1.282431995 | HU21: 1.282431995 | HV21: 1.282431995 | HW21: 1.282431995 | HX21: 1.282431995 | HY21: 1.282431995 | HZ21: 1.282431995 | IA21: 1.282431995 | IB21: 1.282431995 | IC21: 1.282431995 | ID21: 1.282431995 | IE21: 1.282431995 | IF21: 1.282431995 | IG21: 1.282431995 | IH21: 1.282431995 | II21: 1.282431995 | IJ21: 1.282431995 | IK21: 1.282431995 | IL21: 1.282431995 | IM21: 1.282431995 | IN21: 1.282431995 | IO21: 1.282431995 | IP21: 1.282431995 | IQ21: 1.282431995 | IR21: 1.282431995 | IS21: 1.282431995 | IT21: 1.282431995 | IU21: 1.282431995 | IV21: 1.282431995 | IW21: 1.282431995 | IX21: 1.282431995 | IY21: 1.282431995 | IZ21: 1.282431995
D22: Volatility Parameter | E22: % p.a.
D23: Mean Reversion Parameter | E23: % p.a.
D24: Volatility Index | F24: =InputC!$F$23 -> 0 | G24: =InputC!$F$24 -> 0.1 | I24: Index | J24: ='Time Series'!H5 -> 1 | K24: =LOOKUP(K10,'Time Series'!3:3,'Time Series'!5:5) -> 0 | L24: =LOOKUP(L10,'Time Series'!3:3,'Time Series'!5:5) -> 0 | M24: =LOOKUP(M10,'Time Series'!3:3,'Time Series'!5:5) -> 0 | N24: =LOOKUP(N10,'Time Series'!3:3,'Time Series'!5:5) -> 1 | O24: =LOOKUP(O10,'Time Series'!3:3,'Time Series'!5:5) -> 1 | P24: =LOOKUP(P10,'Time Series'!3:3,'Time Series'!5:5) -> 1 | Q24: =LOOKUP(Q10,'Time Series'!3:3,'Time Series'!5:5) -> 1 | R24: =LOOKUP(R10,'Time Series'!3:3,'Time Series'!5:5) -> 1 | S24: =LOOKUP(S10,'Time Series'!3:3,'Time Series'!5:5) -> 1 | T24: =LOOKUP(T10,'Time Series'!3:3,'Time Series'!5:5) -> 1 | U24: =LOOKUP(U10,'Time Series'!3:3,'Time Series'!5:5) -> 1 | V24: =LOOKUP(V10,'Time Series'!3:3,'Time Series'!5:5) -> 1 | W24: =LOOKUP(W10,'Time Series'!3:3,'Time Series'!5:5) -> 1 | X24: =LOOKUP(X10,'Time Series'!3:3,'Time Series'!5:5) -> 1 | Y24: =LOOKUP(Y10,'Time Series'!3:3,'Time Series'!5:5) -> 1 | Z24: =LOOKUP(Z10,'Time Series'!3:3,'Time Series'!5:5) -> 1 | AA24: =LOOKUP(AA10,'Time Series'!3:3,'Time Series'!5:5) -> 1 | AB24: =LOOKUP(AB10,'Time Series'!3:3,'Time Series'!5:5) -> 1 | AC24: =LOOKUP(AC10,'Time Series'!3:3,'Time Series'!5:5) -> 1 | AD24: =LOOKUP(AD10,'Time Series'!3:3,'Time Series'!5:5) -> 1 | AE24: =LOOKUP(AE10,'Time Series'!3:3,'Time Series'!5:5) -> 1 | AF24: =LOOKUP(AF10,'Time Series'!3:3,'Time Series'!5:5) -> 1 | AG24: =LOOKUP(AG10,'Time Series'!3:3,'Time Series'!5:5) -> 1 | AH24: =LOOKUP(AH10,'Time Series'!3:3,'Time Series'!5:5) -> 1 | AI24: =LOOKUP(AI10,'Time Series'!3:3,'Time Series'!5:5) -> 1 | AJ24: =LOOKUP(AJ10,'Time Series'!3:3,'Time Series'!5:5) -> 1 | AK24: =LOOKUP(AK10,'Time Series'!3:3,'Time Series'!5:5) -> 1 | AL24: =LOOKUP(AL10,'Time Series'!3:3,'Time Series'!5:5) -> 1 | AM24: =LOOKUP(AM10,'Time Series'!3:3,'Time Series'!5:5) -> 1 | AN24: =LOOKUP(AN10,'Time Series'!3:3,'Time Series'!5:5) -> 1 | AO24: =LOOKUP(AO10,'Time Series'!3:3,'Time Series'!5:5) -> 1 | AP24: =LOOKUP(AP10,'Time Series'!3:3,'Time Series'!5:5) -> 1 | AQ24: =LOOKUP(AQ10,'Time Series'!3:3,'Time Series'!5:5) -> 1 | AR24: =LOOKUP(AR10,'Time Series'!3:3,'Time Series'!5:5) -> 1 | AS24: =LOOKUP(AS10,'Time Series'!3:3,'Time Series'!5:5) -> 1 | AT24: =LOOKUP(AT10,'Time Series'!3:3,'Time Series'!5:5) -> 1 | AU24: =LOOKUP(AU10,'Time Series'!3:3,'Time Series'!5:5) -> 1 | AV24: =LOOKUP(AV10,'Time Series'!3:3,'Time Series'!5:5) -> 1 | AW24: =LOOKUP(AW10,'Time Series'!3:3,'Time Series'!5:5) -> 1 | AX24: =LOOKUP(AX10,'Time Series'!3:3,'Time Series'!5:5) -> 1 | AY24: =LOOKUP(AY10,'Time Series'!3:3,'Time Series'!5:5) -> 1 | AZ24: =LOOKUP(AZ10,'Time Series'!3:3,'Time Series'!5:5) -> 1 | BA24: =LOOKUP(BA10,'Time Series'!3:3,'Time Series'!5:5) -> 1 | BB24: =LOOKUP(BB10,'Time Series'!3:3,'Time Series'!5:5) -> 1 | BC24: =LOOKUP(BC10,'Time Series'!3:3,'Time Series'!5:5) -> 1 | BD24: =LOOKUP(BD10,'Time Series'!3:3,'Time Series'!5:5) -> 1 | BE24: =LOOKUP(BE10,'Time Series'!3:3,'Time Series'!5:5) -> 1 | BF24: =LOOKUP(BF10,'Time Series'!3:3,'Time Series'!5:5) -> 1 | BG24: =LOOKUP(BG10,'Time Series'!3:3,'Time Series'!5:5) -> 1 | BH24: =LOOKUP(BH10,'Time Series'!3:3,'Time Series'!5:5) -> 1 | BI24: =LOOKUP(BI10,'Time Series'!3:3,'Time Series'!5:5) -> 1 | BJ24: =LOOKUP(BJ10,'Time Series'!3:3,'Time Series'!5:5) -> 1 | BK24: =LOOKUP(BK10,'Time Series'!3:3,'Time Series'!5:5) -> 1 | BL24: =LOOKUP(BL10,'Time Series'!3:3,'Time Series'!5:5) -> 1 | BM24: =LOOKUP(BM10,'Time Series'!3:3,'Time Series'!5:5) -> 1 | BN24: =LOOKUP(BN10,'Time Series'!3:3,'Time Series'!5:5) -> 1 | BO24: =LOOKUP(BO10,'Time Series'!3:3,'Time Series'!5:5) -> 1 | BP24: =LOOKUP(BP10,'Time Series'!3:3,'Time Series'!5:5) -> 1 | BQ24: =LOOKUP(BQ10,'Time Series'!3:3,'Time Series'!5:5) -> 1 | BR24: =LOOKUP(BR10,'Time Series'!3:3,'Time Series'!5:5) -> 1 | BS24: =LOOKUP(BS10,'Time Series'!3:3,'Time Series'!5:5) -> 1 | BT24: =LOOKUP(BT10,'Time Series'!3:3,'Time Series'!5:5) -> 1 | BU24: =LOOKUP(BU10,'Time Series'!3:3,'Time Series'!5:5) -> 1 | BV24: =LOOKUP(BV10,'Time Series'!3:3,'Time Series'!5:5) -> 1 | BW24: =LOOKUP(BW10,'Time Series'!3:3,'Time Series'!5:5) -> 1 | BX24: =LOOKUP(BX10,'Time Series'!3:3,'Time Series'!5:5) -> 1 | BY24: =LOOKUP(BY10,'Time Series'!3:3,'Time Series'!5:5) -> 1 | BZ24: =LOOKUP(BZ10,'Time Series'!3:3,'Time Series'!5:5) -> 1 | CA24: =LOOKUP(CA10,'Time Series'!3:3,'Time Series'!5:5) -> 1 | CB24: =LOOKUP(CB10,'Time Series'!3:3,'Time Series'!5:5) -> 1 | CC24: =LOOKUP(CC10,'Time Series'!3:3,'Time Series'!5:5) -> 1 | CD24: =LOOKUP(CD10,'Time Series'!3:3,'Time Series'!5:5) -> 1 | CE24: =LOOKUP(CE10,'Time Series'!3:3,'Time Series'!5:5) -> 1 | CF24: =LOOKUP(CF10,'Time Series'!3:3,'Time Series'!5:5) -> 1 | CG24: =LOOKUP(CG10,'Time Series'!3:3,'Time Series'!5:5) -> 1 | CH24: =LOOKUP(CH10,'Time Series'!3:3,'Time Series'!5:5) -> 1 | CI24: =LOOKUP(CI10,'Time Series'!3:3,'Time Series'!5:5) -> 1 | CJ24: =LOOKUP(CJ10,'Time Series'!3:3,'Time Series'!5:5) -> 1 | CK24: =LOOKUP(CK10,'Time Series'!3:3,'Time Series'!5:5) -> 1 | CL24: =LOOKUP(CL10,'Time Series'!3:3,'Time Series'!5:5) -> 1 | CM24: =LOOKUP(CM10,'Time Series'!3:3,'Time Series'!5:5) -> 1 | CN24: =LOOKUP(CN10,'Time Series'!3:3,'Time Series'!5:5) -> 1 | CO24: =LOOKUP(CO10,'Time Series'!3:3,'Time Series'!5:5) -> 1 | CP24: =LOOKUP(CP10,'Time Series'!3:3,'Time Series'!5:5) -> 1 | CQ24: =LOOKUP(CQ10,'Time Series'!3:3,'Time Series'!5:5) -> 1 | CR24: =LOOKUP(CR10,'Time Series'!3:3,'Time Series'!5:5) -> 1 | CS24: =LOOKUP(CS10,'Time Series'!3:3,'Time Series'!5:5) -> 1 | CT24: =LOOKUP(CT10,'Time Series'!3:3,'Time Series'!5:5) -> 1 | CU24: =LOOKUP(CU10,'Time Series'!3:3,'Time Series'!5:5) -> 1 | CV24: =LOOKUP(CV10,'Time Series'!3:3,'Time Series'!5:5) -> 1 | CW24: =LOOKUP(CW10,'Time Series'!3:3,'Time Series'!5:5) -> 1 | CX24: =LOOKUP(CX10,'Time Series'!3:3,'Time Series'!5:5) -> 1 | CY24: =LOOKUP(CY10,'Time Series'!3:3,'Time Series'!5:5) -> 1 | CZ24: =LOOKUP(CZ10,'Time Series'!3:3,'Time Series'!5:5) -> 1 | DA24: =LOOKUP(DA10,'Time Series'!3:3,'Time Series'!5:5) -> 1 | DB24: =LOOKUP(DB10,'Time Series'!3:3,'Time Series'!5:5) -> 1 | DC24: =LOOKUP(DC10,'Time Series'!3:3,'Time Series'!5:5) -> 1 | DD24: =LOOKUP(DD10,'Time Series'!3:3,'Time Series'!5:5) -> 1 | DE24: =LOOKUP(DE10,'Time Series'!3:3,'Time Series'!5:5) -> 1 | DF24: =LOOKUP(DF10,'Time Series'!3:3,'Time Series'!5:5) -> 1 | DG24: =LOOKUP(DG10,'Time Series'!3:3,'Time Series'!5:5) -> 1 | DH24: =LOOKUP(DH10,'Time Series'!3:3,'Time Series'!5:5) -> 1 | DI24: =LOOKUP(DI10,'Time Series'!3:3,'Time Series'!5:5) -> 1 | DJ24: =LOOKUP(DJ10,'Time Series'!3:3,'Time Series'!5:5) -> 1 | DK24: =LOOKUP(DK10,'Time Series'!3:3,'Time Series'!5:5) -> 1 | DL24: =LOOKUP(DL10,'Time Series'!3:3,'Time Series'!5:5) -> 1 | DM24: =LOOKUP(DM10,'Time Series'!3:3,'Time Series'!5:5) -> 1 | DN24: =LOOKUP(DN10,'Time Series'!3:3,'Time Series'!5:5) -> 1 | DO24: =LOOKUP(DO10,'Time Series'!3:3,'Time Series'!5:5) -> 1 | DP24: =LOOKUP(DP10,'Time Series'!3:3,'Time Series'!5:5) -> 1 | DQ24: =LOOKUP(DQ10,'Time Series'!3:3,'Time Series'!5:5) -> 1 | DR24: =LOOKUP(DR10,'Time Series'!3:3,'Time Series'!5:5) -> 1 | DS24: =LOOKUP(DS10,'Time Series'!3:3,'Time Series'!5:5) -> 1 | DT24: =LOOKUP(DT10,'Time Series'!3:3,'Time Series'!5:5) -> 1 | DU24: =LOOKUP(DU10,'Time Series'!3:3,'Time Series'!5:5) -> 1 | DV24: =LOOKUP(DV10,'Time Series'!3:3,'Time Series'!5:5) -> 1 | DW24: =LOOKUP(DW10,'Time Series'!3:3,'Time Series'!5:5) -> 1 | DX24: =LOOKUP(DX10,'Time Series'!3:3,'Time Series'!5:5) -> 1 | DY24: =LOOKUP(DY10,'Time Series'!3:3,'Time Series'!5:5) -> 1 | DZ24: =LOOKUP(DZ10,'Time Series'!3:3,'Time Series'!5:5) -> 1 | EA24: =LOOKUP(EA10,'Time Series'!3:3,'Time Series'!5:5) -> 1 | EB24: =LOOKUP(EB10,'Time Series'!3:3,'Time Series'!5:5) -> 1 | EC24: =LOOKUP(EC10,'Time Series'!3:3,'Time Series'!5:5) -> 1 | ED24: =LOOKUP(ED10,'Time Series'!3:3,'Time Series'!5:5) -> 1 | EE24: =LOOKUP(EE10,'Time Series'!3:3,'Time Series'!5:5) -> 1 | EF24: =LOOKUP(EF10,'Time Series'!3:3,'Time Series'!5:5) -> 1 | EG24: =LOOKUP(EG10,'Time Series'!3:3,'Time Series'!5:5) -> 1 | EH24: =LOOKUP(EH10,'Time Series'!3:3,'Time Series'!5:5) -> 1 | EI24: =LOOKUP(EI10,'Time Series'!3:3,'Time Series'!5:5) -> 1 | EJ24: =LOOKUP(EJ10,'Time Series'!3:3,'Time Series'!5:5) -> 1 | EK24: =LOOKUP(EK10,'Time Series'!3:3,'Time Series'!5:5) -> 1 | EL24: =LOOKUP(EL10,'Time Series'!3:3,'Time Series'!5:5) -> 1 | EM24: =LOOKUP(EM10,'Time Series'!3:3,'Time Series'!5:5) -> 1 | EN24: =LOOKUP(EN10,'Time Series'!3:3,'Time Series'!5:5) -> 1 | EO24: =LOOKUP(EO10,'Time Series'!3:3,'Time Series'!5:5) -> 1 | EP24: =LOOKUP(EP10,'Time Series'!3:3,'Time Series'!5:5) -> 1 | EQ24: =LOOKUP(EQ10,'Time Series'!3:3,'Time Series'!5:5) -> 1 | ER24: =LOOKUP(ER10,'Time Series'!3:3,'Time Series'!5:5) -> 1 | ES24: =LOOKUP(ES10,'Time Series'!3:3,'Time Series'!5:5) -> 1 | ET24: =LOOKUP(ET10,'Time Series'!3:3,'Time Series'!5:5) -> 1 | EU24: =LOOKUP(EU10,'Time Series'!3:3,'Time Series'!5:5) -> 1 | EV24: =LOOKUP(EV10,'Time Series'!3:3,'Time Series'!5:5) -> 1 | EW24: =LOOKUP(EW10,'Time Series'!3:3,'Time Series'!5:5) -> 1 | EX24: =LOOKUP(EX10,'Time Series'!3:3,'Time Series'!5:5) -> 1 | EY24: =LOOKUP(EY10,'Time Series'!3:3,'Time Series'!5:5) -> 1 | EZ24: =LOOKUP(EZ10,'Time Series'!3:3,'Time Series'!5:5) -> 1 | FA24: =LOOKUP(FA10,'Time Series'!3:3,'Time Series'!5:5) -> 1 | FB24: =LOOKUP(FB10,'Time Series'!3:3,'Time Series'!5:5) -> 1 | FC24: =LOOKUP(FC10,'Time Series'!3:3,'Time Series'!5:5) -> 1 | FD24: =LOOKUP(FD10,'Time Series'!3:3,'Time Series'!5:5) -> 1 | FE24: =LOOKUP(FE10,'Time Series'!3:3,'Time Series'!5:5) -> 1 | FF24: =LOOKUP(FF10,'Time Series'!3:3,'Time Series'!5:5) -> 1 | FG24: =LOOKUP(FG10,'Time Series'!3:3,'Time Series'!5:5) -> 1 | FH24: =LOOKUP(FH10,'Time Series'!3:3,'Time Series'!5:5) -> 1 | FI24: =LOOKUP(FI10,'Time Series'!3:3,'Time Series'!5:5) -> 1 | FJ24: =LOOKUP(FJ10,'Time Series'!3:3,'Time Series'!5:5) -> 1 | FK24: =LOOKUP(FK10,'Time Series'!3:3,'Time Series'!5:5) -> 1 | FL24: =LOOKUP(FL10,'Time Series'!3:3,'Time Series'!5:5) -> 1 | FM24: =LOOKUP(FM10,'Time Series'!3:3,'Time Series'!5:5) -> 1 | FN24: =LOOKUP(FN10,'Time Series'!3:3,'Time Series'!5:5) -> 1 | FO24: =LOOKUP(FO10,'Time Series'!3:3,'Time Series'!5:5) -> 1 | FP24: =LOOKUP(FP10,'Time Series'!3:3,'Time Series'!5:5) -> 1 | FQ24: =LOOKUP(FQ10,'Time Series'!3:3,'Time Series'!5:5) -> 1 | FR24: =LOOKUP(FR10,'Time Series'!3:3,'Time Series'!5:5) -> 1 | FS24: =LOOKUP(FS10,'Time Series'!3:3,'Time Series'!5:5) -> 1 | FT24: =LOOKUP(FT10,'Time Series'!3:3,'Time Series'!5:5) -> 1 | FU24: =LOOKUP(FU10,'Time Series'!3:3,'Time Series'!5:5) -> 1 | FV24: =LOOKUP(FV10,'Time Series'!3:3,'Time Series'!5:5) -> 1 | FW24: =LOOKUP(FW10,'Time Series'!3:3,'Time Series'!5:5) -> 1 | FX24: =LOOKUP(FX10,'Time Series'!3:3,'Time Series'!5:5) -> 1 | FY24: =LOOKUP(FY10,'Time Series'!3:3,'Time Series'!5:5) -> 1 | FZ24: =LOOKUP(FZ10,'Time Series'!3:3,'Time Series'!5:5) -> 1 | GA24: =LOOKUP(GA10,'Time Series'!3:3,'Time Series'!5:5) -> 1 | GB24: =LOOKUP(GB10,'Time Series'!3:3,'Time Series'!5:5) -> 1 | GC24: =LOOKUP(GC10,'Time Series'!3:3,'Time Series'!5:5) -> 1 | GD24: =LOOKUP(GD10,'Time Series'!3:3,'Time Series'!5:5) -> 1 | GE24: =LOOKUP(GE10,'Time Series'!3:3,'Time Series'!5:5) -> 1 | GF24: =LOOKUP(GF10,'Time Series'!3:3,'Time Series'!5:5) -> 1 | GG24: =LOOKUP(GG10,'Time Series'!3:3,'Time Series'!5:5) -> 1 | GH24: =LOOKUP(GH10,'Time Series'!3:3,'Time Series'!5:5) -> 1 | GI24: =LOOKUP(GI10,'Time Series'!3:3,'Time Series'!5:5) -> 1 | GJ24: =LOOKUP(GJ10,'Time Series'!3:3,'Time Series'!5:5) -> 1 | GK24: =LOOKUP(GK10,'Time Series'!3:3,'Time Series'!5:5) -> 1 | GL24: =LOOKUP(GL10,'Time Series'!3:3,'Time Series'!5:5) -> 1 | GM24: =LOOKUP(GM10,'Time Series'!3:3,'Time Series'!5:5) -> 1 | GN24: =LOOKUP(GN10,'Time Series'!3:3,'Time Series'!5:5) -> 1 | GO24: =LOOKUP(GO10,'Time Series'!3:3,'Time Series'!5:5) -> 1 | GP24: =LOOKUP(GP10,'Time Series'!3:3,'Time Series'!5:5) -> 1 | GQ24: =LOOKUP(GQ10,'Time Series'!3:3,'Time Series'!5:5) -> 1 | GR24: =LOOKUP(GR10,'Time Series'!3:3,'Time Series'!5:5) -> 1 | GS24: =LOOKUP(GS10,'Time Series'!3:3,'Time Series'!5:5) -> 1 | GT24: =LOOKUP(GT10,'Time Series'!3:3,'Time Series'!5:5) -> 1 | GU24: =LOOKUP(GU10,'Time Series'!3:3,'Time Series'!5:5) -> 1 | GV24: =LOOKUP(GV10,'Time Series'!3:3,'Time Series'!5:5) -> 1 | GW24: =LOOKUP(GW10,'Time Series'!3:3,'Time Series'!5:5) -> 1 | GX24: =LOOKUP(GX10,'Time Series'!3:3,'Time Series'!5:5) -> 1 | GY24: =LOOKUP(GY10,'Time Series'!3:3,'Time Series'!5:5) -> 1 | GZ24: =LOOKUP(GZ10,'Time Series'!3:3,'Time Series'!5:5) -> 1 | HA24: =LOOKUP(HA10,'Time Series'!3:3,'Time Series'!5:5) -> 1 | HB24: =LOOKUP(HB10,'Time Series'!3:3,'Time Series'!5:5) -> 1 | HC24: =LOOKUP(HC10,'Time Series'!3:3,'Time Series'!5:5) -> 1 | HD24: =LOOKUP(HD10,'Time Series'!3:3,'Time Series'!5:5) -> 1 | HE24: =LOOKUP(HE10,'Time Series'!3:3,'Time Series'!5:5) -> 1 | HF24: =LOOKUP(HF10,'Time Series'!3:3,'Time Series'!5:5) -> 1 | HG24: =LOOKUP(HG10,'Time Series'!3:3,'Time Series'!5:5) -> 1 | HH24: =LOOKUP(HH10,'Time Series'!3:3,'Time Series'!5:5) -> 1 | HI24: =LOOKUP(HI10,'Time Series'!3:3,'Time Series'!5:5) -> 1 | HJ24: =LOOKUP(HJ10,'Time Series'!3:3,'Time Series'!5:5) -> 1 | HK24: =LOOKUP(HK10,'Time Series'!3:3,'Time Series'!5:5) -> 1 | HL24: =LOOKUP(HL10,'Time Series'!3:3,'Time Series'!5:5) -> 1 | HM24: =LOOKUP(HM10,'Time Series'!3:3,'Time Series'!5:5) -> 1 | HN24: =LOOKUP(HN10,'Time Series'!3:3,'Time Series'!5:5) -> 1 | HO24: =LOOKUP(HO10,'Time Series'!3:3,'Time Series'!5:5) -> 1 | HP24: =LOOKUP(HP10,'Time Series'!3:3,'Time Series'!5:5) -> 1 | HQ24: =LOOKUP(HQ10,'Time Series'!3:3,'Time Series'!5:5) -> 1 | HR24: =LOOKUP(HR10,'Time Series'!3:3,'Time Series'!5:5) -> 1 | HS24: =LOOKUP(HS10,'Time Series'!3:3,'Time Series'!5:5) -> 1 | HT24: =LOOKUP(HT10,'Time Series'!3:3,'Time Series'!5:5) -> 1 | HU24: =LOOKUP(HU10,'Time Series'!3:3,'Time Series'!5:5) -> 1 | HV24: =LOOKUP(HV10,'Time Series'!3:3,'Time Series'!5:5) -> 1 | HW24: =LOOKUP(HW10,'Time Series'!3:3,'Time Series'!5:5) -> 1 | HX24: =LOOKUP(HX10,'Time Series'!3:3,'Time Series'!5:5) -> 1 | HY24: =LOOKUP(HY10,'Time Series'!3:3,'Time Series'!5:5) -> 1 | HZ24: =LOOKUP(HZ10,'Time Series'!3:3,'Time Series'!5:5) -> 1 | IA24: =LOOKUP(IA10,'Time Series'!3:3,'Time Series'!5:5) -> 1 | IB24: =LOOKUP(IB10,'Time Series'!3:3,'Time Series'!5:5) -> 1 | IC24: =LOOKUP(IC10,'Time Series'!3:3,'Time Series'!5:5) -> 1 | ID24: =LOOKUP(ID10,'Time Series'!3:3,'Time Series'!5:5) -> 1 | IE24: =LOOKUP(IE10,'Time Series'!3:3,'Time Series'!5:5) -> 1 | IF24: =LOOKUP(IF10,'Time Series'!3:3,'Time Series'!5:5) -> 1 | IG24: =LOOKUP(IG10,'Time Series'!3:3,'Time Series'!5:5) -> 1 | IH24: =LOOKUP(IH10,'Time Series'!3:3,'Time Series'!5:5) -> 1 | II24: =LOOKUP(II10,'Time Series'!3:3,'Time Series'!5:5) -> 1 | IJ24: =LOOKUP(IJ10,'Time Series'!3:3,'Time Series'!5:5) -> 1 | IK24: =LOOKUP(IK10,'Time Series'!3:3,'Time Series'!5:5) -> 1 | IL24: =LOOKUP(IL10,'Time Series'!3:3,'Time Series'!5:5) -> 1 | IM24: =LOOKUP(IM10,'Time Series'!3:3,'Time Series'!5:5) -> 1 | IN24: =LOOKUP(IN10,'Time Series'!3:3,'Time Series'!5:5) -> 1 | IO24: =LOOKUP(IO10,'Time Series'!3:3,'Time Series'!5:5) -> 1 | IP24: =LOOKUP(IP10,'Time Series'!3:3,'Time Series'!5:5) -> 1 | IQ24: =LOOKUP(IQ10,'Time Series'!3:3,'Time Series'!5:5) -> 1 | IR24: =LOOKUP(IR10,'Time Series'!3:3,'Time Series'!5:5) -> 1 | IS24: =LOOKUP(IS10,'Time Series'!3:3,'Time Series'!5:5) -> 1 | IT24: =LOOKUP(IT10,'Time Series'!3:3,'Time Series'!5:5) -> 1 | IU24: =LOOKUP(IU10,'Time Series'!3:3,'Time Series'!5:5) -> 1 | IV24: =LOOKUP(IV10,'Time Series'!3:3,'Time Series'!5:5) -> 1 | IW24: =LOOKUP(IW10,'Time Series'!3:3,'Time Series'!5:5) -> 1 | IX24: =LOOKUP(IX10,'Time Series'!3:3,'Time Series'!5:5) -> 1 | IY24: =LOOKUP(IY10,'Time Series'!3:3,'Time Series'!5:5) -> 1 | IZ24: =LOOKUP(IZ10,'Time Series'!3:3,'Time Series'!5:5) -> 1
D25: EBITDA with Inflation | H25: =SUM(K25:XFD25) -> 2852563.15 | I25: EUR | K25: =K21*K19*K24 -> 0 | L25: =L21*L19*L24 -> 0 | M25: 0 | N25: 101000 | O25: 102010 | P25: 103030.1 | Q25: 104060.401 | R25: 105101.005 | S25: 106152.0151 | T25: 107213.5352 | U25: 108285.6706 | V25: 109368.5273 | W25: 110462.2125 | X25: 111566.8347 | Y25: 112682.503 | Z25: 113809.328 | AA25: 114947.4213 | AB25: 116096.8955 | AC25: 117257.8645 | AD25: 118430.4431 | AE25: 119614.7476 | AF25: 120810.895 | AG25: 122019.004 | AH25: 123239.194 | AI25: 124471.586 | AJ25: 125716.3018 | AK25: 126973.4649 | AL25: 128243.1995 | AM25: 0 | AN25: 0 | AO25: 0 | AP25: 0 | AQ25: 0 | AR25: 0 | AS25: 0 | AT25: 0 | AU25: 0 | AV25: 0 | AW25: 0 | AX25: 0 | AY25: 0 | AZ25: 0 | BA25: 0 | BB25: 0 | BC25: 0 | BD25: 0 | BE25: 0 | BF25: 0 | BG25: 0 | BH25: 0 | BI25: 0 | BJ25: 0 | BK25: 0 | BL25: 0 | BM25: 0 | BN25: 0 | BO25: 0 | BP25: 0 | BQ25: 0 | BR25: 0 | BS25: 0 | BT25: 0 | BU25: 0 | BV25: 0 | BW25: 0 | BX25: =BX21*BX19*BX24 -> 0 | BY25: 0 | BZ25: 0 | CA25: 0 | CB25: 0 | CC25: 0 | CD25: 0 | CE25: 0 | CF25: 0 | CG25: 0 | CH25: 0 | CI25: 0 | CJ25: 0 | CK25: 0 | CL25: 0 | CM25: 0 | CN25: 0 | CO25: 0 | CP25: 0 | CQ25: 0 | CR25: 0 | CS25: 0 | CT25: 0 | CU25: 0 | CV25: 0 | CW25: 0 | CX25: 0 | CY25: 0 | CZ25: 0 | DA25: 0 | DB25: 0 | DC25: 0 | DD25: 0 | DE25: 0 | DF25: 0 | DG25: 0 | DH25: 0 | DI25: 0 | DJ25: 0 | DK25: 0 | DL25: 0 | DM25: 0 | DN25: 0 | DO25: 0 | DP25: 0 | DQ25: 0 | DR25: 0 | DS25: 0 | DT25: 0 | DU25: 0 | DV25: 0 | DW25: 0 | DX25: 0 | DY25: 0 | DZ25: 0 | EA25: 0 | EB25: 0 | EC25: 0 | ED25: 0 | EE25: 0 | EF25: 0 | EG25: 0 | EH25: 0 | EI25: 0 | EJ25: =EJ21*EJ19*EJ24 -> 0 | EK25: 0 | EL25: 0 | EM25: 0 | EN25: 0 | EO25: 0 | EP25: 0 | EQ25: 0 | ER25: 0 | ES25: 0 | ET25: 0 | EU25: 0 | EV25: 0 | EW25: 0 | EX25: 0 | EY25: 0 | EZ25: 0 | FA25: 0 | FB25: 0 | FC25: 0 | FD25: 0 | FE25: 0 | FF25: 0 | FG25: 0 | FH25: 0 | FI25: 0 | FJ25: 0 | FK25: 0 | FL25: 0 | FM25: 0 | FN25: 0 | FO25: 0 | FP25: 0 | FQ25: 0 | FR25: 0 | FS25: 0 | FT25: 0 | FU25: 0 | FV25: 0 | FW25: 0 | FX25: 0 | FY25: 0 | FZ25: 0 | GA25: 0 | GB25: 0 | GC25: 0 | GD25: 0 | GE25: 0 | GF25: 0 | GG25: 0 | GH25: 0 | GI25: 0 | GJ25: 0 | GK25: 0 | GL25: 0 | GM25: 0 | GN25: 0 | GO25: 0 | GP25: 0 | GQ25: 0 | GR25: 0 | GS25: 0 | GT25: 0 | GU25: 0 | GV25: =GV21*GV19*GV24 -> 0 | GW25: 0 | GX25: 0 | GY25: 0 | GZ25: 0 | HA25: 0 | HB25: 0 | HC25: 0 | HD25: 0 | HE25: 0 | HF25: 0 | HG25: 0 | HH25: 0 | HI25: 0 | HJ25: 0 | HK25: 0 | HL25: 0 | HM25: 0 | HN25: 0 | HO25: 0 | HP25: 0 | HQ25: 0 | HR25: 0 | HS25: 0 | HT25: 0 | HU25: 0 | HV25: 0 | HW25: 0 | HX25: 0 | HY25: 0 | HZ25: 0 | IA25: 0 | IB25: 0 | IC25: 0 | ID25: 0 | IE25: 0 | IF25: 0 | IG25: 0 | IH25: 0 | II25: 0 | IJ25: 0 | IK25: 0 | IL25: 0 | IM25: 0 | IN25: 0 | IO25: 0 | IP25: 0 | IQ25: 0 | IR25: 0 | IS25: 0 | IT25: 0 | IU25: 0 | IV25: 0 | IW25: 0 | IX25: 0 | IY25: 0 | IZ25: 0
D27: Pre tax free cashflow | I27: EUR | K27: =K25-K16 -> -466666.6667 | L27: -466666.6667 | M27: -466666.6667 | N27: 101000 | O27: 102010 | P27: 103030.1 | Q27: 104060.401 | R27: 105101.005 | S27: 106152.0151 | T27: 107213.5352 | U27: 108285.6706 | V27: 109368.5273 | W27: 110462.2125 | X27: 111566.8347 | Y27: 112682.503 | Z27: 113809.328 | AA27: 114947.4213 | AB27: 116096.8955 | AC27: 117257.8645 | AD27: 118430.4431 | AE27: 119614.7476 | AF27: 120810.895 | AG27: 122019.004 | AH27: 123239.194 | AI27: 124471.586 | AJ27: 125716.3018 | AK27: 126973.4649 | AL27: 128243.1995 | AM27: 0 | AN27: 0 | AO27: 0 | AP27: 0 | AQ27: 0 | AR27: 0 | AS27: 0 | AT27: 0 | AU27: 0 | AV27: 0 | AW27: 0 | AX27: 0 | AY27: 0 | AZ27: 0 | BA27: 0 | BB27: 0 | BC27: 0 | BD27: 0 | BE27: 0 | BF27: 0 | BG27: 0 | BH27: 0 | BI27: 0 | BJ27: 0 | BK27: 0 | BL27: 0 | BM27: 0 | BN27: 0 | BO27: 0 | BP27: 0 | BQ27: 0 | BR27: 0 | BS27: 0 | BT27: 0 | BU27: 0 | BV27: 0 | BW27: =BW25-BW16 -> 0 | BX27: 0 | BY27: 0 | BZ27: 0 | CA27: 0 | CB27: 0 | CC27: 0 | CD27: 0 | CE27: 0 | CF27: 0 | CG27: 0 | CH27: 0 | CI27: 0 | CJ27: 0 | CK27: 0 | CL27: 0 | CM27: 0 | CN27: 0 | CO27: 0 | CP27: 0 | CQ27: 0 | CR27: 0 | CS27: 0 | CT27: 0 | CU27: 0 | CV27: 0 | CW27: 0 | CX27: 0 | CY27: 0 | CZ27: 0 | DA27: 0 | DB27: 0 | DC27: 0 | DD27: 0 | DE27: 0 | DF27: 0 | DG27: 0 | DH27: 0 | DI27: 0 | DJ27: 0 | DK27: 0 | DL27: 0 | DM27: 0 | DN27: 0 | DO27: 0 | DP27: 0 | DQ27: 0 | DR27: 0 | DS27: 0 | DT27: 0 | DU27: 0 | DV27: 0 | DW27: 0 | DX27: 0 | DY27: 0 | DZ27: 0 | EA27: 0 | EB27: 0 | EC27: 0 | ED27: 0 | EE27: 0 | EF27: 0 | EG27: 0 | EH27: 0 | EI27: =EI25-EI16 -> 0 | EJ27: 0 | EK27: 0 | EL27: 0 | EM27: 0 | EN27: 0 | EO27: 0 | EP27: 0 | EQ27: 0 | ER27: 0 | ES27: 0 | ET27: 0 | EU27: 0 | EV27: 0 | EW27: 0 | EX27: 0 | EY27: 0 | EZ27: 0 | FA27: 0 | FB27: 0 | FC27: 0 | FD27: 0 | FE27: 0 | FF27: 0 | FG27: 0 | FH27: 0 | FI27: 0 | FJ27: 0 | FK27: 0 | FL27: 0 | FM27: 0 | FN27: 0 | FO27: 0 | FP27: 0 | FQ27: 0 | FR27: 0 | FS27: 0 | FT27: 0 | FU27: 0 | FV27: 0 | FW27: 0 | FX27: 0 | FY27: 0 | FZ27: 0 | GA27: 0 | GB27: 0 | GC27: 0 | GD27: 0 | GE27: 0 | GF27: 0 | GG27: 0 | GH27: 0 | GI27: 0 | GJ27: 0 | GK27: 0 | GL27: 0 | GM27: 0 | GN27: 0 | GO27: 0 | GP27: 0 | GQ27: 0 | GR27: 0 | GS27: 0 | GT27: 0 | GU27: =GU25-GU16 -> 0 | GV27: 0 | GW27: 0 | GX27: 0 | GY27: 0 | GZ27: 0 | HA27: 0 | HB27: 0 | HC27: 0 | HD27: 0 | HE27: 0 | HF27: 0 | HG27: 0 | HH27: 0 | HI27: 0 | HJ27: 0 | HK27: 0 | HL27: 0 | HM27: 0 | HN27: 0 | HO27: 0 | HP27: 0 | HQ27: 0 | HR27: 0 | HS27: 0 | HT27: 0 | HU27: 0 | HV27: 0 | HW27: 0 | HX27: 0 | HY27: 0 | HZ27: 0 | IA27: 0 | IB27: 0 | IC27: 0 | ID27: 0 | IE27: 0 | IF27: 0 | IG27: 0 | IH27: 0 | II27: 0 | IJ27: 0 | IK27: 0 | IL27: 0 | IM27: 0 | IN27: 0 | IO27: 0 | IP27: 0 | IQ27: 0 | IR27: 0 | IS27: 0 | IT27: 0 | IU27: 0 | IV27: 0 | IW27: 0 | IX27: 0 | IY27: 0 | IZ27: 0
D28: Pre tax IRR | E28: % | F28: =IRR(K27:IZ27,0.0001) -> 0.05567713178 | G28: =(1+F28)^(months/G6)-1 -> 0.05567713178 | I28: %
D29: Pre tax XIRR | E29: % | F29: =IFERROR(XIRR(K27:IZ27,K8:IZ8),FALSE) -> 0.05563730896 | I29: %
B31: Debt Sizing
C32: Total Funding Requirements
D33: Capital Expenditures | H33: =SUM(K33:XFD33) -> 1400000 | I33: EUR | K33: =K16 -> 466666.6667 | L33: 466666.6667 | M33: 466666.6667 | N33: 0 | O33: 0 | P33: 0 | Q33: 0 | R33: 0 | S33: 0 | T33: 0 | U33: 0 | V33: 0 | W33: 0 | X33: 0 | Y33: 0 | Z33: 0 | AA33: 0 | AB33: 0 | AC33: 0 | AD33: 0 | AE33: 0 | AF33: 0 | AG33: 0 | AH33: 0 | AI33: 0 | AJ33: 0 | AK33: 0 | AL33: 0 | AM33: 0 | AN33: 0 | AO33: 0 | AP33: 0 | AQ33: 0 | AR33: 0 | AS33: 0 | AT33: 0 | AU33: 0 | AV33: 0 | AW33: 0 | AX33: 0 | AY33: 0 | AZ33: 0 | BA33: 0 | BB33: 0 | BC33: 0 | BD33: 0 | BE33: 0 | BF33: 0 | BG33: 0 | BH33: 0 | BI33: 0 | BJ33: 0 | BK33: 0 | BL33: 0 | BM33: 0 | BN33: 0 | BO33: 0 | BP33: 0 | BQ33: 0 | BR33: 0 | BS33: 0 | BT33: 0 | BU33: 0 | BV33: 0 | BW33: =BW16 -> 0 | BX33: 0 | BY33: 0 | BZ33: 0 | CA33: 0 | CB33: 0 | CC33: 0 | CD33: 0 | CE33: 0 | CF33: 0 | CG33: 0 | CH33: 0 | CI33: 0 | CJ33: 0 | CK33: 0 | CL33: 0 | CM33: 0 | CN33: 0 | CO33: 0 | CP33: 0 | CQ33: 0 | CR33: 0 | CS33: 0 | CT33: 0 | CU33: 0 | CV33: 0 | CW33: 0 | CX33: 0 | CY33: 0 | CZ33: 0 | DA33: 0 | DB33: 0 | DC33: 0 | DD33: 0 | DE33: 0 | DF33: 0 | DG33: 0 | DH33: 0 | DI33: 0 | DJ33: 0 | DK33: 0 | DL33: 0 | DM33: 0 | DN33: 0 | DO33: 0 | DP33: 0 | DQ33: 0 | DR33: 0 | DS33: 0 | DT33: 0 | DU33: 0 | DV33: 0 | DW33: 0 | DX33: 0 | DY33: 0 | DZ33: 0 | EA33: 0 | EB33: 0 | EC33: 0 | ED33: 0 | EE33: 0 | EF33: 0 | EG33: 0 | EH33: 0 | EI33: =EI16 -> 0 | EJ33: 0 | EK33: 0 | EL33: 0 | EM33: 0 | EN33: 0 | EO33: 0 | EP33: 0 | EQ33: 0 | ER33: 0 | ES33: 0 | ET33: 0 | EU33: 0 | EV33: 0 | EW33: 0 | EX33: 0 | EY33: 0 | EZ33: 0 | FA33: 0 | FB33: 0 | FC33: 0 | FD33: 0 | FE33: 0 | FF33: 0 | FG33: 0 | FH33: 0 | FI33: 0 | FJ33: 0 | FK33: 0 | FL33: 0 | FM33: 0 | FN33: 0 | FO33: 0 | FP33: 0 | FQ33: 0 | FR33: 0 | FS33: 0 | FT33: 0 | FU33: 0 | FV33: 0 | FW33: 0 | FX33: 0 | FY33: 0 | FZ33: 0 | GA33: 0 | GB33: 0 | GC33: 0 | GD33: 0 | GE33: 0 | GF33: 0 | GG33: 0 | GH33: 0 | GI33: 0 | GJ33: 0 | GK33: 0 | GL33: 0 | GM33: 0 | GN33: 0 | GO33: 0 | GP33: 0 | GQ33: 0 | GR33: 0 | GS33: 0 | GT33: 0 | GU33: =GU16 -> 0 | GV33: 0 | GW33: 0 | GX33: 0 | GY33: 0 | GZ33: 0 | HA33: 0 | HB33: 0 | HC33: 0 | HD33: 0 | HE33: 0 | HF33: 0 | HG33: 0 | HH33: 0 | HI33: 0 | HJ33: 0 | HK33: 0 | HL33: 0 | HM33: 0 | HN33: 0 | HO33: 0 | HP33: 0 | HQ33: 0 | HR33: 0 | HS33: 0 | HT33: 0 | HU33: 0 | HV33: 0 | HW33: 0 | HX33: 0 | HY33: 0 | HZ33: 0 | IA33: 0 | IB33: 0 | IC33: 0 | ID33: 0 | IE33: 0 | IF33: 0 | IG33: 0 | IH33: 0 | II33: 0 | IJ33: 0 | IK33: 0 | IL33: 0 | IM33: 0 | IN33: 0 | IO33: 0 | IP33: 0 | IQ33: 0 | IR33: 0 | IS33: 0 | IT33: 0 | IU33: 0 | IV33: 0 | IW33: 0 | IX33: 0 | IY33: 0 | IZ33: 0
D34: IDC | H34: =SUM(K34:XFD34) -> 0 | I34: EUR
D35: Up-Front Fees | H35: =SUM(K35:XFD35) -> 0 | I35: EUR
D36: Commitment Fees | H36: =SUM(K36:XFD36) -> 0 | I36: EUR
D37: Total Requirements | H37: =SUM(K37:XFD37) -> 1400000 | I37: EUR | K37: =SUM(K33:K36) -> 466666.6667 | L37: =SUM(L33:L36) -> 466666.6667 | M37: 466666.6667 | N37: 0 | O37: 0 | P37: 0 | Q37: 0 | R37: 0 | S37: 0 | T37: 0 | U37: 0 | V37: 0 | W37: 0 | X37: 0 | Y37: 0 | Z37: 0 | AA37: 0 | AB37: 0 | AC37: 0 | AD37: 0 | AE37: 0 | AF37: 0 | AG37: 0 | AH37: 0 | AI37: 0 | AJ37: 0 | AK37: 0 | AL37: 0 | AM37: 0 | AN37: 0 | AO37: 0 | AP37: 0 | AQ37: 0 | AR37: 0 | AS37: 0 | AT37: 0 | AU37: 0 | AV37: 0 | AW37: 0 | AX37: 0 | AY37: 0 | AZ37: 0 | BA37: 0 | BB37: 0 | BC37: 0 | BD37: 0 | BE37: 0 | BF37: 0 | BG37: 0 | BH37: 0 | BI37: 0 | BJ37: 0 | BK37: 0 | BL37: 0 | BM37: 0 | BN37: 0 | BO37: 0 | BP37: 0 | BQ37: 0 | BR37: 0 | BS37: 0 | BT37: 0 | BU37: 0 | BV37: 0 | BW37: 0 | BX37: =SUM(BX33:BX36) -> 0 | BY37: 0 | BZ37: 0 | CA37: 0 | CB37: 0 | CC37: 0 | CD37: 0 | CE37: 0 | CF37: 0 | CG37: 0 | CH37: 0 | CI37: 0 | CJ37: 0 | CK37: 0 | CL37: 0 | CM37: 0 | CN37: 0 | CO37: 0 | CP37: 0 | CQ37: 0 | CR37: 0 | CS37: 0 | CT37: 0 | CU37: 0 | CV37: 0 | CW37: 0 | CX37: 0 | CY37: 0 | CZ37: 0 | DA37: 0 | DB37: 0 | DC37: 0 | DD37: 0 | DE37: 0 | DF37: 0 | DG37: 0 | DH37: 0 | DI37: 0 | DJ37: 0 | DK37: 0 | DL37: 0 | DM37: 0 | DN37: 0 | DO37: 0 | DP37: 0 | DQ37: 0 | DR37: 0 | DS37: 0 | DT37: 0 | DU37: 0 | DV37: 0 | DW37: 0 | DX37: 0 | DY37: 0 | DZ37: 0 | EA37: 0 | EB37: 0 | EC37: 0 | ED37: 0 | EE37: 0 | EF37: 0 | EG37: 0 | EH37: 0 | EI37: 0 | EJ37: =SUM(EJ33:EJ36) -> 0 | EK37: 0 | EL37: 0 | EM37: 0 | EN37: 0 | EO37: 0 | EP37: 0 | EQ37: 0 | ER37: 0 | ES37: 0 | ET37: 0 | EU37: 0 | EV37: 0 | EW37: 0 | EX37: 0 | EY37: 0 | EZ37: 0 | FA37: 0 | FB37: 0 | FC37: 0 | FD37: 0 | FE37: 0 | FF37: 0 | FG37: 0 | FH37: 0 | FI37: 0 | FJ37: 0 | FK37: 0 | FL37: 0 | FM37: 0 | FN37: 0 | FO37: 0 | FP37: 0 | FQ37: 0 | FR37: 0 | FS37: 0 | FT37: 0 | FU37: 0 | FV37: 0 | FW37: 0 | FX37: 0 | FY37: 0 | FZ37: 0 | GA37: 0 | GB37: 0 | GC37: 0 | GD37: 0 | GE37: 0 | GF37: 0 | GG37: 0 | GH37: 0 | GI37: 0 | GJ37: 0 | GK37: 0 | GL37: 0 | GM37: 0 | GN37: 0 | GO37: 0 | GP37: 0 | GQ37: 0 | GR37: 0 | GS37: 0 | GT37: 0 | GU37: 0 | GV37: =SUM(GV33:GV36) -> 0 | GW37: 0 | GX37: 0 | GY37: 0 | GZ37: 0 | HA37: 0 | HB37: 0 | HC37: 0 | HD37: 0 | HE37: 0 | HF37: 0 | HG37: 0 | HH37: 0 | HI37: 0 | HJ37: 0 | HK37: 0 | HL37: 0 | HM37: 0 | HN37: 0 | HO37: 0 | HP37: 0 | HQ37: 0 | HR37: 0 | HS37: 0 | HT37: 0 | HU37: 0 | HV37: 0 | HW37: 0 | HX37: 0 | HY37: 0 | HZ37: 0 | IA37: 0 | IB37: 0 | IC37: 0 | ID37: 0 | IE37: 0 | IF37: 0 | IG37: 0 | IH37: 0 | II37: 0 | IJ37: 0 | IK37: 0 | IL37: 0 | IM37: 0 | IN37: 0 | IO37: 0 | IP37: 0 | IQ37: 0 | IR37: 0 | IS37: 0 | IT37: 0 | IU37: 0 | IV37: 0 | IW37: 0 | IX37: 0 | IY37: 0 | IZ37: 0
C39: Total Funding Sources
D40: Debt | E40: % | F40: =InputC!F31 -> 0.8 | H40: =SUM(K40:XFD40) -> 1120000 | I40: EUR | K40: =$F$40*K37 -> 373333.3333 | L40: =$F$40*L37 -> 373333.3333 | M40: 373333.3333 | N40: 0 | O40: 0 | P40: 0 | Q40: 0 | R40: 0 | S40: 0 | T40: 0 | U40: 0 | V40: 0 | W40: 0 | X40: 0 | Y40: 0 | Z40: 0 | AA40: 0 | AB40: 0 | AC40: 0 | AD40: 0 | AE40: 0 | AF40: 0 | AG40: 0 | AH40: 0 | AI40: 0 | AJ40: 0 | AK40: 0 | AL40: 0 | AM40: 0 | AN40: 0 | AO40: 0 | AP40: 0 | AQ40: 0 | AR40: 0 | AS40: 0 | AT40: 0 | AU40: 0 | AV40: 0 | AW40: 0 | AX40: 0 | AY40: 0 | AZ40: 0 | BA40: 0 | BB40: 0 | BC40: 0 | BD40: 0 | BE40: 0 | BF40: 0 | BG40: 0 | BH40: 0 | BI40: 0 | BJ40: 0 | BK40: 0 | BL40: 0 | BM40: 0 | BN40: 0 | BO40: 0 | BP40: 0 | BQ40: 0 | BR40: 0 | BS40: 0 | BT40: 0 | BU40: 0 | BV40: 0 | BW40: 0 | BX40: =$F$40*BX37 -> 0 | BY40: 0 | BZ40: 0 | CA40: 0 | CB40: 0 | CC40: 0 | CD40: 0 | CE40: 0 | CF40: 0 | CG40: 0 | CH40: 0 | CI40: 0 | CJ40: 0 | CK40: 0 | CL40: 0 | CM40: 0 | CN40: 0 | CO40: 0 | CP40: 0 | CQ40: 0 | CR40: 0 | CS40: 0 | CT40: 0 | CU40: 0 | CV40: 0 | CW40: 0 | CX40: 0 | CY40: 0 | CZ40: 0 | DA40: 0 | DB40: 0 | DC40: 0 | DD40: 0 | DE40: 0 | DF40: 0 | DG40: 0 | DH40: 0 | DI40: 0 | DJ40: 0 | DK40: 0 | DL40: 0 | DM40: 0 | DN40: 0 | DO40: 0 | DP40: 0 | DQ40: 0 | DR40: 0 | DS40: 0 | DT40: 0 | DU40: 0 | DV40: 0 | DW40: 0 | DX40: 0 | DY40: 0 | DZ40: 0 | EA40: 0 | EB40: 0 | EC40: 0 | ED40: 0 | EE40: 0 | EF40: 0 | EG40: 0 | EH40: 0 | EI40: 0 | EJ40: =$F$40*EJ37 -> 0 | EK40: 0 | EL40: 0 | EM40: 0 | EN40: 0 | EO40: 0 | EP40: 0 | EQ40: 0 | ER40: 0 | ES40: 0 | ET40: 0 | EU40: 0 | EV40: 0 | EW40: 0 | EX40: 0 | EY40: 0 | EZ40: 0 | FA40: 0 | FB40: 0 | FC40: 0 | FD40: 0 | FE40: 0 | FF40: 0 | FG40: 0 | FH40: 0 | FI40: 0 | FJ40: 0 | FK40: 0 | FL40: 0 | FM40: 0 | FN40: 0 | FO40: 0 | FP40: 0 | FQ40: 0 | FR40: 0 | FS40: 0 | FT40: 0 | FU40: 0 | FV40: 0 | FW40: 0 | FX40: 0 | FY40: 0 | FZ40: 0 | GA40: 0 | GB40: 0 | GC40: 0 | GD40: 0 | GE40: 0 | GF40: 0 | GG40: 0 | GH40: 0 | GI40: 0 | GJ40: 0 | GK40: 0 | GL40: 0 | GM40: 0 | GN40: 0 | GO40: 0 | GP40: 0 | GQ40: 0 | GR40: 0 | GS40: 0 | GT40: 0 | GU40: 0 | GV40: =$F$40*GV37 -> 0 | GW40: 0 | GX40: 0 | GY40: 0 | GZ40: 0 | HA40: 0 | HB40: 0 | HC40: 0 | HD40: 0 | HE40: 0 | HF40: 0 | HG40: 0 | HH40: 0 | HI40: 0 | HJ40: 0 | HK40: 0 | HL40: 0 | HM40: 0 | HN40: 0 | HO40: 0 | HP40: 0 | HQ40: 0 | HR40: 0 | HS40: 0 | HT40: 0 | HU40: 0 | HV40: 0 | HW40: 0 | HX40: 0 | HY40: 0 | HZ40: 0 | IA40: 0 | IB40: =$F$40*IB37 -> 0 | IC40: 0 | ID40: 0 | IE40: 0 | IF40: 0 | IG40: 0 | IH40: 0 | II40: 0 | IJ40: 0 | IK40: 0 | IL40: 0 | IM40: 0 | IN40: 0 | IO40: 0 | IP40: 0 | IQ40: 0 | IR40: 0 | IS40: 0 | IT40: 0 | IU40: 0 | IV40: 0 | IW40: 0 | IX40: 0 | IY40: 0 | IZ40: 0
D41: Equity | H41: =SUM(K41:XFD41) -> 280000 | I41: EUR | K41: =K37-K40 -> 93333.33333 | L41: =L37-L40 -> 93333.33333 | M41: 93333.33333 | N41: 0 | O41: 0 | P41: 0 | Q41: 0 | R41: 0 | S41: 0 | T41: 0 | U41: 0 | V41: 0 | W41: 0 | X41: 0 | Y41: 0 | Z41: 0 | AA41: 0 | AB41: 0 | AC41: 0 | AD41: 0 | AE41: 0 | AF41: 0 | AG41: 0 | AH41: 0 | AI41: 0 | AJ41: 0 | AK41: 0 | AL41: 0 | AM41: 0 | AN41: 0 | AO41: 0 | AP41: 0 | AQ41: 0 | AR41: 0 | AS41: 0 | AT41: 0 | AU41: 0 | AV41: 0 | AW41: 0 | AX41: 0 | AY41: 0 | AZ41: 0 | BA41: 0 | BB41: 0 | BC41: 0 | BD41: 0 | BE41: 0 | BF41: 0 | BG41: 0 | BH41: 0 | BI41: 0 | BJ41: 0 | BK41: 0 | BL41: 0 | BM41: 0 | BN41: 0 | BO41: 0 | BP41: 0 | BQ41: 0 | BR41: 0 | BS41: 0 | BT41: 0 | BU41: 0 | BV41: 0 | BW41: 0 | BX41: =BX37-BX40 -> 0 | BY41: 0 | BZ41: 0 | CA41: 0 | CB41: 0 | CC41: 0 | CD41: 0 | CE41: 0 | CF41: 0 | CG41: 0 | CH41: 0 | CI41: 0 | CJ41: 0 | CK41: 0 | CL41: 0 | CM41: 0 | CN41: 0 | CO41: 0 | CP41: 0 | CQ41: 0 | CR41: 0 | CS41: 0 | CT41: 0 | CU41: 0 | CV41: 0 | CW41: 0 | CX41: 0 | CY41: 0 | CZ41: 0 | DA41: 0 | DB41: 0 | DC41: 0 | DD41: 0 | DE41: 0 | DF41: 0 | DG41: 0 | DH41: 0 | DI41: 0 | DJ41: 0 | DK41: 0 | DL41: 0 | DM41: 0 | DN41: 0 | DO41: 0 | DP41: 0 | DQ41: 0 | DR41: 0 | DS41: 0 | DT41: 0 | DU41: 0 | DV41: 0 | DW41: 0 | DX41: 0 | DY41: 0 | DZ41: 0 | EA41: 0 | EB41: 0 | EC41: 0 | ED41: 0 | EE41: 0 | EF41: 0 | EG41: 0 | EH41: 0 | EI41: 0 | EJ41: =EJ37-EJ40 -> 0 | EK41: 0 | EL41: 0 | EM41: 0 | EN41: 0 | EO41: 0 | EP41: 0 | EQ41: 0 | ER41: 0 | ES41: 0 | ET41: 0 | EU41: 0 | EV41: 0 | EW41: 0 | EX41: 0 | EY41: 0 | EZ41: 0 | FA41: 0 | FB41: 0 | FC41: 0 | FD41: 0 | FE41: 0 | FF41: 0 | FG41: 0 | FH41: 0 | FI41: 0 | FJ41: 0 | FK41: 0 | FL41: 0 | FM41: 0 | FN41: 0 | FO41: 0 | FP41: 0 | FQ41: 0 | FR41: 0 | FS41: 0 | FT41: 0 | FU41: 0 | FV41: 0 | FW41: 0 | FX41: 0 | FY41: 0 | FZ41: 0 | GA41: 0 | GB41: 0 | GC41: 0 | GD41: 0 | GE41: 0 | GF41: 0 | GG41: 0 | GH41: 0 | GI41: 0 | GJ41: 0 | GK41: 0 | GL41: 0 | GM41: 0 | GN41: 0 | GO41: 0 | GP41: 0 | GQ41: 0 | GR41: 0 | GS41: 0 | GT41: 0 | GU41: 0 | GV41: =GV37-GV40 -> 0 | GW41: 0 | GX41: 0 | GY41: 0 | GZ41: 0 | HA41: 0 | HB41: 0 | HC41: 0 | HD41: 0 | HE41: 0 | HF41: 0 | HG41: 0 | HH41: 0 | HI41: 0 | HJ41: 0 | HK41: 0 | HL41: 0 | HM41: 0 | HN41: 0 | HO41: 0 | HP41: 0 | HQ41: 0 | HR41: 0 | HS41: 0 | HT41: 0 | HU41: 0 | HV41: 0 | HW41: 0 | HX41: 0 | HY41: 0 | HZ41: 0 | IA41: 0 | IB41: 0 | IC41: 0 | ID41: 0 | IE41: 0 | IF41: 0 | IG41: 0 | IH41: 0 | II41: 0 | IJ41: 0 | IK41: 0 | IL41: 0 | IM41: 0 | IN41: 0 | IO41: 0 | IP41: 0 | IQ41: 0 | IR41: 0 | IS41: 0 | IT41: 0 | IU41: 0 | IV41: 0 | IW41: 0 | IX41: 0 | IY41: 0 | IZ41: 0
D42: Total Sources | H42: =SUM(K42:XFD42) -> 1400000 | I42: EUR | K42: =SUM(K40:K41) -> 466666.6667 | L42: =SUM(L40:L41) -> 466666.6667 | M42: 466666.6667 | N42: 0 | O42: 0 | P42: 0 | Q42: 0 | R42: 0 | S42: 0 | T42: 0 | U42: 0 | V42: 0 | W42: 0 | X42: 0 | Y42: 0 | Z42: 0 | AA42: 0 | AB42: 0 | AC42: 0 | AD42: 0 | AE42: 0 | AF42: 0 | AG42: 0 | AH42: 0 | AI42: 0 | AJ42: 0 | AK42: 0 | AL42: 0 | AM42: 0 | AN42: 0 | AO42: 0 | AP42: 0 | AQ42: 0 | AR42: 0 | AS42: 0 | AT42: 0 | AU42: 0 | AV42: 0 | AW42: 0 | AX42: 0 | AY42: 0 | AZ42: 0 | BA42: 0 | BB42: 0 | BC42: 0 | BD42: 0 | BE42: 0 | BF42: 0 | BG42: 0 | BH42: 0 | BI42: 0 | BJ42: 0 | BK42: 0 | BL42: 0 | BM42: 0 | BN42: 0 | BO42: 0 | BP42: 0 | BQ42: 0 | BR42: 0 | BS42: 0 | BT42: 0 | BU42: 0 | BV42: 0 | BW42: 0 | BX42: =SUM(BX40:BX41) -> 0 | BY42: 0 | BZ42: 0 | CA42: 0 | CB42: 0 | CC42: 0 | CD42: 0 | CE42: 0 | CF42: 0 | CG42: 0 | CH42: 0 | CI42: 0 | CJ42: 0 | CK42: 0 | CL42: 0 | CM42: 0 | CN42: 0 | CO42: 0 | CP42: 0 | CQ42: 0 | CR42: 0 | CS42: 0 | CT42: 0 | CU42: 0 | CV42: 0 | CW42: 0 | CX42: 0 | CY42: 0 | CZ42: 0 | DA42: 0 | DB42: 0 | DC42: 0 | DD42: 0 | DE42: 0 | DF42: 0 | DG42: 0 | DH42: 0 | DI42: 0 | DJ42: 0 | DK42: 0 | DL42: 0 | DM42: 0 | DN42: 0 | DO42: 0 | DP42: 0 | DQ42: 0 | DR42: 0 | DS42: 0 | DT42: 0 | DU42: 0 | DV42: 0 | DW42: 0 | DX42: 0 | DY42: 0 | DZ42: 0 | EA42: 0 | EB42: 0 | EC42: 0 | ED42: 0 | EE42: 0 | EF42: 0 | EG42: 0 | EH42: 0 | EI42: 0 | EJ42: =SUM(EJ40:EJ41) -> 0 | EK42: 0 | EL42: 0 | EM42: 0 | EN42: 0 | EO42: 0 | EP42: 0 | EQ42: 0 | ER42: 0 | ES42: 0 | ET42: 0 | EU42: 0 | EV42: 0 | EW42: 0 | EX42: 0 | EY42: 0 | EZ42: 0 | FA42: 0 | FB42: 0 | FC42: 0 | FD42: 0 | FE42: 0 | FF42: 0 | FG42: 0 | FH42: 0 | FI42: 0 | FJ42: 0 | FK42: 0 | FL42: 0 | FM42: 0 | FN42: 0 | FO42: 0 | FP42: 0 | FQ42: 0 | FR42: 0 | FS42: 0 | FT42: 0 | FU42: 0 | FV42: 0 | FW42: 0 | FX42: 0 | FY42: 0 | FZ42: 0 | GA42: 0 | GB42: 0 | GC42: 0 | GD42: 0 | GE42: 0 | GF42: 0 | GG42: 0 | GH42: 0 | GI42: 0 | GJ42: 0 | GK42: 0 | GL42: 0 | GM42: 0 | GN42: 0 | GO42: 0 | GP42: 0 | GQ42: 0 | GR42: 0 | GS42: 0 | GT42: 0 | GU42: 0 | GV42: =SUM(GV40:GV41) -> 0 | GW42: 0 | GX42: 0 | GY42: 0 | GZ42: 0 | HA42: 0 | HB42: 0 | HC42: 0 | HD42: 0 | HE42: 0 | HF42: 0 | HG42: 0 | HH42: 0 | HI42: 0 | HJ42: 0 | HK42: 0 | HL42: 0 | HM42: 0 | HN42: 0 | HO42: 0 | HP42: 0 | HQ42: 0 | HR42: 0 | HS42: 0 | HT42: 0 | HU42: 0 | HV42: 0 | HW42: 0 | HX42: 0 | HY42: 0 | HZ42: 0 | IA42: 0 | IB42: 0 | IC42: 0 | ID42: 0 | IE42: 0 | IF42: 0 | IG42: 0 | IH42: 0 | II42: 0 | IJ42: 0 | IK42: 0 | IL42: 0 | IM42: 0 | IN42: 0 | IO42: 0 | IP42: 0 | IQ42: 0 | IR42: 0 | IS42: 0 | IT42: 0 | IU42: 0 | IV42: 0 | IW42: 0 | IX42: 0 | IY42: 0 | IZ42: 0
B44: Debt Repayment
C46: Debt Flags
D47: Life Counter - Periods | I47: Period | K47: =J47+K9 -> 0 | L47: 0 | M47: 0 | N47: 1 | O47: 2 | P47: 3 | Q47: 4 | R47: 5 | S47: 6 | T47: 7 | U47: 8 | V47: 9 | W47: 10 | X47: 11 | Y47: 12 | Z47: 13 | AA47: 14 | AB47: 15 | AC47: 16 | AD47: 17 | AE47: 18 | AF47: 19 | AG47: 20 | AH47: 21 | AI47: 22 | AJ47: 23 | AK47: 24 | AL47: 25 | AM47: 25 | AN47: 25 | AO47: 25 | AP47: 25 | AQ47: 25 | AR47: 25 | AS47: 25 | AT47: 25 | AU47: 25 | AV47: 25 | AW47: 25 | AX47: 25 | AY47: 25 | AZ47: 25 | BA47: 25 | BB47: 25 | BC47: 25 | BD47: 25 | BE47: 25 | BF47: 25 | BG47: 25 | BH47: 25 | BI47: 25 | BJ47: 25 | BK47: 25 | BL47: 25 | BM47: 25 | BN47: 25 | BO47: 25 | BP47: 25 | BQ47: 25 | BR47: 25 | BS47: 25 | BT47: 25 | BU47: 25 | BV47: 25 | BW47: =BV47+BW9 -> 25 | BX47: 25 | BY47: 25 | BZ47: 25 | CA47: 25 | CB47: 25 | CC47: 25 | CD47: 25 | CE47: 25 | CF47: 25 | CG47: 25 | CH47: 25 | CI47: 25 | CJ47: 25 | CK47: 25 | CL47: 25 | CM47: 25 | CN47: 25 | CO47: 25 | CP47: 25 | CQ47: 25 | CR47: 25 | CS47: 25 | CT47: 25 | CU47: 25 | CV47: 25 | CW47: 25 | CX47: 25 | CY47: 25 | CZ47: 25 | DA47: 25 | DB47: 25 | DC47: 25 | DD47: 25 | DE47: 25 | DF47: 25 | DG47: 25 | DH47: 25 | DI47: 25 | DJ47: 25 | DK47: 25 | DL47: 25 | DM47: 25 | DN47: 25 | DO47: 25 | DP47: 25 | DQ47: 25 | DR47: 25 | DS47: 25 | DT47: 25 | DU47: 25 | DV47: 25 | DW47: 25 | DX47: 25 | DY47: 25 | DZ47: 25 | EA47: 25 | EB47: 25 | EC47: 25 | ED47: 25 | EE47: 25 | EF47: 25 | EG47: 25 | EH47: 25 | EI47: =EH47+EI9 -> 25 | EJ47: 25 | EK47: 25 | EL47: 25 | EM47: 25 | EN47: 25 | EO47: 25 | EP47: 25 | EQ47: 25 | ER47: 25 | ES47: 25 | ET47: 25 | EU47: 25 | EV47: 25 | EW47: 25 | EX47: 25 | EY47: 25 | EZ47: 25 | FA47: 25 | FB47: 25 | FC47: 25 | FD47: 25 | FE47: 25 | FF47: 25 | FG47: 25 | FH47: 25 | FI47: 25 | FJ47: 25 | FK47: 25 | FL47: 25 | FM47: 25 | FN47: 25 | FO47: 25 | FP47: 25 | FQ47: 25 | FR47: 25 | FS47: 25 | FT47: 25 | FU47: 25 | FV47: 25 | FW47: 25 | FX47: 25 | FY47: 25 | FZ47: 25 | GA47: 25 | GB47: 25 | GC47: 25 | GD47: 25 | GE47: 25 | GF47: 25 | GG47: 25 | GH47: 25 | GI47: 25 | GJ47: 25 | GK47: 25 | GL47: 25 | GM47: 25 | GN47: 25 | GO47: 25 | GP47: 25 | GQ47: 25 | GR47: 25 | GS47: 25 | GT47: 25 | GU47: =GT47+GU9 -> 25 | GV47: 25 | GW47: 25 | GX47: 25 | GY47: 25 | GZ47: 25 | HA47: 25 | HB47: 25 | HC47: 25 | HD47: 25 | HE47: 25 | HF47: 25 | HG47: 25 | HH47: 25 | HI47: 25 | HJ47: 25 | HK47: 25 | HL47: 25 | HM47: 25 | HN47: 25 | HO47: 25 | HP47: 25 | HQ47: 25 | HR47: 25 | HS47: 25 | HT47: 25 | HU47: 25 | HV47: 25 | HW47: 25 | HX47: 25 | HY47: 25 | HZ47: 25 | IA47: 25 | IB47: 25 | IC47: 25 | ID47: 25 | IE47: 25 | IF47: 25 | IG47: 25 | IH47: 25 | II47: 25 | IJ47: 25 | IK47: 25 | IL47: 25 | IM47: 25 | IN47: 25 | IO47: 25 | IP47: 25 | IQ47: 25 | IR47: 25 | IS47: 25 | IT47: 25 | IU47: 25 | IV47: 25 | IW47: 25 | IX47: 25 | IY47: 25 | IZ47: 25
D48: Life Counter - Periods | E48: Monts/Per | F48: =G6 -> 12 | G48: =months/F48 -> 1 | I48: Year | K48: =ROUNDUP(K47/$G$48,0) -> 0 | L48: =ROUNDUP(L47/$G$48,0) -> 0 | M48: 0 | N48: 1 | O48: 2 | P48: 3 | Q48: 4 | R48: 5 | S48: 6 | T48: 7 | U48: 8 | V48: 9 | W48: 10 | X48: 11 | Y48: 12 | Z48: 13 | AA48: 14 | AB48: 15 | AC48: 16 | AD48: 17 | AE48: 18 | AF48: 19 | AG48: 20 | AH48: 21 | AI48: 22 | AJ48: 23 | AK48: 24 | AL48: 25 | AM48: 25 | AN48: 25 | AO48: 25 | AP48: 25 | AQ48: 25 | AR48: 25 | AS48: 25 | AT48: 25 | AU48: 25 | AV48: 25 | AW48: 25 | AX48: 25 | AY48: 25 | AZ48: 25 | BA48: 25 | BB48: 25 | BC48: 25 | BD48: 25 | BE48: 25 | BF48: 25 | BG48: 25 | BH48: 25 | BI48: 25 | BJ48: 25 | BK48: 25 | BL48: 25 | BM48: 25 | BN48: 25 | BO48: 25 | BP48: 25 | BQ48: 25 | BR48: 25 | BS48: 25 | BT48: 25 | BU48: 25 | BV48: 25 | BW48: 25 | BX48: =ROUNDUP(BX47/$G$48,0) -> 25 | BY48: 25 | BZ48: 25 | CA48: 25 | CB48: 25 | CC48: 25 | CD48: 25 | CE48: 25 | CF48: 25 | CG48: 25 | CH48: 25 | CI48: 25 | CJ48: 25 | CK48: 25 | CL48: 25 | CM48: 25 | CN48: 25 | CO48: 25 | CP48: 25 | CQ48: 25 | CR48: 25 | CS48: 25 | CT48: 25 | CU48: 25 | CV48: 25 | CW48: 25 | CX48: 25 | CY48: 25 | CZ48: 25 | DA48: 25 | DB48: 25 | DC48: 25 | DD48: 25 | DE48: 25 | DF48: 25 | DG48: 25 | DH48: 25 | DI48: 25 | DJ48: 25 | DK48: 25 | DL48: 25 | DM48: 25 | DN48: 25 | DO48: 25 | DP48: 25 | DQ48: 25 | DR48: 25 | DS48: 25 | DT48: 25 | DU48: 25 | DV48: 25 | DW48: 25 | DX48: 25 | DY48: 25 | DZ48: 25 | EA48: 25 | EB48: 25 | EC48: 25 | ED48: 25 | EE48: 25 | EF48: 25 | EG48: 25 | EH48: 25 | EI48: 25 | EJ48: =ROUNDUP(EJ47/$G$48,0) -> 25 | EK48: 25 | EL48: 25 | EM48: 25 | EN48: 25 | EO48: 25 | EP48: 25 | EQ48: 25 | ER48: 25 | ES48: 25 | ET48: 25 | EU48: 25 | EV48: 25 | EW48: 25 | EX48: 25 | EY48: 25 | EZ48: 25 | FA48: 25 | FB48: 25 | FC48: 25 | FD48: 25 | FE48: 25 | FF48: 25 | FG48: 25 | FH48: 25 | FI48: 25 | FJ48: 25 | FK48: 25 | FL48: 25 | FM48: 25 | FN48: 25 | FO48: 25 | FP48: 25 | FQ48: 25 | FR48: 25 | FS48: 25 | FT48: 25 | FU48: 25 | FV48: 25 | FW48: 25 | FX48: 25 | FY48: 25 | FZ48: 25 | GA48: 25 | GB48: 25 | GC48: 25 | GD48: 25 | GE48: 25 | GF48: 25 | GG48: 25 | GH48: 25 | GI48: 25 | GJ48: 25 | GK48: 25 | GL48: 25 | GM48: 25 | GN48: 25 | GO48: 25 | GP48: 25 | GQ48: 25 | GR48: 25 | GS48: 25 | GT48: 25 | GU48: 25 | GV48: =ROUNDUP(GV47/$G$48,0) -> 25 | GW48: 25 | GX48: 25 | GY48: 25 | GZ48: 25 | HA48: 25 | HB48: 25 | HC48: 25 | HD48: 25 | HE48: 25 | HF48: 25 | HG48: 25 | HH48: 25 | HI48: 25 | HJ48: 25 | HK48: 25 | HL48: 25 | HM48: 25 | HN48: 25 | HO48: 25 | HP48: 25 | HQ48: 25 | HR48: 25 | HS48: 25 | HT48: 25 | HU48: 25 | HV48: 25 | HW48: 25 | HX48: 25 | HY48: 25 | HZ48: 25 | IA48: 25 | IB48: =ROUNDUP(IB47/$G$48,0) -> 25 | IC48: 25 | ID48: 25 | IE48: 25 | IF48: 25 | IG48: 25 | IH48: 25 | II48: 25 | IJ48: 25 | IK48: 25 | IL48: 25 | IM48: 25 | IN48: 25 | IO48: 25 | IP48: 25 | IQ48: 25 | IR48: 25 | IS48: 25 | IT48: 25 | IU48: 25 | IV48: 25 | IW48: 25 | IX48: 25 | IY48: 25 | IZ48: 25
D49: Debt Repayment Periods | E49: Years | F49: =InputC!F34 -> 20 | G49: =F49*G48 -> 20 | H49: =SUM(K49:XFD49) -> 20 | I49: Flag | K49: =AND(K47,K47<=$G$49)*1 -> 0 | L49: =AND(L47,L47<=$G$49)*1 -> 0 | M49: 0 | N49: 1 | O49: 1 | P49: 1 | Q49: 1 | R49: 1 | S49: 1 | T49: 1 | U49: 1 | V49: 1 | W49: 1 | X49: 1 | Y49: 1 | Z49: 1 | AA49: 1 | AB49: 1 | AC49: 1 | AD49: 1 | AE49: 1 | AF49: 1 | AG49: 1 | AH49: 0 | AI49: 0 | AJ49: 0 | AK49: 0 | AL49: 0 | AM49: 0 | AN49: 0 | AO49: 0 | AP49: 0 | AQ49: 0 | AR49: 0 | AS49: 0 | AT49: 0 | AU49: 0 | AV49: 0 | AW49: 0 | AX49: 0 | AY49: 0 | AZ49: 0 | BA49: 0 | BB49: 0 | BC49: 0 | BD49: 0 | BE49: 0 | BF49: 0 | BG49: 0 | BH49: 0 | BI49: 0 | BJ49: 0 | BK49: 0 | BL49: 0 | BM49: 0 | BN49: 0 | BO49: 0 | BP49: 0 | BQ49: 0 | BR49: 0 | BS49: 0 | BT49: 0 | BU49: 0 | BV49: 0 | BW49: 0 | BX49: =AND(BX47,BX47<=$G$49)*1 -> 0 | BY49: 0 | BZ49: 0 | CA49: 0 | CB49: 0 | CC49: 0 | CD49: 0 | CE49: 0 | CF49: 0 | CG49: 0 | CH49: 0 | CI49: 0 | CJ49: 0 | CK49: 0 | CL49: 0 | CM49: 0 | CN49: 0 | CO49: 0 | CP49: 0 | CQ49: 0 | CR49: 0 | CS49: 0 | CT49: 0 | CU49: 0 | CV49: 0 | CW49: 0 | CX49: 0 | CY49: 0 | CZ49: 0 | DA49: 0 | DB49: 0 | DC49: 0 | DD49: 0 | DE49: 0 | DF49: 0 | DG49: 0 | DH49: 0 | DI49: 0 | DJ49: 0 | DK49: 0 | DL49: 0 | DM49: 0 | DN49: 0 | DO49: 0 | DP49: 0 | DQ49: 0 | DR49: 0 | DS49: 0 | DT49: 0 | DU49: 0 | DV49: 0 | DW49: 0 | DX49: 0 | DY49: 0 | DZ49: 0 | EA49: 0 | EB49: 0 | EC49: 0 | ED49: 0 | EE49: 0 | EF49: 0 | EG49: 0 | EH49: 0 | EI49: 0 | EJ49: =AND(EJ47,EJ47<=$G$49)*1 -> 0 | EK49: 0 | EL49: 0 | EM49: 0 | EN49: 0 | EO49: 0 | EP49: 0 | EQ49: 0 | ER49: 0 | ES49: 0 | ET49: 0 | EU49: 0 | EV49: 0 | EW49: 0 | EX49: 0 | EY49: 0 | EZ49: 0 | FA49: 0 | FB49: 0 | FC49: 0 | FD49: 0 | FE49: 0 | FF49: 0 | FG49: 0 | FH49: 0 | FI49: 0 | FJ49: 0 | FK49: 0 | FL49: 0 | FM49: 0 | FN49: 0 | FO49: 0 | FP49: 0 | FQ49: 0 | FR49: 0 | FS49: 0 | FT49: 0 | FU49: 0 | FV49: 0 | FW49: 0 | FX49: 0 | FY49: 0 | FZ49: 0 | GA49: 0 | GB49: 0 | GC49: 0 | GD49: 0 | GE49: 0 | GF49: 0 | GG49: 0 | GH49: 0 | GI49: 0 | GJ49: 0 | GK49: 0 | GL49: 0 | GM49: 0 | GN49: 0 | GO49: 0 | GP49: 0 | GQ49: 0 | GR49: 0 | GS49: 0 | GT49: 0 | GU49: 0 | GV49: =AND(GV47,GV47<=$G$49)*1 -> 0 | GW49: 0 | GX49: 0 | GY49: 0 | GZ49: 0 | HA49: 0 | HB49: 0 | HC49: 0 | HD49: 0 | HE49: 0 | HF49: 0 | HG49: 0 | HH49: 0 | HI49: 0 | HJ49: 0 | HK49: 0 | HL49: 0 | HM49: 0 | HN49: 0 | HO49: 0 | HP49: 0 | HQ49: 0 | HR49: 0 | HS49: 0 | HT49: 0 | HU49: 0 | HV49: 0 | HW49: 0 | HX49: 0 | HY49: 0 | HZ49: 0 | IA49: 0 | IB49: =AND(IB47,IB47<=$G$49)*1 -> 0 | IC49: 0 | ID49: 0 | IE49: 0 | IF49: 0 | IG49: 0 | IH49: 0 | II49: 0 | IJ49: 0 | IK49: 0 | IL49: 0 | IM49: 0 | IN49: 0 | IO49: 0 | IP49: 0 | IQ49: 0 | IR49: 0 | IS49: 0 | IT49: 0 | IU49: 0 | IV49: 0 | IW49: 0 | IX49: 0 | IY49: 0 | IZ49: 0
C51: Debt Repayment
D52: Periodic Interest Rate | E52: % p.a | F52: =InputC!F36+InputC!F37 -> 0.045 | G52: =F52/G48 -> 0.045 | I52: % p.p. | K52: =$F$52/months*K6 -> 0.045 | L52: 0.045 | M52: 0.045 | N52: 0.045 | O52: 0.045 | P52: 0.045 | Q52: 0.045 | R52: 0.045 | S52: 0.045 | T52: 0.045 | U52: 0.045 | V52: 0.045 | W52: 0.045 | X52: 0.045 | Y52: 0.045 | Z52: 0.045 | AA52: 0.045 | AB52: 0.045 | AC52: 0.045 | AD52: 0.045 | AE52: 0.045 | AF52: 0.045 | AG52: 0.045 | AH52: 0.045 | AI52: 0.045 | AJ52: 0.045 | AK52: 0.045 | AL52: 0.045 | AM52: 0.045 | AN52: 0.045 | AO52: 0.045 | AP52: 0.045 | AQ52: 0.045 | AR52: 0.045 | AS52: 0.045 | AT52: 0.045 | AU52: 0.045 | AV52: 0.045 | AW52: 0.045 | AX52: 0.045 | AY52: 0.045 | AZ52: 0.045 | BA52: 0.045 | BB52: 0.045 | BC52: 0.045 | BD52: 0.045 | BE52: 0.045 | BF52: 0.045 | BG52: 0.045 | BH52: 0.045 | BI52: 0.045 | BJ52: 0.045 | BK52: 0.045 | BL52: 0.045 | BM52: 0.045 | BN52: 0.045 | BO52: 0.045 | BP52: 0.045 | BQ52: 0.045 | BR52: 0.045 | BS52: 0.045 | BT52: 0.045 | BU52: 0.045 | BV52: 0.045 | BW52: =$F$52/months*BW6 -> 0.045 | BX52: 0.045 | BY52: 0.045 | BZ52: 0.045 | CA52: 0.045 | CB52: 0.045 | CC52: 0.045 | CD52: 0.045 | CE52: 0.045 | CF52: 0.045 | CG52: 0.045 | CH52: 0.045 | CI52: 0.045 | CJ52: 0.045 | CK52: 0.045 | CL52: 0.045 | CM52: 0.045 | CN52: 0.045 | CO52: 0.045 | CP52: 0.045 | CQ52: 0.045 | CR52: 0.045 | CS52: 0.045 | CT52: 0.045 | CU52: 0.045 | CV52: 0.045 | CW52: 0.045 | CX52: 0.045 | CY52: 0.045 | CZ52: 0.045 | DA52: 0.045 | DB52: 0.045 | DC52: 0.045 | DD52: 0.045 | DE52: 0.045 | DF52: 0.045 | DG52: 0.045 | DH52: 0.045 | DI52: 0.045 | DJ52: 0.045 | DK52: 0.045 | DL52: 0.045 | DM52: 0.045 | DN52: 0.045 | DO52: 0.045 | DP52: 0.045 | DQ52: 0.045 | DR52: 0.045 | DS52: 0.045 | DT52: 0.045 | DU52: 0.045 | DV52: 0.045 | DW52: 0.045 | DX52: 0.045 | DY52: 0.045 | DZ52: 0.045 | EA52: 0.045 | EB52: 0.045 | EC52: 0.045 | ED52: 0.045 | EE52: 0.045 | EF52: 0.045 | EG52: 0.045 | EH52: 0.045 | EI52: =$F$52/months*EI6 -> 0.045 | EJ52: 0.045 | EK52: 0.045 | EL52: 0.045 | EM52: 0.045 | EN52: 0.045 | EO52: 0.045 | EP52: 0.045 | EQ52: 0.045 | ER52: 0.045 | ES52: 0.045 | ET52: 0.045 | EU52: 0.045 | EV52: 0.045 | EW52: 0.045 | EX52: 0.045 | EY52: 0.045 | EZ52: 0.045 | FA52: 0.045 | FB52: 0.045 | FC52: 0.045 | FD52: 0.045 | FE52: 0.045 | FF52: 0.045 | FG52: 0.045 | FH52: 0.045 | FI52: 0.045 | FJ52: 0.045 | FK52: 0.045 | FL52: 0.045 | FM52: 0.045 | FN52: 0.045 | FO52: 0.045 | FP52: 0.045 | FQ52: 0.045 | FR52: 0.045 | FS52: 0.045 | FT52: 0.045 | FU52: 0.045 | FV52: 0.045 | FW52: 0.045 | FX52: 0.045 | FY52: 0.045 | FZ52: 0.045 | GA52: 0.045 | GB52: 0.045 | GC52: 0.045 | GD52: 0.045 | GE52: 0.045 | GF52: 0.045 | GG52: 0.045 | GH52: 0.045 | GI52: 0.045 | GJ52: 0.045 | GK52: 0.045 | GL52: 0.045 | GM52: 0.045 | GN52: 0.045 | GO52: 0.045 | GP52: 0.045 | GQ52: 0.045 | GR52: 0.045 | GS52: 0.045 | GT52: 0.045 | GU52: =$F$52/months*GU6 -> 0.045 | GV52: 0.045 | GW52: 0.045 | GX52: 0.045 | GY52: 0.045 | GZ52: 0.045 | HA52: 0.045 | HB52: 0.045 | HC52: 0.045 | HD52: 0.045 | HE52: 0.045 | HF52: 0.045 | HG52: 0.045 | HH52: 0.045 | HI52: 0.045 | HJ52: 0.045 | HK52: 0.045 | HL52: 0.045 | HM52: 0.045 | HN52: 0.045 | HO52: 0.045 | HP52: 0.045 | HQ52: 0.045 | HR52: 0.045 | HS52: 0.045 | HT52: 0.045 | HU52: 0.045 | HV52: 0.045 | HW52: 0.045 | HX52: 0.045 | HY52: 0.045 | HZ52: 0.045 | IA52: 0.045 | IB52: 0.045 | IC52: 0.045 | ID52: 0.045 | IE52: 0.045 | IF52: 0.045 | IG52: 0.045 | IH52: 0.045 | II52: 0.045 | IJ52: 0.045 | IK52: 0.045 | IL52: 0.045 | IM52: 0.045 | IN52: 0.045 | IO52: 0.045 | IP52: 0.045 | IQ52: 0.045 | IR52: 0.045 | IS52: 0.045 | IT52: 0.045 | IU52: 0.045 | IV52: 0.045 | IW52: 0.045 | IX52: 0.045 | IY52: 0.045 | IZ52: 0.045
D53: Level Debt Service with PMT | E53: EUR | G53: =PMT(G52,G49,-H40) -> 86101.28164 | I53: EUR | K53: =$G$53*K49 -> 0 | L53: =$G$53*L49 -> 0 | M53: 0 | N53: 86101.28164 | O53: 86101.28164 | P53: 86101.28164 | Q53: 86101.28164 | R53: 86101.28164 | S53: 86101.28164 | T53: 86101.28164 | U53: 86101.28164 | V53: 86101.28164 | W53: 86101.28164 | X53: 86101.28164 | Y53: 86101.28164 | Z53: 86101.28164 | AA53: 86101.28164 | AB53: 86101.28164 | AC53: 86101.28164 | AD53: 86101.28164 | AE53: 86101.28164 | AF53: 86101.28164 | AG53: 86101.28164 | AH53: 0 | AI53: 0 | AJ53: 0 | AK53: 0 | AL53: 0 | AM53: 0 | AN53: 0 | AO53: 0 | AP53: 0 | AQ53: 0 | AR53: 0 | AS53: 0 | AT53: 0 | AU53: 0 | AV53: 0 | AW53: 0 | AX53: 0 | AY53: 0 | AZ53: 0 | BA53: 0 | BB53: 0 | BC53: 0 | BD53: 0 | BE53: 0 | BF53: 0 | BG53: 0 | BH53: 0 | BI53: 0 | BJ53: 0 | BK53: 0 | BL53: 0 | BM53: 0 | BN53: 0 | BO53: 0 | BP53: 0 | BQ53: 0 | BR53: 0 | BS53: 0 | BT53: 0 | BU53: 0 | BV53: 0 | BW53: 0 | BX53: =$G$53*BX49 -> 0 | BY53: 0 | BZ53: 0 | CA53: 0 | CB53: 0 | CC53: 0 | CD53: 0 | CE53: 0 | CF53: 0 | CG53: 0 | CH53: 0 | CI53: 0 | CJ53: 0 | CK53: 0 | CL53: 0 | CM53: 0 | CN53: 0 | CO53: 0 | CP53: 0 | CQ53: 0 | CR53: 0 | CS53: 0 | CT53: 0 | CU53: 0 | CV53: 0 | CW53: 0 | CX53: 0 | CY53: 0 | CZ53: 0 | DA53: 0 | DB53: 0 | DC53: 0 | DD53: 0 | DE53: 0 | DF53: 0 | DG53: 0 | DH53: 0 | DI53: 0 | DJ53: 0 | DK53: 0 | DL53: 0 | DM53: 0 | DN53: 0 | DO53: 0 | DP53: 0 | DQ53: 0 | DR53: 0 | DS53: 0 | DT53: 0 | DU53: 0 | DV53: 0 | DW53: 0 | DX53: 0 | DY53: 0 | DZ53: 0 | EA53: 0 | EB53: 0 | EC53: 0 | ED53: 0 | EE53: 0 | EF53: 0 | EG53: 0 | EH53: 0 | EI53: 0 | EJ53: =$G$53*EJ49 -> 0 | EK53: 0 | EL53: 0 | EM53: 0 | EN53: 0 | EO53: 0 | EP53: 0 | EQ53: 0 | ER53: 0 | ES53: 0 | ET53: 0 | EU53: 0 | EV53: 0 | EW53: 0 | EX53: 0 | EY53: 0 | EZ53: 0 | FA53: 0 | FB53: 0 | FC53: 0 | FD53: 0 | FE53: 0 | FF53: 0 | FG53: 0 | FH53: 0 | FI53: 0 | FJ53: 0 | FK53: 0 | FL53: 0 | FM53: 0 | FN53: 0 | FO53: 0 | FP53: 0 | FQ53: 0 | FR53: 0 | FS53: 0 | FT53: 0 | FU53: 0 | FV53: 0 | FW53: 0 | FX53: 0 | FY53: 0 | FZ53: 0 | GA53: 0 | GB53: 0 | GC53: 0 | GD53: 0 | GE53: 0 | GF53: 0 | GG53: 0 | GH53: 0 | GI53: 0 | GJ53: 0 | GK53: 0 | GL53: 0 | GM53: 0 | GN53: 0 | GO53: 0 | GP53: 0 | GQ53: 0 | GR53: 0 | GS53: 0 | GT53: 0 | GU53: 0 | GV53: =$G$53*GV49 -> 0 | GW53: 0 | GX53: 0 | GY53: 0 | GZ53: 0 | HA53: 0 | HB53: 0 | HC53: 0 | HD53: 0 | HE53: 0 | HF53: 0 | HG53: 0 | HH53: 0 | HI53: 0 | HJ53: 0 | HK53: 0 | HL53: 0 | HM53: 0 | HN53: 0 | HO53: 0 | HP53: 0 | HQ53: 0 | HR53: 0 | HS53: 0 | HT53: 0 | HU53: 0 | HV53: 0 | HW53: 0 | HX53: 0 | HY53: 0 | HZ53: 0 | IA53: 0 | IB53: =$G$53*IB49 -> 0 | IC53: 0 | ID53: 0 | IE53: 0 | IF53: 0 | IG53: 0 | IH53: 0 | II53: 0 | IJ53: 0 | IK53: 0 | IL53: 0 | IM53: 0 | IN53: 0 | IO53: 0 | IP53: 0 | IQ53: 0 | IR53: 0 | IS53: 0 | IT53: 0 | IU53: 0 | IV53: 0 | IW53: 0 | IX53: 0 | IY53: 0 | IZ53: 0
C55: Scheduled Debt
D56: Opening Balance | I56: EUR | K56: =J59 -> 0 | L56: =K59 -> 373333.3333 | M56: 746666.6667 | N56: 1120000 | O56: 1084298.718 | P56: 1046990.879 | Q56: 1008004.187 | R56: 967263.0937 | S56: 924688.6513 | T56: 880198.359 | U56: 833706.0035 | V56: 785121.492 | W56: 734350.6775 | X56: 681295.1763 | Y56: 625852.1776 | Z56: 567914.244 | AA56: 507369.1033 | AB56: 444099.4313 | AC56: 377982.6241 | AD56: 308890.5605 | AE56: 236689.3541 | AF56: 161239.0934 | AG56: 82393.57095 | AH56: 2.182787284e-10 | AI56: 2.182787284e-10 | AJ56: 2.182787284e-10 | AK56: 2.182787284e-10 | AL56: 2.182787284e-10 | AM56: 2.182787284e-10 | AN56: 2.182787284e-10 | AO56: 2.182787284e-10 | AP56: 2.182787284e-10 | AQ56: 2.182787284e-10 | AR56: 2.182787284e-10 | AS56: 2.182787284e-10 | AT56: 2.182787284e-10 | AU56: 2.182787284e-10 | AV56: 2.182787284e-10 | AW56: 2.182787284e-10 | AX56: 2.182787284e-10 | AY56: 2.182787284e-10 | AZ56: 2.182787284e-10 | BA56: 2.182787284e-10 | BB56: 2.182787284e-10 | BC56: 2.182787284e-10 | BD56: 2.182787284e-10 | BE56: 2.182787284e-10 | BF56: 2.182787284e-10 | BG56: 2.182787284e-10 | BH56: 2.182787284e-10 | BI56: 2.182787284e-10 | BJ56: 2.182787284e-10 | BK56: 2.182787284e-10 | BL56: 2.182787284e-10 | BM56: 2.182787284e-10 | BN56: 2.182787284e-10 | BO56: 2.182787284e-10 | BP56: 2.182787284e-10 | BQ56: 2.182787284e-10 | BR56: 2.182787284e-10 | BS56: 2.182787284e-10 | BT56: 2.182787284e-10 | BU56: 2.182787284e-10 | BV56: 2.182787284e-10 | BW56: 2.182787284e-10 | BX56: =BW59 -> 2.182787284e-10 | BY56: 2.182787284e-10 | BZ56: 2.182787284e-10 | CA56: 2.182787284e-10 | CB56: 2.182787284e-10 | CC56: 2.182787284e-10 | CD56: 2.182787284e-10 | CE56: 2.182787284e-10 | CF56: 2.182787284e-10 | CG56: 2.182787284e-10 | CH56: 2.182787284e-10 | CI56: 2.182787284e-10 | CJ56: 2.182787284e-10 | CK56: 2.182787284e-10 | CL56: 2.182787284e-10 | CM56: 2.182787284e-10 | CN56: 2.182787284e-10 | CO56: 2.182787284e-10 | CP56: 2.182787284e-10 | CQ56: 2.182787284e-10 | CR56: 2.182787284e-10 | CS56: 2.182787284e-10 | CT56: 2.182787284e-10 | CU56: 2.182787284e-10 | CV56: 2.182787284e-10 | CW56: 2.182787284e-10 | CX56: 2.182787284e-10 | CY56: 2.182787284e-10 | CZ56: 2.182787284e-10 | DA56: 2.182787284e-10 | DB56: 2.182787284e-10 | DC56: 2.182787284e-10 | DD56: 2.182787284e-10 | DE56: 2.182787284e-10 | DF56: 2.182787284e-10 | DG56: 2.182787284e-10 | DH56: 2.182787284e-10 | DI56: 2.182787284e-10 | DJ56: 2.182787284e-10 | DK56: 2.182787284e-10 | DL56: 2.182787284e-10 | DM56: 2.182787284e-10 | DN56: 2.182787284e-10 | DO56: 2.182787284e-10 | DP56: 2.182787284e-10 | DQ56: 2.182787284e-10 | DR56: 2.182787284e-10 | DS56: 2.182787284e-10 | DT56: 2.182787284e-10 | DU56: 2.182787284e-10 | DV56: 2.182787284e-10 | DW56: 2.182787284e-10 | DX56: 2.182787284e-10 | DY56: 2.182787284e-10 | DZ56: 2.182787284e-10 | EA56: 2.182787284e-10 | EB56: 2.182787284e-10 | EC56: 2.182787284e-10 | ED56: 2.182787284e-10 | EE56: 2.182787284e-10 | EF56: 2.182787284e-10 | EG56: 2.182787284e-10 | EH56: 2.182787284e-10 | EI56: 2.182787284e-10 | EJ56: =EI59 -> 2.182787284e-10 | EK56: 2.182787284e-10 | EL56: 2.182787284e-10 | EM56: 2.182787284e-10 | EN56: 2.182787284e-10 | EO56: 2.182787284e-10 | EP56: 2.182787284e-10 | EQ56: 2.182787284e-10 | ER56: 2.182787284e-10 | ES56: 2.182787284e-10 | ET56: 2.182787284e-10 | EU56: 2.182787284e-10 | EV56: 2.182787284e-10 | EW56: 2.182787284e-10 | EX56: 2.182787284e-10 | EY56: 2.182787284e-10 | EZ56: 2.182787284e-10 | FA56: 2.182787284e-10 | FB56: 2.182787284e-10 | FC56: 2.182787284e-10 | FD56: 2.182787284e-10 | FE56: 2.182787284e-10 | FF56: 2.182787284e-10 | FG56: 2.182787284e-10 | FH56: 2.182787284e-10 | FI56: 2.182787284e-10 | FJ56: 2.182787284e-10 | FK56: 2.182787284e-10 | FL56: 2.182787284e-10 | FM56: 2.182787284e-10 | FN56: 2.182787284e-10 | FO56: 2.182787284e-10 | FP56: 2.182787284e-10 | FQ56: 2.182787284e-10 | FR56: 2.182787284e-10 | FS56: 2.182787284e-10 | FT56: 2.182787284e-10 | FU56: 2.182787284e-10 | FV56: 2.182787284e-10 | FW56: 2.182787284e-10 | FX56: 2.182787284e-10 | FY56: 2.182787284e-10 | FZ56: 2.182787284e-10 | GA56: 2.182787284e-10 | GB56: 2.182787284e-10 | GC56: 2.182787284e-10 | GD56: 2.182787284e-10 | GE56: 2.182787284e-10 | GF56: 2.182787284e-10 | GG56: 2.182787284e-10 | GH56: 2.182787284e-10 | GI56: 2.182787284e-10 | GJ56: 2.182787284e-10 | GK56: 2.182787284e-10 | GL56: 2.182787284e-10 | GM56: 2.182787284e-10 | GN56: 2.182787284e-10 | GO56: 2.182787284e-10 | GP56: 2.182787284e-10 | GQ56: 2.182787284e-10 | GR56: 2.182787284e-10 | GS56: 2.182787284e-10 | GT56: 2.182787284e-10 | GU56: 2.182787284e-10 | GV56: =GU59 -> 2.182787284e-10 | GW56: 2.182787284e-10 | GX56: 2.182787284e-10 | GY56: 2.182787284e-10 | GZ56: 2.182787284e-10 | HA56: 2.182787284e-10 | HB56: 2.182787284e-10 | HC56: 2.182787284e-10 | HD56: 2.182787284e-10 | HE56: 2.182787284e-10 | HF56: 2.182787284e-10 | HG56: 2.182787284e-10 | HH56: 2.182787284e-10 | HI56: 2.182787284e-10 | HJ56: 2.182787284e-10 | HK56: 2.182787284e-10 | HL56: 2.182787284e-10 | HM56: 2.182787284e-10 | HN56: 2.182787284e-10 | HO56: 2.182787284e-10 | HP56: 2.182787284e-10 | HQ56: 2.182787284e-10 | HR56: 2.182787284e-10 | HS56: 2.182787284e-10 | HT56: 2.182787284e-10 | HU56: 2.182787284e-10 | HV56: 2.182787284e-10 | HW56: 2.182787284e-10 | HX56: 2.182787284e-10 | HY56: 2.182787284e-10 | HZ56: 2.182787284e-10 | IA56: 2.182787284e-10 | IB56: 2.182787284e-10 | IC56: 2.182787284e-10 | ID56: 2.182787284e-10 | IE56: 2.182787284e-10 | IF56: 2.182787284e-10 | IG56: 2.182787284e-10 | IH56: 2.182787284e-10 | II56: 2.182787284e-10 | IJ56: 2.182787284e-10 | IK56: 2.182787284e-10 | IL56: 2.182787284e-10 | IM56: 2.182787284e-10 | IN56: 2.182787284e-10 | IO56: 2.182787284e-10 | IP56: 2.182787284e-10 | IQ56: 2.182787284e-10 | IR56: 2.182787284e-10 | IS56: 2.182787284e-10 | IT56: 2.182787284e-10 | IU56: 2.182787284e-10 | IV56: 2.182787284e-10 | IW56: 2.182787284e-10 | IX56: 2.182787284e-10 | IY56: 2.182787284e-10 | IZ56: 2.182787284e-10
D57: Add Debt Issued | I57: EUR | K57: =K40 -> 373333.3333 | L57: =L40 -> 373333.3333 | M57: 373333.3333 | N57: 0 | O57: 0 | P57: 0 | Q57: 0 | R57: 0 | S57: 0 | T57: 0 | U57: 0 | V57: 0 | W57: 0 | X57: 0 | Y57: 0 | Z57: 0 | AA57: 0 | AB57: 0 | AC57: 0 | AD57: 0 | AE57: 0 | AF57: 0 | AG57: 0 | AH57: 0 | AI57: 0 | AJ57: 0 | AK57: 0 | AL57: 0 | AM57: 0 | AN57: 0 | AO57: 0 | AP57: 0 | AQ57: 0 | AR57: 0 | AS57: 0 | AT57: 0 | AU57: 0 | AV57: 0 | AW57: 0 | AX57: 0 | AY57: 0 | AZ57: 0 | BA57: 0 | BB57: 0 | BC57: 0 | BD57: 0 | BE57: 0 | BF57: 0 | BG57: 0 | BH57: 0 | BI57: 0 | BJ57: 0 | BK57: 0 | BL57: 0 | BM57: 0 | BN57: 0 | BO57: 0 | BP57: 0 | BQ57: 0 | BR57: 0 | BS57: 0 | BT57: 0 | BU57: 0 | BV57: 0 | BW57: 0 | BX57: =BX40 -> 0 | BY57: 0 | BZ57: 0 | CA57: 0 | CB57: 0 | CC57: 0 | CD57: 0 | CE57: 0 | CF57: 0 | CG57: 0 | CH57: 0 | CI57: 0 | CJ57: 0 | CK57: 0 | CL57: 0 | CM57: 0 | CN57: 0 | CO57: 0 | CP57: 0 | CQ57: 0 | CR57: 0 | CS57: 0 | CT57: 0 | CU57: 0 | CV57: 0 | CW57: 0 | CX57: 0 | CY57: 0 | CZ57: 0 | DA57: 0 | DB57: 0 | DC57: 0 | DD57: 0 | DE57: 0 | DF57: 0 | DG57: 0 | DH57: 0 | DI57: 0 | DJ57: 0 | DK57: 0 | DL57: 0 | DM57: 0 | DN57: 0 | DO57: 0 | DP57: 0 | DQ57: 0 | DR57: 0 | DS57: 0 | DT57: 0 | DU57: 0 | DV57: 0 | DW57: 0 | DX57: 0 | DY57: 0 | DZ57: 0 | EA57: 0 | EB57: 0 | EC57: 0 | ED57: 0 | EE57: 0 | EF57: 0 | EG57: 0 | EH57: 0 | EI57: 0 | EJ57: =EJ40 -> 0 | EK57: 0 | EL57: 0 | EM57: 0 | EN57: 0 | EO57: 0 | EP57: 0 | EQ57: 0 | ER57: 0 | ES57: 0 | ET57: 0 | EU57: 0 | EV57: 0 | EW57: 0 | EX57: 0 | EY57: 0 | EZ57: 0 | FA57: 0 | FB57: 0 | FC57: 0 | FD57: 0 | FE57: 0 | FF57: 0 | FG57: 0 | FH57: 0 | FI57: 0 | FJ57: 0 | FK57: 0 | FL57: 0 | FM57: 0 | FN57: 0 | FO57: 0 | FP57: 0 | FQ57: 0 | FR57: 0 | FS57: 0 | FT57: 0 | FU57: 0 | FV57: 0 | FW57: 0 | FX57: 0 | FY57: 0 | FZ57: 0 | GA57: 0 | GB57: 0 | GC57: 0 | GD57: 0 | GE57: 0 | GF57: 0 | GG57: 0 | GH57: 0 | GI57: 0 | GJ57: 0 | GK57: 0 | GL57: 0 | GM57: 0 | GN57: 0 | GO57: 0 | GP57: 0 | GQ57: 0 | GR57: 0 | GS57: 0 | GT57: 0 | GU57: 0 | GV57: =GV40 -> 0 | GW57: 0 | GX57: 0 | GY57: 0 | GZ57: 0 | HA57: 0 | HB57: 0 | HC57: 0 | HD57: 0 | HE57: 0 | HF57: 0 | HG57: 0 | HH57: 0 | HI57: 0 | HJ57: 0 | HK57: 0 | HL57: 0 | HM57: 0 | HN57: 0 | HO57: 0 | HP57: 0 | HQ57: 0 | HR57: 0 | HS57: 0 | HT57: 0 | HU57: 0 | HV57: 0 | HW57: 0 | HX57: 0 | HY57: 0 | HZ57: 0 | IA57: 0 | IB57: 0 | IC57: 0 | ID57: 0 | IE57: 0 | IF57: 0 | IG57: 0 | IH57: 0 | II57: 0 | IJ57: 0 | IK57: 0 | IL57: 0 | IM57: 0 | IN57: 0 | IO57: 0 | IP57: 0 | IQ57: 0 | IR57: 0 | IS57: 0 | IT57: 0 | IU57: 0 | IV57: 0 | IW57: 0 | IX57: 0 | IY57: 0 | IZ57: 0
D58: Less: Debt Repaid | I58: EUR | K58: =(K53-K61)*K49 -> 0 | L58: =(L53-L61)*L49 -> 0 | M58: 0 | N58: 35701.28164 | O58: 37307.83932 | P58: 38986.69209 | Q58: 40741.09323 | R58: 42574.44243 | S58: 44490.29233 | T58: 46492.35549 | U58: 48584.51149 | V58: 50770.8145 | W58: 53055.50116 | X58: 55442.99871 | Y58: 57937.93365 | Z58: 60545.14066 | AA58: 63269.67199 | AB58: 66116.80723 | AC58: 69092.06356 | AD58: 72201.20642 | AE58: 75450.26071 | AF58: 78845.52244 | AG58: 82393.57095 | AH58: 0 | AI58: 0 | AJ58: 0 | AK58: 0 | AL58: 0 | AM58: 0 | AN58: 0 | AO58: 0 | AP58: 0 | AQ58: 0 | AR58: 0 | AS58: 0 | AT58: 0 | AU58: 0 | AV58: 0 | AW58: 0 | AX58: 0 | AY58: 0 | AZ58: 0 | BA58: 0 | BB58: 0 | BC58: 0 | BD58: 0 | BE58: 0 | BF58: 0 | BG58: 0 | BH58: 0 | BI58: 0 | BJ58: 0 | BK58: 0 | BL58: 0 | BM58: 0 | BN58: 0 | BO58: 0 | BP58: 0 | BQ58: 0 | BR58: 0 | BS58: 0 | BT58: 0 | BU58: 0 | BV58: 0 | BW58: 0 | BX58: =(BX53-BX61)*BX49 -> 0 | BY58: 0 | BZ58: 0 | CA58: 0 | CB58: 0 | CC58: 0 | CD58: 0 | CE58: 0 | CF58: 0 | CG58: 0 | CH58: 0 | CI58: 0 | CJ58: 0 | CK58: 0 | CL58: 0 | CM58: 0 | CN58: 0 | CO58: 0 | CP58: 0 | CQ58: 0 | CR58: 0 | CS58: 0 | CT58: 0 | CU58: 0 | CV58: 0 | CW58: 0 | CX58: 0 | CY58: 0 | CZ58: 0 | DA58: 0 | DB58: 0 | DC58: 0 | DD58: 0 | DE58: 0 | DF58: 0 | DG58: 0 | DH58: 0 | DI58: 0 | DJ58: 0 | DK58: 0 | DL58: 0 | DM58: 0 | DN58: 0 | DO58: 0 | DP58: 0 | DQ58: 0 | DR58: 0 | DS58: 0 | DT58: 0 | DU58: 0 | DV58: 0 | DW58: 0 | DX58: 0 | DY58: 0 | DZ58: 0 | EA58: 0 | EB58: 0 | EC58: 0 | ED58: 0 | EE58: 0 | EF58: 0 | EG58: 0 | EH58: 0 | EI58: 0 | EJ58: =(EJ53-EJ61)*EJ49 -> 0 | EK58: 0 | EL58: 0 | EM58: 0 | EN58: 0 | EO58: 0 | EP58: 0 | EQ58: 0 | ER58: 0 | ES58: 0 | ET58: 0 | EU58: 0 | EV58: 0 | EW58: 0 | EX58: 0 | EY58: 0 | EZ58: 0 | FA58: 0 | FB58: 0 | FC58: 0 | FD58: 0 | FE58: 0 | FF58: 0 | FG58: 0 | FH58: 0 | FI58: 0 | FJ58: 0 | FK58: 0 | FL58: 0 | FM58: 0 | FN58: 0 | FO58: 0 | FP58: 0 | FQ58: 0 | FR58: 0 | FS58: 0 | FT58: 0 | FU58: 0 | FV58: 0 | FW58: 0 | FX58: 0 | FY58: 0 | FZ58: 0 | GA58: 0 | GB58: 0 | GC58: 0 | GD58: 0 | GE58: 0 | GF58: 0 | GG58: 0 | GH58: 0 | GI58: 0 | GJ58: 0 | GK58: 0 | GL58: 0 | GM58: 0 | GN58: 0 | GO58: 0 | GP58: 0 | GQ58: 0 | GR58: 0 | GS58: 0 | GT58: 0 | GU58: 0 | GV58: =(GV53-GV61)*GV49 -> 0 | GW58: 0 | GX58: 0 | GY58: 0 | GZ58: 0 | HA58: 0 | HB58: 0 | HC58: 0 | HD58: 0 | HE58: 0 | HF58: 0 | HG58: 0 | HH58: 0 | HI58: 0 | HJ58: 0 | HK58: 0 | HL58: 0 | HM58: 0 | HN58: 0 | HO58: 0 | HP58: 0 | HQ58: 0 | HR58: 0 | HS58: 0 | HT58: 0 | HU58: 0 | HV58: 0 | HW58: 0 | HX58: 0 | HY58: 0 | HZ58: 0 | IA58: 0 | IB58: 0 | IC58: 0 | ID58: 0 | IE58: 0 | IF58: 0 | IG58: 0 | IH58: 0 | II58: 0 | IJ58: 0 | IK58: 0 | IL58: 0 | IM58: 0 | IN58: 0 | IO58: 0 | IP58: 0 | IQ58: 0 | IR58: 0 | IS58: 0 | IT58: 0 | IU58: 0 | IV58: 0 | IW58: 0 | IX58: 0 | IY58: 0 | IZ58: 0
D59: Closing Balance | I59: EUR | K59: =K56+K57-K58 -> 373333.3333 | L59: =L56+L57-L58 -> 746666.6667 | M59: 1120000 | N59: 1084298.718 | O59: 1046990.879 | P59: 1008004.187 | Q59: 967263.0937 | R59: 924688.6513 | S59: 880198.359 | T59: 833706.0035 | U59: 785121.492 | V59: 734350.6775 | W59: 681295.1763 | X59: 625852.1776 | Y59: 567914.244 | Z59: 507369.1033 | AA59: 444099.4313 | AB59: 377982.6241 | AC59: 308890.5605 | AD59: 236689.3541 | AE59: 161239.0934 | AF59: 82393.57095 | AG59: 2.182787284e-10 | AH59: 2.182787284e-10 | AI59: 2.182787284e-10 | AJ59: 2.182787284e-10 | AK59: 2.182787284e-10 | AL59: 2.182787284e-10 | AM59: 2.182787284e-10 | AN59: 2.182787284e-10 | AO59: 2.182787284e-10 | AP59: 2.182787284e-10 | AQ59: 2.182787284e-10 | AR59: 2.182787284e-10 | AS59: 2.182787284e-10 | AT59: 2.182787284e-10 | AU59: 2.182787284e-10 | AV59: 2.182787284e-10 | AW59: 2.182787284e-10 | AX59: 2.182787284e-10 | AY59: 2.182787284e-10 | AZ59: 2.182787284e-10 | BA59: 2.182787284e-10 | BB59: 2.182787284e-10 | BC59: 2.182787284e-10 | BD59: 2.182787284e-10 | BE59: 2.182787284e-10 | BF59: 2.182787284e-10 | BG59: 2.182787284e-10 | BH59: 2.182787284e-10 | BI59: 2.182787284e-10 | BJ59: 2.182787284e-10 | BK59: 2.182787284e-10 | BL59: 2.182787284e-10 | BM59: 2.182787284e-10 | BN59: 2.182787284e-10 | BO59: 2.182787284e-10 | BP59: 2.182787284e-10 | BQ59: 2.182787284e-10 | BR59: 2.182787284e-10 | BS59: 2.182787284e-10 | BT59: 2.182787284e-10 | BU59: 2.182787284e-10 | BV59: 2.182787284e-10 | BW59: 2.182787284e-10 | BX59: =BX56+BX57-BX58 -> 2.182787284e-10 | BY59: 2.182787284e-10 | BZ59: 2.182787284e-10 | CA59: 2.182787284e-10 | CB59: 2.182787284e-10 | CC59: 2.182787284e-10 | CD59: 2.182787284e-10 | CE59: 2.182787284e-10 | CF59: 2.182787284e-10 | CG59: 2.182787284e-10 | CH59: 2.182787284e-10 | CI59: 2.182787284e-10 | CJ59: 2.182787284e-10 | CK59: 2.182787284e-10 | CL59: 2.182787284e-10 | CM59: 2.182787284e-10 | CN59: 2.182787284e-10 | CO59: 2.182787284e-10 | CP59: 2.182787284e-10 | CQ59: 2.182787284e-10 | CR59: 2.182787284e-10 | CS59: 2.182787284e-10 | CT59: 2.182787284e-10 | CU59: 2.182787284e-10 | CV59: 2.182787284e-10 | CW59: 2.182787284e-10 | CX59: 2.182787284e-10 | CY59: 2.182787284e-10 | CZ59: 2.182787284e-10 | DA59: 2.182787284e-10 | DB59: 2.182787284e-10 | DC59: 2.182787284e-10 | DD59: 2.182787284e-10 | DE59: 2.182787284e-10 | DF59: 2.182787284e-10 | DG59: 2.182787284e-10 | DH59: 2.182787284e-10 | DI59: 2.182787284e-10 | DJ59: 2.182787284e-10 | DK59: 2.182787284e-10 | DL59: 2.182787284e-10 | DM59: 2.182787284e-10 | DN59: 2.182787284e-10 | DO59: 2.182787284e-10 | DP59: 2.182787284e-10 | DQ59: 2.182787284e-10 | DR59: 2.182787284e-10 | DS59: 2.182787284e-10 | DT59: 2.182787284e-10 | DU59: 2.182787284e-10 | DV59: 2.182787284e-10 | DW59: 2.182787284e-10 | DX59: 2.182787284e-10 | DY59: 2.182787284e-10 | DZ59: 2.182787284e-10 | EA59: 2.182787284e-10 | EB59: 2.182787284e-10 | EC59: 2.182787284e-10 | ED59: 2.182787284e-10 | EE59: 2.182787284e-10 | EF59: 2.182787284e-10 | EG59: 2.182787284e-10 | EH59: 2.182787284e-10 | EI59: 2.182787284e-10 | EJ59: =EJ56+EJ57-EJ58 -> 2.182787284e-10 | EK59: 2.182787284e-10 | EL59: 2.182787284e-10 | EM59: 2.182787284e-10 | EN59: 2.182787284e-10 | EO59: 2.182787284e-10 | EP59: 2.182787284e-10 | EQ59: 2.182787284e-10 | ER59: 2.182787284e-10 | ES59: 2.182787284e-10 | ET59: 2.182787284e-10 | EU59: 2.182787284e-10 | EV59: 2.182787284e-10 | EW59: 2.182787284e-10 | EX59: 2.182787284e-10 | EY59: 2.182787284e-10 | EZ59: 2.182787284e-10 | FA59: 2.182787284e-10 | FB59: 2.182787284e-10 | FC59: 2.182787284e-10 | FD59: 2.182787284e-10 | FE59: 2.182787284e-10 | FF59: 2.182787284e-10 | FG59: 2.182787284e-10 | FH59: 2.182787284e-10 | FI59: 2.182787284e-10 | FJ59: 2.182787284e-10 | FK59: 2.182787284e-10 | FL59: 2.182787284e-10 | FM59: 2.182787284e-10 | FN59: 2.182787284e-10 | FO59: 2.182787284e-10 | FP59: 2.182787284e-10 | FQ59: 2.182787284e-10 | FR59: 2.182787284e-10 | FS59: 2.182787284e-10 | FT59: 2.182787284e-10 | FU59: 2.182787284e-10 | FV59: 2.182787284e-10 | FW59: 2.182787284e-10 | FX59: 2.182787284e-10 | FY59: 2.182787284e-10 | FZ59: 2.182787284e-10 | GA59: 2.182787284e-10 | GB59: 2.182787284e-10 | GC59: 2.182787284e-10 | GD59: 2.182787284e-10 | GE59: 2.182787284e-10 | GF59: 2.182787284e-10 | GG59: 2.182787284e-10 | GH59: 2.182787284e-10 | GI59: 2.182787284e-10 | GJ59: 2.182787284e-10 | GK59: 2.182787284e-10 | GL59: 2.182787284e-10 | GM59: 2.182787284e-10 | GN59: 2.182787284e-10 | GO59: 2.182787284e-10 | GP59: 2.182787284e-10 | GQ59: 2.182787284e-10 | GR59: 2.182787284e-10 | GS59: 2.182787284e-10 | GT59: 2.182787284e-10 | GU59: 2.182787284e-10 | GV59: =GV56+GV57-GV58 -> 2.182787284e-10 | GW59: 2.182787284e-10 | GX59: 2.182787284e-10 | GY59: 2.182787284e-10 | GZ59: 2.182787284e-10 | HA59: 2.182787284e-10 | HB59: 2.182787284e-10 | HC59: 2.182787284e-10 | HD59: 2.182787284e-10 | HE59: 2.182787284e-10 | HF59: 2.182787284e-10 | HG59: 2.182787284e-10 | HH59: 2.182787284e-10 | HI59: 2.182787284e-10 | HJ59: 2.182787284e-10 | HK59: 2.182787284e-10 | HL59: 2.182787284e-10 | HM59: 2.182787284e-10 | HN59: 2.182787284e-10 | HO59: 2.182787284e-10 | HP59: 2.182787284e-10 | HQ59: 2.182787284e-10 | HR59: 2.182787284e-10 | HS59: 2.182787284e-10 | HT59: 2.182787284e-10 | HU59: 2.182787284e-10 | HV59: 2.182787284e-10 | HW59: 2.182787284e-10 | HX59: 2.182787284e-10 | HY59: 2.182787284e-10 | HZ59: 2.182787284e-10 | IA59: 2.182787284e-10 | IB59: 2.182787284e-10 | IC59: 2.182787284e-10 | ID59: 2.182787284e-10 | IE59: 2.182787284e-10 | IF59: 2.182787284e-10 | IG59: 2.182787284e-10 | IH59: 2.182787284e-10 | II59: 2.182787284e-10 | IJ59: 2.182787284e-10 | IK59: 2.182787284e-10 | IL59: 2.182787284e-10 | IM59: 2.182787284e-10 | IN59: 2.182787284e-10 | IO59: 2.182787284e-10 | IP59: 2.182787284e-10 | IQ59: 2.182787284e-10 | IR59: 2.182787284e-10 | IS59: 2.182787284e-10 | IT59: 2.182787284e-10 | IU59: 2.182787284e-10 | IV59: 2.182787284e-10 | IW59: 2.182787284e-10 | IX59: 2.182787284e-10 | IY59: 2.182787284e-10 | IZ59: 2.182787284e-10
D60: Periodic Interest Rate | I60: % | K60: =K52 -> 0.045 | L60: =L52 -> 0.045 | M60: 0.045 | N60: 0.045 | O60: 0.045 | P60: 0.045 | Q60: 0.045 | R60: 0.045 | S60: 0.045 | T60: 0.045 | U60: 0.045 | V60: 0.045 | W60: 0.045 | X60: 0.045 | Y60: 0.045 | Z60: 0.045 | AA60: 0.045 | AB60: 0.045 | AC60: 0.045 | AD60: 0.045 | AE60: 0.045 | AF60: 0.045 | AG60: 0.045 | AH60: 0.045 | AI60: 0.045 | AJ60: 0.045 | AK60: 0.045 | AL60: 0.045 | AM60: 0.045 | AN60: 0.045 | AO60: 0.045 | AP60: 0.045 | AQ60: 0.045 | AR60: 0.045 | AS60: 0.045 | AT60: 0.045 | AU60: 0.045 | AV60: 0.045 | AW60: 0.045 | AX60: 0.045 | AY60: 0.045 | AZ60: 0.045 | BA60: 0.045 | BB60: 0.045 | BC60: 0.045 | BD60: 0.045 | BE60: 0.045 | BF60: 0.045 | BG60: 0.045 | BH60: 0.045 | BI60: 0.045 | BJ60: 0.045 | BK60: 0.045 | BL60: 0.045 | BM60: 0.045 | BN60: 0.045 | BO60: 0.045 | BP60: 0.045 | BQ60: 0.045 | BR60: 0.045 | BS60: 0.045 | BT60: 0.045 | BU60: 0.045 | BV60: 0.045 | BW60: 0.045 | BX60: =BX52 -> 0.045 | BY60: 0.045 | BZ60: 0.045 | CA60: 0.045 | CB60: 0.045 | CC60: 0.045 | CD60: 0.045 | CE60: 0.045 | CF60: 0.045 | CG60: 0.045 | CH60: 0.045 | CI60: 0.045 | CJ60: 0.045 | CK60: 0.045 | CL60: 0.045 | CM60: 0.045 | CN60: 0.045 | CO60: 0.045 | CP60: 0.045 | CQ60: 0.045 | CR60: 0.045 | CS60: 0.045 | CT60: 0.045 | CU60: 0.045 | CV60: 0.045 | CW60: 0.045 | CX60: 0.045 | CY60: 0.045 | CZ60: 0.045 | DA60: 0.045 | DB60: 0.045 | DC60: 0.045 | DD60: 0.045 | DE60: 0.045 | DF60: 0.045 | DG60: 0.045 | DH60: 0.045 | DI60: 0.045 | DJ60: 0.045 | DK60: 0.045 | DL60: 0.045 | DM60: 0.045 | DN60: 0.045 | DO60: 0.045 | DP60: 0.045 | DQ60: 0.045 | DR60: 0.045 | DS60: 0.045 | DT60: 0.045 | DU60: 0.045 | DV60: 0.045 | DW60: 0.045 | DX60: 0.045 | DY60: 0.045 | DZ60: 0.045 | EA60: 0.045 | EB60: 0.045 | EC60: 0.045 | ED60: 0.045 | EE60: 0.045 | EF60: 0.045 | EG60: 0.045 | EH60: 0.045 | EI60: 0.045 | EJ60: =EJ52 -> 0.045 | EK60: 0.045 | EL60: 0.045 | EM60: 0.045 | EN60: 0.045 | EO60: 0.045 | EP60: 0.045 | EQ60: 0.045 | ER60: 0.045 | ES60: 0.045 | ET60: 0.045 | EU60: 0.045 | EV60: 0.045 | EW60: 0.045 | EX60: 0.045 | EY60: 0.045 | EZ60: 0.045 | FA60: 0.045 | FB60: 0.045 | FC60: 0.045 | FD60: 0.045 | FE60: 0.045 | FF60: 0.045 | FG60: 0.045 | FH60: 0.045 | FI60: 0.045 | FJ60: 0.045 | FK60: 0.045 | FL60: 0.045 | FM60: 0.045 | FN60: 0.045 | FO60: 0.045 | FP60: 0.045 | FQ60: 0.045 | FR60: 0.045 | FS60: 0.045 | FT60: 0.045 | FU60: 0.045 | FV60: 0.045 | FW60: 0.045 | FX60: 0.045 | FY60: 0.045 | FZ60: 0.045 | GA60: 0.045 | GB60: 0.045 | GC60: 0.045 | GD60: 0.045 | GE60: 0.045 | GF60: 0.045 | GG60: 0.045 | GH60: 0.045 | GI60: 0.045 | GJ60: 0.045 | GK60: 0.045 | GL60: 0.045 | GM60: 0.045 | GN60: 0.045 | GO60: 0.045 | GP60: 0.045 | GQ60: 0.045 | GR60: 0.045 | GS60: 0.045 | GT60: 0.045 | GU60: 0.045 | GV60: =GV52 -> 0.045 | GW60: 0.045 | GX60: 0.045 | GY60: 0.045 | GZ60: 0.045 | HA60: 0.045 | HB60: 0.045 | HC60: 0.045 | HD60: 0.045 | HE60: 0.045 | HF60: 0.045 | HG60: 0.045 | HH60: 0.045 | HI60: 0.045 | HJ60: 0.045 | HK60: 0.045 | HL60: 0.045 | HM60: 0.045 | HN60: 0.045 | HO60: 0.045 | HP60: 0.045 | HQ60: 0.045 | HR60: 0.045 | HS60: 0.045 | HT60: 0.045 | HU60: 0.045 | HV60: 0.045 | HW60: 0.045 | HX60: 0.045 | HY60: 0.045 | HZ60: 0.045 | IA60: 0.045 | IB60: 0.045 | IC60: 0.045 | ID60: 0.045 | IE60: 0.045 | IF60: 0.045 | IG60: 0.045 | IH60: 0.045 | II60: 0.045 | IJ60: 0.045 | IK60: 0.045 | IL60: 0.045 | IM60: 0.045 | IN60: 0.045 | IO60: 0.045 | IP60: 0.045 | IQ60: 0.045 | IR60: 0.045 | IS60: 0.045 | IT60: 0.045 | IU60: 0.045 | IV60: 0.045 | IW60: 0.045 | IX60: 0.045 | IY60: 0.045 | IZ60: 0.045
D61: Interest Cost | I61: EUR | K61: =K60*K56 -> 0 | L61: =L60*L56 -> 16800 | M61: 33600 | N61: 50400 | O61: 48793.44233 | P61: 47114.58956 | Q61: 45360.18841 | R61: 43526.83922 | S61: 41610.98931 | T61: 39608.92615 | U61: 37516.77016 | V61: 35330.46714 | W61: 33045.78049 | X61: 30658.28293 | Y61: 28163.34799 | Z61: 25556.14098 | AA61: 22831.60965 | AB61: 19984.47441 | AC61: 17009.21808 | AD61: 13900.07522 | AE61: 10651.02093 | AF61: 7255.759203 | AG61: 3707.710693 | AH61: 9.822542779e-12 | AI61: 9.822542779e-12 | AJ61: 9.822542779e-12 | AK61: 9.822542779e-12 | AL61: 9.822542779e-12 | AM61: 9.822542779e-12 | AN61: 9.822542779e-12 | AO61: 9.822542779e-12 | AP61: 9.822542779e-12 | AQ61: 9.822542779e-12 | AR61: 9.822542779e-12 | AS61: 9.822542779e-12 | AT61: 9.822542779e-12 | AU61: 9.822542779e-12 | AV61: 9.822542779e-12 | AW61: 9.822542779e-12 | AX61: 9.822542779e-12 | AY61: 9.822542779e-12 | AZ61: 9.822542779e-12 | BA61: 9.822542779e-12 | BB61: 9.822542779e-12 | BC61: 9.822542779e-12 | BD61: 9.822542779e-12 | BE61: 9.822542779e-12 | BF61: 9.822542779e-12 | BG61: 9.822542779e-12 | BH61: 9.822542779e-12 | BI61: 9.822542779e-12 | BJ61: 9.822542779e-12 | BK61: 9.822542779e-12 | BL61: 9.822542779e-12 | BM61: 9.822542779e-12 | BN61: 9.822542779e-12 | BO61: 9.822542779e-12 | BP61: 9.822542779e-12 | BQ61: 9.822542779e-12 | BR61: 9.822542779e-12 | BS61: 9.822542779e-12 | BT61: 9.822542779e-12 | BU61: 9.822542779e-12 | BV61: 9.822542779e-12 | BW61: 9.822542779e-12 | BX61: =BX60*BX56 -> 9.822542779e-12 | BY61: 9.822542779e-12 | BZ61: 9.822542779e-12 | CA61: 9.822542779e-12 | CB61: 9.822542779e-12 | CC61: 9.822542779e-12 | CD61: 9.822542779e-12 | CE61: 9.822542779e-12 | CF61: 9.822542779e-12 | CG61: 9.822542779e-12 | CH61: 9.822542779e-12 | CI61: 9.822542779e-12 | CJ61: 9.822542779e-12 | CK61: 9.822542779e-12 | CL61: 9.822542779e-12 | CM61: 9.822542779e-12 | CN61: 9.822542779e-12 | CO61: 9.822542779e-12 | CP61: 9.822542779e-12 | CQ61: 9.822542779e-12 | CR61: 9.822542779e-12 | CS61: 9.822542779e-12 | CT61: 9.822542779e-12 | CU61: 9.822542779e-12 | CV61: 9.822542779e-12 | CW61: 9.822542779e-12 | CX61: 9.822542779e-12 | CY61: 9.822542779e-12 | CZ61: 9.822542779e-12 | DA61: 9.822542779e-12 | DB61: 9.822542779e-12 | DC61: 9.822542779e-12 | DD61: 9.822542779e-12 | DE61: 9.822542779e-12 | DF61: 9.822542779e-12 | DG61: 9.822542779e-12 | DH61: 9.822542779e-12 | DI61: 9.822542779e-12 | DJ61: 9.822542779e-12 | DK61: 9.822542779e-12 | DL61: 9.822542779e-12 | DM61: 9.822542779e-12 | DN61: 9.822542779e-12 | DO61: 9.822542779e-12 | DP61: 9.822542779e-12 | DQ61: 9.822542779e-12 | DR61: 9.822542779e-12 | DS61: 9.822542779e-12 | DT61: 9.822542779e-12 | DU61: 9.822542779e-12 | DV61: 9.822542779e-12 | DW61: 9.822542779e-12 | DX61: 9.822542779e-12 | DY61: 9.822542779e-12 | DZ61: 9.822542779e-12 | EA61: 9.822542779e-12 | EB61: 9.822542779e-12 | EC61: 9.822542779e-12 | ED61: 9.822542779e-12 | EE61: 9.822542779e-12 | EF61: 9.822542779e-12 | EG61: 9.822542779e-12 | EH61: 9.822542779e-12 | EI61: 9.822542779e-12 | EJ61: =EJ60*EJ56 -> 9.822542779e-12 | EK61: 9.822542779e-12 | EL61: 9.822542779e-12 | EM61: 9.822542779e-12 | EN61: 9.822542779e-12 | EO61: 9.822542779e-12 | EP61: 9.822542779e-12 | EQ61: 9.822542779e-12 | ER61: 9.822542779e-12 | ES61: 9.822542779e-12 | ET61: 9.822542779e-12 | EU61: 9.822542779e-12 | EV61: 9.822542779e-12 | EW61: 9.822542779e-12 | EX61: 9.822542779e-12 | EY61: 9.822542779e-12 | EZ61: 9.822542779e-12 | FA61: 9.822542779e-12 | FB61: 9.822542779e-12 | FC61: 9.822542779e-12 | FD61: 9.822542779e-12 | FE61: 9.822542779e-12 | FF61: 9.822542779e-12 | FG61: 9.822542779e-12 | FH61: 9.822542779e-12 | FI61: 9.822542779e-12 | FJ61: 9.822542779e-12 | FK61: 9.822542779e-12 | FL61: 9.822542779e-12 | FM61: 9.822542779e-12 | FN61: 9.822542779e-12 | FO61: 9.822542779e-12 | FP61: 9.822542779e-12 | FQ61: 9.822542779e-12 | FR61: 9.822542779e-12 | FS61: 9.822542779e-12 | FT61: 9.822542779e-12 | FU61: 9.822542779e-12 | FV61: 9.822542779e-12 | FW61: 9.822542779e-12 | FX61: 9.822542779e-12 | FY61: 9.822542779e-12 | FZ61: 9.822542779e-12 | GA61: 9.822542779e-12 | GB61: 9.822542779e-12 | GC61: 9.822542779e-12 | GD61: 9.822542779e-12 | GE61: 9.822542779e-12 | GF61: 9.822542779e-12 | GG61: 9.822542779e-12 | GH61: 9.822542779e-12 | GI61: 9.822542779e-12 | GJ61: 9.822542779e-12 | GK61: 9.822542779e-12 | GL61: 9.822542779e-12 | GM61: 9.822542779e-12 | GN61: 9.822542779e-12 | GO61: 9.822542779e-12 | GP61: 9.822542779e-12 | GQ61: 9.822542779e-12 | GR61: 9.822542779e-12 | GS61: 9.822542779e-12 | GT61: 9.822542779e-12 | GU61: 9.822542779e-12 | GV61: =GV60*GV56 -> 9.822542779e-12 | GW61: 9.822542779e-12 | GX61: 9.822542779e-12 | GY61: 9.822542779e-12 | GZ61: 9.822542779e-12 | HA61: 9.822542779e-12 | HB61: 9.822542779e-12 | HC61: 9.822542779e-12 | HD61: 9.822542779e-12 | HE61: 9.822542779e-12 | HF61: 9.822542779e-12 | HG61: 9.822542779e-12 | HH61: 9.822542779e-12 | HI61: 9.822542779e-12 | HJ61: 9.822542779e-12 | HK61: 9.822542779e-12 | HL61: 9.822542779e-12 | HM61: 9.822542779e-12 | HN61: 9.822542779e-12 | HO61: 9.822542779e-12 | HP61: 9.822542779e-12 | HQ61: 9.822542779e-12 | HR61: 9.822542779e-12 | HS61: 9.822542779e-12 | HT61: 9.822542779e-12 | HU61: 9.822542779e-12 | HV61: 9.822542779e-12 | HW61: 9.822542779e-12 | HX61: 9.822542779e-12 | HY61: 9.822542779e-12 | HZ61: 9.822542779e-12 | IA61: 9.822542779e-12 | IB61: 9.822542779e-12 | IC61: 9.822542779e-12 | ID61: 9.822542779e-12 | IE61: 9.822542779e-12 | IF61: 9.822542779e-12 | IG61: 9.822542779e-12 | IH61: 9.822542779e-12 | II61: 9.822542779e-12 | IJ61: 9.822542779e-12 | IK61: 9.822542779e-12 | IL61: 9.822542779e-12 | IM61: 9.822542779e-12 | IN61: 9.822542779e-12 | IO61: 9.822542779e-12 | IP61: 9.822542779e-12 | IQ61: 9.822542779e-12 | IR61: 9.822542779e-12 | IS61: 9.822542779e-12 | IT61: 9.822542779e-12 | IU61: 9.822542779e-12 | IV61: 9.822542779e-12 | IW61: 9.822542779e-12 | IX61: 9.822542779e-12 | IY61: 9.822542779e-12 | IZ61: 9.822542779e-12
D63: Test of Closing Balance | E63: Periods | F63: =G49 -> 20 | G63: =LOOKUP(F63,49:49,59:59) -> 2.182787284e-10
D65: Debt Service =Interest + Repayment | I65: EUR | K65: =IF(K49,K61+K58) -> FALSE | L65: =IF(L49,L61+L58) -> FALSE | M65: FALSE | N65: 86101.28164 | O65: 86101.28164 | P65: 86101.28164 | Q65: 86101.28164 | R65: 86101.28164 | S65: 86101.28164 | T65: 86101.28164 | U65: 86101.28164 | V65: 86101.28164 | W65: 86101.28164 | X65: 86101.28164 | Y65: 86101.28164 | Z65: 86101.28164 | AA65: 86101.28164 | AB65: 86101.28164 | AC65: 86101.28164 | AD65: 86101.28164 | AE65: 86101.28164 | AF65: 86101.28164 | AG65: 86101.28164 | AH65: FALSE | AI65: FALSE | AJ65: FALSE | AK65: FALSE | AL65: FALSE | AM65: FALSE | AN65: FALSE | AO65: FALSE | AP65: FALSE | AQ65: FALSE | AR65: FALSE | AS65: FALSE | AT65: FALSE | AU65: FALSE | AV65: FALSE | AW65: FALSE | AX65: FALSE | AY65: FALSE | AZ65: FALSE | BA65: FALSE | BB65: FALSE | BC65: FALSE | BD65: FALSE | BE65: FALSE | BF65: FALSE | BG65: FALSE | BH65: FALSE | BI65: FALSE | BJ65: FALSE | BK65: FALSE | BL65: FALSE | BM65: FALSE | BN65: FALSE | BO65: FALSE | BP65: FALSE | BQ65: FALSE | BR65: FALSE | BS65: FALSE | BT65: FALSE | BU65: FALSE | BV65: FALSE | BW65: FALSE | BX65: =IF(BX49,BX61+BX58) -> FALSE | BY65: FALSE | BZ65: FALSE | CA65: FALSE | CB65: FALSE | CC65: FALSE | CD65: FALSE | CE65: FALSE | CF65: FALSE | CG65: FALSE | CH65: FALSE | CI65: FALSE | CJ65: FALSE | CK65: FALSE | CL65: FALSE | CM65: FALSE | CN65: FALSE | CO65: FALSE | CP65: FALSE | CQ65: FALSE | CR65: FALSE | CS65: FALSE | CT65: FALSE | CU65: FALSE | CV65: FALSE | CW65: FALSE | CX65: FALSE | CY65: FALSE | CZ65: FALSE | DA65: FALSE | DB65: FALSE | DC65: FALSE | DD65: FALSE | DE65: FALSE | DF65: FALSE | DG65: FALSE | DH65: FALSE | DI65: FALSE | DJ65: FALSE | DK65: FALSE | DL65: FALSE | DM65: FALSE | DN65: FALSE | DO65: FALSE | DP65: FALSE | DQ65: FALSE | DR65: FALSE | DS65: FALSE | DT65: FALSE | DU65: FALSE | DV65: FALSE | DW65: FALSE | DX65: FALSE | DY65: FALSE | DZ65: FALSE | EA65: FALSE | EB65: FALSE | EC65: FALSE | ED65: FALSE | EE65: FALSE | EF65: FALSE | EG65: FALSE | EH65: FALSE | EI65: FALSE | EJ65: =IF(EJ49,EJ61+EJ58) -> FALSE | EK65: FALSE | EL65: FALSE | EM65: FALSE | EN65: FALSE | EO65: FALSE | EP65: FALSE | EQ65: FALSE | ER65: FALSE | ES65: FALSE | ET65: FALSE | EU65: FALSE | EV65: FALSE | EW65: FALSE | EX65: FALSE | EY65: FALSE | EZ65: FALSE | FA65: FALSE | FB65: FALSE | FC65: FALSE | FD65: FALSE | FE65: FALSE | FF65: FALSE | FG65: FALSE | FH65: FALSE | FI65: FALSE | FJ65: FALSE | FK65: FALSE | FL65: FALSE | FM65: FALSE | FN65: FALSE | FO65: FALSE | FP65: FALSE | FQ65: FALSE | FR65: FALSE | FS65: FALSE | FT65: FALSE | FU65: FALSE | FV65: FALSE | FW65: FALSE | FX65: FALSE | FY65: FALSE | FZ65: FALSE | GA65: FALSE | GB65: FALSE | GC65: FALSE | GD65: FALSE | GE65: FALSE | GF65: FALSE | GG65: FALSE | GH65: FALSE | GI65: FALSE | GJ65: FALSE | GK65: FALSE | GL65: FALSE | GM65: FALSE | GN65: FALSE | GO65: FALSE | GP65: FALSE | GQ65: FALSE | GR65: FALSE | GS65: FALSE | GT65: FALSE | GU65: FALSE | GV65: =IF(GV49,GV61+GV58) -> FALSE | GW65: FALSE | GX65: FALSE | GY65: FALSE | GZ65: FALSE | HA65: FALSE | HB65: FALSE | HC65: FALSE | HD65: FALSE | HE65: FALSE | HF65: FALSE | HG65: FALSE | HH65: FALSE | HI65: FALSE | HJ65: FALSE | HK65: FALSE | HL65: FALSE | HM65: FALSE | HN65: FALSE | HO65: FALSE | HP65: FALSE | HQ65: FALSE | HR65: FALSE | HS65: FALSE | HT65: FALSE | HU65: FALSE | HV65: FALSE | HW65: FALSE | HX65: FALSE | HY65: FALSE | HZ65: FALSE | IA65: FALSE | IB65: FALSE | IC65: FALSE | ID65: FALSE | IE65: FALSE | IF65: FALSE | IG65: FALSE | IH65: FALSE | II65: FALSE | IJ65: FALSE | IK65: FALSE | IL65: FALSE | IM65: FALSE | IN65: FALSE | IO65: FALSE | IP65: FALSE | IQ65: FALSE | IR65: FALSE | IS65: FALSE | IT65: FALSE | IU65: FALSE | IV65: FALSE | IW65: FALSE | IX65: FALSE | IY65: FALSE | IZ65: FALSE
D66: PV of Debt Service =Debt | F66: =NPV(G52,K65:IZ65) -> 1120000 | I66: EUR
C68: Defaulted Debt
D69: Opening Balance | I69: EUR | K69: =J72 -> 0 | L69: =K72 -> 0 | M69: 0 | N69: 0 | O69: 0 | P69: 0 | Q69: 0 | R69: 0 | S69: 0 | T69: 0 | U69: 0 | V69: 0 | W69: 0 | X69: 0 | Y69: 0 | Z69: 0 | AA69: 0 | AB69: 0 | AC69: 0 | AD69: 0 | AE69: 0 | AF69: 0 | AG69: 0 | AH69: 0 | AI69: 0 | AJ69: 0 | AK69: 0 | AL69: 0 | AM69: 0 | AN69: 0 | AO69: 0 | AP69: 0 | AQ69: 0 | AR69: 0 | AS69: 0 | AT69: 0 | AU69: 0 | AV69: 0 | AW69: 0 | AX69: 0 | AY69: 0 | AZ69: 0 | BA69: 0 | BB69: 0 | BC69: 0 | BD69: 0 | BE69: 0 | BF69: 0 | BG69: 0 | BH69: 0 | BI69: 0 | BJ69: 0 | BK69: 0 | BL69: 0 | BM69: 0 | BN69: 0 | BO69: 0 | BP69: 0 | BQ69: 0 | BR69: 0 | BS69: 0 | BT69: 0 | BU69: 0 | BV69: 0 | BW69: 0 | BX69: =BW72 -> 0 | BY69: 0 | BZ69: 0 | CA69: 0 | CB69: 0 | CC69: 0 | CD69: 0 | CE69: 0 | CF69: 0 | CG69: 0 | CH69: 0 | CI69: 0 | CJ69: 0 | CK69: 0 | CL69: 0 | CM69: 0 | CN69: 0 | CO69: 0 | CP69: 0 | CQ69: 0 | CR69: 0 | CS69: 0 | CT69: 0 | CU69: 0 | CV69: 0 | CW69: 0 | CX69: 0 | CY69: 0 | CZ69: 0 | DA69: 0 | DB69: 0 | DC69: 0 | DD69: 0 | DE69: 0 | DF69: 0 | DG69: 0 | DH69: 0 | DI69: 0 | DJ69: 0 | DK69: 0 | DL69: 0 | DM69: 0 | DN69: 0 | DO69: 0 | DP69: 0 | DQ69: 0 | DR69: 0 | DS69: 0 | DT69: 0 | DU69: 0 | DV69: 0 | DW69: 0 | DX69: 0 | DY69: 0 | DZ69: 0 | EA69: 0 | EB69: 0 | EC69: 0 | ED69: 0 | EE69: 0 | EF69: 0 | EG69: 0 | EH69: 0 | EI69: 0 | EJ69: =EI72 -> 0 | EK69: 0 | EL69: 0 | EM69: 0 | EN69: 0 | EO69: 0 | EP69: 0 | EQ69: 0 | ER69: 0 | ES69: 0 | ET69: 0 | EU69: 0 | EV69: 0 | EW69: 0 | EX69: 0 | EY69: 0 | EZ69: 0 | FA69: 0 | FB69: 0 | FC69: 0 | FD69: 0 | FE69: 0 | FF69: 0 | FG69: 0 | FH69: 0 | FI69: 0 | FJ69: 0 | FK69: 0 | FL69: 0 | FM69: 0 | FN69: 0 | FO69: 0 | FP69: 0 | FQ69: 0 | FR69: 0 | FS69: 0 | FT69: 0 | FU69: 0 | FV69: 0 | FW69: 0 | FX69: 0 | FY69: 0 | FZ69: 0 | GA69: 0 | GB69: 0 | GC69: 0 | GD69: 0 | GE69: 0 | GF69: 0 | GG69: 0 | GH69: 0 | GI69: 0 | GJ69: 0 | GK69: 0 | GL69: 0 | GM69: 0 | GN69: 0 | GO69: 0 | GP69: 0 | GQ69: 0 | GR69: 0 | GS69: 0 | GT69: 0 | GU69: 0 | GV69: =GU72 -> 0 | GW69: 0 | GX69: 0 | GY69: 0 | GZ69: 0 | HA69: 0 | HB69: 0 | HC69: 0 | HD69: 0 | HE69: 0 | HF69: 0 | HG69: 0 | HH69: 0 | HI69: 0 | HJ69: 0 | HK69: 0 | HL69: 0 | HM69: 0 | HN69: 0 | HO69: 0 | HP69: 0 | HQ69: 0 | HR69: 0 | HS69: 0 | HT69: 0 | HU69: 0 | HV69: 0 | HW69: 0 | HX69: 0 | HY69: 0 | HZ69: 0 | IA69: 0 | IB69: 0 | IC69: 0 | ID69: 0 | IE69: 0 | IF69: 0 | IG69: 0 | IH69: 0 | II69: 0 | IJ69: 0 | IK69: 0 | IL69: 0 | IM69: 0 | IN69: 0 | IO69: 0 | IP69: 0 | IQ69: 0 | IR69: 0 | IS69: 0 | IT69: 0 | IU69: 0 | IV69: 0 | IW69: 0 | IX69: 0 | IY69: 0 | IZ69: 0
D70: Add: Defaulted Debt | I70: EUR | K70: =K83 -> 0 | L70: =L83 -> 0 | M70: 0 | N70: 0 | O70: 0 | P70: 0 | Q70: 0 | R70: 0 | S70: 0 | T70: 0 | U70: 0 | V70: 0 | W70: 0 | X70: 0 | Y70: 0 | Z70: 0 | AA70: 0 | AB70: 0 | AC70: 0 | AD70: 0 | AE70: 0 | AF70: 0 | AG70: 0 | AH70: 0 | AI70: 0 | AJ70: 0 | AK70: 0 | AL70: 0 | AM70: 0 | AN70: 0 | AO70: 0 | AP70: 0 | AQ70: 0 | AR70: 0 | AS70: 0 | AT70: 0 | AU70: 0 | AV70: 0 | AW70: 0 | AX70: 0 | AY70: 0 | AZ70: 0 | BA70: 0 | BB70: 0 | BC70: 0 | BD70: 0 | BE70: 0 | BF70: 0 | BG70: 0 | BH70: 0 | BI70: 0 | BJ70: 0 | BK70: 0 | BL70: 0 | BM70: 0 | BN70: 0 | BO70: 0 | BP70: 0 | BQ70: 0 | BR70: 0 | BS70: 0 | BT70: 0 | BU70: 0 | BV70: 0 | BW70: 0 | BX70: =BX83 -> 0 | BY70: 0 | BZ70: 0 | CA70: 0 | CB70: 0 | CC70: 0 | CD70: 0 | CE70: 0 | CF70: 0 | CG70: 0 | CH70: 0 | CI70: 0 | CJ70: 0 | CK70: 0 | CL70: 0 | CM70: 0 | CN70: 0 | CO70: 0 | CP70: 0 | CQ70: 0 | CR70: 0 | CS70: 0 | CT70: 0 | CU70: 0 | CV70: 0 | CW70: 0 | CX70: 0 | CY70: 0 | CZ70: 0 | DA70: 0 | DB70: 0 | DC70: 0 | DD70: 0 | DE70: 0 | DF70: 0 | DG70: 0 | DH70: 0 | DI70: 0 | DJ70: 0 | DK70: 0 | DL70: 0 | DM70: 0 | DN70: 0 | DO70: 0 | DP70: 0 | DQ70: 0 | DR70: 0 | DS70: 0 | DT70: 0 | DU70: 0 | DV70: 0 | DW70: 0 | DX70: 0 | DY70: 0 | DZ70: 0 | EA70: 0 | EB70: 0 | EC70: 0 | ED70: 0 | EE70: 0 | EF70: 0 | EG70: 0 | EH70: 0 | EI70: 0 | EJ70: =EJ83 -> 0 | EK70: 0 | EL70: 0 | EM70: 0 | EN70: 0 | EO70: 0 | EP70: 0 | EQ70: 0 | ER70: 0 | ES70: 0 | ET70: 0 | EU70: 0 | EV70: 0 | EW70: 0 | EX70: 0 | EY70: 0 | EZ70: 0 | FA70: 0 | FB70: 0 | FC70: 0 | FD70: 0 | FE70: 0 | FF70: 0 | FG70: 0 | FH70: 0 | FI70: 0 | FJ70: 0 | FK70: 0 | FL70: 0 | FM70: 0 | FN70: 0 | FO70: 0 | FP70: 0 | FQ70: 0 | FR70: 0 | FS70: 0 | FT70: 0 | FU70: 0 | FV70: 0 | FW70: 0 | FX70: 0 | FY70: 0 | FZ70: 0 | GA70: 0 | GB70: 0 | GC70: 0 | GD70: 0 | GE70: 0 | GF70: 0 | GG70: 0 | GH70: 0 | GI70: 0 | GJ70: 0 | GK70: 0 | GL70: 0 | GM70: 0 | GN70: 0 | GO70: 0 | GP70: 0 | GQ70: 0 | GR70: 0 | GS70: 0 | GT70: 0 | GU70: 0 | GV70: =GV83 -> 0 | GW70: 0 | GX70: 0 | GY70: 0 | GZ70: 0 | HA70: 0 | HB70: 0 | HC70: 0 | HD70: 0 | HE70: 0 | HF70: 0 | HG70: 0 | HH70: 0 | HI70: 0 | HJ70: 0 | HK70: 0 | HL70: 0 | HM70: 0 | HN70: 0 | HO70: 0 | HP70: 0 | HQ70: 0 | HR70: 0 | HS70: 0 | HT70: 0 | HU70: 0 | HV70: 0 | HW70: 0 | HX70: 0 | HY70: 0 | HZ70: 0 | IA70: 0 | IB70: 0 | IC70: 0 | ID70: 0 | IE70: 0 | IF70: 0 | IG70: 0 | IH70: 0 | II70: 0 | IJ70: 0 | IK70: 0 | IL70: 0 | IM70: 0 | IN70: 0 | IO70: 0 | IP70: 0 | IQ70: 0 | IR70: 0 | IS70: 0 | IT70: 0 | IU70: 0 | IV70: 0 | IW70: 0 | IX70: 0 | IY70: 0 | IZ70: 0
D71: Less: Repayment of Default | I71: EUR | K71: =K84 -> 0 | L71: =L84 -> 0 | M71: 0 | N71: 0 | O71: 0 | P71: 0 | Q71: 0 | R71: 0 | S71: 0 | T71: 0 | U71: 0 | V71: 0 | W71: 0 | X71: 0 | Y71: 0 | Z71: 0 | AA71: 0 | AB71: 0 | AC71: 0 | AD71: 0 | AE71: 0 | AF71: 0 | AG71: 0 | AH71: 0 | AI71: 0 | AJ71: 0 | AK71: 0 | AL71: 0 | AM71: 0 | AN71: 0 | AO71: 0 | AP71: 0 | AQ71: 0 | AR71: 0 | AS71: 0 | AT71: 0 | AU71: 0 | AV71: 0 | AW71: 0 | AX71: 0 | AY71: 0 | AZ71: 0 | BA71: 0 | BB71: 0 | BC71: 0 | BD71: 0 | BE71: 0 | BF71: 0 | BG71: 0 | BH71: 0 | BI71: 0 | BJ71: 0 | BK71: 0 | BL71: 0 | BM71: 0 | BN71: 0 | BO71: 0 | BP71: 0 | BQ71: 0 | BR71: 0 | BS71: 0 | BT71: 0 | BU71: 0 | BV71: 0 | BW71: 0 | BX71: =BX84 -> 0 | BY71: 0 | BZ71: 0 | CA71: 0 | CB71: 0 | CC71: 0 | CD71: 0 | CE71: 0 | CF71: 0 | CG71: 0 | CH71: 0 | CI71: 0 | CJ71: 0 | CK71: 0 | CL71: 0 | CM71: 0 | CN71: 0 | CO71: 0 | CP71: 0 | CQ71: 0 | CR71: 0 | CS71: 0 | CT71: 0 | CU71: 0 | CV71: 0 | CW71: 0 | CX71: 0 | CY71: 0 | CZ71: 0 | DA71: 0 | DB71: 0 | DC71: 0 | DD71: 0 | DE71: 0 | DF71: 0 | DG71: 0 | DH71: 0 | DI71: 0 | DJ71: 0 | DK71: 0 | DL71: 0 | DM71: 0 | DN71: 0 | DO71: 0 | DP71: 0 | DQ71: 0 | DR71: 0 | DS71: 0 | DT71: 0 | DU71: 0 | DV71: 0 | DW71: 0 | DX71: 0 | DY71: 0 | DZ71: 0 | EA71: 0 | EB71: 0 | EC71: 0 | ED71: 0 | EE71: 0 | EF71: 0 | EG71: 0 | EH71: 0 | EI71: 0 | EJ71: =EJ84 -> 0 | EK71: 0 | EL71: 0 | EM71: 0 | EN71: 0 | EO71: 0 | EP71: 0 | EQ71: 0 | ER71: 0 | ES71: 0 | ET71: 0 | EU71: 0 | EV71: 0 | EW71: 0 | EX71: 0 | EY71: 0 | EZ71: 0 | FA71: 0 | FB71: 0 | FC71: 0 | FD71: 0 | FE71: 0 | FF71: 0 | FG71: 0 | FH71: 0 | FI71: 0 | FJ71: 0 | FK71: 0 | FL71: 0 | FM71: 0 | FN71: 0 | FO71: 0 | FP71: 0 | FQ71: 0 | FR71: 0 | FS71: 0 | FT71: 0 | FU71: 0 | FV71: 0 | FW71: 0 | FX71: 0 | FY71: 0 | FZ71: 0 | GA71: 0 | GB71: 0 | GC71: 0 | GD71: 0 | GE71: 0 | GF71: 0 | GG71: 0 | GH71: 0 | GI71: 0 | GJ71: 0 | GK71: 0 | GL71: 0 | GM71: 0 | GN71: 0 | GO71: 0 | GP71: 0 | GQ71: 0 | GR71: 0 | GS71: 0 | GT71: 0 | GU71: 0 | GV71: =GV84 -> 0 | GW71: 0 | GX71: 0 | GY71: 0 | GZ71: 0 | HA71: 0 | HB71: 0 | HC71: 0 | HD71: 0 | HE71: 0 | HF71: 0 | HG71: 0 | HH71: 0 | HI71: 0 | HJ71: 0 | HK71: 0 | HL71: 0 | HM71: 0 | HN71: 0 | HO71: 0 | HP71: 0 | HQ71: 0 | HR71: 0 | HS71: 0 | HT71: 0 | HU71: 0 | HV71: 0 | HW71: 0 | HX71: 0 | HY71: 0 | HZ71: 0 | IA71: 0 | IB71: 0 | IC71: 0 | ID71: 0 | IE71: 0 | IF71: 0 | IG71: 0 | IH71: 0 | II71: 0 | IJ71: 0 | IK71: 0 | IL71: 0 | IM71: 0 | IN71: 0 | IO71: 0 | IP71: 0 | IQ71: 0 | IR71: 0 | IS71: 0 | IT71: 0 | IU71: 0 | IV71: 0 | IW71: 0 | IX71: 0 | IY71: 0 | IZ71: 0
D72: Closing Balance | I72: EUR | K72: =(K69+K70-K71)*K9 -> 0 | L72: =(L69+L70-L71)*L9 -> 0 | M72: 0 | N72: 0 | O72: 0 | P72: 0 | Q72: 0 | R72: 0 | S72: 0 | T72: 0 | U72: 0 | V72: 0 | W72: 0 | X72: 0 | Y72: 0 | Z72: 0 | AA72: 0 | AB72: 0 | AC72: 0 | AD72: 0 | AE72: 0 | AF72: 0 | AG72: 0 | AH72: 0 | AI72: 0 | AJ72: 0 | AK72: 0 | AL72: 0 | AM72: 0 | AN72: 0 | AO72: 0 | AP72: 0 | AQ72: 0 | AR72: 0 | AS72: 0 | AT72: 0 | AU72: 0 | AV72: 0 | AW72: 0 | AX72: 0 | AY72: 0 | AZ72: 0 | BA72: 0 | BB72: 0 | BC72: 0 | BD72: 0 | BE72: 0 | BF72: 0 | BG72: 0 | BH72: 0 | BI72: 0 | BJ72: 0 | BK72: 0 | BL72: 0 | BM72: 0 | BN72: 0 | BO72: 0 | BP72: 0 | BQ72: 0 | BR72: 0 | BS72: 0 | BT72: 0 | BU72: 0 | BV72: 0 | BW72: 0 | BX72: =(BX69+BX70-BX71)*BX9 -> 0 | BY72: 0 | BZ72: 0 | CA72: 0 | CB72: 0 | CC72: 0 | CD72: 0 | CE72: 0 | CF72: 0 | CG72: 0 | CH72: 0 | CI72: 0 | CJ72: 0 | CK72: 0 | CL72: 0 | CM72: 0 | CN72: 0 | CO72: 0 | CP72: 0 | CQ72: 0 | CR72: 0 | CS72: 0 | CT72: 0 | CU72: 0 | CV72: 0 | CW72: 0 | CX72: 0 | CY72: 0 | CZ72: 0 | DA72: 0 | DB72: 0 | DC72: 0 | DD72: 0 | DE72: 0 | DF72: 0 | DG72: 0 | DH72: 0 | DI72: 0 | DJ72: 0 | DK72: 0 | DL72: 0 | DM72: 0 | DN72: 0 | DO72: 0 | DP72: 0 | DQ72: 0 | DR72: 0 | DS72: 0 | DT72: 0 | DU72: 0 | DV72: 0 | DW72: 0 | DX72: 0 | DY72: 0 | DZ72: 0 | EA72: 0 | EB72: 0 | EC72: 0 | ED72: 0 | EE72: 0 | EF72: 0 | EG72: 0 | EH72: 0 | EI72: 0 | EJ72: =(EJ69+EJ70-EJ71)*EJ9 -> 0 | EK72: 0 | EL72: 0 | EM72: 0 | EN72: 0 | EO72: 0 | EP72: 0 | EQ72: 0 | ER72: 0 | ES72: 0 | ET72: 0 | EU72: 0 | EV72: 0 | EW72: 0 | EX72: 0 | EY72: 0 | EZ72: 0 | FA72: 0 | FB72: 0 | FC72: 0 | FD72: 0 | FE72: 0 | FF72: 0 | FG72: 0 | FH72: 0 | FI72: 0 | FJ72: 0 | FK72: 0 | FL72: 0 | FM72: 0 | FN72: 0 | FO72: 0 | FP72: 0 | FQ72: 0 | FR72: 0 | FS72: 0 | FT72: 0 | FU72: 0 | FV72: 0 | FW72: 0 | FX72: 0 | FY72: 0 | FZ72: 0 | GA72: 0 | GB72: 0 | GC72: 0 | GD72: 0 | GE72: 0 | GF72: 0 | GG72: 0 | GH72: 0 | GI72: 0 | GJ72: 0 | GK72: 0 | GL72: 0 | GM72: 0 | GN72: 0 | GO72: 0 | GP72: 0 | GQ72: 0 | GR72: 0 | GS72: 0 | GT72: 0 | GU72: 0 | GV72: =(GV69+GV70-GV71)*GV9 -> 0 | GW72: 0 | GX72: 0 | GY72: 0 | GZ72: 0 | HA72: 0 | HB72: 0 | HC72: 0 | HD72: 0 | HE72: 0 | HF72: 0 | HG72: 0 | HH72: 0 | HI72: 0 | HJ72: 0 | HK72: 0 | HL72: 0 | HM72: 0 | HN72: 0 | HO72: 0 | HP72: 0 | HQ72: 0 | HR72: 0 | HS72: 0 | HT72: 0 | HU72: 0 | HV72: 0 | HW72: 0 | HX72: 0 | HY72: 0 | HZ72: 0 | IA72: 0 | IB72: 0 | IC72: 0 | ID72: 0 | IE72: 0 | IF72: 0 | IG72: 0 | IH72: 0 | II72: 0 | IJ72: 0 | IK72: 0 | IL72: 0 | IM72: 0 | IN72: 0 | IO72: 0 | IP72: 0 | IQ72: 0 | IR72: 0 | IS72: 0 | IT72: 0 | IU72: 0 | IV72: 0 | IW72: 0 | IX72: 0 | IY72: 0 | IZ72: 0
D73: Interest on Default | I73: EUR | K73: =K69*K60 -> 0 | L73: =L69*L60 -> 0 | M73: 0 | N73: 0 | O73: 0 | P73: 0 | Q73: 0 | R73: 0 | S73: 0 | T73: 0 | U73: 0 | V73: 0 | W73: 0 | X73: 0 | Y73: 0 | Z73: 0 | AA73: 0 | AB73: 0 | AC73: 0 | AD73: 0 | AE73: 0 | AF73: 0 | AG73: 0 | AH73: 0 | AI73: 0 | AJ73: 0 | AK73: 0 | AL73: 0 | AM73: 0 | AN73: 0 | AO73: 0 | AP73: 0 | AQ73: 0 | AR73: 0 | AS73: 0 | AT73: 0 | AU73: 0 | AV73: 0 | AW73: 0 | AX73: 0 | AY73: 0 | AZ73: 0 | BA73: 0 | BB73: 0 | BC73: 0 | BD73: 0 | BE73: 0 | BF73: 0 | BG73: 0 | BH73: 0 | BI73: 0 | BJ73: 0 | BK73: 0 | BL73: 0 | BM73: 0 | BN73: 0 | BO73: 0 | BP73: 0 | BQ73: 0 | BR73: 0 | BS73: 0 | BT73: 0 | BU73: 0 | BV73: 0 | BW73: 0 | BX73: =BX69*BX60 -> 0 | BY73: 0 | BZ73: 0 | CA73: 0 | CB73: 0 | CC73: 0 | CD73: 0 | CE73: 0 | CF73: 0 | CG73: 0 | CH73: 0 | CI73: 0 | CJ73: 0 | CK73: 0 | CL73: 0 | CM73: 0 | CN73: 0 | CO73: 0 | CP73: 0 | CQ73: 0 | CR73: 0 | CS73: 0 | CT73: 0 | CU73: 0 | CV73: 0 | CW73: 0 | CX73: 0 | CY73: 0 | CZ73: 0 | DA73: 0 | DB73: 0 | DC73: 0 | DD73: 0 | DE73: 0 | DF73: 0 | DG73: 0 | DH73: 0 | DI73: 0 | DJ73: 0 | DK73: 0 | DL73: 0 | DM73: 0 | DN73: 0 | DO73: 0 | DP73: 0 | DQ73: 0 | DR73: 0 | DS73: 0 | DT73: 0 | DU73: 0 | DV73: 0 | DW73: 0 | DX73: 0 | DY73: 0 | DZ73: 0 | EA73: 0 | EB73: 0 | EC73: 0 | ED73: 0 | EE73: 0 | EF73: 0 | EG73: 0 | EH73: 0 | EI73: 0 | EJ73: =EJ69*EJ60 -> 0 | EK73: 0 | EL73: 0 | EM73: 0 | EN73: 0 | EO73: 0 | EP73: 0 | EQ73: 0 | ER73: 0 | ES73: 0 | ET73: 0 | EU73: 0 | EV73: 0 | EW73: 0 | EX73: 0 | EY73: 0 | EZ73: 0 | FA73: 0 | FB73: 0 | FC73: 0 | FD73: 0 | FE73: 0 | FF73: 0 | FG73: 0 | FH73: 0 | FI73: 0 | FJ73: 0 | FK73: 0 | FL73: 0 | FM73: 0 | FN73: 0 | FO73: 0 | FP73: 0 | FQ73: 0 | FR73: 0 | FS73: 0 | FT73: 0 | FU73: 0 | FV73: 0 | FW73: 0 | FX73: 0 | FY73: 0 | FZ73: 0 | GA73: 0 | GB73: 0 | GC73: 0 | GD73: 0 | GE73: 0 | GF73: 0 | GG73: 0 | GH73: 0 | GI73: 0 | GJ73: 0 | GK73: 0 | GL73: 0 | GM73: 0 | GN73: 0 | GO73: 0 | GP73: 0 | GQ73: 0 | GR73: 0 | GS73: 0 | GT73: 0 | GU73: 0 | GV73: =GV69*GV60 -> 0 | GW73: 0 | GX73: 0 | GY73: 0 | GZ73: 0 | HA73: 0 | HB73: 0 | HC73: 0 | HD73: 0 | HE73: 0 | HF73: 0 | HG73: 0 | HH73: 0 | HI73: 0 | HJ73: 0 | HK73: 0 | HL73: 0 | HM73: 0 | HN73: 0 | HO73: 0 | HP73: 0 | HQ73: 0 | HR73: 0 | HS73: 0 | HT73: 0 | HU73: 0 | HV73: 0 | HW73: 0 | HX73: 0 | HY73: 0 | HZ73: 0 | IA73: 0 | IB73: 0 | IC73: 0 | ID73: 0 | IE73: 0 | IF73: 0 | IG73: 0 | IH73: 0 | II73: 0 | IJ73: 0 | IK73: 0 | IL73: 0 | IM73: 0 | IN73: 0 | IO73: 0 | IP73: 0 | IQ73: 0 | IR73: 0 | IS73: 0 | IT73: 0 | IU73: 0 | IV73: 0 | IW73: 0 | IX73: 0 | IY73: 0 | IZ73: 0
D75: Default at Maturity | F75: =_xlfn.XLOOKUP(H9,10:10,72:72,0,-1) -> 0 | I75: EUR
B77: Cash Waterfall
D79: EBITDA | I79: EUR | K79: =K25 -> 0 | L79: 0 | M79: 0 | N79: 101000 | O79: 102010 | P79: 103030.1 | Q79: 104060.401 | R79: 105101.005 | S79: 106152.0151 | T79: 107213.5352 | U79: 108285.6706 | V79: 109368.5273 | W79: 110462.2125 | X79: 111566.8347 | Y79: 112682.503 | Z79: 113809.328 | AA79: 114947.4213 | AB79: 116096.8955 | AC79: 117257.8645 | AD79: 118430.4431 | AE79: 119614.7476 | AF79: 120810.895 | AG79: 122019.004 | AH79: 123239.194 | AI79: 124471.586 | AJ79: 125716.3018 | AK79: 126973.4649 | AL79: 128243.1995 | AM79: 0 | AN79: 0 | AO79: 0 | AP79: 0 | AQ79: 0 | AR79: 0 | AS79: 0 | AT79: 0 | AU79: 0 | AV79: 0 | AW79: 0 | AX79: 0 | AY79: 0 | AZ79: 0 | BA79: 0 | BB79: 0 | BC79: 0 | BD79: 0 | BE79: 0 | BF79: 0 | BG79: 0 | BH79: 0 | BI79: 0 | BJ79: 0 | BK79: 0 | BL79: 0 | BM79: 0 | BN79: 0 | BO79: 0 | BP79: 0 | BQ79: 0 | BR79: 0 | BS79: 0 | BT79: 0 | BU79: 0 | BV79: 0 | BW79: =BW25 -> 0 | BX79: 0 | BY79: 0 | BZ79: 0 | CA79: 0 | CB79: 0 | CC79: 0 | CD79: 0 | CE79: 0 | CF79: 0 | CG79: 0 | CH79: 0 | CI79: 0 | CJ79: 0 | CK79: 0 | CL79: 0 | CM79: 0 | CN79: 0 | CO79: 0 | CP79: 0 | CQ79: 0 | CR79: 0 | CS79: 0 | CT79: 0 | CU79: 0 | CV79: 0 | CW79: 0 | CX79: 0 | CY79: 0 | CZ79: 0 | DA79: 0 | DB79: 0 | DC79: 0 | DD79: 0 | DE79: 0 | DF79: 0 | DG79: 0 | DH79: 0 | DI79: 0 | DJ79: 0 | DK79: 0 | DL79: 0 | DM79: 0 | DN79: 0 | DO79: 0 | DP79: 0 | DQ79: 0 | DR79: 0 | DS79: 0 | DT79: 0 | DU79: 0 | DV79: 0 | DW79: 0 | DX79: 0 | DY79: 0 | DZ79: 0 | EA79: 0 | EB79: 0 | EC79: 0 | ED79: 0 | EE79: 0 | EF79: 0 | EG79: 0 | EH79: 0 | EI79: =EI25 -> 0 | EJ79: 0 | EK79: 0 | EL79: 0 | EM79: 0 | EN79: 0 | EO79: 0 | EP79: 0 | EQ79: 0 | ER79: 0 | ES79: 0 | ET79: 0 | EU79: 0 | EV79: 0 | EW79: 0 | EX79: 0 | EY79: 0 | EZ79: 0 | FA79: 0 | FB79: 0 | FC79: 0 | FD79: 0 | FE79: 0 | FF79: 0 | FG79: 0 | FH79: 0 | FI79: 0 | FJ79: 0 | FK79: 0 | FL79: 0 | FM79: 0 | FN79: 0 | FO79: 0 | FP79: 0 | FQ79: 0 | FR79: 0 | FS79: 0 | FT79: 0 | FU79: 0 | FV79: 0 | FW79: 0 | FX79: 0 | FY79: 0 | FZ79: 0 | GA79: 0 | GB79: 0 | GC79: 0 | GD79: 0 | GE79: 0 | GF79: 0 | GG79: 0 | GH79: 0 | GI79: 0 | GJ79: 0 | GK79: 0 | GL79: 0 | GM79: 0 | GN79: 0 | GO79: 0 | GP79: 0 | GQ79: 0 | GR79: 0 | GS79: 0 | GT79: 0 | GU79: =GU25 -> 0 | GV79: 0 | GW79: 0 | GX79: 0 | GY79: 0 | GZ79: 0 | HA79: 0 | HB79: 0 | HC79: 0 | HD79: 0 | HE79: 0 | HF79: 0 | HG79: 0 | HH79: 0 | HI79: 0 | HJ79: 0 | HK79: 0 | HL79: 0 | HM79: 0 | HN79: 0 | HO79: 0 | HP79: 0 | HQ79: 0 | HR79: 0 | HS79: 0 | HT79: 0 | HU79: 0 | HV79: 0 | HW79: 0 | HX79: 0 | HY79: 0 | HZ79: 0 | IA79: 0 | IB79: 0 | IC79: 0 | ID79: 0 | IE79: 0 | IF79: 0 | IG79: 0 | IH79: 0 | II79: 0 | IJ79: 0 | IK79: 0 | IL79: 0 | IM79: 0 | IN79: 0 | IO79: 0 | IP79: 0 | IQ79: 0 | IR79: 0 | IS79: 0 | IT79: 0 | IU79: 0 | IV79: 0 | IW79: 0 | IX79: 0 | IY79: 0 | IZ79: 0
D80: Less: Debt Service | I80: EUR | K80: =(K65)*1 -> 0 | L80: 0 | M80: 0 | N80: 86101.28164 | O80: 86101.28164 | P80: 86101.28164 | Q80: 86101.28164 | R80: 86101.28164 | S80: 86101.28164 | T80: 86101.28164 | U80: 86101.28164 | V80: 86101.28164 | W80: 86101.28164 | X80: 86101.28164 | Y80: 86101.28164 | Z80: 86101.28164 | AA80: 86101.28164 | AB80: 86101.28164 | AC80: 86101.28164 | AD80: 86101.28164 | AE80: 86101.28164 | AF80: 86101.28164 | AG80: 86101.28164 | AH80: 0 | AI80: 0 | AJ80: 0 | AK80: 0 | AL80: 0 | AM80: 0 | AN80: 0 | AO80: 0 | AP80: 0 | AQ80: 0 | AR80: 0 | AS80: 0 | AT80: 0 | AU80: 0 | AV80: 0 | AW80: 0 | AX80: 0 | AY80: 0 | AZ80: 0 | BA80: 0 | BB80: 0 | BC80: 0 | BD80: 0 | BE80: 0 | BF80: 0 | BG80: 0 | BH80: 0 | BI80: 0 | BJ80: 0 | BK80: 0 | BL80: 0 | BM80: 0 | BN80: 0 | BO80: 0 | BP80: 0 | BQ80: 0 | BR80: 0 | BS80: 0 | BT80: 0 | BU80: 0 | BV80: 0 | BW80: =(BW65)*1 -> 0 | BX80: 0 | BY80: 0 | BZ80: 0 | CA80: 0 | CB80: 0 | CC80: 0 | CD80: 0 | CE80: 0 | CF80: 0 | CG80: 0 | CH80: 0 | CI80: 0 | CJ80: 0 | CK80: 0 | CL80: 0 | CM80: 0 | CN80: 0 | CO80: 0 | CP80: 0 | CQ80: 0 | CR80: 0 | CS80: 0 | CT80: 0 | CU80: 0 | CV80: 0 | CW80: 0 | CX80: 0 | CY80: 0 | CZ80: 0 | DA80: 0 | DB80: 0 | DC80: 0 | DD80: 0 | DE80: 0 | DF80: 0 | DG80: 0 | DH80: 0 | DI80: 0 | DJ80: 0 | DK80: 0 | DL80: 0 | DM80: 0 | DN80: 0 | DO80: 0 | DP80: 0 | DQ80: 0 | DR80: 0 | DS80: 0 | DT80: 0 | DU80: 0 | DV80: 0 | DW80: 0 | DX80: 0 | DY80: 0 | DZ80: 0 | EA80: 0 | EB80: 0 | EC80: 0 | ED80: 0 | EE80: 0 | EF80: 0 | EG80: 0 | EH80: 0 | EI80: =(EI65)*1 -> 0 | EJ80: 0 | EK80: 0 | EL80: 0 | EM80: 0 | EN80: 0 | EO80: 0 | EP80: 0 | EQ80: 0 | ER80: 0 | ES80: 0 | ET80: 0 | EU80: 0 | EV80: 0 | EW80: 0 | EX80: 0 | EY80: 0 | EZ80: 0 | FA80: 0 | FB80: 0 | FC80: 0 | FD80: 0 | FE80: 0 | FF80: 0 | FG80: 0 | FH80: 0 | FI80: 0 | FJ80: 0 | FK80: 0 | FL80: 0 | FM80: 0 | FN80: 0 | FO80: 0 | FP80: 0 | FQ80: 0 | FR80: 0 | FS80: 0 | FT80: 0 | FU80: 0 | FV80: 0 | FW80: 0 | FX80: 0 | FY80: 0 | FZ80: 0 | GA80: 0 | GB80: 0 | GC80: 0 | GD80: 0 | GE80: 0 | GF80: 0 | GG80: 0 | GH80: 0 | GI80: 0 | GJ80: 0 | GK80: 0 | GL80: 0 | GM80: 0 | GN80: 0 | GO80: 0 | GP80: 0 | GQ80: 0 | GR80: 0 | GS80: 0 | GT80: 0 | GU80: =(GU65)*1 -> 0 | GV80: 0 | GW80: 0 | GX80: 0 | GY80: 0 | GZ80: 0 | HA80: 0 | HB80: 0 | HC80: 0 | HD80: 0 | HE80: 0 | HF80: 0 | HG80: 0 | HH80: 0 | HI80: 0 | HJ80: 0 | HK80: 0 | HL80: 0 | HM80: 0 | HN80: 0 | HO80: 0 | HP80: 0 | HQ80: 0 | HR80: 0 | HS80: 0 | HT80: 0 | HU80: 0 | HV80: 0 | HW80: 0 | HX80: 0 | HY80: 0 | HZ80: 0 | IA80: 0 | IB80: 0 | IC80: 0 | ID80: 0 | IE80: 0 | IF80: 0 | IG80: 0 | IH80: 0 | II80: 0 | IJ80: 0 | IK80: 0 | IL80: 0 | IM80: 0 | IN80: 0 | IO80: 0 | IP80: 0 | IQ80: 0 | IR80: 0 | IS80: 0 | IT80: 0 | IU80: 0 | IV80: 0 | IW80: 0 | IX80: 0 | IY80: 0 | IZ80: 0
D81: Less: Interest on Default | I81: EUR | K81: =K73 -> 0 | L81: 0 | M81: 0 | N81: 0 | O81: 0 | P81: 0 | Q81: 0 | R81: 0 | S81: 0 | T81: 0 | U81: 0 | V81: 0 | W81: 0 | X81: 0 | Y81: 0 | Z81: 0 | AA81: 0 | AB81: 0 | AC81: 0 | AD81: 0 | AE81: 0 | AF81: 0 | AG81: 0 | AH81: 0 | AI81: 0 | AJ81: 0 | AK81: 0 | AL81: 0 | AM81: 0 | AN81: 0 | AO81: 0 | AP81: 0 | AQ81: 0 | AR81: 0 | AS81: 0 | AT81: 0 | AU81: 0 | AV81: 0 | AW81: 0 | AX81: 0 | AY81: 0 | AZ81: 0 | BA81: 0 | BB81: 0 | BC81: 0 | BD81: 0 | BE81: 0 | BF81: 0 | BG81: 0 | BH81: 0 | BI81: 0 | BJ81: 0 | BK81: 0 | BL81: 0 | BM81: 0 | BN81: 0 | BO81: 0 | BP81: 0 | BQ81: 0 | BR81: 0 | BS81: 0 | BT81: 0 | BU81: 0 | BV81: 0 | BW81: =BW73 -> 0 | BX81: 0 | BY81: 0 | BZ81: 0 | CA81: 0 | CB81: 0 | CC81: 0 | CD81: 0 | CE81: 0 | CF81: 0 | CG81: 0 | CH81: 0 | CI81: 0 | CJ81: 0 | CK81: 0 | CL81: 0 | CM81: 0 | CN81: 0 | CO81: 0 | CP81: 0 | CQ81: 0 | CR81: 0 | CS81: 0 | CT81: 0 | CU81: 0 | CV81: 0 | CW81: 0 | CX81: 0 | CY81: 0 | CZ81: 0 | DA81: 0 | DB81: 0 | DC81: 0 | DD81: 0 | DE81: 0 | DF81: 0 | DG81: 0 | DH81: 0 | DI81: 0 | DJ81: 0 | DK81: 0 | DL81: 0 | DM81: 0 | DN81: 0 | DO81: 0 | DP81: 0 | DQ81: 0 | DR81: 0 | DS81: 0 | DT81: 0 | DU81: 0 | DV81: 0 | DW81: 0 | DX81: 0 | DY81: 0 | DZ81: 0 | EA81: 0 | EB81: 0 | EC81: 0 | ED81: 0 | EE81: 0 | EF81: 0 | EG81: 0 | EH81: 0 | EI81: =EI73 -> 0 | EJ81: 0 | EK81: 0 | EL81: 0 | EM81: 0 | EN81: 0 | EO81: 0 | EP81: 0 | EQ81: 0 | ER81: 0 | ES81: 0 | ET81: 0 | EU81: 0 | EV81: 0 | EW81: 0 | EX81: 0 | EY81: 0 | EZ81: 0 | FA81: 0 | FB81: 0 | FC81: 0 | FD81: 0 | FE81: 0 | FF81: 0 | FG81: 0 | FH81: 0 | FI81: 0 | FJ81: 0 | FK81: 0 | FL81: 0 | FM81: 0 | FN81: 0 | FO81: 0 | FP81: 0 | FQ81: 0 | FR81: 0 | FS81: 0 | FT81: 0 | FU81: 0 | FV81: 0 | FW81: 0 | FX81: 0 | FY81: 0 | FZ81: 0 | GA81: 0 | GB81: 0 | GC81: 0 | GD81: 0 | GE81: 0 | GF81: 0 | GG81: 0 | GH81: 0 | GI81: 0 | GJ81: 0 | GK81: 0 | GL81: 0 | GM81: 0 | GN81: 0 | GO81: 0 | GP81: 0 | GQ81: 0 | GR81: 0 | GS81: 0 | GT81: 0 | GU81: =GU73 -> 0 | GV81: 0 | GW81: 0 | GX81: 0 | GY81: 0 | GZ81: 0 | HA81: 0 | HB81: 0 | HC81: 0 | HD81: 0 | HE81: 0 | HF81: 0 | HG81: 0 | HH81: 0 | HI81: 0 | HJ81: 0 | HK81: 0 | HL81: 0 | HM81: 0 | HN81: 0 | HO81: 0 | HP81: 0 | HQ81: 0 | HR81: 0 | HS81: 0 | HT81: 0 | HU81: 0 | HV81: 0 | HW81: 0 | HX81: 0 | HY81: 0 | HZ81: 0 | IA81: 0 | IB81: 0 | IC81: 0 | ID81: 0 | IE81: 0 | IF81: 0 | IG81: 0 | IH81: 0 | II81: 0 | IJ81: 0 | IK81: 0 | IL81: 0 | IM81: 0 | IN81: 0 | IO81: 0 | IP81: 0 | IQ81: 0 | IR81: 0 | IS81: 0 | IT81: 0 | IU81: 0 | IV81: 0 | IW81: 0 | IX81: 0 | IY81: 0 | IZ81: 0
D82: Cash Flow After Debt Service | I82: EUR | K82: =K79-K80-K81 -> 0 | L82: =L79-L80-L81 -> 0 | M82: 0 | N82: 14898.71836 | O82: 15908.71836 | P82: 16928.81836 | Q82: 17959.11936 | R82: 18999.72337 | S82: 20050.73342 | T82: 21112.25357 | U82: 22184.38892 | V82: 23267.24563 | W82: 24360.9309 | X82: 25465.55302 | Y82: 26581.22137 | Z82: 27708.0464 | AA82: 28846.13968 | AB82: 29995.61389 | AC82: 31156.58285 | AD82: 32329.16149 | AE82: 33513.46593 | AF82: 34709.6134 | AG82: 35917.72235 | AH82: 123239.194 | AI82: 124471.586 | AJ82: 125716.3018 | AK82: 126973.4649 | AL82: 128243.1995 | AM82: 0 | AN82: 0 | AO82: 0 | AP82: 0 | AQ82: 0 | AR82: 0 | AS82: 0 | AT82: 0 | AU82: 0 | AV82: 0 | AW82: 0 | AX82: 0 | AY82: 0 | AZ82: 0 | BA82: 0 | BB82: 0 | BC82: 0 | BD82: 0 | BE82: 0 | BF82: 0 | BG82: 0 | BH82: 0 | BI82: 0 | BJ82: 0 | BK82: 0 | BL82: 0 | BM82: 0 | BN82: 0 | BO82: 0 | BP82: 0 | BQ82: 0 | BR82: 0 | BS82: 0 | BT82: 0 | BU82: 0 | BV82: 0 | BW82: 0 | BX82: =BX79-BX80-BX81 -> 0 | BY82: 0 | BZ82: 0 | CA82: 0 | CB82: 0 | CC82: 0 | CD82: 0 | CE82: 0 | CF82: 0 | CG82: 0 | CH82: 0 | CI82: 0 | CJ82: 0 | CK82: 0 | CL82: 0 | CM82: 0 | CN82: 0 | CO82: 0 | CP82: 0 | CQ82: 0 | CR82: 0 | CS82: 0 | CT82: 0 | CU82: 0 | CV82: 0 | CW82: 0 | CX82: 0 | CY82: 0 | CZ82: 0 | DA82: 0 | DB82: 0 | DC82: 0 | DD82: 0 | DE82: 0 | DF82: 0 | DG82: 0 | DH82: 0 | DI82: 0 | DJ82: 0 | DK82: 0 | DL82: 0 | DM82: 0 | DN82: 0 | DO82: 0 | DP82: 0 | DQ82: 0 | DR82: 0 | DS82: 0 | DT82: 0 | DU82: 0 | DV82: 0 | DW82: 0 | DX82: 0 | DY82: 0 | DZ82: 0 | EA82: 0 | EB82: 0 | EC82: 0 | ED82: 0 | EE82: 0 | EF82: 0 | EG82: 0 | EH82: 0 | EI82: 0 | EJ82: =EJ79-EJ80-EJ81 -> 0 | EK82: 0 | EL82: 0 | EM82: 0 | EN82: 0 | EO82: 0 | EP82: 0 | EQ82: 0 | ER82: 0 | ES82: 0 | ET82: 0 | EU82: 0 | EV82: 0 | EW82: 0 | EX82: 0 | EY82: 0 | EZ82: 0 | FA82: 0 | FB82: 0 | FC82: 0 | FD82: 0 | FE82: 0 | FF82: 0 | FG82: 0 | FH82: 0 | FI82: 0 | FJ82: 0 | FK82: 0 | FL82: 0 | FM82: 0 | FN82: 0 | FO82: 0 | FP82: 0 | FQ82: 0 | FR82: 0 | FS82: 0 | FT82: 0 | FU82: 0 | FV82: 0 | FW82: 0 | FX82: 0 | FY82: 0 | FZ82: 0 | GA82: 0 | GB82: 0 | GC82: 0 | GD82: 0 | GE82: 0 | GF82: 0 | GG82: 0 | GH82: 0 | GI82: 0 | GJ82: 0 | GK82: 0 | GL82: 0 | GM82: 0 | GN82: 0 | GO82: 0 | GP82: 0 | GQ82: 0 | GR82: 0 | GS82: 0 | GT82: 0 | GU82: 0 | GV82: =GV79-GV80-GV81 -> 0 | GW82: 0 | GX82: 0 | GY82: 0 | GZ82: 0 | HA82: 0 | HB82: 0 | HC82: 0 | HD82: 0 | HE82: 0 | HF82: 0 | HG82: 0 | HH82: 0 | HI82: 0 | HJ82: 0 | HK82: 0 | HL82: 0 | HM82: 0 | HN82: 0 | HO82: 0 | HP82: 0 | HQ82: 0 | HR82: 0 | HS82: 0 | HT82: 0 | HU82: 0 | HV82: 0 | HW82: 0 | HX82: 0 | HY82: 0 | HZ82: 0 | IA82: 0 | IB82: 0 | IC82: 0 | ID82: 0 | IE82: 0 | IF82: 0 | IG82: 0 | IH82: 0 | II82: 0 | IJ82: 0 | IK82: 0 | IL82: 0 | IM82: 0 | IN82: 0 | IO82: 0 | IP82: 0 | IQ82: 0 | IR82: 0 | IS82: 0 | IT82: 0 | IU82: 0 | IV82: 0 | IW82: 0 | IX82: 0 | IY82: 0 | IZ82: 0
D83: Add: Default | I83: EUR | K83: =MAX(-K82,0) -> 0 | L83: =MAX(-L82,0) -> 0 | M83: 0 | N83: 0 | O83: 0 | P83: 0 | Q83: 0 | R83: 0 | S83: 0 | T83: 0 | U83: 0 | V83: 0 | W83: 0 | X83: 0 | Y83: 0 | Z83: 0 | AA83: 0 | AB83: 0 | AC83: 0 | AD83: 0 | AE83: 0 | AF83: 0 | AG83: 0 | AH83: 0 | AI83: 0 | AJ83: 0 | AK83: 0 | AL83: 0 | AM83: 0 | AN83: 0 | AO83: 0 | AP83: 0 | AQ83: 0 | AR83: 0 | AS83: 0 | AT83: 0 | AU83: 0 | AV83: 0 | AW83: 0 | AX83: 0 | AY83: 0 | AZ83: 0 | BA83: 0 | BB83: 0 | BC83: 0 | BD83: 0 | BE83: 0 | BF83: 0 | BG83: 0 | BH83: 0 | BI83: 0 | BJ83: 0 | BK83: 0 | BL83: 0 | BM83: 0 | BN83: 0 | BO83: 0 | BP83: 0 | BQ83: 0 | BR83: 0 | BS83: 0 | BT83: 0 | BU83: 0 | BV83: 0 | BW83: 0 | BX83: =MAX(-BX82,0) -> 0 | BY83: 0 | BZ83: 0 | CA83: 0 | CB83: 0 | CC83: 0 | CD83: 0 | CE83: 0 | CF83: 0 | CG83: 0 | CH83: 0 | CI83: 0 | CJ83: 0 | CK83: 0 | CL83: 0 | CM83: 0 | CN83: 0 | CO83: 0 | CP83: 0 | CQ83: 0 | CR83: 0 | CS83: 0 | CT83: 0 | CU83: 0 | CV83: 0 | CW83: 0 | CX83: 0 | CY83: 0 | CZ83: 0 | DA83: 0 | DB83: 0 | DC83: 0 | DD83: 0 | DE83: 0 | DF83: 0 | DG83: 0 | DH83: 0 | DI83: 0 | DJ83: 0 | DK83: 0 | DL83: 0 | DM83: 0 | DN83: 0 | DO83: 0 | DP83: 0 | DQ83: 0 | DR83: 0 | DS83: 0 | DT83: 0 | DU83: 0 | DV83: 0 | DW83: 0 | DX83: 0 | DY83: 0 | DZ83: 0 | EA83: 0 | EB83: 0 | EC83: 0 | ED83: 0 | EE83: 0 | EF83: 0 | EG83: 0 | EH83: 0 | EI83: 0 | EJ83: =MAX(-EJ82,0) -> 0 | EK83: 0 | EL83: 0 | EM83: 0 | EN83: 0 | EO83: 0 | EP83: 0 | EQ83: 0 | ER83: 0 | ES83: 0 | ET83: 0 | EU83: 0 | EV83: 0 | EW83: 0 | EX83: 0 | EY83: 0 | EZ83: 0 | FA83: 0 | FB83: 0 | FC83: 0 | FD83: 0 | FE83: 0 | FF83: 0 | FG83: 0 | FH83: 0 | FI83: 0 | FJ83: 0 | FK83: 0 | FL83: 0 | FM83: 0 | FN83: 0 | FO83: 0 | FP83: 0 | FQ83: 0 | FR83: 0 | FS83: 0 | FT83: 0 | FU83: 0 | FV83: 0 | FW83: 0 | FX83: 0 | FY83: 0 | FZ83: 0 | GA83: 0 | GB83: 0 | GC83: 0 | GD83: 0 | GE83: 0 | GF83: 0 | GG83: 0 | GH83: 0 | GI83: 0 | GJ83: 0 | GK83: 0 | GL83: 0 | GM83: 0 | GN83: 0 | GO83: 0 | GP83: 0 | GQ83: 0 | GR83: 0 | GS83: 0 | GT83: 0 | GU83: 0 | GV83: =MAX(-GV82,0) -> 0 | GW83: 0 | GX83: 0 | GY83: 0 | GZ83: 0 | HA83: 0 | HB83: 0 | HC83: 0 | HD83: 0 | HE83: 0 | HF83: 0 | HG83: 0 | HH83: 0 | HI83: 0 | HJ83: 0 | HK83: 0 | HL83: 0 | HM83: 0 | HN83: 0 | HO83: 0 | HP83: 0 | HQ83: 0 | HR83: 0 | HS83: 0 | HT83: 0 | HU83: 0 | HV83: 0 | HW83: 0 | HX83: 0 | HY83: 0 | HZ83: 0 | IA83: 0 | IB83: 0 | IC83: 0 | ID83: 0 | IE83: 0 | IF83: 0 | IG83: 0 | IH83: 0 | II83: 0 | IJ83: 0 | IK83: 0 | IL83: 0 | IM83: 0 | IN83: 0 | IO83: 0 | IP83: 0 | IQ83: 0 | IR83: 0 | IS83: 0 | IT83: 0 | IU83: 0 | IV83: 0 | IW83: 0 | IX83: 0 | IY83: 0 | IZ83: 0
D84: Less: Repayment of Default | I84: EUR | K84: =MIN(MAX(K82,0),K69) -> 0 | L84: 0 | M84: 0 | N84: 0 | O84: 0 | P84: 0 | Q84: 0 | R84: 0 | S84: 0 | T84: 0 | U84: 0 | V84: 0 | W84: 0 | X84: 0 | Y84: 0 | Z84: 0 | AA84: 0 | AB84: 0 | AC84: 0 | AD84: 0 | AE84: 0 | AF84: 0 | AG84: 0 | AH84: 0 | AI84: 0 | AJ84: 0 | AK84: 0 | AL84: 0 | AM84: 0 | AN84: 0 | AO84: 0 | AP84: 0 | AQ84: 0 | AR84: 0 | AS84: 0 | AT84: 0 | AU84: 0 | AV84: 0 | AW84: 0 | AX84: 0 | AY84: 0 | AZ84: 0 | BA84: 0 | BB84: 0 | BC84: 0 | BD84: 0 | BE84: 0 | BF84: 0 | BG84: 0 | BH84: 0 | BI84: 0 | BJ84: 0 | BK84: 0 | BL84: 0 | BM84: 0 | BN84: 0 | BO84: 0 | BP84: 0 | BQ84: 0 | BR84: 0 | BS84: 0 | BT84: 0 | BU84: 0 | BV84: 0 | BW84: =MIN(MAX(BW82,0),BW69) -> 0 | BX84: 0 | BY84: 0 | BZ84: 0 | CA84: 0 | CB84: 0 | CC84: 0 | CD84: 0 | CE84: 0 | CF84: 0 | CG84: 0 | CH84: 0 | CI84: 0 | CJ84: 0 | CK84: 0 | CL84: 0 | CM84: 0 | CN84: 0 | CO84: 0 | CP84: 0 | CQ84: 0 | CR84: 0 | CS84: 0 | CT84: 0 | CU84: 0 | CV84: 0 | CW84: 0 | CX84: 0 | CY84: 0 | CZ84: 0 | DA84: 0 | DB84: 0 | DC84: 0 | DD84: 0 | DE84: 0 | DF84: 0 | DG84: 0 | DH84: 0 | DI84: 0 | DJ84: 0 | DK84: 0 | DL84: 0 | DM84: 0 | DN84: 0 | DO84: 0 | DP84: 0 | DQ84: 0 | DR84: 0 | DS84: 0 | DT84: 0 | DU84: 0 | DV84: 0 | DW84: 0 | DX84: 0 | DY84: 0 | DZ84: 0 | EA84: 0 | EB84: 0 | EC84: 0 | ED84: 0 | EE84: 0 | EF84: 0 | EG84: 0 | EH84: 0 | EI84: =MIN(MAX(EI82,0),EI69) -> 0 | EJ84: 0 | EK84: 0 | EL84: 0 | EM84: 0 | EN84: 0 | EO84: 0 | EP84: 0 | EQ84: 0 | ER84: 0 | ES84: 0 | ET84: 0 | EU84: 0 | EV84: 0 | EW84: 0 | EX84: 0 | EY84: 0 | EZ84: 0 | FA84: 0 | FB84: 0 | FC84: 0 | FD84: 0 | FE84: 0 | FF84: 0 | FG84: 0 | FH84: 0 | FI84: 0 | FJ84: 0 | FK84: 0 | FL84: 0 | FM84: 0 | FN84: 0 | FO84: 0 | FP84: 0 | FQ84: 0 | FR84: 0 | FS84: 0 | FT84: 0 | FU84: 0 | FV84: 0 | FW84: 0 | FX84: 0 | FY84: 0 | FZ84: 0 | GA84: 0 | GB84: 0 | GC84: 0 | GD84: 0 | GE84: 0 | GF84: 0 | GG84: 0 | GH84: 0 | GI84: 0 | GJ84: 0 | GK84: 0 | GL84: 0 | GM84: 0 | GN84: 0 | GO84: 0 | GP84: 0 | GQ84: 0 | GR84: 0 | GS84: 0 | GT84: 0 | GU84: =MIN(MAX(GU82,0),GU69) -> 0 | GV84: 0 | GW84: 0 | GX84: 0 | GY84: 0 | GZ84: 0 | HA84: 0 | HB84: 0 | HC84: 0 | HD84: 0 | HE84: 0 | HF84: 0 | HG84: 0 | HH84: 0 | HI84: 0 | HJ84: 0 | HK84: 0 | HL84: 0 | HM84: 0 | HN84: 0 | HO84: 0 | HP84: 0 | HQ84: 0 | HR84: 0 | HS84: 0 | HT84: 0 | HU84: 0 | HV84: 0 | HW84: 0 | HX84: 0 | HY84: 0 | HZ84: 0 | IA84: 0 | IB84: 0 | IC84: 0 | ID84: 0 | IE84: 0 | IF84: 0 | IG84: 0 | IH84: 0 | II84: 0 | IJ84: 0 | IK84: 0 | IL84: 0 | IM84: 0 | IN84: 0 | IO84: 0 | IP84: 0 | IQ84: 0 | IR84: 0 | IS84: 0 | IT84: 0 | IU84: 0 | IV84: 0 | IW84: 0 | IX84: 0 | IY84: 0 | IZ84: 0
D85: Dividends | I85: EUR | K85: =K82+K83-K84 -> 0 | L85: =L82+L83-L84 -> 0 | M85: 0 | N85: 14898.71836 | O85: 15908.71836 | P85: 16928.81836 | Q85: 17959.11936 | R85: 18999.72337 | S85: 20050.73342 | T85: 21112.25357 | U85: 22184.38892 | V85: 23267.24563 | W85: 24360.9309 | X85: 25465.55302 | Y85: 26581.22137 | Z85: 27708.0464 | AA85: 28846.13968 | AB85: 29995.61389 | AC85: 31156.58285 | AD85: 32329.16149 | AE85: 33513.46593 | AF85: 34709.6134 | AG85: 35917.72235 | AH85: 123239.194 | AI85: 124471.586 | AJ85: 125716.3018 | AK85: 126973.4649 | AL85: 128243.1995 | AM85: 0 | AN85: 0 | AO85: 0 | AP85: 0 | AQ85: 0 | AR85: 0 | AS85: 0 | AT85: 0 | AU85: 0 | AV85: 0 | AW85: 0 | AX85: 0 | AY85: 0 | AZ85: 0 | BA85: 0 | BB85: 0 | BC85: 0 | BD85: 0 | BE85: 0 | BF85: 0 | BG85: 0 | BH85: 0 | BI85: 0 | BJ85: 0 | BK85: 0 | BL85: 0 | BM85: 0 | BN85: 0 | BO85: 0 | BP85: 0 | BQ85: 0 | BR85: 0 | BS85: 0 | BT85: 0 | BU85: 0 | BV85: 0 | BW85: 0 | BX85: =BX82+BX83-BX84 -> 0 | BY85: 0 | BZ85: 0 | CA85: 0 | CB85: 0 | CC85: 0 | CD85: 0 | CE85: 0 | CF85: 0 | CG85: 0 | CH85: 0 | CI85: 0 | CJ85: 0 | CK85: 0 | CL85: 0 | CM85: 0 | CN85: 0 | CO85: 0 | CP85: 0 | CQ85: 0 | CR85: 0 | CS85: 0 | CT85: 0 | CU85: 0 | CV85: 0 | CW85: 0 | CX85: 0 | CY85: 0 | CZ85: 0 | DA85: 0 | DB85: 0 | DC85: 0 | DD85: 0 | DE85: 0 | DF85: 0 | DG85: 0 | DH85: 0 | DI85: 0 | DJ85: 0 | DK85: 0 | DL85: 0 | DM85: 0 | DN85: 0 | DO85: 0 | DP85: 0 | DQ85: 0 | DR85: 0 | DS85: 0 | DT85: 0 | DU85: 0 | DV85: 0 | DW85: 0 | DX85: 0 | DY85: 0 | DZ85: 0 | EA85: 0 | EB85: 0 | EC85: 0 | ED85: 0 | EE85: 0 | EF85: 0 | EG85: 0 | EH85: 0 | EI85: 0 | EJ85: =EJ82+EJ83-EJ84 -> 0 | EK85: 0 | EL85: 0 | EM85: 0 | EN85: 0 | EO85: 0 | EP85: 0 | EQ85: 0 | ER85: 0 | ES85: 0 | ET85: 0 | EU85: 0 | EV85: 0 | EW85: 0 | EX85: 0 | EY85: 0 | EZ85: 0 | FA85: 0 | FB85: 0 | FC85: 0 | FD85: 0 | FE85: 0 | FF85: 0 | FG85: 0 | FH85: 0 | FI85: 0 | FJ85: 0 | FK85: 0 | FL85: 0 | FM85: 0 | FN85: 0 | FO85: 0 | FP85: 0 | FQ85: 0 | FR85: 0 | FS85: 0 | FT85: 0 | FU85: 0 | FV85: 0 | FW85: 0 | FX85: 0 | FY85: 0 | FZ85: 0 | GA85: 0 | GB85: 0 | GC85: 0 | GD85: 0 | GE85: 0 | GF85: 0 | GG85: 0 | GH85: 0 | GI85: 0 | GJ85: 0 | GK85: 0 | GL85: 0 | GM85: 0 | GN85: 0 | GO85: 0 | GP85: 0 | GQ85: 0 | GR85: 0 | GS85: 0 | GT85: 0 | GU85: 0 | GV85: =GV82+GV83-GV84 -> 0 | GW85: 0 | GX85: 0 | GY85: 0 | GZ85: 0 | HA85: 0 | HB85: 0 | HC85: 0 | HD85: 0 | HE85: 0 | HF85: 0 | HG85: 0 | HH85: 0 | HI85: 0 | HJ85: 0 | HK85: 0 | HL85: 0 | HM85: 0 | HN85: 0 | HO85: 0 | HP85: 0 | HQ85: 0 | HR85: 0 | HS85: 0 | HT85: 0 | HU85: 0 | HV85: 0 | HW85: 0 | HX85: 0 | HY85: 0 | HZ85: 0 | IA85: 0 | IB85: 0 | IC85: 0 | ID85: 0 | IE85: 0 | IF85: 0 | IG85: 0 | IH85: 0 | II85: 0 | IJ85: 0 | IK85: 0 | IL85: 0 | IM85: 0 | IN85: 0 | IO85: 0 | IP85: 0 | IQ85: 0 | IR85: 0 | IS85: 0 | IT85: 0 | IU85: 0 | IV85: 0 | IW85: 0 | IX85: 0 | IY85: 0 | IZ85: 0
B87: Ratios
D89: Equity Cash Flow | H89: =SUM(K89:XFD89) -> 850537.5168 | I89: EUR | K89: =K85-K41 -> -93333.33333 | L89: -93333.33333 | M89: -93333.33333 | N89: 14898.71836 | O89: 15908.71836 | P89: 16928.81836 | Q89: 17959.11936 | R89: 18999.72337 | S89: 20050.73342 | T89: 21112.25357 | U89: 22184.38892 | V89: 23267.24563 | W89: 24360.9309 | X89: 25465.55302 | Y89: 26581.22137 | Z89: 27708.0464 | AA89: 28846.13968 | AB89: 29995.61389 | AC89: 31156.58285 | AD89: 32329.16149 | AE89: 33513.46593 | AF89: 34709.6134 | AG89: 35917.72235 | AH89: 123239.194 | AI89: 124471.586 | AJ89: 125716.3018 | AK89: 126973.4649 | AL89: 128243.1995 | AM89: 0 | AN89: 0 | AO89: 0 | AP89: 0 | AQ89: 0 | AR89: 0 | AS89: 0 | AT89: 0 | AU89: 0 | AV89: 0 | AW89: 0 | AX89: 0 | AY89: 0 | AZ89: 0 | BA89: 0 | BB89: 0 | BC89: 0 | BD89: 0 | BE89: 0 | BF89: 0 | BG89: 0 | BH89: 0 | BI89: 0 | BJ89: 0 | BK89: 0 | BL89: 0 | BM89: 0 | BN89: 0 | BO89: 0 | BP89: 0 | BQ89: 0 | BR89: 0 | BS89: 0 | BT89: 0 | BU89: 0 | BV89: 0 | BW89: =BW85-BW41 -> 0 | BX89: 0 | BY89: 0 | BZ89: 0 | CA89: 0 | CB89: 0 | CC89: 0 | CD89: 0 | CE89: 0 | CF89: 0 | CG89: 0 | CH89: 0 | CI89: 0 | CJ89: 0 | CK89: 0 | CL89: 0 | CM89: 0 | CN89: 0 | CO89: 0 | CP89: 0 | CQ89: 0 | CR89: 0 | CS89: 0 | CT89: 0 | CU89: 0 | CV89: 0 | CW89: 0 | CX89: 0 | CY89: 0 | CZ89: 0 | DA89: 0 | DB89: 0 | DC89: 0 | DD89: 0 | DE89: 0 | DF89: 0 | DG89: 0 | DH89: 0 | DI89: 0 | DJ89: 0 | DK89: 0 | DL89: 0 | DM89: 0 | DN89: 0 | DO89: 0 | DP89: 0 | DQ89: 0 | DR89: 0 | DS89: 0 | DT89: 0 | DU89: 0 | DV89: 0 | DW89: 0 | DX89: 0 | DY89: 0 | DZ89: 0 | EA89: 0 | EB89: 0 | EC89: 0 | ED89: 0 | EE89: 0 | EF89: 0 | EG89: 0 | EH89: 0 | EI89: =EI85-EI41 -> 0 | EJ89: 0 | EK89: 0 | EL89: 0 | EM89: 0 | EN89: 0 | EO89: 0 | EP89: 0 | EQ89: 0 | ER89: 0 | ES89: 0 | ET89: 0 | EU89: 0 | EV89: 0 | EW89: 0 | EX89: 0 | EY89: 0 | EZ89: 0 | FA89: 0 | FB89: 0 | FC89: 0 | FD89: 0 | FE89: 0 | FF89: 0 | FG89: 0 | FH89: 0 | FI89: 0 | FJ89: 0 | FK89: 0 | FL89: 0 | FM89: 0 | FN89: 0 | FO89: 0 | FP89: 0 | FQ89: 0 | FR89: 0 | FS89: 0 | FT89: 0 | FU89: 0 | FV89: 0 | FW89: 0 | FX89: 0 | FY89: 0 | FZ89: 0 | GA89: 0 | GB89: 0 | GC89: 0 | GD89: 0 | GE89: 0 | GF89: 0 | GG89: 0 | GH89: 0 | GI89: 0 | GJ89: 0 | GK89: 0 | GL89: 0 | GM89: 0 | GN89: 0 | GO89: 0 | GP89: 0 | GQ89: 0 | GR89: 0 | GS89: 0 | GT89: 0 | GU89: =GU85-GU41 -> 0 | GV89: 0 | GW89: 0 | GX89: 0 | GY89: 0 | GZ89: 0 | HA89: 0 | HB89: 0 | HC89: 0 | HD89: 0 | HE89: 0 | HF89: 0 | HG89: 0 | HH89: 0 | HI89: 0 | HJ89: 0 | HK89: 0 | HL89: 0 | HM89: 0 | HN89: 0 | HO89: 0 | HP89: 0 | HQ89: 0 | HR89: 0 | HS89: 0 | HT89: 0 | HU89: 0 | HV89: 0 | HW89: 0 | HX89: 0 | HY89: 0 | HZ89: 0 | IA89: 0 | IB89: 0 | IC89: 0 | ID89: 0 | IE89: 0 | IF89: 0 | IG89: 0 | IH89: 0 | II89: 0 | IJ89: 0 | IK89: 0 | IL89: 0 | IM89: 0 | IN89: 0 | IO89: 0 | IP89: 0 | IQ89: 0 | IR89: 0 | IS89: 0 | IT89: 0 | IU89: 0 | IV89: 0 | IW89: 0 | IX89: 0 | IY89: 0 | IZ89: 0
D90: Equity IRR | E90: % | F90: =IFERROR(XIRR(K89:IZ89,K8:IZ8),FALSE) -> 0.0855960995 | I90: %
D92: Debt Cash Flow | E92: % | F92: =XIRR(K92:IZ92,K8:IZ8) -> 0.04038467705 | I92: EUR | K92: =K80+K81-K83+K84-K40 -> -373333.3333 | L92: -373333.3333 | M92: -373333.3333 | N92: 86101.28164 | O92: 86101.28164 | P92: 86101.28164 | Q92: 86101.28164 | R92: 86101.28164 | S92: 86101.28164 | T92: 86101.28164 | U92: 86101.28164 | V92: 86101.28164 | W92: 86101.28164 | X92: 86101.28164 | Y92: 86101.28164 | Z92: 86101.28164 | AA92: 86101.28164 | AB92: 86101.28164 | AC92: 86101.28164 | AD92: 86101.28164 | AE92: 86101.28164 | AF92: 86101.28164 | AG92: 86101.28164 | AH92: 0 | AI92: 0 | AJ92: 0 | AK92: 0 | AL92: 0 | AM92: 0 | AN92: 0 | AO92: 0 | AP92: 0 | AQ92: 0 | AR92: 0 | AS92: 0 | AT92: 0 | AU92: 0 | AV92: 0 | AW92: 0 | AX92: 0 | AY92: 0 | AZ92: 0 | BA92: 0 | BB92: 0 | BC92: 0 | BD92: 0 | BE92: 0 | BF92: 0 | BG92: 0 | BH92: 0 | BI92: 0 | BJ92: 0 | BK92: 0 | BL92: 0 | BM92: 0 | BN92: 0 | BO92: 0 | BP92: 0 | BQ92: 0 | BR92: 0 | BS92: 0 | BT92: 0 | BU92: 0 | BV92: 0 | BW92: =BW80+BW81-BW83+BW84-BW40 -> 0 | BX92: 0 | BY92: 0 | BZ92: 0 | CA92: 0 | CB92: 0 | CC92: 0 | CD92: 0 | CE92: 0 | CF92: 0 | CG92: 0 | CH92: 0 | CI92: 0 | CJ92: 0 | CK92: 0 | CL92: 0 | CM92: 0 | CN92: 0 | CO92: 0 | CP92: 0 | CQ92: 0 | CR92: 0 | CS92: 0 | CT92: 0 | CU92: 0 | CV92: 0 | CW92: 0 | CX92: 0 | CY92: 0 | CZ92: 0 | DA92: 0 | DB92: 0 | DC92: 0 | DD92: 0 | DE92: 0 | DF92: 0 | DG92: 0 | DH92: 0 | DI92: 0 | DJ92: 0 | DK92: 0 | DL92: 0 | DM92: 0 | DN92: 0 | DO92: 0 | DP92: 0 | DQ92: 0 | DR92: 0 | DS92: 0 | DT92: 0 | DU92: 0 | DV92: 0 | DW92: 0 | DX92: 0 | DY92: 0 | DZ92: 0 | EA92: 0 | EB92: 0 | EC92: 0 | ED92: 0 | EE92: 0 | EF92: 0 | EG92: 0 | EH92: 0 | EI92: =EI80+EI81-EI83+EI84-EI40 -> 0 | EJ92: 0 | EK92: 0 | EL92: 0 | EM92: 0 | EN92: 0 | EO92: 0 | EP92: 0 | EQ92: 0 | ER92: 0 | ES92: 0 | ET92: 0 | EU92: 0 | EV92: 0 | EW92: 0 | EX92: 0 | EY92: 0 | EZ92: 0 | FA92: 0 | FB92: 0 | FC92: 0 | FD92: 0 | FE92: 0 | FF92: 0 | FG92: 0 | FH92: 0 | FI92: 0 | FJ92: 0 | FK92: 0 | FL92: 0 | FM92: 0 | FN92: 0 | FO92: 0 | FP92: 0 | FQ92: 0 | FR92: 0 | FS92: 0 | FT92: 0 | FU92: 0 | FV92: 0 | FW92: 0 | FX92: 0 | FY92: 0 | FZ92: 0 | GA92: 0 | GB92: 0 | GC92: 0 | GD92: 0 | GE92: 0 | GF92: 0 | GG92: 0 | GH92: 0 | GI92: 0 | GJ92: 0 | GK92: 0 | GL92: 0 | GM92: 0 | GN92: 0 | GO92: 0 | GP92: 0 | GQ92: 0 | GR92: 0 | GS92: 0 | GT92: 0 | GU92: =GU80+GU81-GU83+GU84-GU40 -> 0 | GV92: 0 | GW92: 0 | GX92: 0 | GY92: 0 | GZ92: 0 | HA92: 0 | HB92: 0 | HC92: 0 | HD92: 0 | HE92: 0 | HF92: 0 | HG92: 0 | HH92: 0 | HI92: 0 | HJ92: 0 | HK92: 0 | HL92: 0 | HM92: 0 | HN92: 0 | HO92: 0 | HP92: 0 | HQ92: 0 | HR92: 0 | HS92: 0 | HT92: 0 | HU92: 0 | HV92: 0 | HW92: 0 | HX92: 0 | HY92: 0 | HZ92: 0 | IA92: 0 | IB92: 0 | IC92: 0 | ID92: 0 | IE92: 0 | IF92: 0 | IG92: 0 | IH92: 0 | II92: 0 | IJ92: 0 | IK92: 0 | IL92: 0 | IM92: 0 | IN92: 0 | IO92: 0 | IP92: 0 | IQ92: 0 | IR92: 0 | IS92: 0 | IT92: 0 | IU92: 0 | IV92: 0 | IW92: 0 | IX92: 0 | IY92: 0 | IZ92: 0
D94: CFADS =EBITDA | I94: EUR | K94: =IF(K9,K25) -> FALSE | L94: FALSE | M94: FALSE | N94: 101000 | O94: 102010 | P94: 103030.1 | Q94: 104060.401 | R94: 105101.005 | S94: 106152.0151 | T94: 107213.5352 | U94: 108285.6706 | V94: 109368.5273 | W94: 110462.2125 | X94: 111566.8347 | Y94: 112682.503 | Z94: 113809.328 | AA94: 114947.4213 | AB94: 116096.8955 | AC94: 117257.8645 | AD94: 118430.4431 | AE94: 119614.7476 | AF94: 120810.895 | AG94: 122019.004 | AH94: 123239.194 | AI94: 124471.586 | AJ94: 125716.3018 | AK94: 126973.4649 | AL94: 128243.1995 | AM94: FALSE | AN94: FALSE | AO94: FALSE | AP94: FALSE | AQ94: FALSE | AR94: FALSE | AS94: FALSE | AT94: FALSE | AU94: FALSE | AV94: FALSE | AW94: FALSE | AX94: FALSE | AY94: FALSE | AZ94: FALSE | BA94: FALSE | BB94: FALSE | BC94: FALSE | BD94: FALSE | BE94: FALSE | BF94: FALSE | BG94: FALSE | BH94: FALSE | BI94: FALSE | BJ94: FALSE | BK94: FALSE | BL94: FALSE | BM94: FALSE | BN94: FALSE | BO94: FALSE | BP94: FALSE | BQ94: FALSE | BR94: FALSE | BS94: FALSE | BT94: FALSE | BU94: FALSE | BV94: FALSE | BW94: =IF(BW9,BW25) -> FALSE | BX94: FALSE | BY94: FALSE | BZ94: FALSE | CA94: FALSE | CB94: FALSE | CC94: FALSE | CD94: FALSE | CE94: FALSE | CF94: FALSE | CG94: FALSE | CH94: FALSE | CI94: FALSE | CJ94: FALSE | CK94: FALSE | CL94: FALSE | CM94: FALSE | CN94: FALSE | CO94: FALSE | CP94: FALSE | CQ94: FALSE | CR94: FALSE | CS94: FALSE | CT94: FALSE | CU94: FALSE | CV94: FALSE | CW94: FALSE | CX94: FALSE | CY94: FALSE | CZ94: FALSE | DA94: FALSE | DB94: FALSE | DC94: FALSE | DD94: FALSE | DE94: FALSE | DF94: FALSE | DG94: FALSE | DH94: FALSE | DI94: FALSE | DJ94: FALSE | DK94: FALSE | DL94: FALSE | DM94: FALSE | DN94: FALSE | DO94: FALSE | DP94: FALSE | DQ94: FALSE | DR94: FALSE | DS94: FALSE | DT94: FALSE | DU94: FALSE | DV94: FALSE | DW94: FALSE | DX94: FALSE | DY94: FALSE | DZ94: FALSE | EA94: FALSE | EB94: FALSE | EC94: FALSE | ED94: FALSE | EE94: FALSE | EF94: FALSE | EG94: FALSE | EH94: FALSE | EI94: =IF(EI9,EI25) -> FALSE | EJ94: FALSE | EK94: FALSE | EL94: FALSE | EM94: FALSE | EN94: FALSE | EO94: FALSE | EP94: FALSE | EQ94: FALSE | ER94: FALSE | ES94: FALSE | ET94: FALSE | EU94: FALSE | EV94: FALSE | EW94: FALSE | EX94: FALSE | EY94: FALSE | EZ94: FALSE | FA94: FALSE | FB94: FALSE | FC94: FALSE | FD94: FALSE | FE94: FALSE | FF94: FALSE | FG94: FALSE | FH94: FALSE | FI94: FALSE | FJ94: FALSE | FK94: FALSE | FL94: FALSE | FM94: FALSE | FN94: FALSE | FO94: FALSE | FP94: FALSE | FQ94: FALSE | FR94: FALSE | FS94: FALSE | FT94: FALSE | FU94: FALSE | FV94: FALSE | FW94: FALSE | FX94: FALSE | FY94: FALSE | FZ94: FALSE | GA94: FALSE | GB94: FALSE | GC94: FALSE | GD94: FALSE | GE94: FALSE | GF94: FALSE | GG94: FALSE | GH94: FALSE | GI94: FALSE | GJ94: FALSE | GK94: FALSE | GL94: FALSE | GM94: FALSE | GN94: FALSE | GO94: FALSE | GP94: FALSE | GQ94: FALSE | GR94: FALSE | GS94: FALSE | GT94: FALSE | GU94: =IF(GU9,GU25) -> FALSE | GV94: FALSE | GW94: FALSE | GX94: FALSE | GY94: FALSE | GZ94: FALSE | HA94: FALSE | HB94: FALSE | HC94: FALSE | HD94: FALSE | HE94: FALSE | HF94: FALSE | HG94: FALSE | HH94: FALSE | HI94: FALSE | HJ94: FALSE | HK94: FALSE | HL94: FALSE | HM94: FALSE | HN94: FALSE | HO94: FALSE | HP94: FALSE | HQ94: FALSE | HR94: FALSE | HS94: FALSE | HT94: FALSE | HU94: FALSE | HV94: FALSE | HW94: FALSE | HX94: FALSE | HY94: FALSE | HZ94: FALSE | IA94: FALSE | IB94: FALSE | IC94: FALSE | ID94: FALSE | IE94: FALSE | IF94: FALSE | IG94: FALSE | IH94: FALSE | II94: FALSE | IJ94: FALSE | IK94: FALSE | IL94: FALSE | IM94: FALSE | IN94: FALSE | IO94: FALSE | IP94: FALSE | IQ94: FALSE | IR94: FALSE | IS94: FALSE | IT94: FALSE | IU94: FALSE | IV94: FALSE | IW94: FALSE | IX94: FALSE | IY94: FALSE | IZ94: FALSE
D95: Debt Service | I95: EUR | K95: =IF(K9,K58+K61) -> FALSE | L95: FALSE | M95: FALSE | N95: 86101.28164 | O95: 86101.28164 | P95: 86101.28164 | Q95: 86101.28164 | R95: 86101.28164 | S95: 86101.28164 | T95: 86101.28164 | U95: 86101.28164 | V95: 86101.28164 | W95: 86101.28164 | X95: 86101.28164 | Y95: 86101.28164 | Z95: 86101.28164 | AA95: 86101.28164 | AB95: 86101.28164 | AC95: 86101.28164 | AD95: 86101.28164 | AE95: 86101.28164 | AF95: 86101.28164 | AG95: 86101.28164 | AH95: 9.822542779e-12 | AI95: 9.822542779e-12 | AJ95: 9.822542779e-12 | AK95: 9.822542779e-12 | AL95: 9.822542779e-12 | AM95: FALSE | AN95: FALSE | AO95: FALSE | AP95: FALSE | AQ95: FALSE | AR95: FALSE | AS95: FALSE | AT95: FALSE | AU95: FALSE | AV95: FALSE | AW95: FALSE | AX95: FALSE | AY95: FALSE | AZ95: FALSE | BA95: FALSE | BB95: FALSE | BC95: FALSE | BD95: FALSE | BE95: FALSE | BF95: FALSE | BG95: FALSE | BH95: FALSE | BI95: FALSE | BJ95: FALSE | BK95: FALSE | BL95: FALSE | BM95: FALSE | BN95: FALSE | BO95: FALSE | BP95: FALSE | BQ95: FALSE | BR95: FALSE | BS95: FALSE | BT95: FALSE | BU95: FALSE | BV95: FALSE | BW95: =IF(BW9,BW58+BW61) -> FALSE | BX95: FALSE | BY95: FALSE | BZ95: FALSE | CA95: FALSE | CB95: FALSE | CC95: FALSE | CD95: FALSE | CE95: FALSE | CF95: FALSE | CG95: FALSE | CH95: FALSE | CI95: FALSE | CJ95: FALSE | CK95: FALSE | CL95: FALSE | CM95: FALSE | CN95: FALSE | CO95: FALSE | CP95: FALSE | CQ95: FALSE | CR95: FALSE | CS95: FALSE | CT95: FALSE | CU95: FALSE | CV95: FALSE | CW95: FALSE | CX95: FALSE | CY95: FALSE | CZ95: FALSE | DA95: FALSE | DB95: FALSE | DC95: FALSE | DD95: FALSE | DE95: FALSE | DF95: FALSE | DG95: FALSE | DH95: FALSE | DI95: FALSE | DJ95: FALSE | DK95: FALSE | DL95: FALSE | DM95: FALSE | DN95: FALSE | DO95: FALSE | DP95: FALSE | DQ95: FALSE | DR95: FALSE | DS95: FALSE | DT95: FALSE | DU95: FALSE | DV95: FALSE | DW95: FALSE | DX95: FALSE | DY95: FALSE | DZ95: FALSE | EA95: FALSE | EB95: FALSE | EC95: FALSE | ED95: FALSE | EE95: FALSE | EF95: FALSE | EG95: FALSE | EH95: FALSE | EI95: =IF(EI9,EI58+EI61) -> FALSE | EJ95: FALSE | EK95: FALSE | EL95: FALSE | EM95: FALSE | EN95: FALSE | EO95: FALSE | EP95: FALSE | EQ95: FALSE | ER95: FALSE | ES95: FALSE | ET95: FALSE | EU95: FALSE | EV95: FALSE | EW95: FALSE | EX95: FALSE | EY95: FALSE | EZ95: FALSE | FA95: FALSE | FB95: FALSE | FC95: FALSE | FD95: FALSE | FE95: FALSE | FF95: FALSE | FG95: FALSE | FH95: FALSE | FI95: FALSE | FJ95: FALSE | FK95: FALSE | FL95: FALSE | FM95: FALSE | FN95: FALSE | FO95: FALSE | FP95: FALSE | FQ95: FALSE | FR95: FALSE | FS95: FALSE | FT95: FALSE | FU95: FALSE | FV95: FALSE | FW95: FALSE | FX95: FALSE | FY95: FALSE | FZ95: FALSE | GA95: FALSE | GB95: FALSE | GC95: FALSE | GD95: FALSE | GE95: FALSE | GF95: FALSE | GG95: FALSE | GH95: FALSE | GI95: FALSE | GJ95: FALSE | GK95: FALSE | GL95: FALSE | GM95: FALSE | GN95: FALSE | GO95: FALSE | GP95: FALSE | GQ95: FALSE | GR95: FALSE | GS95: FALSE | GT95: FALSE | GU95: =IF(GU9,GU58+GU61) -> FALSE | GV95: FALSE | GW95: FALSE | GX95: FALSE | GY95: FALSE | GZ95: FALSE | HA95: FALSE | HB95: FALSE | HC95: FALSE | HD95: FALSE | HE95: FALSE | HF95: FALSE | HG95: FALSE | HH95: FALSE | HI95: FALSE | HJ95: FALSE | HK95: FALSE | HL95: FALSE | HM95: FALSE | HN95: FALSE | HO95: FALSE | HP95: FALSE | HQ95: FALSE | HR95: FALSE | HS95: FALSE | HT95: FALSE | HU95: FALSE | HV95: FALSE | HW95: FALSE | HX95: FALSE | HY95: FALSE | HZ95: FALSE | IA95: FALSE | IB95: FALSE | IC95: FALSE | ID95: FALSE | IE95: FALSE | IF95: FALSE | IG95: FALSE | IH95: FALSE | II95: FALSE | IJ95: FALSE | IK95: FALSE | IL95: FALSE | IM95: FALSE | IN95: FALSE | IO95: FALSE | IP95: FALSE | IQ95: FALSE | IR95: FALSE | IS95: FALSE | IT95: FALSE | IU95: FALSE | IV95: FALSE | IW95: FALSE | IX95: FALSE | IY95: FALSE | IZ95: FALSE
D96: Discount Rate | E96: % | F96: =G52 -> 0.045
D97: DSCR =CFADS/Debt Service | E97: x | F97: =MIN(K97:IZ97) -> 1.173037126 | I97: x | K97: =IF(K53,K94/K53) -> FALSE | L97: FALSE | M97: FALSE | N97: 1.173037126 | O97: 1.184767498 | P97: 1.196615173 | Q97: 1.208581324 | R97: 1.220667138 | S97: 1.232873809 | T97: 1.245202547 | U97: 1.257654573 | V97: 1.270231118 | W97: 1.282933429 | X97: 1.295762764 | Y97: 1.308720391 | Z97: 1.321807595 | AA97: 1.335025671 | AB97: 1.348375928 | AC97: 1.361859687 | AD97: 1.375478284 | AE97: 1.389233067 | AF97: 1.403125398 | AG97: 1.417156652 | AH97: FALSE | AI97: FALSE | AJ97: FALSE | AK97: FALSE | AL97: FALSE | AM97: FALSE | AN97: FALSE | AO97: FALSE | AP97: FALSE | AQ97: FALSE | AR97: FALSE | AS97: FALSE | AT97: FALSE | AU97: FALSE | AV97: FALSE | AW97: FALSE | AX97: FALSE | AY97: FALSE | AZ97: FALSE | BA97: FALSE | BB97: FALSE | BC97: FALSE | BD97: FALSE | BE97: FALSE | BF97: FALSE | BG97: FALSE | BH97: FALSE | BI97: FALSE | BJ97: FALSE | BK97: FALSE | BL97: FALSE | BM97: FALSE | BN97: FALSE | BO97: FALSE | BP97: FALSE | BQ97: FALSE | BR97: FALSE | BS97: FALSE | BT97: FALSE | BU97: FALSE | BV97: FALSE | BW97: =IF(BW53,BW94/BW53) -> FALSE | BX97: FALSE | BY97: FALSE | BZ97: FALSE | CA97: FALSE | CB97: FALSE | CC97: FALSE | CD97: FALSE | CE97: FALSE | CF97: FALSE | CG97: FALSE | CH97: FALSE | CI97: FALSE | CJ97: FALSE | CK97: FALSE | CL97: FALSE | CM97: FALSE | CN97: FALSE | CO97: FALSE | CP97: FALSE | CQ97: FALSE | CR97: FALSE | CS97: FALSE | CT97: FALSE | CU97: FALSE | CV97: FALSE | CW97: FALSE | CX97: FALSE | CY97: FALSE | CZ97: FALSE | DA97: FALSE | DB97: FALSE | DC97: FALSE | DD97: FALSE | DE97: FALSE | DF97: FALSE | DG97: FALSE | DH97: FALSE | DI97: FALSE | DJ97: FALSE | DK97: FALSE | DL97: FALSE | DM97: FALSE | DN97: FALSE | DO97: FALSE | DP97: FALSE | DQ97: FALSE | DR97: FALSE | DS97: FALSE | DT97: FALSE | DU97: FALSE | DV97: FALSE | DW97: FALSE | DX97: FALSE | DY97: FALSE | DZ97: FALSE | EA97: FALSE | EB97: FALSE | EC97: FALSE | ED97: FALSE | EE97: FALSE | EF97: FALSE | EG97: FALSE | EH97: FALSE | EI97: =IF(EI53,EI94/EI53) -> FALSE | EJ97: FALSE | EK97: FALSE | EL97: FALSE | EM97: FALSE | EN97: FALSE | EO97: FALSE | EP97: FALSE | EQ97: FALSE | ER97: FALSE | ES97: FALSE | ET97: FALSE | EU97: FALSE | EV97: FALSE | EW97: FALSE | EX97: FALSE | EY97: FALSE | EZ97: FALSE | FA97: FALSE | FB97: FALSE | FC97: FALSE | FD97: FALSE | FE97: FALSE | FF97: FALSE | FG97: FALSE | FH97: FALSE | FI97: FALSE | FJ97: FALSE | FK97: FALSE | FL97: FALSE | FM97: FALSE | FN97: FALSE | FO97: FALSE | FP97: FALSE | FQ97: FALSE | FR97: FALSE | FS97: FALSE | FT97: FALSE | FU97: FALSE | FV97: FALSE | FW97: FALSE | FX97: FALSE | FY97: FALSE | FZ97: FALSE | GA97: FALSE | GB97: FALSE | GC97: FALSE | GD97: FALSE | GE97: FALSE | GF97: FALSE | GG97: FALSE | GH97: FALSE | GI97: FALSE | GJ97: FALSE | GK97: FALSE | GL97: FALSE | GM97: FALSE | GN97: FALSE | GO97: FALSE | GP97: FALSE | GQ97: FALSE | GR97: FALSE | GS97: FALSE | GT97: FALSE | GU97: =IF(GU53,GU94/GU53) -> FALSE | GV97: FALSE | GW97: FALSE | GX97: FALSE | GY97: FALSE | GZ97: FALSE | HA97: FALSE | HB97: FALSE | HC97: FALSE | HD97: FALSE | HE97: FALSE | HF97: FALSE | HG97: FALSE | HH97: FALSE | HI97: FALSE | HJ97: FALSE | HK97: FALSE | HL97: FALSE | HM97: FALSE | HN97: FALSE | HO97: FALSE | HP97: FALSE | HQ97: FALSE | HR97: FALSE | HS97: FALSE | HT97: FALSE | HU97: FALSE | HV97: FALSE | HW97: FALSE | HX97: FALSE | HY97: FALSE | HZ97: FALSE | IA97: FALSE | IB97: FALSE | IC97: FALSE | ID97: FALSE | IE97: FALSE | IF97: FALSE | IG97: FALSE | IH97: FALSE | II97: FALSE | IJ97: FALSE | IK97: FALSE | IL97: FALSE | IM97: FALSE | IN97: FALSE | IO97: FALSE | IP97: FALSE | IQ97: FALSE | IR97: FALSE | IS97: FALSE | IT97: FALSE | IU97: FALSE | IV97: FALSE | IW97: FALSE | IX97: FALSE | IY97: FALSE | IZ97: FALSE
D98: Break-Even Percent Reduction DSCR | E98: % | F98: =(F97-1)/F97 -> 0.1475120629
D100: PV of CFADS over Life | E100: EUR | F100: =NPV(F96,K94:IZ94) -> 1654367.41
D101: PV of Debt Service =Debt | E101: EUR | F101: =NPV(F96,K95:IZ95) -> 1120000
D102: PLCR=PV of CFADS/PV of Debt Service | E102: x | F102: =F100/F101 -> 1.477113759
D103: Break-Even Percent Reduction PLCR | E103: % | F103: =(F102-1)/F102 -> 0.323004072
D105: CFADS for Loan Life | I105: EUR | K105: =IF(K49,K94) -> FALSE | L105: FALSE | M105: FALSE | N105: 101000 | O105: 102010 | P105: 103030.1 | Q105: 104060.401 | R105: 105101.005 | S105: 106152.0151 | T105: 107213.5352 | U105: 108285.6706 | V105: 109368.5273 | W105: 110462.2125 | X105: 111566.8347 | Y105: 112682.503 | Z105: 113809.328 | AA105: 114947.4213 | AB105: 116096.8955 | AC105: 117257.8645 | AD105: 118430.4431 | AE105: 119614.7476 | AF105: 120810.895 | AG105: 122019.004 | AH105: FALSE | AI105: FALSE | AJ105: FALSE | AK105: FALSE | AL105: FALSE | AM105: FALSE | AN105: FALSE | AO105: FALSE | AP105: FALSE | AQ105: FALSE | AR105: FALSE | AS105: FALSE | AT105: FALSE | AU105: FALSE | AV105: FALSE | AW105: FALSE | AX105: FALSE | AY105: FALSE | AZ105: FALSE | BA105: FALSE | BB105: FALSE | BC105: FALSE | BD105: FALSE | BE105: FALSE | BF105: FALSE | BG105: FALSE | BH105: FALSE | BI105: FALSE | BJ105: FALSE | BK105: FALSE | BL105: FALSE | BM105: FALSE | BN105: FALSE | BO105: FALSE | BP105: FALSE | BQ105: FALSE | BR105: FALSE | BS105: FALSE | BT105: FALSE | BU105: FALSE | BV105: FALSE | BW105: =IF(BW49,BW94) -> FALSE | BX105: FALSE | BY105: FALSE | BZ105: FALSE | CA105: FALSE | CB105: FALSE | CC105: FALSE | CD105: FALSE | CE105: FALSE | CF105: FALSE | CG105: FALSE | CH105: FALSE | CI105: FALSE | CJ105: FALSE | CK105: FALSE | CL105: FALSE | CM105: FALSE | CN105: FALSE | CO105: FALSE | CP105: FALSE | CQ105: FALSE | CR105: FALSE | CS105: FALSE | CT105: FALSE | CU105: FALSE | CV105: FALSE | CW105: FALSE | CX105: FALSE | CY105: FALSE | CZ105: FALSE | DA105: FALSE | DB105: FALSE | DC105: FALSE | DD105: FALSE | DE105: FALSE | DF105: FALSE | DG105: FALSE | DH105: FALSE | DI105: FALSE | DJ105: FALSE | DK105: FALSE | DL105: FALSE | DM105: FALSE | DN105: FALSE | DO105: FALSE | DP105: FALSE | DQ105: FALSE | DR105: FALSE | DS105: FALSE | DT105: FALSE | DU105: FALSE | DV105: FALSE | DW105: FALSE | DX105: FALSE | DY105: FALSE | DZ105: FALSE | EA105: FALSE | EB105: FALSE | EC105: FALSE | ED105: FALSE | EE105: FALSE | EF105: FALSE | EG105: FALSE | EH105: FALSE | EI105: =IF(EI49,EI94) -> FALSE | EJ105: FALSE | EK105: FALSE | EL105: FALSE | EM105: FALSE | EN105: FALSE | EO105: FALSE | EP105: FALSE | EQ105: FALSE | ER105: FALSE | ES105: FALSE | ET105: FALSE | EU105: FALSE | EV105: FALSE | EW105: FALSE | EX105: FALSE | EY105: FALSE | EZ105: FALSE | FA105: FALSE | FB105: FALSE | FC105: FALSE | FD105: FALSE | FE105: FALSE | FF105: FALSE | FG105: FALSE | FH105: FALSE | FI105: FALSE | FJ105: FALSE | FK105: FALSE | FL105: FALSE | FM105: FALSE | FN105: FALSE | FO105: FALSE | FP105: FALSE | FQ105: FALSE | FR105: FALSE | FS105: FALSE | FT105: FALSE | FU105: FALSE | FV105: FALSE | FW105: FALSE | FX105: FALSE | FY105: FALSE | FZ105: FALSE | GA105: FALSE | GB105: FALSE | GC105: FALSE | GD105: FALSE | GE105: FALSE | GF105: FALSE | GG105: FALSE | GH105: FALSE | GI105: FALSE | GJ105: FALSE | GK105: FALSE | GL105: FALSE | GM105: FALSE | GN105: FALSE | GO105: FALSE | GP105: FALSE | GQ105: FALSE | GR105: FALSE | GS105: FALSE | GT105: FALSE | GU105: =IF(GU49,GU94) -> FALSE | GV105: FALSE | GW105: FALSE | GX105: FALSE | GY105: FALSE | GZ105: FALSE | HA105: FALSE | HB105: FALSE | HC105: FALSE | HD105: FALSE | HE105: FALSE | HF105: FALSE | HG105: FALSE | HH105: FALSE | HI105: FALSE | HJ105: FALSE | HK105: FALSE | HL105: FALSE | HM105: FALSE | HN105: FALSE | HO105: FALSE | HP105: FALSE | HQ105: FALSE | HR105: FALSE | HS105: FALSE | HT105: FALSE | HU105: FALSE | HV105: FALSE | HW105: FALSE | HX105: FALSE | HY105: FALSE | HZ105: FALSE | IA105: FALSE | IB105: FALSE | IC105: FALSE | ID105: FALSE | IE105: FALSE | IF105: FALSE | IG105: FALSE | IH105: FALSE | II105: FALSE | IJ105: FALSE | IK105: FALSE | IL105: FALSE | IM105: FALSE | IN105: FALSE | IO105: FALSE | IP105: FALSE | IQ105: FALSE | IR105: FALSE | IS105: FALSE | IT105: FALSE | IU105: FALSE | IV105: FALSE | IW105: FALSE | IX105: FALSE | IY105: FALSE | IZ105: FALSE
D106: PV of CFADS over Loan Life | F106: =NPV(F96,K105:IZ105) -> 1425707.09 | I106: EUR
D107: PV of Debt Service =Debt | F107: =F101 -> 1120000 | I107: EUR
D108: LLCR =PV of CFADS LL/Loan Amount | E108: x | F108: =F106/F107 -> 1.272952759
D109: Break-Even Percent Reduction LLCR | E109: % | F109: =(F108-1)/F108 -> 0.214424893
B111: Graphts
K112: =IF(K9,K8,NA()) ->  | N112: 2029-12-31 | O112: 2030-12-31 | P112: 2031-12-31 | Q112: 2032-12-31 | R112: 2033-12-31 | S112: 2034-12-31 | T112: 2035-12-31 | U112: 2036-12-31 | V112: 2037-12-31 | W112: 2038-12-31 | X112: 2039-12-31 | Y112: 2040-12-31 | Z112: 2041-12-31 | AA112: 2042-12-31 | AB112: 2043-12-31 | AC112: 2044-12-31 | AD112: 2045-12-31 | AE112: 2046-12-31 | AF112: 2047-12-31 | AG112: 2048-12-31 | AH112: 2049-12-31 | AI112: 2050-12-31 | AJ112: 2051-12-31 | AK112: 2052-12-31 | AL112: 2053-12-31 | BW112: =IF(BW9,BW8,NA()) ->  | EI112: =IF(EI9,EI8,NA()) ->  | GU112: =IF(GU9,GU8,NA()) -> 
D113: CFADS | K113: =K94 -> FALSE | L113: =L94 -> FALSE | M113: FALSE | N113: 101000 | O113: 102010 | P113: 103030.1 | Q113: 104060.401 | R113: 105101.005 | S113: 106152.0151 | T113: 107213.5352 | U113: 108285.6706 | V113: 109368.5273 | W113: 110462.2125 | X113: 111566.8347 | Y113: 112682.503 | Z113: 113809.328 | AA113: 114947.4213 | AB113: 116096.8955 | AC113: 117257.8645 | AD113: 118430.4431 | AE113: 119614.7476 | AF113: 120810.895 | AG113: 122019.004 | AH113: 123239.194 | AI113: 124471.586 | AJ113: 125716.3018 | AK113: 126973.4649 | AL113: 128243.1995 | AM113: FALSE | AN113: FALSE | AO113: FALSE | AP113: FALSE | AQ113: FALSE | AR113: FALSE | AS113: FALSE | AT113: FALSE | AU113: FALSE | AV113: FALSE | AW113: FALSE | AX113: FALSE | AY113: FALSE | AZ113: FALSE | BA113: FALSE | BB113: FALSE | BC113: FALSE | BD113: FALSE | BE113: FALSE | BF113: FALSE | BG113: FALSE | BH113: FALSE | BI113: FALSE | BJ113: FALSE | BK113: FALSE | BL113: FALSE | BM113: FALSE | BN113: FALSE | BO113: FALSE | BP113: FALSE | BQ113: FALSE | BR113: FALSE | BS113: FALSE | BT113: FALSE | BU113: FALSE | BV113: FALSE | BW113: FALSE | BX113: =BX94 -> FALSE | BY113: FALSE | BZ113: FALSE | CA113: FALSE | CB113: FALSE | CC113: FALSE | CD113: FALSE | CE113: FALSE | CF113: FALSE | CG113: FALSE | CH113: FALSE | CI113: FALSE | CJ113: FALSE | CK113: FALSE | CL113: FALSE | CM113: FALSE | CN113: FALSE | CO113: FALSE | CP113: FALSE | CQ113: FALSE | CR113: FALSE | CS113: FALSE | CT113: FALSE | CU113: FALSE | CV113: FALSE | CW113: FALSE | CX113: FALSE | CY113: FALSE | CZ113: FALSE | DA113: FALSE | DB113: FALSE | DC113: FALSE | DD113: FALSE | DE113: FALSE | DF113: FALSE | DG113: FALSE | DH113: FALSE | DI113: FALSE | DJ113: FALSE | DK113: FALSE | DL113: FALSE | DM113: FALSE | DN113: FALSE | DO113: FALSE | DP113: FALSE | DQ113: FALSE | DR113: FALSE | DS113: FALSE | DT113: FALSE | DU113: FALSE | DV113: FALSE | DW113: FALSE | DX113: FALSE | DY113: FALSE | DZ113: FALSE | EA113: FALSE | EB113: FALSE | EC113: FALSE | ED113: FALSE | EE113: FALSE | EF113: FALSE | EG113: FALSE | EH113: FALSE | EI113: FALSE | EJ113: =EJ94 -> FALSE | EK113: FALSE | EL113: FALSE | EM113: FALSE | EN113: FALSE | EO113: FALSE | EP113: FALSE | EQ113: FALSE | ER113: FALSE | ES113: FALSE | ET113: FALSE | EU113: FALSE | EV113: FALSE | EW113: FALSE | EX113: FALSE | EY113: FALSE | EZ113: FALSE | FA113: FALSE | FB113: FALSE | FC113: FALSE | FD113: FALSE | FE113: FALSE | FF113: FALSE | FG113: FALSE | FH113: FALSE | FI113: FALSE | FJ113: FALSE | FK113: FALSE | FL113: FALSE | FM113: FALSE | FN113: FALSE | FO113: FALSE | FP113: FALSE | FQ113: FALSE | FR113: FALSE | FS113: FALSE | FT113: FALSE | FU113: FALSE | FV113: FALSE | FW113: FALSE | FX113: FALSE | FY113: FALSE | FZ113: FALSE | GA113: FALSE | GB113: FALSE | GC113: FALSE | GD113: FALSE | GE113: FALSE | GF113: FALSE | GG113: FALSE | GH113: FALSE | GI113: FALSE | GJ113: FALSE | GK113: FALSE | GL113: FALSE | GM113: FALSE | GN113: FALSE | GO113: FALSE | GP113: FALSE | GQ113: FALSE | GR113: FALSE | GS113: FALSE | GT113: FALSE | GU113: FALSE | GV113: =GV94 -> FALSE | GW113: FALSE | GX113: FALSE | GY113: FALSE | GZ113: FALSE | HA113: FALSE | HB113: FALSE | HC113: FALSE | HD113: FALSE | HE113: FALSE | HF113: FALSE | HG113: FALSE | HH113: FALSE | HI113: FALSE | HJ113: FALSE | HK113: FALSE | HL113: FALSE | HM113: FALSE | HN113: FALSE | HO113: FALSE | HP113: FALSE | HQ113: FALSE | HR113: FALSE | HS113: FALSE | HT113: FALSE | HU113: FALSE | HV113: FALSE | HW113: FALSE | HX113: FALSE | HY113: FALSE | HZ113: FALSE | IA113: FALSE | IB113: FALSE | IC113: FALSE | ID113: FALSE | IE113: FALSE | IF113: FALSE | IG113: FALSE | IH113: FALSE | II113: FALSE | IJ113: FALSE | IK113: FALSE | IL113: FALSE | IM113: FALSE | IN113: FALSE | IO113: FALSE | IP113: FALSE | IQ113: FALSE | IR113: FALSE | IS113: FALSE | IT113: FALSE | IU113: FALSE | IV113: FALSE | IW113: FALSE | IX113: FALSE | IY113: FALSE | IZ113: FALSE
D114: Debt Service | K114: =K95 -> FALSE | L114: =L95 -> FALSE | M114: FALSE | N114: 86101.28164 | O114: 86101.28164 | P114: 86101.28164 | Q114: 86101.28164 | R114: 86101.28164 | S114: 86101.28164 | T114: 86101.28164 | U114: 86101.28164 | V114: 86101.28164 | W114: 86101.28164 | X114: 86101.28164 | Y114: 86101.28164 | Z114: 86101.28164 | AA114: 86101.28164 | AB114: 86101.28164 | AC114: 86101.28164 | AD114: 86101.28164 | AE114: 86101.28164 | AF114: 86101.28164 | AG114: 86101.28164 | AH114: 9.822542779e-12 | AI114: 9.822542779e-12 | AJ114: 9.822542779e-12 | AK114: 9.822542779e-12 | AL114: 9.822542779e-12 | AM114: FALSE | AN114: FALSE | AO114: FALSE | AP114: FALSE | AQ114: FALSE | AR114: FALSE | AS114: FALSE | AT114: FALSE | AU114: FALSE | AV114: FALSE | AW114: FALSE | AX114: FALSE | AY114: FALSE | AZ114: FALSE | BA114: FALSE | BB114: FALSE | BC114: FALSE | BD114: FALSE | BE114: FALSE | BF114: FALSE | BG114: FALSE | BH114: FALSE | BI114: FALSE | BJ114: FALSE | BK114: FALSE | BL114: FALSE | BM114: FALSE | BN114: FALSE | BO114: FALSE | BP114: FALSE | BQ114: FALSE | BR114: FALSE | BS114: FALSE | BT114: FALSE | BU114: FALSE | BV114: FALSE | BW114: FALSE | BX114: =BX95 -> FALSE | BY114: FALSE | BZ114: FALSE | CA114: FALSE | CB114: FALSE | CC114: FALSE | CD114: FALSE | CE114: FALSE | CF114: FALSE | CG114: FALSE | CH114: FALSE | CI114: FALSE | CJ114: FALSE | CK114: FALSE | CL114: FALSE | CM114: FALSE | CN114: FALSE | CO114: FALSE | CP114: FALSE | CQ114: FALSE | CR114: FALSE | CS114: FALSE | CT114: FALSE | CU114: FALSE | CV114: FALSE | CW114: FALSE | CX114: FALSE | CY114: FALSE | CZ114: FALSE | DA114: FALSE | DB114: FALSE | DC114: FALSE | DD114: FALSE | DE114: FALSE | DF114: FALSE | DG114: FALSE | DH114: FALSE | DI114: FALSE | DJ114: FALSE | DK114: FALSE | DL114: FALSE | DM114: FALSE | DN114: FALSE | DO114: FALSE | DP114: FALSE | DQ114: FALSE | DR114: FALSE | DS114: FALSE | DT114: FALSE | DU114: FALSE | DV114: FALSE | DW114: FALSE | DX114: FALSE | DY114: FALSE | DZ114: FALSE | EA114: FALSE | EB114: FALSE | EC114: FALSE | ED114: FALSE | EE114: FALSE | EF114: FALSE | EG114: FALSE | EH114: FALSE | EI114: FALSE | EJ114: =EJ95 -> FALSE | EK114: FALSE | EL114: FALSE | EM114: FALSE | EN114: FALSE | EO114: FALSE | EP114: FALSE | EQ114: FALSE | ER114: FALSE | ES114: FALSE | ET114: FALSE | EU114: FALSE | EV114: FALSE | EW114: FALSE | EX114: FALSE | EY114: FALSE | EZ114: FALSE | FA114: FALSE | FB114: FALSE | FC114: FALSE | FD114: FALSE | FE114: FALSE | FF114: FALSE | FG114: FALSE | FH114: FALSE | FI114: FALSE | FJ114: FALSE | FK114: FALSE | FL114: FALSE | FM114: FALSE | FN114: FALSE | FO114: FALSE | FP114: FALSE | FQ114: FALSE | FR114: FALSE | FS114: FALSE | FT114: FALSE | FU114: FALSE | FV114: FALSE | FW114: FALSE | FX114: FALSE | FY114: FALSE | FZ114: FALSE | GA114: FALSE | GB114: FALSE | GC114: FALSE | GD114: FALSE | GE114: FALSE | GF114: FALSE | GG114: FALSE | GH114: FALSE | GI114: FALSE | GJ114: FALSE | GK114: FALSE | GL114: FALSE | GM114: FALSE | GN114: FALSE | GO114: FALSE | GP114: FALSE | GQ114: FALSE | GR114: FALSE | GS114: FALSE | GT114: FALSE | GU114: FALSE | GV114: =GV95 -> FALSE | GW114: FALSE | GX114: FALSE | GY114: FALSE | GZ114: FALSE | HA114: FALSE | HB114: FALSE | HC114: FALSE | HD114: FALSE | HE114: FALSE | HF114: FALSE | HG114: FALSE | HH114: FALSE | HI114: FALSE | HJ114: FALSE | HK114: FALSE | HL114: FALSE | HM114: FALSE | HN114: FALSE | HO114: FALSE | HP114: FALSE | HQ114: FALSE | HR114: FALSE | HS114: FALSE | HT114: FALSE | HU114: FALSE | HV114: FALSE | HW114: FALSE | HX114: FALSE | HY114: FALSE | HZ114: FALSE | IA114: FALSE | IB114: FALSE | IC114: FALSE | ID114: FALSE | IE114: FALSE | IF114: FALSE | IG114: FALSE | IH114: FALSE | II114: FALSE | IJ114: FALSE | IK114: FALSE | IL114: FALSE | IM114: FALSE | IN114: FALSE | IO114: FALSE | IP114: FALSE | IQ114: FALSE | IR114: FALSE | IS114: FALSE | IT114: FALSE | IU114: FALSE | IV114: FALSE | IW114: FALSE | IX114: FALSE | IY114: FALSE | IZ114: FALSE
D116: =InputC!F5 -> Higher Capital Expenditure | E116: : EBITDA | F116: =InputC!F20 -> 100000 | G116: DSCR | H116: =F97 -> 1.173037126 | I116: LLCR | J116: =F108 -> 1.272952759 | K116: PLCR | L116: =F102 -> 1.477113759
K118: =K112 ->  | L118: =L112 ->  | N118: 2029-12-31 | O118: 2030-12-31 | P118: 2031-12-31 | Q118: 2032-12-31 | R118: 2033-12-31 | S118: 2034-12-31 | T118: 2035-12-31 | U118: 2036-12-31 | V118: 2037-12-31 | W118: 2038-12-31 | X118: 2039-12-31 | Y118: 2040-12-31 | Z118: 2041-12-31 | AA118: 2042-12-31 | AB118: 2043-12-31 | AC118: 2044-12-31 | AD118: 2045-12-31 | AE118: 2046-12-31 | AF118: 2047-12-31 | AG118: 2048-12-31 | AH118: 2049-12-31 | AI118: 2050-12-31 | AJ118: 2051-12-31 | AK118: 2052-12-31 | AL118: 2053-12-31 | BX118: =BX112 ->  | EJ118: =EJ112 ->  | GV118: =GV112 -> 
D119: Accumulated Default | K119: =K72 -> 0 | L119: =L72 -> 0 | M119: 0 | N119: 0 | O119: 0 | P119: 0 | Q119: 0 | R119: 0 | S119: 0 | T119: 0 | U119: 0 | V119: 0 | W119: 0 | X119: 0 | Y119: 0 | Z119: 0 | AA119: 0 | AB119: 0 | AC119: 0 | AD119: 0 | AE119: 0 | AF119: 0 | AG119: 0 | AH119: 0 | AI119: 0 | AJ119: 0 | AK119: 0 | AL119: 0 | AM119: 0 | AN119: 0 | AO119: 0 | AP119: 0 | AQ119: 0 | AR119: 0 | AS119: 0 | AT119: 0 | AU119: 0 | AV119: 0 | AW119: 0 | AX119: 0 | AY119: 0 | AZ119: 0 | BA119: 0 | BB119: 0 | BC119: 0 | BD119: 0 | BE119: 0 | BF119: 0 | BG119: 0 | BH119: 0 | BI119: 0 | BJ119: 0 | BK119: 0 | BL119: 0 | BM119: 0 | BN119: 0 | BO119: 0 | BP119: 0 | BQ119: 0 | BR119: 0 | BS119: 0 | BT119: 0 | BU119: 0 | BV119: 0 | BW119: 0 | BX119: =BX72 -> 0 | BY119: 0 | BZ119: 0 | CA119: 0 | CB119: 0 | CC119: 0 | CD119: 0 | CE119: 0 | CF119: 0 | CG119: 0 | CH119: 0 | CI119: 0 | CJ119: 0 | CK119: 0 | CL119: 0 | CM119: 0 | CN119: 0 | CO119: 0 | CP119: 0 | CQ119: 0 | CR119: 0 | CS119: 0 | CT119: 0 | CU119: 0 | CV119: 0 | CW119: 0 | CX119: 0 | CY119: 0 | CZ119: 0 | DA119: 0 | DB119: 0 | DC119: 0 | DD119: 0 | DE119: 0 | DF119: 0 | DG119: 0 | DH119: 0 | DI119: 0 | DJ119: 0 | DK119: 0 | DL119: 0 | DM119: 0 | DN119: 0 | DO119: 0 | DP119: 0 | DQ119: 0 | DR119: 0 | DS119: 0 | DT119: 0 | DU119: 0 | DV119: 0 | DW119: 0 | DX119: 0 | DY119: 0 | DZ119: 0 | EA119: 0 | EB119: 0 | EC119: 0 | ED119: 0 | EE119: 0 | EF119: 0 | EG119: 0 | EH119: 0 | EI119: 0 | EJ119: =EJ72 -> 0 | EK119: 0 | EL119: 0 | EM119: 0 | EN119: 0 | EO119: 0 | EP119: 0 | EQ119: 0 | ER119: 0 | ES119: 0 | ET119: 0 | EU119: 0 | EV119: 0 | EW119: 0 | EX119: 0 | EY119: 0 | EZ119: 0 | FA119: 0 | FB119: 0 | FC119: 0 | FD119: 0 | FE119: 0 | FF119: 0 | FG119: 0 | FH119: 0 | FI119: 0 | FJ119: 0 | FK119: 0 | FL119: 0 | FM119: 0 | FN119: 0 | FO119: 0 | FP119: 0 | FQ119: 0 | FR119: 0 | FS119: 0 | FT119: 0 | FU119: 0 | FV119: 0 | FW119: 0 | FX119: 0 | FY119: 0 | FZ119: 0 | GA119: 0 | GB119: 0 | GC119: 0 | GD119: 0 | GE119: 0 | GF119: 0 | GG119: 0 | GH119: 0 | GI119: 0 | GJ119: 0 | GK119: 0 | GL119: 0 | GM119: 0 | GN119: 0 | GO119: 0 | GP119: 0 | GQ119: 0 | GR119: 0 | GS119: 0 | GT119: 0 | GU119: 0 | GV119: =GV72 -> 0 | GW119: 0 | GX119: 0 | GY119: 0 | GZ119: 0 | HA119: 0 | HB119: 0 | HC119: 0 | HD119: 0 | HE119: 0 | HF119: 0 | HG119: 0 | HH119: 0 | HI119: 0 | HJ119: 0 | HK119: 0 | HL119: 0 | HM119: 0 | HN119: 0 | HO119: 0 | HP119: 0 | HQ119: 0 | HR119: 0 | HS119: 0 | HT119: 0 | HU119: 0 | HV119: 0 | HW119: 0 | HX119: 0 | HY119: 0 | HZ119: 0 | IA119: 0 | IB119: 0 | IC119: 0 | ID119: 0 | IE119: 0 | IF119: 0 | IG119: 0 | IH119: 0 | II119: 0 | IJ119: 0 | IK119: 0 | IL119: 0 | IM119: 0 | IN119: 0 | IO119: 0 | IP119: 0 | IQ119: 0 | IR119: 0 | IS119: 0 | IT119: 0 | IU119: 0 | IV119: 0 | IW119: 0 | IX119: 0 | IY119: 0 | IZ119: 0
D121: Case
B124: Investment Account
C126: Cash Before COD
D127: Opening Balance | I127: EUR | K127: =J130 -> 0 | L127: =K130 -> 466666.6667 | M127: 959315.9948 | N127: 1479394.625 | O127: 1479394.625 | P127: 1479394.625 | Q127: 1479394.625 | R127: 1479394.625 | S127: 1479394.625 | T127: 1479394.625 | U127: 1479394.625 | V127: 1479394.625 | W127: 1479394.625 | X127: 1479394.625 | Y127: 1479394.625 | Z127: 1479394.625 | AA127: 1479394.625 | AB127: 1479394.625 | AC127: 1479394.625 | AD127: 1479394.625 | AE127: 1479394.625 | AF127: 1479394.625 | AG127: 1479394.625 | AH127: 1479394.625 | AI127: 1479394.625 | AJ127: 1479394.625 | AK127: 1479394.625 | AL127: 1479394.625 | AM127: 1479394.625 | AN127: 1479394.625 | AO127: 1479394.625 | AP127: 1479394.625 | AQ127: 1479394.625 | AR127: 1479394.625 | AS127: 1479394.625 | AT127: 1479394.625 | AU127: 1479394.625 | AV127: 1479394.625 | AW127: 1479394.625 | AX127: 1479394.625 | AY127: 1479394.625 | AZ127: 1479394.625 | BA127: 1479394.625 | BB127: 1479394.625 | BC127: 1479394.625 | BD127: 1479394.625 | BE127: 1479394.625 | BF127: 1479394.625 | BG127: 1479394.625 | BH127: 1479394.625 | BI127: 1479394.625 | BJ127: 1479394.625 | BK127: 1479394.625 | BL127: 1479394.625 | BM127: 1479394.625 | BN127: 1479394.625 | BO127: 1479394.625 | BP127: 1479394.625 | BQ127: 1479394.625 | BR127: 1479394.625 | BS127: 1479394.625 | BT127: 1479394.625 | BU127: 1479394.625 | BV127: 1479394.625 | BW127: 1479394.625 | BX127: =BW130 -> 1479394.625 | BY127: 1479394.625 | BZ127: 1479394.625 | CA127: 1479394.625 | CB127: 1479394.625 | CC127: 1479394.625 | CD127: 1479394.625 | CE127: 1479394.625 | CF127: 1479394.625 | CG127: 1479394.625 | CH127: 1479394.625 | CI127: 1479394.625 | CJ127: 1479394.625 | CK127: 1479394.625 | CL127: 1479394.625 | CM127: 1479394.625 | CN127: 1479394.625 | CO127: 1479394.625 | CP127: 1479394.625 | CQ127: 1479394.625 | CR127: 1479394.625 | CS127: 1479394.625 | CT127: 1479394.625 | CU127: 1479394.625 | CV127: 1479394.625 | CW127: 1479394.625 | CX127: 1479394.625 | CY127: 1479394.625 | CZ127: 1479394.625 | DA127: 1479394.625 | DB127: 1479394.625 | DC127: 1479394.625 | DD127: 1479394.625 | DE127: 1479394.625 | DF127: 1479394.625 | DG127: 1479394.625 | DH127: 1479394.625 | DI127: 1479394.625 | DJ127: 1479394.625 | DK127: 1479394.625 | DL127: 1479394.625 | DM127: 1479394.625 | DN127: 1479394.625 | DO127: 1479394.625 | DP127: 1479394.625 | DQ127: 1479394.625 | DR127: 1479394.625 | DS127: 1479394.625 | DT127: 1479394.625 | DU127: 1479394.625 | DV127: 1479394.625 | DW127: 1479394.625 | DX127: 1479394.625 | DY127: 1479394.625 | DZ127: 1479394.625 | EA127: 1479394.625 | EB127: 1479394.625 | EC127: 1479394.625 | ED127: 1479394.625 | EE127: 1479394.625 | EF127: 1479394.625 | EG127: 1479394.625 | EH127: 1479394.625 | EI127: 1479394.625 | EJ127: =EI130 -> 1479394.625 | EK127: 1479394.625 | EL127: 1479394.625 | EM127: 1479394.625 | EN127: 1479394.625 | EO127: 1479394.625 | EP127: 1479394.625 | EQ127: 1479394.625 | ER127: 1479394.625 | ES127: 1479394.625 | ET127: 1479394.625 | EU127: 1479394.625 | EV127: 1479394.625 | EW127: 1479394.625 | EX127: 1479394.625 | EY127: 1479394.625 | EZ127: 1479394.625 | FA127: 1479394.625 | FB127: 1479394.625 | FC127: 1479394.625 | FD127: 1479394.625 | FE127: 1479394.625 | FF127: 1479394.625 | FG127: 1479394.625 | FH127: 1479394.625 | FI127: 1479394.625 | FJ127: 1479394.625 | FK127: 1479394.625 | FL127: 1479394.625 | FM127: 1479394.625 | FN127: 1479394.625 | FO127: 1479394.625 | FP127: 1479394.625 | FQ127: 1479394.625 | FR127: 1479394.625 | FS127: 1479394.625 | FT127: 1479394.625 | FU127: 1479394.625 | FV127: 1479394.625 | FW127: 1479394.625 | FX127: 1479394.625 | FY127: 1479394.625 | FZ127: 1479394.625 | GA127: 1479394.625 | GB127: 1479394.625 | GC127: 1479394.625 | GD127: 1479394.625 | GE127: 1479394.625 | GF127: 1479394.625 | GG127: 1479394.625 | GH127: 1479394.625 | GI127: 1479394.625 | GJ127: 1479394.625 | GK127: 1479394.625 | GL127: 1479394.625 | GM127: 1479394.625 | GN127: 1479394.625 | GO127: 1479394.625 | GP127: 1479394.625 | GQ127: 1479394.625 | GR127: 1479394.625 | GS127: 1479394.625 | GT127: 1479394.625 | GU127: 1479394.625 | GV127: =GU130 -> 1479394.625 | GW127: 1479394.625 | GX127: 1479394.625 | GY127: 1479394.625 | GZ127: 1479394.625 | HA127: 1479394.625 | HB127: 1479394.625 | HC127: 1479394.625 | HD127: 1479394.625 | HE127: 1479394.625 | HF127: 1479394.625 | HG127: 1479394.625 | HH127: 1479394.625 | HI127: 1479394.625 | HJ127: 1479394.625 | HK127: 1479394.625 | HL127: 1479394.625 | HM127: 1479394.625 | HN127: 1479394.625 | HO127: 1479394.625 | HP127: 1479394.625 | HQ127: 1479394.625 | HR127: 1479394.625 | HS127: 1479394.625 | HT127: 1479394.625 | HU127: 1479394.625 | HV127: 1479394.625 | HW127: 1479394.625 | HX127: 1479394.625 | HY127: 1479394.625 | HZ127: 1479394.625 | IA127: 1479394.625 | IB127: 1479394.625 | IC127: 1479394.625 | ID127: 1479394.625 | IE127: 1479394.625 | IF127: 1479394.625 | IG127: 1479394.625 | IH127: 1479394.625 | II127: 1479394.625 | IJ127: 1479394.625 | IK127: 1479394.625 | IL127: 1479394.625 | IM127: 1479394.625 | IN127: 1479394.625 | IO127: 1479394.625 | IP127: 1479394.625 | IQ127: 1479394.625 | IR127: 1479394.625 | IS127: 1479394.625 | IT127: 1479394.625 | IU127: 1479394.625 | IV127: 1479394.625 | IW127: 1479394.625 | IX127: 1479394.625 | IY127: 1479394.625 | IZ127: 1479394.625
D128: Financing Cost | F128: =F28 -> 0.05567713178 | I128: EUR | K128: =K127*$F$128*K5 -> 0 | L128: 25982.6615 | M128: 53411.96307 | N128: 0 | O128: 0 | P128: 0 | Q128: 0 | R128: 0 | S128: 0 | T128: 0 | U128: 0 | V128: 0 | W128: 0 | X128: 0 | Y128: 0 | Z128: 0 | AA128: 0 | AB128: 0 | AC128: 0 | AD128: 0 | AE128: 0 | AF128: 0 | AG128: 0 | AH128: 0 | AI128: 0 | AJ128: 0 | AK128: 0 | AL128: 0 | AM128: 0 | AN128: 0 | AO128: 0 | AP128: 0 | AQ128: 0 | AR128: 0 | AS128: 0 | AT128: 0 | AU128: 0 | AV128: 0 | AW128: 0 | AX128: 0 | AY128: 0 | AZ128: 0 | BA128: 0 | BB128: 0 | BC128: 0 | BD128: 0 | BE128: 0 | BF128: 0 | BG128: 0 | BH128: 0 | BI128: 0 | BJ128: 0 | BK128: 0 | BL128: 0 | BM128: 0 | BN128: 0 | BO128: 0 | BP128: 0 | BQ128: 0 | BR128: 0 | BS128: 0 | BT128: 0 | BU128: 0 | BV128: 0 | BW128: =BW127*$F$128*BW5 -> 0 | BX128: 0 | BY128: 0 | BZ128: 0 | CA128: 0 | CB128: 0 | CC128: 0 | CD128: 0 | CE128: 0 | CF128: 0 | CG128: 0 | CH128: 0 | CI128: 0 | CJ128: 0 | CK128: 0 | CL128: 0 | CM128: 0 | CN128: 0 | CO128: 0 | CP128: 0 | CQ128: 0 | CR128: 0 | CS128: 0 | CT128: 0 | CU128: 0 | CV128: 0 | CW128: 0 | CX128: 0 | CY128: 0 | CZ128: 0 | DA128: 0 | DB128: 0 | DC128: 0 | DD128: 0 | DE128: 0 | DF128: 0 | DG128: 0 | DH128: 0 | DI128: 0 | DJ128: 0 | DK128: 0 | DL128: 0 | DM128: 0 | DN128: 0 | DO128: 0 | DP128: 0 | DQ128: 0 | DR128: 0 | DS128: 0 | DT128: 0 | DU128: 0 | DV128: 0 | DW128: 0 | DX128: 0 | DY128: 0 | DZ128: 0 | EA128: 0 | EB128: 0 | EC128: 0 | ED128: 0 | EE128: 0 | EF128: 0 | EG128: 0 | EH128: 0 | EI128: =EI127*$F$128*EI5 -> 0 | EJ128: 0 | EK128: 0 | EL128: 0 | EM128: 0 | EN128: 0 | EO128: 0 | EP128: 0 | EQ128: 0 | ER128: 0 | ES128: 0 | ET128: 0 | EU128: 0 | EV128: 0 | EW128: 0 | EX128: 0 | EY128: 0 | EZ128: 0 | FA128: 0 | FB128: 0 | FC128: 0 | FD128: 0 | FE128: 0 | FF128: 0 | FG128: 0 | FH128: 0 | FI128: 0 | FJ128: 0 | FK128: 0 | FL128: 0 | FM128: 0 | FN128: 0 | FO128: 0 | FP128: 0 | FQ128: 0 | FR128: 0 | FS128: 0 | FT128: 0 | FU128: 0 | FV128: 0 | FW128: 0 | FX128: 0 | FY128: 0 | FZ128: 0 | GA128: 0 | GB128: 0 | GC128: 0 | GD128: 0 | GE128: 0 | GF128: 0 | GG128: 0 | GH128: 0 | GI128: 0 | GJ128: 0 | GK128: 0 | GL128: 0 | GM128: 0 | GN128: 0 | GO128: 0 | GP128: 0 | GQ128: 0 | GR128: 0 | GS128: 0 | GT128: 0 | GU128: =GU127*$F$128*GU5 -> 0 | GV128: 0 | GW128: 0 | GX128: 0 | GY128: 0 | GZ128: 0 | HA128: 0 | HB128: 0 | HC128: 0 | HD128: 0 | HE128: 0 | HF128: 0 | HG128: 0 | HH128: 0 | HI128: 0 | HJ128: 0 | HK128: 0 | HL128: 0 | HM128: 0 | HN128: 0 | HO128: 0 | HP128: 0 | HQ128: 0 | HR128: 0 | HS128: 0 | HT128: 0 | HU128: 0 | HV128: 0 | HW128: 0 | HX128: 0 | HY128: 0 | HZ128: 0 | IA128: 0 | IB128: 0 | IC128: 0 | ID128: 0 | IE128: 0 | IF128: 0 | IG128: 0 | IH128: 0 | II128: 0 | IJ128: 0 | IK128: 0 | IL128: 0 | IM128: 0 | IN128: 0 | IO128: 0 | IP128: 0 | IQ128: 0 | IR128: 0 | IS128: 0 | IT128: 0 | IU128: 0 | IV128: 0 | IW128: 0 | IX128: 0 | IY128: 0 | IZ128: 0
D129: Payments | I129: EUR | K129: =K16 -> 466666.6667 | L129: 466666.6667 | M129: 466666.6667 | N129: 0 | O129: 0 | P129: 0 | Q129: 0 | R129: 0 | S129: 0 | T129: 0 | U129: 0 | V129: 0 | W129: 0 | X129: 0 | Y129: 0 | Z129: 0 | AA129: 0 | AB129: 0 | AC129: 0 | AD129: 0 | AE129: 0 | AF129: 0 | AG129: 0 | AH129: 0 | AI129: 0 | AJ129: 0 | AK129: 0 | AL129: 0 | AM129: 0 | AN129: 0 | AO129: 0 | AP129: 0 | AQ129: 0 | AR129: 0 | AS129: 0 | AT129: 0 | AU129: 0 | AV129: 0 | AW129: 0 | AX129: 0 | AY129: 0 | AZ129: 0 | BA129: 0 | BB129: 0 | BC129: 0 | BD129: 0 | BE129: 0 | BF129: 0 | BG129: 0 | BH129: 0 | BI129: 0 | BJ129: 0 | BK129: 0 | BL129: 0 | BM129: 0 | BN129: 0 | BO129: 0 | BP129: 0 | BQ129: 0 | BR129: 0 | BS129: 0 | BT129: 0 | BU129: 0 | BV129: 0 | BW129: =BW16 -> 0 | BX129: 0 | BY129: 0 | BZ129: 0 | CA129: 0 | CB129: 0 | CC129: 0 | CD129: 0 | CE129: 0 | CF129: 0 | CG129: 0 | CH129: 0 | CI129: 0 | CJ129: 0 | CK129: 0 | CL129: 0 | CM129: 0 | CN129: 0 | CO129: 0 | CP129: 0 | CQ129: 0 | CR129: 0 | CS129: 0 | CT129: 0 | CU129: 0 | CV129: 0 | CW129: 0 | CX129: 0 | CY129: 0 | CZ129: 0 | DA129: 0 | DB129: 0 | DC129: 0 | DD129: 0 | DE129: 0 | DF129: 0 | DG129: 0 | DH129: 0 | DI129: 0 | DJ129: 0 | DK129: 0 | DL129: 0 | DM129: 0 | DN129: 0 | DO129: 0 | DP129: 0 | DQ129: 0 | DR129: 0 | DS129: 0 | DT129: 0 | DU129: 0 | DV129: 0 | DW129: 0 | DX129: 0 | DY129: 0 | DZ129: 0 | EA129: 0 | EB129: 0 | EC129: 0 | ED129: 0 | EE129: 0 | EF129: 0 | EG129: 0 | EH129: 0 | EI129: =EI16 -> 0 | EJ129: 0 | EK129: 0 | EL129: 0 | EM129: 0 | EN129: 0 | EO129: 0 | EP129: 0 | EQ129: 0 | ER129: 0 | ES129: 0 | ET129: 0 | EU129: 0 | EV129: 0 | EW129: 0 | EX129: 0 | EY129: 0 | EZ129: 0 | FA129: 0 | FB129: 0 | FC129: 0 | FD129: 0 | FE129: 0 | FF129: 0 | FG129: 0 | FH129: 0 | FI129: 0 | FJ129: 0 | FK129: 0 | FL129: 0 | FM129: 0 | FN129: 0 | FO129: 0 | FP129: 0 | FQ129: 0 | FR129: 0 | FS129: 0 | FT129: 0 | FU129: 0 | FV129: 0 | FW129: 0 | FX129: 0 | FY129: 0 | FZ129: 0 | GA129: 0 | GB129: 0 | GC129: 0 | GD129: 0 | GE129: 0 | GF129: 0 | GG129: 0 | GH129: 0 | GI129: 0 | GJ129: 0 | GK129: 0 | GL129: 0 | GM129: 0 | GN129: 0 | GO129: 0 | GP129: 0 | GQ129: 0 | GR129: 0 | GS129: 0 | GT129: 0 | GU129: =GU16 -> 0 | GV129: 0 | GW129: 0 | GX129: 0 | GY129: 0 | GZ129: 0 | HA129: 0 | HB129: 0 | HC129: 0 | HD129: 0 | HE129: 0 | HF129: 0 | HG129: 0 | HH129: 0 | HI129: 0 | HJ129: 0 | HK129: 0 | HL129: 0 | HM129: 0 | HN129: 0 | HO129: 0 | HP129: 0 | HQ129: 0 | HR129: 0 | HS129: 0 | HT129: 0 | HU129: 0 | HV129: 0 | HW129: 0 | HX129: 0 | HY129: 0 | HZ129: 0 | IA129: 0 | IB129: 0 | IC129: 0 | ID129: 0 | IE129: 0 | IF129: 0 | IG129: 0 | IH129: 0 | II129: 0 | IJ129: 0 | IK129: 0 | IL129: 0 | IM129: 0 | IN129: 0 | IO129: 0 | IP129: 0 | IQ129: 0 | IR129: 0 | IS129: 0 | IT129: 0 | IU129: 0 | IV129: 0 | IW129: 0 | IX129: 0 | IY129: 0 | IZ129: 0
D130: Closing Balance | I130: EUR | K130: =SUM(K127:K129) -> 466666.6667 | L130: =SUM(L127:L129) -> 959315.9948 | M130: 1479394.625 | N130: 1479394.625 | O130: 1479394.625 | P130: 1479394.625 | Q130: 1479394.625 | R130: 1479394.625 | S130: 1479394.625 | T130: 1479394.625 | U130: 1479394.625 | V130: 1479394.625 | W130: 1479394.625 | X130: 1479394.625 | Y130: 1479394.625 | Z130: 1479394.625 | AA130: 1479394.625 | AB130: 1479394.625 | AC130: 1479394.625 | AD130: 1479394.625 | AE130: 1479394.625 | AF130: 1479394.625 | AG130: 1479394.625 | AH130: 1479394.625 | AI130: 1479394.625 | AJ130: 1479394.625 | AK130: 1479394.625 | AL130: 1479394.625 | AM130: 1479394.625 | AN130: 1479394.625 | AO130: 1479394.625 | AP130: 1479394.625 | AQ130: 1479394.625 | AR130: 1479394.625 | AS130: 1479394.625 | AT130: 1479394.625 | AU130: 1479394.625 | AV130: 1479394.625 | AW130: 1479394.625 | AX130: 1479394.625 | AY130: 1479394.625 | AZ130: 1479394.625 | BA130: 1479394.625 | BB130: 1479394.625 | BC130: 1479394.625 | BD130: 1479394.625 | BE130: 1479394.625 | BF130: 1479394.625 | BG130: 1479394.625 | BH130: 1479394.625 | BI130: 1479394.625 | BJ130: 1479394.625 | BK130: 1479394.625 | BL130: 1479394.625 | BM130: 1479394.625 | BN130: 1479394.625 | BO130: 1479394.625 | BP130: 1479394.625 | BQ130: 1479394.625 | BR130: 1479394.625 | BS130: 1479394.625 | BT130: 1479394.625 | BU130: 1479394.625 | BV130: 1479394.625 | BW130: 1479394.625 | BX130: =SUM(BX127:BX129) -> 1479394.625 | BY130: 1479394.625 | BZ130: 1479394.625 | CA130: 1479394.625 | CB130: 1479394.625 | CC130: 1479394.625 | CD130: 1479394.625 | CE130: 1479394.625 | CF130: 1479394.625 | CG130: 1479394.625 | CH130: 1479394.625 | CI130: 1479394.625 | CJ130: 1479394.625 | CK130: 1479394.625 | CL130: 1479394.625 | CM130: 1479394.625 | CN130: 1479394.625 | CO130: 1479394.625 | CP130: 1479394.625 | CQ130: 1479394.625 | CR130: 1479394.625 | CS130: 1479394.625 | CT130: 1479394.625 | CU130: 1479394.625 | CV130: 1479394.625 | CW130: 1479394.625 | CX130: 1479394.625 | CY130: 1479394.625 | CZ130: 1479394.625 | DA130: 1479394.625 | DB130: 1479394.625 | DC130: 1479394.625 | DD130: 1479394.625 | DE130: 1479394.625 | DF130: 1479394.625 | DG130: 1479394.625 | DH130: 1479394.625 | DI130: 1479394.625 | DJ130: 1479394.625 | DK130: 1479394.625 | DL130: 1479394.625 | DM130: 1479394.625 | DN130: 1479394.625 | DO130: 1479394.625 | DP130: 1479394.625 | DQ130: 1479394.625 | DR130: 1479394.625 | DS130: 1479394.625 | DT130: 1479394.625 | DU130: 1479394.625 | DV130: 1479394.625 | DW130: 1479394.625 | DX130: 1479394.625 | DY130: 1479394.625 | DZ130: 1479394.625 | EA130: 1479394.625 | EB130: 1479394.625 | EC130: 1479394.625 | ED130: 1479394.625 | EE130: 1479394.625 | EF130: 1479394.625 | EG130: 1479394.625 | EH130: 1479394.625 | EI130: 1479394.625 | EJ130: =SUM(EJ127:EJ129) -> 1479394.625 | EK130: 1479394.625 | EL130: 1479394.625 | EM130: 1479394.625 | EN130: 1479394.625 | EO130: 1479394.625 | EP130: 1479394.625 | EQ130: 1479394.625 | ER130: 1479394.625 | ES130: 1479394.625 | ET130: 1479394.625 | EU130: 1479394.625 | EV130: 1479394.625 | EW130: 1479394.625 | EX130: 1479394.625 | EY130: 1479394.625 | EZ130: 1479394.625 | FA130: 1479394.625 | FB130: 1479394.625 | FC130: 1479394.625 | FD130: 1479394.625 | FE130: 1479394.625 | FF130: 1479394.625 | FG130: 1479394.625 | FH130: 1479394.625 | FI130: 1479394.625 | FJ130: 1479394.625 | FK130: 1479394.625 | FL130: 1479394.625 | FM130: 1479394.625 | FN130: 1479394.625 | FO130: 1479394.625 | FP130: 1479394.625 | FQ130: 1479394.625 | FR130: 1479394.625 | FS130: 1479394.625 | FT130: 1479394.625 | FU130: 1479394.625 | FV130: 1479394.625 | FW130: 1479394.625 | FX130: 1479394.625 | FY130: 1479394.625 | FZ130: 1479394.625 | GA130: 1479394.625 | GB130: 1479394.625 | GC130: 1479394.625 | GD130: 1479394.625 | GE130: 1479394.625 | GF130: 1479394.625 | GG130: 1479394.625 | GH130: 1479394.625 | GI130: 1479394.625 | GJ130: 1479394.625 | GK130: 1479394.625 | GL130: 1479394.625 | GM130: 1479394.625 | GN130: 1479394.625 | GO130: 1479394.625 | GP130: 1479394.625 | GQ130: 1479394.625 | GR130: 1479394.625 | GS130: 1479394.625 | GT130: 1479394.625 | GU130: 1479394.625 | GV130: =SUM(GV127:GV129) -> 1479394.625 | GW130: 1479394.625 | GX130: 1479394.625 | GY130: 1479394.625 | GZ130: 1479394.625 | HA130: 1479394.625 | HB130: 1479394.625 | HC130: 1479394.625 | HD130: 1479394.625 | HE130: 1479394.625 | HF130: 1479394.625 | HG130: 1479394.625 | HH130: 1479394.625 | HI130: 1479394.625 | HJ130: 1479394.625 | HK130: 1479394.625 | HL130: 1479394.625 | HM130: 1479394.625 | HN130: 1479394.625 | HO130: 1479394.625 | HP130: 1479394.625 | HQ130: 1479394.625 | HR130: 1479394.625 | HS130: 1479394.625 | HT130: 1479394.625 | HU130: 1479394.625 | HV130: 1479394.625 | HW130: 1479394.625 | HX130: 1479394.625 | HY130: 1479394.625 | HZ130: 1479394.625 | IA130: 1479394.625 | IB130: 1479394.625 | IC130: 1479394.625 | ID130: 1479394.625 | IE130: 1479394.625 | IF130: 1479394.625 | IG130: 1479394.625 | IH130: 1479394.625 | II130: 1479394.625 | IJ130: 1479394.625 | IK130: 1479394.625 | IL130: 1479394.625 | IM130: 1479394.625 | IN130: 1479394.625 | IO130: 1479394.625 | IP130: 1479394.625 | IQ130: 1479394.625 | IR130: 1479394.625 | IS130: 1479394.625 | IT130: 1479394.625 | IU130: 1479394.625 | IV130: 1479394.625 | IW130: 1479394.625 | IX130: 1479394.625 | IY130: 1479394.625 | IZ130: 1479394.625
D132: Cash in Final Construction Period | E132: Period | F132: =H5 -> 3 | G132: =LOOKUP(F132,3:3,130:130) -> 1479394.625
C134: Cash After COD
D135: Opening Balance | E135: EUR | I135: EUR | K135: =J138 -> 0 | L135: 0 | M135: 0 | N135: 0 | O135: 101000 | P135: 208633.3903 | Q135: 323279.5991 | R135: 445339.2809 | S135: 575235.4998 | T135: 713414.9775 | U135: 860349.4125 | V135: 1016536.871 | W135: 1182503.255 | X135: 1358803.857 | Y135: 1546024.993 | Z135: 1744785.734 | AA135: 1955739.727 | AB135: 2179577.127 | AC135: 2417026.625 | AD135: 2668857.6 | AE135: 2935882.379 | AF135: 3218958.637 | AG135: 3518991.916 | AH135: 3836938.297 | AI135: 4173807.21 | AJ135: 4530664.41 | AK135: 4908635.111 | AL135: 5308907.3 | AM135: 5732735.231 | AN135: 5732735.231 | AO135: 5732735.231 | AP135: 5732735.231 | AQ135: 5732735.231 | AR135: 5732735.231 | AS135: 5732735.231 | AT135: 5732735.231 | AU135: 5732735.231 | AV135: 5732735.231 | AW135: 5732735.231 | AX135: 5732735.231 | AY135: 5732735.231 | AZ135: 5732735.231 | BA135: 5732735.231 | BB135: 5732735.231 | BC135: 5732735.231 | BD135: 5732735.231 | BE135: 5732735.231 | BF135: 5732735.231 | BG135: 5732735.231 | BH135: 5732735.231 | BI135: 5732735.231 | BJ135: 5732735.231 | BK135: 5732735.231 | BL135: 5732735.231 | BM135: 5732735.231 | BN135: 5732735.231 | BO135: 5732735.231 | BP135: 5732735.231 | BQ135: 5732735.231 | BR135: 5732735.231 | BS135: 5732735.231 | BT135: 5732735.231 | BU135: 5732735.231 | BV135: 5732735.231 | BW135: =BV138 -> 5732735.231 | BX135: 5732735.231 | BY135: 5732735.231 | BZ135: 5732735.231 | CA135: 5732735.231 | CB135: 5732735.231 | CC135: 5732735.231 | CD135: 5732735.231 | CE135: 5732735.231 | CF135: 5732735.231 | CG135: 5732735.231 | CH135: 5732735.231 | CI135: 5732735.231 | CJ135: 5732735.231 | CK135: 5732735.231 | CL135: 5732735.231 | CM135: 5732735.231 | CN135: 5732735.231 | CO135: 5732735.231 | CP135: 5732735.231 | CQ135: 5732735.231 | CR135: 5732735.231 | CS135: 5732735.231 | CT135: 5732735.231 | CU135: 5732735.231 | CV135: 5732735.231 | CW135: 5732735.231 | CX135: 5732735.231 | CY135: 5732735.231 | CZ135: 5732735.231 | DA135: 5732735.231 | DB135: 5732735.231 | DC135: 5732735.231 | DD135: 5732735.231 | DE135: 5732735.231 | DF135: 5732735.231 | DG135: 5732735.231 | DH135: 5732735.231 | DI135: 5732735.231 | DJ135: 5732735.231 | DK135: 5732735.231 | DL135: 5732735.231 | DM135: 5732735.231 | DN135: 5732735.231 | DO135: 5732735.231 | DP135: 5732735.231 | DQ135: 5732735.231 | DR135: 5732735.231 | DS135: 5732735.231 | DT135: 5732735.231 | DU135: 5732735.231 | DV135: 5732735.231 | DW135: 5732735.231 | DX135: 5732735.231 | DY135: 5732735.231 | DZ135: 5732735.231 | EA135: 5732735.231 | EB135: 5732735.231 | EC135: 5732735.231 | ED135: 5732735.231 | EE135: 5732735.231 | EF135: 5732735.231 | EG135: 5732735.231 | EH135: 5732735.231 | EI135: =EH138 -> 5732735.231 | EJ135: 5732735.231 | EK135: 5732735.231 | EL135: 5732735.231 | EM135: 5732735.231 | EN135: 5732735.231 | EO135: 5732735.231 | EP135: 5732735.231 | EQ135: 5732735.231 | ER135: 5732735.231 | ES135: 5732735.231 | ET135: 5732735.231 | EU135: 5732735.231 | EV135: 5732735.231 | EW135: 5732735.231 | EX135: 5732735.231 | EY135: 5732735.231 | EZ135: 5732735.231 | FA135: 5732735.231 | FB135: 5732735.231 | FC135: 5732735.231 | FD135: 5732735.231 | FE135: 5732735.231 | FF135: 5732735.231 | FG135: 5732735.231 | FH135: 5732735.231 | FI135: 5732735.231 | FJ135: 5732735.231 | FK135: 5732735.231 | FL135: 5732735.231 | FM135: 5732735.231 | FN135: 5732735.231 | FO135: 5732735.231 | FP135: 5732735.231 | FQ135: 5732735.231 | FR135: 5732735.231 | FS135: 5732735.231 | FT135: 5732735.231 | FU135: 5732735.231 | FV135: 5732735.231 | FW135: 5732735.231 | FX135: 5732735.231 | FY135: 5732735.231 | FZ135: 5732735.231 | GA135: 5732735.231 | GB135: 5732735.231 | GC135: 5732735.231 | GD135: 5732735.231 | GE135: 5732735.231 | GF135: 5732735.231 | GG135: 5732735.231 | GH135: 5732735.231 | GI135: 5732735.231 | GJ135: 5732735.231 | GK135: 5732735.231 | GL135: 5732735.231 | GM135: 5732735.231 | GN135: 5732735.231 | GO135: 5732735.231 | GP135: 5732735.231 | GQ135: 5732735.231 | GR135: 5732735.231 | GS135: 5732735.231 | GT135: 5732735.231 | GU135: =GT138 -> 5732735.231 | GV135: 5732735.231 | GW135: 5732735.231 | GX135: 5732735.231 | GY135: 5732735.231 | GZ135: 5732735.231 | HA135: 5732735.231 | HB135: 5732735.231 | HC135: 5732735.231 | HD135: 5732735.231 | HE135: 5732735.231 | HF135: 5732735.231 | HG135: 5732735.231 | HH135: 5732735.231 | HI135: 5732735.231 | HJ135: 5732735.231 | HK135: 5732735.231 | HL135: 5732735.231 | HM135: 5732735.231 | HN135: 5732735.231 | HO135: 5732735.231 | HP135: 5732735.231 | HQ135: 5732735.231 | HR135: 5732735.231 | HS135: 5732735.231 | HT135: 5732735.231 | HU135: 5732735.231 | HV135: 5732735.231 | HW135: 5732735.231 | HX135: 5732735.231 | HY135: 5732735.231 | HZ135: 5732735.231 | IA135: 5732735.231 | IB135: 5732735.231 | IC135: 5732735.231 | ID135: 5732735.231 | IE135: 5732735.231 | IF135: 5732735.231 | IG135: 5732735.231 | IH135: 5732735.231 | II135: 5732735.231 | IJ135: 5732735.231 | IK135: 5732735.231 | IL135: 5732735.231 | IM135: 5732735.231 | IN135: 5732735.231 | IO135: 5732735.231 | IP135: 5732735.231 | IQ135: 5732735.231 | IR135: 5732735.231 | IS135: 5732735.231 | IT135: 5732735.231 | IU135: 5732735.231 | IV135: 5732735.231 | IW135: 5732735.231 | IX135: 5732735.231 | IY135: 5732735.231 | IZ135: 5732735.231
D136: Reinvestment income | E136: EUR | F136: =F28 -> 0.05567713178 | I136: EUR | K136: =K135*$F$136*K9 -> 0 | L136: 0 | M136: 0 | N136: 0 | O136: 5623.39031 | P136: 11616.10877 | Q136: 17999.28084 | R136: 24795.21383 | S136: 32027.46273 | T136: 39720.89972 | U136: 47901.78762 | V136: 56597.85731 | W136: 65838.38957 | X136: 75654.30143 | Y136: 86078.2373 | Z136: 97144.66523 | AA136: 108889.9785 | AB136: 121352.6029 | AC136: 134573.1099 | AD136: 148594.3363 | AE136: 163461.5101 | AF136: 179222.3842 | AG136: 195927.3767 | AH136: 213629.7192 | AI136: 232385.6141 | AJ136: 252254.3994 | AK136: 273298.724 | AL136: 295584.7314 | AM136: 0 | AN136: 0 | AO136: 0 | AP136: 0 | AQ136: 0 | AR136: 0 | AS136: 0 | AT136: 0 | AU136: 0 | AV136: 0 | AW136: 0 | AX136: 0 | AY136: 0 | AZ136: 0 | BA136: 0 | BB136: 0 | BC136: 0 | BD136: 0 | BE136: 0 | BF136: 0 | BG136: 0 | BH136: 0 | BI136: 0 | BJ136: 0 | BK136: 0 | BL136: 0 | BM136: 0 | BN136: 0 | BO136: 0 | BP136: 0 | BQ136: 0 | BR136: 0 | BS136: 0 | BT136: 0 | BU136: 0 | BV136: 0 | BW136: =BW135*$F$136*BW9 -> 0 | BX136: 0 | BY136: 0 | BZ136: 0 | CA136: 0 | CB136: 0 | CC136: 0 | CD136: 0 | CE136: 0 | CF136: 0 | CG136: 0 | CH136: 0 | CI136: 0 | CJ136: 0 | CK136: 0 | CL136: 0 | CM136: 0 | CN136: 0 | CO136: 0 | CP136: 0 | CQ136: 0 | CR136: 0 | CS136: 0 | CT136: 0 | CU136: 0 | CV136: 0 | CW136: 0 | CX136: 0 | CY136: 0 | CZ136: 0 | DA136: 0 | DB136: 0 | DC136: 0 | DD136: 0 | DE136: 0 | DF136: 0 | DG136: 0 | DH136: 0 | DI136: 0 | DJ136: 0 | DK136: 0 | DL136: 0 | DM136: 0 | DN136: 0 | DO136: 0 | DP136: 0 | DQ136: 0 | DR136: 0 | DS136: 0 | DT136: 0 | DU136: 0 | DV136: 0 | DW136: 0 | DX136: 0 | DY136: 0 | DZ136: 0 | EA136: 0 | EB136: 0 | EC136: 0 | ED136: 0 | EE136: 0 | EF136: 0 | EG136: 0 | EH136: 0 | EI136: =EI135*$F$136*EI9 -> 0 | EJ136: 0 | EK136: 0 | EL136: 0 | EM136: 0 | EN136: 0 | EO136: 0 | EP136: 0 | EQ136: 0 | ER136: 0 | ES136: 0 | ET136: 0 | EU136: 0 | EV136: 0 | EW136: 0 | EX136: 0 | EY136: 0 | EZ136: 0 | FA136: 0 | FB136: 0 | FC136: 0 | FD136: 0 | FE136: 0 | FF136: 0 | FG136: 0 | FH136: 0 | FI136: 0 | FJ136: 0 | FK136: 0 | FL136: 0 | FM136: 0 | FN136: 0 | FO136: 0 | FP136: 0 | FQ136: 0 | FR136: 0 | FS136: 0 | FT136: 0 | FU136: 0 | FV136: 0 | FW136: 0 | FX136: 0 | FY136: 0 | FZ136: 0 | GA136: 0 | GB136: 0 | GC136: 0 | GD136: 0 | GE136: 0 | GF136: 0 | GG136: 0 | GH136: 0 | GI136: 0 | GJ136: 0 | GK136: 0 | GL136: 0 | GM136: 0 | GN136: 0 | GO136: 0 | GP136: 0 | GQ136: 0 | GR136: 0 | GS136: 0 | GT136: 0 | GU136: =GU135*$F$136*GU9 -> 0 | GV136: 0 | GW136: 0 | GX136: 0 | GY136: 0 | GZ136: 0 | HA136: 0 | HB136: 0 | HC136: 0 | HD136: 0 | HE136: 0 | HF136: 0 | HG136: 0 | HH136: 0 | HI136: 0 | HJ136: 0 | HK136: 0 | HL136: 0 | HM136: 0 | HN136: 0 | HO136: 0 | HP136: 0 | HQ136: 0 | HR136: 0 | HS136: 0 | HT136: 0 | HU136: 0 | HV136: 0 | HW136: 0 | HX136: 0 | HY136: 0 | HZ136: 0 | IA136: 0 | IB136: 0 | IC136: 0 | ID136: 0 | IE136: 0 | IF136: 0 | IG136: 0 | IH136: 0 | II136: 0 | IJ136: 0 | IK136: 0 | IL136: 0 | IM136: 0 | IN136: 0 | IO136: 0 | IP136: 0 | IQ136: 0 | IR136: 0 | IS136: 0 | IT136: 0 | IU136: 0 | IV136: 0 | IW136: 0 | IX136: 0 | IY136: 0 | IZ136: 0
D137: Dividends | E137: EUR | I137: EUR | K137: =K25 -> 0 | L137: 0 | M137: 0 | N137: 101000 | O137: 102010 | P137: 103030.1 | Q137: 104060.401 | R137: 105101.005 | S137: 106152.0151 | T137: 107213.5352 | U137: 108285.6706 | V137: 109368.5273 | W137: 110462.2125 | X137: 111566.8347 | Y137: 112682.503 | Z137: 113809.328 | AA137: 114947.4213 | AB137: 116096.8955 | AC137: 117257.8645 | AD137: 118430.4431 | AE137: 119614.7476 | AF137: 120810.895 | AG137: 122019.004 | AH137: 123239.194 | AI137: 124471.586 | AJ137: 125716.3018 | AK137: 126973.4649 | AL137: 128243.1995 | AM137: 0 | AN137: 0 | AO137: 0 | AP137: 0 | AQ137: 0 | AR137: 0 | AS137: 0 | AT137: 0 | AU137: 0 | AV137: 0 | AW137: 0 | AX137: 0 | AY137: 0 | AZ137: 0 | BA137: 0 | BB137: 0 | BC137: 0 | BD137: 0 | BE137: 0 | BF137: 0 | BG137: 0 | BH137: 0 | BI137: 0 | BJ137: 0 | BK137: 0 | BL137: 0 | BM137: 0 | BN137: 0 | BO137: 0 | BP137: 0 | BQ137: 0 | BR137: 0 | BS137: 0 | BT137: 0 | BU137: 0 | BV137: 0 | BW137: =BW25 -> 0 | BX137: 0 | BY137: 0 | BZ137: 0 | CA137: 0 | CB137: 0 | CC137: 0 | CD137: 0 | CE137: 0 | CF137: 0 | CG137: 0 | CH137: 0 | CI137: 0 | CJ137: 0 | CK137: 0 | CL137: 0 | CM137: 0 | CN137: 0 | CO137: 0 | CP137: 0 | CQ137: 0 | CR137: 0 | CS137: 0 | CT137: 0 | CU137: 0 | CV137: 0 | CW137: 0 | CX137: 0 | CY137: 0 | CZ137: 0 | DA137: 0 | DB137: 0 | DC137: 0 | DD137: 0 | DE137: 0 | DF137: 0 | DG137: 0 | DH137: 0 | DI137: 0 | DJ137: 0 | DK137: 0 | DL137: 0 | DM137: 0 | DN137: 0 | DO137: 0 | DP137: 0 | DQ137: 0 | DR137: 0 | DS137: 0 | DT137: 0 | DU137: 0 | DV137: 0 | DW137: 0 | DX137: 0 | DY137: 0 | DZ137: 0 | EA137: 0 | EB137: 0 | EC137: 0 | ED137: 0 | EE137: 0 | EF137: 0 | EG137: 0 | EH137: 0 | EI137: =EI25 -> 0 | EJ137: 0 | EK137: 0 | EL137: 0 | EM137: 0 | EN137: 0 | EO137: 0 | EP137: 0 | EQ137: 0 | ER137: 0 | ES137: 0 | ET137: 0 | EU137: 0 | EV137: 0 | EW137: 0 | EX137: 0 | EY137: 0 | EZ137: 0 | FA137: 0 | FB137: 0 | FC137: 0 | FD137: 0 | FE137: 0 | FF137: 0 | FG137: 0 | FH137: 0 | FI137: 0 | FJ137: 0 | FK137: 0 | FL137: 0 | FM137: 0 | FN137: 0 | FO137: 0 | FP137: 0 | FQ137: 0 | FR137: 0 | FS137: 0 | FT137: 0 | FU137: 0 | FV137: 0 | FW137: 0 | FX137: 0 | FY137: 0 | FZ137: 0 | GA137: 0 | GB137: 0 | GC137: 0 | GD137: 0 | GE137: 0 | GF137: 0 | GG137: 0 | GH137: 0 | GI137: 0 | GJ137: 0 | GK137: 0 | GL137: 0 | GM137: 0 | GN137: 0 | GO137: 0 | GP137: 0 | GQ137: 0 | GR137: 0 | GS137: 0 | GT137: 0 | GU137: =GU25 -> 0 | GV137: 0 | GW137: 0 | GX137: 0 | GY137: 0 | GZ137: 0 | HA137: 0 | HB137: 0 | HC137: 0 | HD137: 0 | HE137: 0 | HF137: 0 | HG137: 0 | HH137: 0 | HI137: 0 | HJ137: 0 | HK137: 0 | HL137: 0 | HM137: 0 | HN137: 0 | HO137: 0 | HP137: 0 | HQ137: 0 | HR137: 0 | HS137: 0 | HT137: 0 | HU137: 0 | HV137: 0 | HW137: 0 | HX137: 0 | HY137: 0 | HZ137: 0 | IA137: 0 | IB137: 0 | IC137: 0 | ID137: 0 | IE137: 0 | IF137: 0 | IG137: 0 | IH137: 0 | II137: 0 | IJ137: 0 | IK137: 0 | IL137: 0 | IM137: 0 | IN137: 0 | IO137: 0 | IP137: 0 | IQ137: 0 | IR137: 0 | IS137: 0 | IT137: 0 | IU137: 0 | IV137: 0 | IW137: 0 | IX137: 0 | IY137: 0 | IZ137: 0
D138: Closing Balance | E138: EUR | I138: EUR | K138: =SUM(K135:K137) -> 0 | L138: 0 | M138: 0 | N138: 101000 | O138: 208633.3903 | P138: 323279.5991 | Q138: 445339.2809 | R138: 575235.4998 | S138: 713414.9775 | T138: 860349.4125 | U138: 1016536.871 | V138: 1182503.255 | W138: 1358803.857 | X138: 1546024.993 | Y138: 1744785.734 | Z138: 1955739.727 | AA138: 2179577.127 | AB138: 2417026.625 | AC138: 2668857.6 | AD138: 2935882.379 | AE138: 3218958.637 | AF138: 3518991.916 | AG138: 3836938.297 | AH138: 4173807.21 | AI138: 4530664.41 | AJ138: 4908635.111 | AK138: 5308907.3 | AL138: 5732735.231 | AM138: 5732735.231 | AN138: 5732735.231 | AO138: 5732735.231 | AP138: 5732735.231 | AQ138: 5732735.231 | AR138: 5732735.231 | AS138: 5732735.231 | AT138: 5732735.231 | AU138: 5732735.231 | AV138: 5732735.231 | AW138: 5732735.231 | AX138: 5732735.231 | AY138: 5732735.231 | AZ138: 5732735.231 | BA138: 5732735.231 | BB138: 5732735.231 | BC138: 5732735.231 | BD138: 5732735.231 | BE138: 5732735.231 | BF138: 5732735.231 | BG138: 5732735.231 | BH138: 5732735.231 | BI138: 5732735.231 | BJ138: 5732735.231 | BK138: 5732735.231 | BL138: 5732735.231 | BM138: 5732735.231 | BN138: 5732735.231 | BO138: 5732735.231 | BP138: 5732735.231 | BQ138: 5732735.231 | BR138: 5732735.231 | BS138: 5732735.231 | BT138: 5732735.231 | BU138: 5732735.231 | BV138: 5732735.231 | BW138: =SUM(BW135:BW137) -> 5732735.231 | BX138: 5732735.231 | BY138: 5732735.231 | BZ138: 5732735.231 | CA138: 5732735.231 | CB138: 5732735.231 | CC138: 5732735.231 | CD138: 5732735.231 | CE138: 5732735.231 | CF138: 5732735.231 | CG138: 5732735.231 | CH138: 5732735.231 | CI138: 5732735.231 | CJ138: 5732735.231 | CK138: 5732735.231 | CL138: 5732735.231 | CM138: 5732735.231 | CN138: 5732735.231 | CO138: 5732735.231 | CP138: 5732735.231 | CQ138: 5732735.231 | CR138: 5732735.231 | CS138: 5732735.231 | CT138: 5732735.231 | CU138: 5732735.231 | CV138: 5732735.231 | CW138: 5732735.231 | CX138: 5732735.231 | CY138: 5732735.231 | CZ138: 5732735.231 | DA138: 5732735.231 | DB138: 5732735.231 | DC138: 5732735.231 | DD138: 5732735.231 | DE138: 5732735.231 | DF138: 5732735.231 | DG138: 5732735.231 | DH138: 5732735.231 | DI138: 5732735.231 | DJ138: 5732735.231 | DK138: 5732735.231 | DL138: 5732735.231 | DM138: 5732735.231 | DN138: 5732735.231 | DO138: 5732735.231 | DP138: 5732735.231 | DQ138: 5732735.231 | DR138: 5732735.231 | DS138: 5732735.231 | DT138: 5732735.231 | DU138: 5732735.231 | DV138: 5732735.231 | DW138: 5732735.231 | DX138: 5732735.231 | DY138: 5732735.231 | DZ138: 5732735.231 | EA138: 5732735.231 | EB138: 5732735.231 | EC138: 5732735.231 | ED138: 5732735.231 | EE138: 5732735.231 | EF138: 5732735.231 | EG138: 5732735.231 | EH138: 5732735.231 | EI138: =SUM(EI135:EI137) -> 5732735.231 | EJ138: 5732735.231 | EK138: 5732735.231 | EL138: 5732735.231 | EM138: 5732735.231 | EN138: 5732735.231 | EO138: 5732735.231 | EP138: 5732735.231 | EQ138: 5732735.231 | ER138: 5732735.231 | ES138: 5732735.231 | ET138: 5732735.231 | EU138: 5732735.231 | EV138: 5732735.231 | EW138: 5732735.231 | EX138: 5732735.231 | EY138: 5732735.231 | EZ138: 5732735.231 | FA138: 5732735.231 | FB138: 5732735.231 | FC138: 5732735.231 | FD138: 5732735.231 | FE138: 5732735.231 | FF138: 5732735.231 | FG138: 5732735.231 | FH138: 5732735.231 | FI138: 5732735.231 | FJ138: 5732735.231 | FK138: 5732735.231 | FL138: 5732735.231 | FM138: 5732735.231 | FN138: 5732735.231 | FO138: 5732735.231 | FP138: 5732735.231 | FQ138: 5732735.231 | FR138: 5732735.231 | FS138: 5732735.231 | FT138: 5732735.231 | FU138: 5732735.231 | FV138: 5732735.231 | FW138: 5732735.231 | FX138: 5732735.231 | FY138: 5732735.231 | FZ138: 5732735.231 | GA138: 5732735.231 | GB138: 5732735.231 | GC138: 5732735.231 | GD138: 5732735.231 | GE138: 5732735.231 | GF138: 5732735.231 | GG138: 5732735.231 | GH138: 5732735.231 | GI138: 5732735.231 | GJ138: 5732735.231 | GK138: 5732735.231 | GL138: 5732735.231 | GM138: 5732735.231 | GN138: 5732735.231 | GO138: 5732735.231 | GP138: 5732735.231 | GQ138: 5732735.231 | GR138: 5732735.231 | GS138: 5732735.231 | GT138: 5732735.231 | GU138: =SUM(GU135:GU137) -> 5732735.231 | GV138: 5732735.231 | GW138: 5732735.231 | GX138: 5732735.231 | GY138: 5732735.231 | GZ138: 5732735.231 | HA138: 5732735.231 | HB138: 5732735.231 | HC138: 5732735.231 | HD138: 5732735.231 | HE138: 5732735.231 | HF138: 5732735.231 | HG138: 5732735.231 | HH138: 5732735.231 | HI138: 5732735.231 | HJ138: 5732735.231 | HK138: 5732735.231 | HL138: 5732735.231 | HM138: 5732735.231 | HN138: 5732735.231 | HO138: 5732735.231 | HP138: 5732735.231 | HQ138: 5732735.231 | HR138: 5732735.231 | HS138: 5732735.231 | HT138: 5732735.231 | HU138: 5732735.231 | HV138: 5732735.231 | HW138: 5732735.231 | HX138: 5732735.231 | HY138: 5732735.231 | HZ138: 5732735.231 | IA138: 5732735.231 | IB138: 5732735.231 | IC138: 5732735.231 | ID138: 5732735.231 | IE138: 5732735.231 | IF138: 5732735.231 | IG138: 5732735.231 | IH138: 5732735.231 | II138: 5732735.231 | IJ138: 5732735.231 | IK138: 5732735.231 | IL138: 5732735.231 | IM138: 5732735.231 | IN138: 5732735.231 | IO138: 5732735.231 | IP138: 5732735.231 | IQ138: 5732735.231 | IR138: 5732735.231 | IS138: 5732735.231 | IT138: 5732735.231 | IU138: 5732735.231 | IV138: 5732735.231 | IW138: 5732735.231 | IX138: 5732735.231 | IY138: 5732735.231 | IZ138: 5732735.231
D140: Cash accumulated in final period | E140: EUR | F140: =H9+H5 -> 28 | G140: =LOOKUP(F140,3:3,138:138) -> 5732735.231
D141: Investment | E141: EUR | G141: =G132 -> 1479394.625
D142: Ratio of accumulated cash / initial cash | E142: EUR | G142: =G140/G141 -> 3.875054793
D143: Number of periods | E143: Period | G143: =H9 -> 25
D144: Compound Periodic Growth Rate (CAGR) | E144: % p.p. | G144: =G142^(1/(G143))-1 -> 0.05567713178
D145: Compound Annual Growth Rate (CAGR) | E145: % p.a. | G145: =(1+G144)^(months/G6)-1 -> 0.05567713178
C147: MIRR | E147: % p.a. | G147: =MIRR(K27:IZ27,F136,F136) -> 0.05567713178
C149: Risk Premium Method
D150: Future Cash Flow with for Discounting | E150: EUR | K150: =IF(K9,K25) -> FALSE | L150: FALSE | M150: FALSE | N150: 101000 | O150: 102010 | P150: 103030.1 | Q150: 104060.401 | R150: 105101.005 | S150: 106152.0151 | T150: 107213.5352 | U150: 108285.6706 | V150: 109368.5273 | W150: 110462.2125 | X150: 111566.8347 | Y150: 112682.503 | Z150: 113809.328 | AA150: 114947.4213 | AB150: 116096.8955 | AC150: 117257.8645 | AD150: 118430.4431 | AE150: 119614.7476 | AF150: 120810.895 | AG150: 122019.004 | AH150: 123239.194 | AI150: 124471.586 | AJ150: 125716.3018 | AK150: 126973.4649 | AL150: 128243.1995 | AM150: FALSE | AN150: FALSE | AO150: FALSE | AP150: FALSE | AQ150: FALSE | AR150: FALSE | AS150: FALSE | AT150: FALSE | AU150: FALSE | AV150: FALSE | AW150: FALSE | AX150: FALSE | AY150: FALSE | AZ150: FALSE | BA150: FALSE | BB150: FALSE | BC150: FALSE | BD150: FALSE | BE150: FALSE | BF150: FALSE | BG150: FALSE | BH150: FALSE | BI150: FALSE | BJ150: FALSE | BK150: FALSE | BL150: FALSE | BM150: FALSE | BN150: FALSE | BO150: FALSE | BP150: FALSE | BQ150: FALSE | BR150: FALSE | BS150: FALSE | BT150: FALSE | BU150: FALSE | BV150: FALSE | BW150: =IF(BW9,BW25) -> FALSE | BX150: FALSE | BY150: FALSE | BZ150: FALSE | CA150: FALSE | CB150: FALSE | CC150: FALSE | CD150: FALSE | CE150: FALSE | CF150: FALSE | CG150: FALSE | CH150: FALSE | CI150: FALSE | CJ150: FALSE | CK150: FALSE | CL150: FALSE | CM150: FALSE | CN150: FALSE | CO150: FALSE | CP150: FALSE | CQ150: FALSE | CR150: FALSE | CS150: FALSE | CT150: FALSE | CU150: FALSE | CV150: FALSE | CW150: FALSE | CX150: FALSE | CY150: FALSE | CZ150: FALSE | DA150: FALSE | DB150: FALSE | DC150: FALSE | DD150: FALSE | DE150: FALSE | DF150: FALSE | DG150: FALSE | DH150: FALSE | DI150: FALSE | DJ150: FALSE | DK150: FALSE | DL150: FALSE | DM150: FALSE | DN150: FALSE | DO150: FALSE | DP150: FALSE | DQ150: FALSE | DR150: FALSE | DS150: FALSE | DT150: FALSE | DU150: FALSE | DV150: FALSE | DW150: FALSE | DX150: FALSE | DY150: FALSE | DZ150: FALSE | EA150: FALSE | EB150: FALSE | EC150: FALSE | ED150: FALSE | EE150: FALSE | EF150: FALSE | EG150: FALSE | EH150: FALSE | EI150: =IF(EI9,EI25) -> FALSE | EJ150: FALSE | EK150: FALSE | EL150: FALSE | EM150: FALSE | EN150: FALSE | EO150: FALSE | EP150: FALSE | EQ150: FALSE | ER150: FALSE | ES150: FALSE | ET150: FALSE | EU150: FALSE | EV150: FALSE | EW150: FALSE | EX150: FALSE | EY150: FALSE | EZ150: FALSE | FA150: FALSE | FB150: FALSE | FC150: FALSE | FD150: FALSE | FE150: FALSE | FF150: FALSE | FG150: FALSE | FH150: FALSE | FI150: FALSE | FJ150: FALSE | FK150: FALSE | FL150: FALSE | FM150: FALSE | FN150: FALSE | FO150: FALSE | FP150: FALSE | FQ150: FALSE | FR150: FALSE | FS150: FALSE | FT150: FALSE | FU150: FALSE | FV150: FALSE | FW150: FALSE | FX150: FALSE | FY150: FALSE | FZ150: FALSE | GA150: FALSE | GB150: FALSE | GC150: FALSE | GD150: FALSE | GE150: FALSE | GF150: FALSE | GG150: FALSE | GH150: FALSE | GI150: FALSE | GJ150: FALSE | GK150: FALSE | GL150: FALSE | GM150: FALSE | GN150: FALSE | GO150: FALSE | GP150: FALSE | GQ150: FALSE | GR150: FALSE | GS150: FALSE | GT150: FALSE | GU150: =IF(GU9,GU25) -> FALSE | GV150: FALSE | GW150: FALSE | GX150: FALSE | GY150: FALSE | GZ150: FALSE | HA150: FALSE | HB150: FALSE | HC150: FALSE | HD150: FALSE | HE150: FALSE | HF150: FALSE | HG150: FALSE | HH150: FALSE | HI150: FALSE | HJ150: FALSE | HK150: FALSE | HL150: FALSE | HM150: FALSE | HN150: FALSE | HO150: FALSE | HP150: FALSE | HQ150: FALSE | HR150: FALSE | HS150: FALSE | HT150: FALSE | HU150: FALSE | HV150: FALSE | HW150: FALSE | HX150: FALSE | HY150: FALSE | HZ150: FALSE | IA150: FALSE | IB150: FALSE | IC150: FALSE | ID150: FALSE | IE150: FALSE | IF150: FALSE | IG150: FALSE | IH150: FALSE | II150: FALSE | IJ150: FALSE | IK150: FALSE | IL150: FALSE | IM150: FALSE | IN150: FALSE | IO150: FALSE | IP150: FALSE | IQ150: FALSE | IR150: FALSE | IS150: FALSE | IT150: FALSE | IU150: FALSE | IV150: FALSE | IW150: FALSE | IX150: FALSE | IY150: FALSE | IZ150: FALSE
D151: Rf Discount Rate | E151: % | F151: =InputC!F27 -> 0.035 | G151: =(1+F151)^(G6/months)-1 -> 0.035
D152: NPV of cashflow at the risk free rate | E152: EUR | F152: =G151 -> 0.035 | G152: =K27:IZ27=NPV(F152,G10) -> FALSE | H152: FALSE | I152: FALSE | J152: FALSE | K152: FALSE | L152: FALSE | M152: FALSE | N152: FALSE | O152: FALSE | P152: FALSE | Q152: FALSE | R152: FALSE | S152: FALSE | T152: FALSE | U152: FALSE | V152: FALSE | W152: FALSE | X152: FALSE | Y152: FALSE | Z152: FALSE | AA152: FALSE | AB152: FALSE | AC152: FALSE | AD152: FALSE | AE152: FALSE | AF152: FALSE | AG152: FALSE | AH152: FALSE | AI152: TRUE | AJ152: TRUE | AK152: TRUE | AL152: TRUE | AM152: TRUE | AN152: TRUE | AO152: TRUE | AP152: TRUE | AQ152: TRUE | AR152: TRUE | AS152: TRUE | AT152: TRUE | AU152: TRUE | AV152: TRUE | AW152: TRUE | AX152: TRUE | AY152: TRUE | AZ152: TRUE | BA152: TRUE | BB152: TRUE | BC152: TRUE | BD152: TRUE | BE152: TRUE | BF152: TRUE | BG152: TRUE | BH152: TRUE | BI152: TRUE | BJ152: TRUE | BK152: TRUE | BL152: TRUE | BM152: TRUE | BN152: TRUE | BO152: TRUE | BP152: TRUE | BQ152: TRUE | BR152: TRUE | BS152: TRUE | BT152: TRUE | BU152: TRUE | BV152: TRUE | BW152: TRUE | BX152: TRUE | BY152: TRUE | BZ152: TRUE | CA152: TRUE | CB152: TRUE | CC152: TRUE | CD152: TRUE | CE152: TRUE | CF152: TRUE | CG152: TRUE | CH152: TRUE | CI152: TRUE | CJ152: TRUE | CK152: TRUE | CL152: TRUE | CM152: TRUE | CN152: TRUE | CO152: TRUE | CP152: TRUE | CQ152: TRUE | CR152: TRUE | CS152: TRUE | CT152: TRUE | CU152: TRUE | CV152: TRUE | CW152: TRUE | CX152: TRUE | CY152: TRUE | CZ152: TRUE | DA152: TRUE | DB152: TRUE | DC152: TRUE | DD152: TRUE | DE152: TRUE | DF152: TRUE | DG152: TRUE | DH152: TRUE | DI152: TRUE | DJ152: TRUE | DK152: TRUE | DL152: TRUE | DM152: TRUE | DN152: TRUE | DO152: TRUE | DP152: TRUE | DQ152: TRUE | DR152: TRUE | DS152: TRUE | DT152: TRUE | DU152: TRUE | DV152: TRUE | DW152: TRUE | DX152: TRUE | DY152: TRUE | DZ152: TRUE | EA152: TRUE | EB152: TRUE | EC152: TRUE | ED152: TRUE | EE152: TRUE | EF152: TRUE | EG152: TRUE | EH152: TRUE | EI152: TRUE | EJ152: TRUE | EK152: TRUE | EL152: TRUE | EM152: TRUE | EN152: TRUE | EO152: TRUE | EP152: TRUE | EQ152: TRUE | ER152: TRUE | ES152: TRUE | ET152: TRUE | EU152: TRUE | EV152: TRUE | EW152: TRUE | EX152: TRUE | EY152: TRUE | EZ152: TRUE | FA152: TRUE | FB152: TRUE | FC152: TRUE | FD152: TRUE | FE152: TRUE | FF152: TRUE | FG152: TRUE | FH152: TRUE | FI152: TRUE | FJ152: TRUE | FK152: TRUE | FL152: TRUE | FM152: TRUE | FN152: TRUE | FO152: TRUE | FP152: TRUE | FQ152: TRUE | FR152: TRUE | FS152: TRUE | FT152: TRUE | FU152: TRUE | FV152: TRUE | FW152: TRUE | FX152: TRUE | FY152: TRUE | FZ152: TRUE | GA152: TRUE | GB152: TRUE | GC152: TRUE | GD152: TRUE | GE152: TRUE | GF152: TRUE | GG152: TRUE | GH152: TRUE | GI152: TRUE | GJ152: TRUE | GK152: TRUE | GL152: TRUE | GM152: TRUE | GN152: TRUE | GO152: TRUE | GP152: TRUE | GQ152: TRUE | GR152: TRUE | GS152: TRUE | GT152: TRUE | GU152: TRUE | GV152: TRUE | GW152: TRUE | GX152: TRUE | GY152: TRUE | GZ152: TRUE | HA152: TRUE | HB152: TRUE | HC152: TRUE | HD152: TRUE | HE152: TRUE | HF152: TRUE | HG152: TRUE | HH152: TRUE | HI152: TRUE | HJ152: TRUE | HK152: TRUE | HL152: TRUE | HM152: TRUE | HN152: TRUE | HO152: TRUE | HP152: TRUE | HQ152: TRUE | HR152: TRUE | HS152: TRUE | HT152: TRUE | HU152: TRUE | HV152: TRUE | HW152: TRUE | HX152: TRUE | HY152: TRUE | HZ152: TRUE | IA152: TRUE | IB152: TRUE | IC152: TRUE | ID152: TRUE | IE152: TRUE | IF152: TRUE | IG152: TRUE | IH152: TRUE | II152: TRUE | IJ152: TRUE | IK152: TRUE | IL152: TRUE | IM152: TRUE | IN152: TRUE | IO152: TRUE | IP152: TRUE | IQ152: TRUE | IR152: TRUE | IS152: TRUE | IT152: TRUE | IU152: TRUE | IV152: TRUE
D153: Initial Investment | E153: EUR | G153: =NPV(F152,K25:IZ25) -> 1666487.753
D154: Premium earned above riskfree rate | E154: Ratio | G154: =G153/G132-1 -> 0.1264660051
D155: Periods for Annualisation | E155: Periods | G155: =H9 -> 25
D156: Annualised premium earned | E156: % p.p. | G156: =PMT(F152,F140,-G154) -> 0.007158310423
D157: Total Return - Rp + Rf | E157: % p.p. | G157: =G156+F152 -> 0.04215831042
D158: Annual Return | E158: % p.a. | G158: =(1+G157)^(months/G6)-1 -> 0.04215831042

Sheet Sensitivity
B3: Data Tables
F4: Growth | G4: =I4/1000 -> 0.02 | I4: 20
O5: IRR Table - Life Sensitivity
F7: IRR Table | P7: EBITDA Sensitivity
G8: ='Financial Model'!F29 -> 0.05563730896 | H8: 50000 | I8: 70000 | J8: 100000 | K8: 125000 | L8: 150000 | O8: 50000 | P8: 70000 | Q8: 100000 | R8: 125000 | S8: 150000
G9: 15 | N9: 15 | O9: -0.02430078834 | P9: 0.01621136963 | Q9: 0.06607053578 | R9: 0.1021167934 | S9: 0.1351683676
F10: Life | G10: 30 | M10: Life | N10: 30 | O10: 0.03870281279 | P10: 0.06708253324 | Q10: 0.1039256513 | R10: 0.1320381463 | S10: 0.1589386523
G11: 50 | N11: 50 | O11: 0.05466993153 | P11: 0.07791992128 | Q11: 0.1100213349 | R11: 0.1357906401 | S11: 0.1612333477
G12: 100 | N12: 100 | O12: 0.06005807221 | P12: 0.08055883348 | Q12: 0.1109092295 | R12: 0.1361445844 | S12: 0.1613738
O14: Risk Premium Table - Life Sensitivity
P16: EBITDA Sensitivity
F17: Rf + Rp Table | G17: ='Financial Model'!G158 -> 0.04215831042 | H17: 50000 | I17: 70000 | J17: 100000 | K17: 125000 | L17: 150000 | O17: 50000 | P17: 70000 | Q17: 100000 | R17: 125000 | S17: 150000
G18: 15 | N18: 15 | O18: 0.001861966189 | P18: 0.02168068492 | Q18: 0.05140876302 | R18: 0.07618216143 | S18: 0.1009555598
G19: 30 | M19: Life | N19: 30 | O19: 0.03577232039 | P19: 0.05743020845 | Q19: 0.08991704054 | R19: 0.1169894006 | S19: 0.1440617607
F20: Life | G20: 50 | N20: 50 | O20: 0.05095366387 | P20: 0.07426375507 | Q20: 0.1092288919 | R20: 0.1383665059 | S20: 0.1675041199
G21: 100 | N21: 100 | O21: 0.06326104981 | P21: 0.08901299561 | Q21: 0.1276409143 | R21: 0.1598308466 | S21: 0.1920207788
O23: Total EBITDA - Life Sensitvity
O25: 50000 | P25: 70000 | Q25: 100000 | R25: 125000 | S25: 150000
N26: 15 | O26: 881964.2627 | P26: 1234749.968 | Q26: 1763928.525 | R26: 2204910.657 | S26: 2204910.657
M27: Life | N27: 30 | O27: 2068972.039 | P27: 2896560.855 | Q27: 4137944.079 | R27: 5172430.099 | S27: 5172430.099
N28: 50 | O28: 4313549.474 | P28: 6038969.264 | Q28: 8627098.948 | R28: 10783873.69 | S28: 10783873.69
N29: 100 | O29: 15923847.6 | P29: 22293386.64 | Q29: 31847695.2 | R29: 39809619 | S29: 39809619
O32: IRR - Construction Period Sensitivity
P34: Life of Project
O35: 15 | P35: 30 | Q35: 50 | R35: 75 | S35: 100
N36: 12 | O36: 0.06607053578 | P36: 0.1039256513 | Q36: 0.1100213349 | R36: 0.1108367383 | S36: 0.1109092295
M37: Constr Months | N37: 24 | O37: 0.06149146259 | P37: 0.09843768477 | Q37: 0.1048074424 | R37: 0.1057346165 | S37: 0.1058264911
N38: 36 | O38: 0.0575224787 | P38: 0.09357128441 | Q38: 0.1001778066 | R38: 0.1012141407 | S38: 0.101327163
N39: 48 | O39: 0.05403715074 | P39: 0.08920706809 | Q39: 0.09601843059 | R39: 0.09716100097 | S39: 0.09729675651
O42: Risk Preium + Rf - Construction Sensitivity
P43: Life of Project
O44: 15 | P44: 30 | Q44: 50 | R44: 75 | S44: 100
N45: 12 | O45: 0.05140876302 | P45: 0.08991704054 | Q45: 0.1092288919 | R45: 0.1210887644 | S45: 0.1276409143
M46: Constr Months | N46: 24 | O46: 0.04475043434 | P46: 0.08053499461 | Q46: 0.09922177973 | R46: 0.11068515 | S46: 0.1169415915
N47: 36 | O47: 0.03930388664 | P47: 0.07250607573 | Q47: 0.09049393167 | R47: 0.1015456871 | S47: 0.107520934
N48: 48 | O48: 0.03478849661 | P48: 0.06557593851 | Q48: 0.08282363612 | R48: 0.09345577679 | S48: 0.09916270859
E50: Scenario Input | G50: 5
H51: =LOOKUP(H52,InputC!4:4,InputC!5:5) -> Base Case - Annual | I51: =LOOKUP(I52,InputC!4:4,InputC!5:5) -> Longer-Construction | J51: =LOOKUP(J52,InputC!4:4,InputC!5:5) -> Shorter-Life | K51: =LOOKUP(K52,InputC!4:4,InputC!5:5) -> Higher Capital Expenditure | L51: =LOOKUP(L52,InputC!4:4,InputC!5:5) -> Lower Base EBITDA | M51: =LOOKUP(M52,InputC!4:4,InputC!5:5) -> Lower Growth Rate
H52: 1 | I52: 3 | J52: 4 | K52: 5 | L52: 6 | M52: 7
F53: Project IRR | G53: ='Financial Model'!F29 -> 0.05563730896
F54: EBITDA | G54: =total_ebitda -> 2852563.15
F55: DSCR | G55: ='Financial Model'!F97 -> 1.173037126
F56: LLCR | G56: ='Financial Model'!F108 -> 1.272952759
F57: PLCR | G57: ='Financial Model'!F102 -> 1.477113759
H60: =H51 -> Base Case - Annual | I60: =I51 -> Longer-Construction | J60: Shorter-Life | K60: Higher Capital Expenditure | L60: Lower Base EBITDA | M60: Lower Growth Rate | N60: Low Case
H61: =H53 -> 0 | I61: =I53-H53 -> 0 | J61: =J53-I53 -> 0 | K61: 0 | L61: 0 | M61: 0 | N61: =M53 -> 0

Sheet Time Series
I1: =_xlfn.FORMULATEXT(I4) -> =H4*(1+NORMSINV(RAND())*$E$4)
B2: Time Period
C3: Period | G3: 0 | H3: 1 | I3: 2 | J3: 3 | K3: 4 | L3: 5 | M3: 6 | N3: 7 | O3: 8 | P3: 9 | Q3: 10 | R3: 11 | S3: 12 | T3: 13 | U3: 14 | V3: 15 | W3: 16 | X3: 17 | Y3: 18 | Z3: 19 | AA3: 20 | AB3: 21 | AC3: 22 | AD3: 23 | AE3: 24 | AF3: 25 | AG3: 26 | AH3: 27 | AI3: 28 | AJ3: 29 | AK3: 30
C4: Volatility | E4: =InputC!F23 -> 0 | F4: =E5 -> 0.1 | G4: EBITDA | H4: ='Financial Model'!F19 -> 100000 | I4: =H4*(1+NORMSINV(RAND())*$E$4) -> 100000 | J4: =I4*(1+NORMSINV(RAND())*$E$4)+($H4-I4)*$F$4 -> 100000 | K4: =J4*(1+NORMSINV(RAND())*$E$4)+($H4-J4)*$F$4 -> 100000 | L4: 100000 | M4: 100000 | N4: 100000 | O4: 100000 | P4: 100000 | Q4: 100000 | R4: 100000 | S4: 100000 | T4: 100000 | U4: 100000 | V4: 100000 | W4: 100000 | X4: 100000 | Y4: 100000 | Z4: 100000 | AA4: 100000 | AB4: 100000 | AC4: 100000 | AD4: 100000 | AE4: 100000 | AF4: 100000 | AG4: 100000 | AH4: 100000 | AI4: 100000 | AJ4: 100000 | AK4: 100000
C5: Mean Reversion | E5: =InputC!F24 -> 0.1 | H5: 1 | I5: =H5*(I4/H4) -> 1 | J5: =I5*(J4/I4) -> 1 | K5: 1 | L5: 1 | M5: 1 | N5: 1 | O5: 1 | P5: 1 | Q5: 1 | R5: 1 | S5: 1 | T5: 1 | U5: 1 | V5: 1 | W5: 1 | X5: 1 | Y5: 1 | Z5: 1 | AA5: 1 | AB5: 1 | AC5: 1 | AD5: 1 | AE5: 1 | AF5: 1 | AG5: 1 | AH5: 1 | AI5: 1 | AJ5: 1 | AK5: 1
P8: Default Count | R8: =COUNTIF(J25:J1048576,">0") -> 0
P9: Total Loss | R9: =SUM(J25:J1048576) -> 0
P10: Average Loss | R10: =R9/E17 -> 0
P11: Loss Percent | R11: =R10/'Financial Model'!H40 -> 0
B17: Simulatons | E17: 200
B20: Simulation
F21: DSCR | G21: LLCR | H21: PLCR | I21: Project IRR | J21: Default
D22: Current | F22: =DSCR -> 1.173037126 | G22: =LLCR -> 1.272952759 | H22: =PLCR -> 1.477113759 | I22: =PIRR -> 0.05563730896 | J22: =Default_Amount -> 0
D23: Average
F25: 1.173037126 | G25: 1.272952759 | H25: 1.477113759 | I25: 0.05563730896 | J25: 0
F26: 1.173037126 | G26: 1.272952759 | H26: 1.477113759 | I26: 0.05563730896 | J26: 0
F27: 1.173037126 | G27: 1.272952759 | H27: 1.477113759 | I27: 0.05563730896 | J27: 0
F28: 1.173037126 | G28: 1.272952759 | H28: 1.477113759 | I28: 0.05563730896 | J28: 0
F29: 1.173037126 | G29: 1.272952759 | H29: 1.477113759 | I29: 0.05563730896 | J29: 0
F30: 1.173037126 | G30: 1.272952759 | H30: 1.477113759 | I30: 0.05563730896 | J30: 0
F31: 1.173037126 | G31: 1.272952759 | H31: 1.477113759 | I31: 0.05563730896 | J31: 0
F32: 1.173037126 | G32: 1.272952759 | H32: 1.477113759 | I32: 0.05563730896 | J32: 0
F33: 1.173037126 | G33: 1.272952759 | H33: 1.477113759 | I33: 0.05563730896 | J33: 0
F34: 1.173037126 | G34: 1.272952759 | H34: 1.477113759 | I34: 0.05563730896 | J34: 0
F35: 1.173037126 | G35: 1.272952759 | H35: 1.477113759 | I35: 0.05563730896 | J35: 0
F36: 1.173037126 | G36: 1.272952759 | H36: 1.477113759 | I36: 0.05563730896 | J36: 0
F37: 1.173037126 | G37: 1.272952759 | H37: 1.477113759 | I37: 0.05563730896 | J37: 0
F38: 1.173037126 | G38: 1.272952759 | H38: 1.477113759 | I38: 0.05563730896 | J38: 0
F39: 1.173037126 | G39: 1.272952759 | H39: 1.477113759 | I39: 0.05563730896 | J39: 0
F40: 1.173037126 | G40: 1.272952759 | H40: 1.477113759 | I40: 0.05563730896 | J40: 0
F41: 1.173037126 | G41: 1.272952759 | H41: 1.477113759 | I41: 0.05563730896 | J41: 0
F42: 1.173037126 | G42: 1.272952759 | H42: 1.477113759 | I42: 0.05563730896 | J42: 0
F43: 1.173037126 | G43: 1.272952759 | H43: 1.477113759 | I43: 0.05563730896 | J43: 0
F44: 1.173037126 | G44: 1.272952759 | H44: 1.477113759 | I44: 0.05563730896 | J44: 0
F45: 1.173037126 | G45: 1.272952759 | H45: 1.477113759 | I45: 0.05563730896 | J45: 0
F46: 1.173037126 | G46: 1.272952759 | H46: 1.477113759 | I46: 0.05563730896 | J46: 0
F47: 1.173037126 | G47: 1.272952759 | H47: 1.477113759 | I47: 0.05563730896 | J47: 0
F48: 1.173037126 | G48: 1.272952759 | H48: 1.477113759 | I48: 0.05563730896 | J48: 0
F49: 1.173037126 | G49: 1.272952759 | H49: 1.477113759 | I49: 0.05563730896 | J49: 0
F50: 1.173037126 | G50: 1.272952759 | H50: 1.477113759 | I50: 0.05563730896 | J50: 0
F51: 1.173037126 | G51: 1.272952759 | H51: 1.477113759 | I51: 0.05563730896 | J51: 0
F52: 1.173037126 | G52: 1.272952759 | H52: 1.477113759 | I52: 0.05563730896 | J52: 0
F53: 1.173037126 | G53: 1.272952759 | H53: 1.477113759 | I53: 0.05563730896 | J53: 0
F54: 1.173037126 | G54: 1.272952759 | H54: 1.477113759 | I54: 0.05563730896 | J54: 0
F55: 1.173037126 | G55: 1.272952759 | H55: 1.477113759 | I55: 0.05563730896 | J55: 0
F56: 1.173037126 | G56: 1.272952759 | H56: 1.477113759 | I56: 0.05563730896 | J56: 0
F57: 1.173037126 | G57: 1.272952759 | H57: 1.477113759 | I57: 0.05563730896 | J57: 0
F58: 1.173037126 | G58: 1.272952759 | H58: 1.477113759 | I58: 0.05563730896 | J58: 0
F59: 1.173037126 | G59: 1.272952759 | H59: 1.477113759 | I59: 0.05563730896 | J59: 0
F60: 1.173037126 | G60: 1.272952759 | H60: 1.477113759 | I60: 0.05563730896 | J60: 0
F61: 1.173037126 | G61: 1.272952759 | H61: 1.477113759 | I61: 0.05563730896 | J61: 0
F62: 1.173037126 | G62: 1.272952759 | H62: 1.477113759 | I62: 0.05563730896 | J62: 0
F63: 1.173037126 | G63: 1.272952759 | H63: 1.477113759 | I63: 0.05563730896 | J63: 0
F64: 1.173037126 | G64: 1.272952759 | H64: 1.477113759 | I64: 0.05563730896 | J64: 0
F65: 1.173037126 | G65: 1.272952759 | H65: 1.477113759 | I65: 0.05563730896 | J65: 0
F66: 1.173037126 | G66: 1.272952759 | H66: 1.477113759 | I66: 0.05563730896 | J66: 0
F67: 1.173037126 | G67: 1.272952759 | H67: 1.477113759 | I67: 0.05563730896 | J67: 0
F68: 1.173037126 | G68: 1.272952759 | H68: 1.477113759 | I68: 0.05563730896 | J68: 0
F69: 1.173037126 | G69: 1.272952759 | H69: 1.477113759 | I69: 0.05563730896 | J69: 0
F70: 1.173037126 | G70: 1.272952759 | H70: 1.477113759 | I70: 0.05563730896 | J70: 0
F71: 1.173037126 | G71: 1.272952759 | H71: 1.477113759 | I71: 0.05563730896 | J71: 0
F72: 1.173037126 | G72: 1.272952759 | H72: 1.477113759 | I72: 0.05563730896 | J72: 0
F73: 1.173037126 | G73: 1.272952759 | H73: 1.477113759 | I73: 0.05563730896 | J73: 0
F74: 1.173037126 | G74: 1.272952759 | H74: 1.477113759 | I74: 0.05563730896 | J74: 0
F75: 1.173037126 | G75: 1.272952759 | H75: 1.477113759 | I75: 0.05563730896 | J75: 0
F76: 1.173037126 | G76: 1.272952759 | H76: 1.477113759 | I76: 0.05563730896 | J76: 0
F77: 1.173037126 | G77: 1.272952759 | H77: 1.477113759 | I77: 0.05563730896 | J77: 0
F78: 1.173037126 | G78: 1.272952759 | H78: 1.477113759 | I78: 0.05563730896 | J78: 0
F79: 1.173037126 | G79: 1.272952759 | H79: 1.477113759 | I79: 0.05563730896 | J79: 0
F80: 1.173037126 | G80: 1.272952759 | H80: 1.477113759 | I80: 0.05563730896 | J80: 0
F81: 1.173037126 | G81: 1.272952759 | H81: 1.477113759 | I81: 0.05563730896 | J81: 0
F82: 1.173037126 | G82: 1.272952759 | H82: 1.477113759 | I82: 0.05563730896 | J82: 0
F83: 1.173037126 | G83: 1.272952759 | H83: 1.477113759 | I83: 0.05563730896 | J83: 0
F84: 1.173037126 | G84: 1.272952759 | H84: 1.477113759 | I84: 0.05563730896 | J84: 0
F85: 1.173037126 | G85: 1.272952759 | H85: 1.477113759 | I85: 0.05563730896 | J85: 0
F86: 1.173037126 | G86: 1.272952759 | H86: 1.477113759 | I86: 0.05563730896 | J86: 0
F87: 1.173037126 | G87: 1.272952759 | H87: 1.477113759 | I87: 0.05563730896 | J87: 0
F88: 1.173037126 | G88: 1.272952759 | H88: 1.477113759 | I88: 0.05563730896 | J88: 0
F89: 1.173037126 | G89: 1.272952759 | H89: 1.477113759 | I89: 0.05563730896 | J89: 0
F90: 1.173037126 | G90: 1.272952759 | H90: 1.477113759 | I90: 0.05563730896 | J90: 0
F91: 1.173037126 | G91: 1.272952759 | H91: 1.477113759 | I91: 0.05563730896 | J91: 0
F92: 1.173037126 | G92: 1.272952759 | H92: 1.477113759 | I92: 0.05563730896 | J92: 0
F93: 1.173037126 | G93: 1.272952759 | H93: 1.477113759 | I93: 0.05563730896 | J93: 0
F94: 1.173037126 | G94: 1.272952759 | H94: 1.477113759 | I94: 0.05563730896 | J94: 0
F95: 1.173037126 | G95: 1.272952759 | H95: 1.477113759 | I95: 0.05563730896 | J95: 0
F96: 1.173037126 | G96: 1.272952759 | H96: 1.477113759 | I96: 0.05563730896 | J96: 0
F97: 1.173037126 | G97: 1.272952759 | H97: 1.477113759 | I97: 0.05563730896 | J97: 0
F98: 1.173037126 | G98: 1.272952759 | H98: 1.477113759 | I98: 0.05563730896 | J98: 0
F99: 1.173037126 | G99: 1.272952759 | H99: 1.477113759 | I99: 0.05563730896 | J99: 0
F100: 1.173037126 | G100: 1.272952759 | H100: 1.477113759 | I100: 0.05563730896 | J100: 0
F101: 1.173037126 | G101: 1.272952759 | H101: 1.477113759 | I101: 0.05563730896 | J101: 0
F102: 1.173037126 | G102: 1.272952759 | H102: 1.477113759 | I102: 0.05563730896 | J102: 0
F103: 1.173037126 | G103: 1.272952759 | H103: 1.477113759 | I103: 0.05563730896 | J103: 0
F104: 1.173037126 | G104: 1.272952759 | H104: 1.477113759 | I104: 0.05563730896 | J104: 0
F105: 1.173037126 | G105: 1.272952759 | H105: 1.477113759 | I105: 0.05563730896 | J105: 0
F106: 1.173037126 | G106: 1.272952759 | H106: 1.477113759 | I106: 0.05563730896 | J106: 0
F107: 1.173037126 | G107: 1.272952759 | H107: 1.477113759 | I107: 0.05563730896 | J107: 0
F108: 1.173037126 | G108: 1.272952759 | H108: 1.477113759 | I108: 0.05563730896 | J108: 0
F109: 1.173037126 | G109: 1.272952759 | H109: 1.477113759 | I109: 0.05563730896 | J109: 0
F110: 1.173037126 | G110: 1.272952759 | H110: 1.477113759 | I110: 0.05563730896 | J110: 0
F111: 1.173037126 | G111: 1.272952759 | H111: 1.477113759 | I111: 0.05563730896 | J111: 0
F112: 1.173037126 | G112: 1.272952759 | H112: 1.477113759 | I112: 0.05563730896 | J112: 0
F113: 1.173037126 | G113: 1.272952759 | H113: 1.477113759 | I113: 0.05563730896 | J113: 0
F114: 1.173037126 | G114: 1.272952759 | H114: 1.477113759 | I114: 0.05563730896 | J114: 0
F115: 1.173037126 | G115: 1.272952759 | H115: 1.477113759 | I115: 0.05563730896 | J115: 0
F116: 1.173037126 | G116: 1.272952759 | H116: 1.477113759 | I116: 0.05563730896 | J116: 0
F117: 1.173037126 | G117: 1.272952759 | H117: 1.477113759 | I117: 0.05563730896 | J117: 0
F118: 1.173037126 | G118: 1.272952759 | H118: 1.477113759 | I118: 0.05563730896 | J118: 0
F119: 1.173037126 | G119: 1.272952759 | H119: 1.477113759 | I119: 0.05563730896 | J119: 0
F120: 1.173037126 | G120: 1.272952759 | H120: 1.477113759 | I120: 0.05563730896 | J120: 0
F121: 1.173037126 | G121: 1.272952759 | H121: 1.477113759 | I121: 0.05563730896 | J121: 0
F122: 1.173037126 | G122: 1.272952759 | H122: 1.477113759 | I122: 0.05563730896 | J122: 0
F123: 1.173037126 | G123: 1.272952759 | H123: 1.477113759 | I123: 0.05563730896 | J123: 0
F124: 1.173037126 | G124: 1.272952759 | H124: 1.477113759 | I124: 0.05563730896 | J124: 0
F125: 1.173037126 | G125: 1.272952759 | H125: 1.477113759 | I125: 0.05563730896 | J125: 0
F126: 1.173037126 | G126: 1.272952759 | H126: 1.477113759 | I126: 0.05563730896 | J126: 0
F127: 1.173037126 | G127: 1.272952759 | H127: 1.477113759 | I127: 0.05563730896 | J127: 0
F128: 1.173037126 | G128: 1.272952759 | H128: 1.477113759 | I128: 0.05563730896 | J128: 0
F129: 1.173037126 | G129: 1.272952759 | H129: 1.477113759 | I129: 0.05563730896 | J129: 0
F130: 1.173037126 | G130: 1.272952759 | H130: 1.477113759 | I130: 0.05563730896 | J130: 0
F131: 1.173037126 | G131: 1.272952759 | H131: 1.477113759 | I131: 0.05563730896 | J131: 0
F132: 1.173037126 | G132: 1.272952759 | H132: 1.477113759 | I132: 0.05563730896 | J132: 0
F133: 1.173037126 | G133: 1.272952759 | H133: 1.477113759 | I133: 0.05563730896 | J133: 0
F134: 1.173037126 | G134: 1.272952759 | H134: 1.477113759 | I134: 0.05563730896 | J134: 0
F135: 1.173037126 | G135: 1.272952759 | H135: 1.477113759 | I135: 0.05563730896 | J135: 0
F136: 1.173037126 | G136: 1.272952759 | H136: 1.477113759 | I136: 0.05563730896 | J136: 0
F137: 1.173037126 | G137: 1.272952759 | H137: 1.477113759 | I137: 0.05563730896 | J137: 0
F138: 1.173037126 | G138: 1.272952759 | H138: 1.477113759 | I138: 0.05563730896 | J138: 0
F139: 1.173037126 | G139: 1.272952759 | H139: 1.477113759 | I139: 0.05563730896 | J139: 0
F140: 1.173037126 | G140: 1.272952759 | H140: 1.477113759 | I140: 0.05563730896 | J140: 0
F141: 1.173037126 | G141: 1.272952759 | H141: 1.477113759 | I141: 0.05563730896 | J141: 0
F142: 1.173037126 | G142: 1.272952759 | H142: 1.477113759 | I142: 0.05563730896 | J142: 0
F143: 1.173037126 | G143: 1.272952759 | H143: 1.477113759 | I143: 0.05563730896 | J143: 0
F144: 1.173037126 | G144: 1.272952759 | H144: 1.477113759 | I144: 0.05563730896 | J144: 0
F145: 1.173037126 | G145: 1.272952759 | H145: 1.477113759 | I145: 0.05563730896 | J145: 0
F146: 1.173037126 | G146: 1.272952759 | H146: 1.477113759 | I146: 0.05563730896 | J146: 0
F147: 1.173037126 | G147: 1.272952759 | H147: 1.477113759 | I147: 0.05563730896 | J147: 0
F148: 1.173037126 | G148: 1.272952759 | H148: 1.477113759 | I148: 0.05563730896 | J148: 0
F149: 1.173037126 | G149: 1.272952759 | H149: 1.477113759 | I149: 0.05563730896 | J149: 0
F150: 1.173037126 | G150: 1.272952759 | H150: 1.477113759 | I150: 0.05563730896 | J150: 0
F151: 1.173037126 | G151: 1.272952759 | H151: 1.477113759 | I151: 0.05563730896 | J151: 0
F152: 1.173037126 | G152: 1.272952759 | H152: 1.477113759 | I152: 0.05563730896 | J152: 0
F153: 1.173037126 | G153: 1.272952759 | H153: 1.477113759 | I153: 0.05563730896 | J153: 0
F154: 1.173037126 | G154: 1.272952759 | H154: 1.477113759 | I154: 0.05563730896 | J154: 0
F155: 1.173037126 | G155: 1.272952759 | H155: 1.477113759 | I155: 0.05563730896 | J155: 0
F156: 1.173037126 | G156: 1.272952759 | H156: 1.477113759 | I156: 0.05563730896 | J156: 0
F157: 1.173037126 | G157: 1.272952759 | H157: 1.477113759 | I157: 0.05563730896 | J157: 0
F158: 1.173037126 | G158: 1.272952759 | H158: 1.477113759 | I158: 0.05563730896 | J158: 0
F159: 1.173037126 | G159: 1.272952759 | H159: 1.477113759 | I159: 0.05563730896 | J159: 0
F160: 1.173037126 | G160: 1.272952759 | H160: 1.477113759 | I160: 0.05563730896 | J160: 0
F161: 1.173037126 | G161: 1.272952759 | H161: 1.477113759 | I161: 0.05563730896 | J161: 0
F162: 1.173037126 | G162: 1.272952759 | H162: 1.477113759 | I162: 0.05563730896 | J162: 0
F163: 1.173037126 | G163: 1.272952759 | H163: 1.477113759 | I163: 0.05563730896 | J163: 0
F164: 1.173037126 | G164: 1.272952759 | H164: 1.477113759 | I164: 0.05563730896 | J164: 0
F165: 1.173037126 | G165: 1.272952759 | H165: 1.477113759 | I165: 0.05563730896 | J165: 0
F166: 1.173037126 | G166: 1.272952759 | H166: 1.477113759 | I166: 0.05563730896 | J166: 0
F167: 1.173037126 | G167: 1.272952759 | H167: 1.477113759 | I167: 0.05563730896 | J167: 0
F168: 1.173037126 | G168: 1.272952759 | H168: 1.477113759 | I168: 0.05563730896 | J168: 0
F169: 1.173037126 | G169: 1.272952759 | H169: 1.477113759 | I169: 0.05563730896 | J169: 0
F170: 1.173037126 | G170: 1.272952759 | H170: 1.477113759 | I170: 0.05563730896 | J170: 0
F171: 1.173037126 | G171: 1.272952759 | H171: 1.477113759 | I171: 0.05563730896 | J171: 0
F172: 1.173037126 | G172: 1.272952759 | H172: 1.477113759 | I172: 0.05563730896 | J172: 0
F173: 1.173037126 | G173: 1.272952759 | H173: 1.477113759 | I173: 0.05563730896 | J173: 0
F174: 1.173037126 | G174: 1.272952759 | H174: 1.477113759 | I174: 0.05563730896 | J174: 0
F175: 1.173037126 | G175: 1.272952759 | H175: 1.477113759 | I175: 0.05563730896 | J175: 0
F176: 1.173037126 | G176: 1.272952759 | H176: 1.477113759 | I176: 0.05563730896 | J176: 0
F177: 1.173037126 | G177: 1.272952759 | H177: 1.477113759 | I177: 0.05563730896 | J177: 0
F178: 1.173037126 | G178: 1.272952759 | H178: 1.477113759 | I178: 0.05563730896 | J178: 0
F179: 1.173037126 | G179: 1.272952759 | H179: 1.477113759 | I179: 0.05563730896 | J179: 0
F180: 1.173037126 | G180: 1.272952759 | H180: 1.477113759 | I180: 0.05563730896 | J180: 0
F181: 1.173037126 | G181: 1.272952759 | H181: 1.477113759 | I181: 0.05563730896 | J181: 0
F182: 1.173037126 | G182: 1.272952759 | H182: 1.477113759 | I182: 0.05563730896 | J182: 0
F183: 1.173037126 | G183: 1.272952759 | H183: 1.477113759 | I183: 0.05563730896 | J183: 0
F184: 1.173037126 | G184: 1.272952759 | H184: 1.477113759 | I184: 0.05563730896 | J184: 0
F185: 1.173037126 | G185: 1.272952759 | H185: 1.477113759 | I185: 0.05563730896 | J185: 0
F186: 1.173037126 | G186: 1.272952759 | H186: 1.477113759 | I186: 0.05563730896 | J186: 0
F187: 1.173037126 | G187: 1.272952759 | H187: 1.477113759 | I187: 0.05563730896 | J187: 0
F188: 1.173037126 | G188: 1.272952759 | H188: 1.477113759 | I188: 0.05563730896 | J188: 0
F189: 1.173037126 | G189: 1.272952759 | H189: 1.477113759 | I189: 0.05563730896 | J189: 0
F190: 1.173037126 | G190: 1.272952759 | H190: 1.477113759 | I190: 0.05563730896 | J190: 0
F191: 1.173037126 | G191: 1.272952759 | H191: 1.477113759 | I191: 0.05563730896 | J191: 0
F192: 1.173037126 | G192: 1.272952759 | H192: 1.477113759 | I192: 0.05563730896 | J192: 0
F193: 1.173037126 | G193: 1.272952759 | H193: 1.477113759 | I193: 0.05563730896 | J193: 0
F194: 1.173037126 | G194: 1.272952759 | H194: 1.477113759 | I194: 0.05563730896 | J194: 0
F195: 1.173037126 | G195: 1.272952759 | H195: 1.477113759 | I195: 0.05563730896 | J195: 0
F196: 1.173037126 | G196: 1.272952759 | H196: 1.477113759 | I196: 0.05563730896 | J196: 0
F197: 1.173037126 | G197: 1.272952759 | H197: 1.477113759 | I197: 0.05563730896 | J197: 0
F198: 1.173037126 | G198: 1.272952759 | H198: 1.477113759 | I198: 0.05563730896 | J198: 0
F199: 1.173037126 | G199: 1.272952759 | H199: 1.477113759 | I199: 0.05563730896 | J199: 0
F200: 1.173037126 | G200: 1.272952759 | H200: 1.477113759 | I200: 0.05563730896 | J200: 0
F201: 1.173037126 | G201: 1.272952759 | H201: 1.477113759 | I201: 0.05563730896 | J201: 0
F202: 1.173037126 | G202: 1.272952759 | H202: 1.477113759 | I202: 0.05563730896 | J202: 0
F203: 1.173037126 | G203: 1.272952759 | H203: 1.477113759 | I203: 0.05563730896 | J203: 0
F204: 1.173037126 | G204: 1.272952759 | H204: 1.477113759 | I204: 0.05563730896 | J204: 0
F205: 1.173037126 | G205: 1.272952759 | H205: 1.477113759 | I205: 0.05563730896 | J205: 0
F206: 1.173037126 | G206: 1.272952759 | H206: 1.477113759 | I206: 0.05563730896 | J206: 0
F207: 1.173037126 | G207: 1.272952759 | H207: 1.477113759 | I207: 0.05563730896 | J207: 0
F208: 1.173037126 | G208: 1.272952759 | H208: 1.477113759 | I208: 0.05563730896 | J208: 0
F209: 1.173037126 | G209: 1.272952759 | H209: 1.477113759 | I209: 0.05563730896 | J209: 0
F210: 1.173037126 | G210: 1.272952759 | H210: 1.477113759 | I210: 0.05563730896 | J210: 0
... 14 more rows

Sheet Simple Rp
B2: Examples
F5: =_xlfn.SEQUENCE(,2,0) -> 0 | G5: 1
E6: Cap Exp | F6: 1000
E7: EBITDA | F7: 0 | G7: 1100
E8: FCF | F8: =F7-F6 -> -1000 | G8: =G7-G6 -> 1100
E9: IRR | F9: =IRR(F8:G8) -> 0.1
E10: RF | F10: 0.05
E11: RP | F11: =(1+F9)/(1+F10)-1 -> 0.04761904762
E14: Gross NPV at Rf | F14: =NPV(F10,G7) -> 1047.619048
E15: NPV at Rf | F15: =NPV(F10,F8:G8) -> 45.35147392
E16: Outlay | F16: =F6 -> 1000
E17: Rp | F17: =F14/F16-1 -> 0.04761904762
F20: =_xlfn.SEQUENCE(,3,0) -> 0 | G20: 1 | H20: 2
E21: Cap Exp | F21: 1000
E22: EBITDA | F22: 0 | G22: 576.1904762 | H22: =G22 -> 576.1904762
E23: FCF | F23: =F22-F21 -> -1000 | G23: =G22-G21 -> 576.1904762 | H23: 576.1904762
E25: NPV at Target | F25: =NPV(F9,F23:H23) -> 0
E26: IRR | F26: =IRR(F23:H23) -> 0.1
E28: Gross at Rf | F28: =NPV(F10,F22:H22) -> 1020.356744
E29: NPV at Rf | F29: =NPV(F10,F23:H23) -> 67.97579198
E30: Outlay | F30: =F21 -> 1000
E31: Total Rp | F31: =F29/F30 -> 0.06797579198
E32: Level Rp | F32: =PMT(F10,H20,-F31) -> 0.03655771252

Sheet Mean Reversion
K2: Monthly | L2: Monthly | P2: Annual | Q2: Annual | U2: 5-yr | V2: 5-yr | AG2: Monthly | AH2: Monthly | AL2: Annual | AM2: Annual | AQ2: 5-yr | AR2: 5-yr | BC2: Monthly | BD2: Monthly | BI2: Annual | BJ2: Annual | BN2: 5-Year | BO2: 5-Year
G3: Oil Price | K3: =_xlfn.STDEV.S(K9:K637) -> 0.1238404826 | L3: =_xlfn.STDEV.S(L9:L637) -> 0.1001657428 | P3: =_xlfn.STDEV.S(P10:P60) -> 0.3047138882 | Q3: =_xlfn.STDEV.S(Q10:Q60) -> 0.276273976 | U3: =_xlfn.STDEV.S(U10:U60) -> 0.5257889865 | V3: =_xlfn.STDEV.S(V10:V60) -> 0.5019675415 | AG3: =_xlfn.STDEV.S(AG9:AG637) -> 0.1205384155 | AH3: =_xlfn.STDEV.S(AH9:AH637) -> 0.1230616511 | AL3: =_xlfn.STDEV.S(AL9:AL637) -> 0.4654873883 | AM3: =_xlfn.STDEV.S(AM9:AM637) -> 0.3627256937 | AQ3: =_xlfn.STDEV.S(AQ9:AQ16) -> 2.333338399 | AR3: =_xlfn.STDEV.S(AR9:AR16) -> 0.7446674978 | BC3: =_xlfn.STDEV.S(BC9:BC637) -> 0.1997902217 | BD3: =_xlfn.STDEV.S(BD9:BD637) -> 0.192599903 | BI3: =_xlfn.STDEV.S(BI9:BI48) -> 0.8202854049 | BJ3: =_xlfn.STDEV.S(BJ9:BJ48) -> 0.5619296073 | BN3: =_xlfn.STDEV.S(BN9:BN13) -> 2.542971464 | BO3: =_xlfn.STDEV.S(BO9:BO13) -> 1.152359157
K4: 12 | L4: 12 | P4: 1 | Q4: 1 | U4: =1/5 -> 0.2 | V4: =1/5 -> 0.2 | AA4: Apple | AG4: 12 | AH4: 12 | AL4: 1 | AM4: 1 | AQ4: =1/5 -> 0.2 | AR4: =1/5 -> 0.2 | AV4: Blackberry | BC4: 12 | BD4: 12 | BI4: 1 | BJ4: 1 | BN4: 0.2 | BO4: 0.2
K5: =K3*(K4^0.5) -> 0.4289960158 | L5: =L3*(L4^0.5) -> 0.3469843115 | P5: =P3*(P4^0.5) -> 0.3047138882 | Q5: =Q3*(Q4^0.5) -> 0.276273976 | U5: =U3*(U4^0.5) -> 0.2351399831 | V5: =V3*(V4^0.5) -> 0.2244867091 | AG5: =AG3*(AG4^0.5) -> 0.4175573197 | AH5: =AH3*(AH4^0.5) -> 0.4262980644 | AL5: =AL3*(AL4^0.5) -> 0.4654873883 | AM5: =AM3*(AM4^0.5) -> 0.3627256937 | AQ5: =AQ3*(AQ4^0.5) -> 1.043500655 | AR5: =AR3*(AR4^0.5) -> 0.3330254292 | BC5: =BC3*(BC4^0.5) -> 0.6920936298 | BD5: =BD3*(BD4^0.5) -> 0.667185635 | BI5: =BI3*(BI4^0.5) -> 0.8202854049 | BJ5: =BJ3*(BJ4^0.5) -> 0.5619296073 | BN5: =BN3*(BN4^0.5) -> 1.137251412 | BO5: =BO3*(BO4^0.5) -> 0.515350682
D7: Year | E7: 5-Year | F7: Month 1 | G7: Flag | H7: Counter | I7: Nominal | J7: Real | K7: Change | L7: LN Change | N7: Year | O7: Average | P7: Change | Q7: LN Change | S7: 5-yr | T7: Average | U7: Change | V7: LN Change | Z7: Date | AA7: AAPL | AB7: Year | AC7: 5-Year | AD7: Month 1 | AE7: Flag | AF7: Counter | AG7: Change | AH7: LN Change | AJ7: Year | AK7: Average | AL7: Change | AM7: LN Change | AP7: Average | AQ7: Change | AR7: LN Change | AV7: Date | AW7: BB | AX7: Year | AY7: 5-Year | AZ7: Month 1 | BA7: Flag | BC7: Change | BD7: LN Change | BG7: Year | BH7: Average | BI7: Change | BJ7: LN Change | BM7: Average | BN7: Change | BO7: LN Change
C8: 1973-01-01 | D8: =YEAR(C8) -> 1973 | E8: =MOD(D8,5)=0 -> FALSE | F8: =MONTH(C8)=1 -> TRUE | G8: =AND(F8,E8) -> FALSE | H8: 1 | I8: 2.08 | J8: 15.75221457 | Z8: 1985-01-01 | AA8: 0.09934119135 | AB8: =YEAR(Z8) -> 1985 | AC8: =MOD(AB8,5)=0 -> TRUE | AD8: =MONTH(Z8)=1 -> TRUE | AE8: =AND(AD8,AC8) -> TRUE | AF8: 1 | AJ8: 1985 | AK8: =AVERAGEIF(AB:AB,AJ8,AA:AA) -> 0.06847559785 | AO8: 1 | AP8: =AVERAGEIF(AF:AF,AO8,AA:AA) -> 0.20574217 | AV8: 1999-02-01 | AW8: 1.479166985 | AX8: =YEAR(AV8) -> 1999 | AY8: =MOD(AX8,5)=0 -> FALSE | AZ8: =MONTH(AV8)=1 -> FALSE | BA8: =AND(AZ8,AY8) -> FALSE | BB8: =BA8+BB7 -> 0 | BG8: 1999 | BH8: =AVERAGEIF(AX:AX,BG8,AW:AW) -> 4.21401518 | BL8: 1 | BM8: =AVERAGEIF(BB:BB,BL8,AW:AW) -> 9.217694537
C9: 1973-02-01 | D9: 1973 | E9: FALSE | F9: FALSE | G9: FALSE | H9: =H8+G9 -> 1 | I9: 2.08 | J9: 15.70239925 | K9: =J9/J8-1 -> -0.003162432765 | L9: =LN(J9/J8) -> -0.003167443823 | N9: 1974 | O9: =AVERAGEIF(D:D,N9,J:J) -> 73.10020057 | S9: 1 | T9: =AVERAGEIF(H:H,S9,J:J) -> 50.1456769 | Z9: 1985-02-01 | AA9: 0.08478268981 | AB9: =YEAR(Z9) -> 1985 | AC9: =MOD(AB9,5)=0 -> TRUE | AD9: =MONTH(Z9)=1 -> FALSE | AE9: =AND(AD9,AC9) -> FALSE | AF9: =AF8+AE9 -> 1 | AG9: =AA9/AA8-1 -> -0.1465505028 | AH9: =LN(AA9/AA8) -> -0.1584689099 | AJ9: 1986 | AK9: =AVERAGEIF(AB:AB,AJ9,AA:AA) -> 0.1131508444 | AL9: =AK9/AK8-1 -> 0.652425797 | AM9: =LN(AK9/AK8) -> 0.5022443883 | AO9: 2 | AP9: =AVERAGEIF(AF:AF,AO9,AA:AA) -> 0.3166067287 | AQ9: =AP9/AP8-1 -> 0.5388518974 | AR9: =LN(AP9/AP8) -> 0.4310366172 | AV9: 1999-03-01 | AW9: 1.75 | AX9: =YEAR(AV9) -> 1999 | AY9: =MOD(AX9,5)=0 -> FALSE | AZ9: =MONTH(AV9)=1 -> FALSE | BA9: =AND(AZ9,AY9) -> FALSE | BB9: =BA9+BB8 -> 0 | BC9: =AW9/AW8-1 -> 0.1830983373 | BD9: =LN(AW9/AW8) -> 0.1681367069 | BG9: 2000 | BH9: =AVERAGEIF(AX:AX,BG9,AW:AW) -> 12.51041667 | BI9: =BH9/BH8-1 -> 1.968764025 | BJ9: =LN(BH9/BH8) -> 1.088145713 | BL9: 2 | BM9: =AVERAGEIF(BB:BB,BL9,AW:AW) -> 57.27511113 | BN9: =BM9/BM8-1 -> 5.213604813 | BO9: =LN(BM9/BM8) -> 1.826741213
C10: 1973-03-01 | D10: 1973 | E10: FALSE | F10: FALSE | G10: FALSE | H10: 1 | I10: 2.35 | J10: 17.67447734 | K10: =J10/J9-1 -> 0.1255908768 | L10: =LN(J10/J9) -> 0.1183081216 | N10: 1975 | O10: 64.42027073 | P10: =O10/O9-1 -> -0.1187401645 | Q10: =LN(O10/O9) -> -0.126402764 | S10: 2 | T10: =AVERAGEIF(H:H,S10,J:J) -> 84.48757973 | U10: =T10/T9-1 -> 0.6848427412 | V10: =LN(T10/T9) -> 0.5216722308 | Z10: 1985-03-01 | AA10: 0.07579037547 | AB10: 1985 | AC10: TRUE | AD10: FALSE | AE10: FALSE | AF10: =AF9+AE10 -> 1 | AG10: =AA10/AA9-1 -> -0.1060630933 | AH10: =LN(AA10/AA9) -> -0.1121200804 | AJ10: 1987 | AK10: 0.2744893568 | AL10: =AK10/AK9-1 -> 1.425871043 | AM10: =LN(AK10/AK9) -> 0.886190653 | AO10: 3 | AP10: 0.2557748235 | AQ10: =AP10/AP9-1 -> -0.1921371208 | AR10: =LN(AP10/AP9) -> -0.2133629388 | AV10: 1999-04-01 | AW10: 2.03125 | AX10: 1999 | AY10: FALSE | AZ10: FALSE | BA10: FALSE | BB10: 0 | BC10: =AW10/AW9-1 -> 0.1607142857 | BD10: =LN(AW10/AW9) -> 0.1490355792 | BG10: 2001 | BH10: =AVERAGEIF(AX:AX,BG10,AW:AW) -> 4.770833433 | BI10: =BH10/BH9-1 -> -0.6186511161 | BJ10: =LN(BH10/BH9) -> -0.9640406171 | BL10: 3 | BM10: 25.36849992 | BN10: =BM10/BM9-1 -> -0.5570763737 | BO10: =LN(BM10/BM9) -> -0.8143579248
C11: 1973-04-01 | D11: 1973 | E11: FALSE | F11: FALSE | G11: FALSE | H11: 1 | I11: 2.35 | J11: 17.60192018 | K11: -0.00410519418 | L11: -0.004113643622 | N11: 1976 | O11: 66.97043087 | P11: =O11/O10-1 -> 0.03958629964 | Q11: 0.03882284521 | S11: 3 | T11: 116.782695 | U11: =T11/T10-1 -> 0.3822468976 | V11: =LN(T11/T10) -> 0.3237103617 | Z11: 1985-04-01 | AA11: 0.07279321551 | AB11: 1985 | AC11: TRUE | AD11: FALSE | AE11: FALSE | AF11: 1 | AG11: -0.03954539002 | AH11: -0.04034855455 | AJ11: 1988 | AK11: 0.2863463884 | AL11: 0.04319668956 | AM11: 0.04228973883 | AO11: 4 | AP11: 0.4166848622 | AQ11: 0.6291081999 | AR11: =LN(AP11/AP10) -> 0.4880327485 | AV11: 1999-05-01 | AW11: 2.34375 | AX11: 1999 | AY11: FALSE | AZ11: FALSE | BA11: FALSE | BB11: 0 | BC11: 0.1538461538 | BD11: 0.1431008436 | BG11: 2002 | BH11: 2.682361186 | BI11: -0.4377583658 | BJ11: -0.5758235674 | BL11: 4 | BM11: 8.675666706 | BN11: -0.6580142014 | BO11: =LN(BM11/BM10) -> -1.072986067
C12: 1973-05-01 | D12: 1973 | E12: FALSE | F12: FALSE | G12: FALSE | H12: 1 | I12: 2.35 | J12: 17.52316088 | K12: -0.004474472201 | L12: -0.004484512613 | N12: 1977 | O12: 67.90743276 | P12: 0.01399127759 | Q12: 0.01389430315 | S12: 4 | T12: 52.88790126 | U12: -0.5471255285 | V12: -0.7921402967 | Z12: 1985-05-01 | AA12: 0.05951922759 | AB12: 1985 | AC12: TRUE | AD12: FALSE | AE12: FALSE | AF12: 1 | AG12: -0.1823519929 | AH12: -0.2013233442 | AJ12: 1989 | AK12: 0.2862486628 | AL12: -0.0003412843478 | AM12: -0.0003413425986 | AO12: 5 | AP12: 3.256837402 | AQ12: 6.816068442 | AR12: 2.056181671 | AV12: 1999-06-01 | AW12: 3.375 | AX12: 1999 | AY12: FALSE | AZ12: FALSE | BA12: FALSE | BB12: 0 | BC12: 0.44 | BD12: 0.3646431136 | BG12: 2003 | BH12: 4.752361139 | BI12: 0.7717081369 | BJ12: 0.5719441303 | BL12: 5 | BM12: 5.678833322 | BN12: -0.3454297503 | BO12: -0.423776366
C13: 1973-06-01 | D13: 1973 | E13: FALSE | F13: FALSE | G13: FALSE | H13: 1 | I13: 2.7 | J13: 20.03554523 | K13: 0.1433750664 | L13: 0.133984473 | N13: 1978 | O13: 67.75967787 | P13: -0.002175827889 | Q13: -0.002178198442 | S13: 5 | T13: 44.44568126 | U13: -0.1596247876 | V13: -0.1739068054 | Z13: 1985-06-01 | AA13: 0.06166006252 | AB13: 1985 | AC13: TRUE | AD13: FALSE | AE13: FALSE | AF13: 1 | AG13: 0.03596879553 | AH13: 0.03533702324 | AJ13: 1990 | AK13: 0.2656811513 | AL13: -0.07185190427 | AM13: -0.07456397301 | AO13: 6 | AP13: 14.31573504 | AQ13: 3.395594029 | AR13: 1.480602682 | AV13: 1999-07-01 | AW13: 3.895833015 | AX13: 1999 | AY13: FALSE | AZ13: FALSE | BA13: FALSE | BB13: 0 | BC13: 0.1543208935 | BD13: 0.1435122 | BG13: 2004 | BH13: 21.37250026 | BI13: 3.497238244 | BJ13: 1.503463485 | BL13: 6 | BM13: 4.030587524 | BN13: -0.2902437357 | BO13: -0.3428336576
C14: 1973-07-01 | D14: 1973 | E14: FALSE | F14: FALSE | G14: FALSE | H14: 1 | I14: 2.7 | J14: 19.94276433 | K14: -0.004630814908 | L14: -0.004641570349 | N14: 1979 | O14: 155.3800864 | P14: 1.293105447 | Q14: 0.8299069893 | S14: 6 | T14: 35.43694352 | U14: -0.2026909586 | V14: -0.2265129195 | Z14: 1985-07-01 | AA14: 0.05438122898 | AB14: 1985 | AC14: TRUE | AD14: FALSE | AE14: FALSE | AF14: 1 | AG14: -0.1180477807 | AH14: -0.1256173976 | AJ14: 1991 | AK14: 0.3752059316 | AL14: 0.4122414395 | AM14: 0.3451781156 | AO14: 7 | AP14: 36.26576589 | AQ14: 1.533280044 | AR14: 0.9295149232 | AV14: 1999-08-01 | AW14: 4.958333015 | AX14: 1999 | AY14: FALSE | AZ14: FALSE | BA14: FALSE | BB14: 0 | BC14: 0.272727295 | BD14: 0.2411620743 | BG14: 2005 | BH14: 23.35361099 | BI14: 0.09269438332 | BJ14: 0.0886465574
C15: 1973-08-01 | D15: 1973 | E15: FALSE | F15: FALSE | G15: FALSE | H15: 1 | I15: 2.7 | J15: 19.82476675 | K15: -0.005916811705 | L15: -0.00593438539 | N15: 1980 | O15: 154.7548251 | P15: -0.004024076461 | Q15: -0.004032194843 | S15: 7 | T15: 51.9898688 | U15: 0.467109283 | V15: 0.3832939906 | Z15: 1985-08-01 | AA15: 0.05138326064 | AB15: 1985 | AC15: TRUE | AD15: FALSE | AE15: FALSE | AF15: 1 | AG15: -0.05512873471 | AH15: -0.05670658798 | AJ15: 1992 | AK15: 0.3990832195 | AL15: 0.06363782098 | AM15: 0.06169493916 | AO15: 8 | AP15: 153.0575446 | AQ15: 3.220441535 | AR15: 1.439939752 | AV15: 1999-09-01 | AW15: 5.15625 | AX15: 1999 | AY15: FALSE | AZ15: FALSE | BA15: FALSE | BB15: 0 | BC15: 0.03991603306 | BD15: 0.03913997245 | BG15: 2006 | BH15: 29.69722239 | BI15: 0.2716329993 | BJ15: 0.2403019008
C16: 1973-09-01 | D16: 1973 | E16: FALSE | F16: FALSE | G16: FALSE | H16: 1 | I16: 4.1 | J16: 29.92656131 | K16: 0.5095542706 | L16: 0.4118144222 | N16: 1981 | O16: 132.6365248 | P16: -0.142924786 | Q16: -0.1542295999 | S16: 8 | T16: 109.9421947 | U16: 1.114684981 | V16: 0.7489058563 | Z16: 1985-09-01 | AA16: 0.05395304039 | AB16: 1985 | AC16: TRUE | AD16: FALSE | AE16: FALSE | AF16: 1 | AG16: 0.05001200239 | AH16: 0.04880159495 | AJ16: 1993 | AK16: 0.2905449693 | AL16: -0.271968965 | AM16: -0.3174116011 | AO16: 9 | AP16: 219.1406422 | AQ16: 0.4317532839 | AR16: 0.3588997659 | AV16: 1999-10-01 | AW16: 5.125 | AX16: 1999 | AY16: FALSE | AZ16: FALSE | BA16: FALSE | BB16: 0 | BC16: -0.006060606061 | BD16: -0.006079046076 | BG16: 2007 | BH16: 75.65555636 | BI16: 1.547563384 | BJ16: 0.9351373665
C17: 1973-10-01 | D17: 1973 | E17: FALSE | F17: FALSE | G17: FALSE | H17: 1 | I17: 4.1 | J17: 29.73980464 | K17: -0.006240498895 | L17: -0.006260052199 | N17: 1982 | O17: 111.2843419 | P17: -0.1609826776 | Q17: -0.1755239262 | S17: 9 | T17: 142.4606557 | U17: 0.2957778046 | V17: 0.2591111362 | Z17: 1985-10-01 | AA17: 0.06380093843 | AB17: 1985 | AC17: TRUE | AD17: FALSE | AE17: FALSE | AF17: 1 | AG17: 0.1825272119 | AH17: 0.1676538533 | AJ17: 1994 | AK17: 0.252518372 | AL17: -0.130880247 | AM17: -0.1402743577 | AV17: 1999-11-01 | AW17: 8.541666985 | AX17: 1999 | AY17: FALSE | AZ17: FALSE | BA17: FALSE | BB17: 0 | BC17: 0.6666667287 | BD17: 0.510825661 | BG17: 2008 | BH17: 94.45916684 | BI17: 0.2485423595 | BJ17: 0.2219767584
C18: 1973-11-01 | D18: 1973 | E18: FALSE | F18: FALSE | G18: FALSE | H18: 1 | I18: 4.1 | J18: 29.54388079 | K18: -0.00658793337 | L18: -0.006609729584 | N18: 1983 | O18: 96.12474957 | P18: -0.1362239473 | Q18: -0.1464417421 | S18: 10 | T18: 74.5747735 | U18: -0.4765237241 | V18: -0.647263568 | Z18: 1985-11-01 | AA18: 0.06893972307 | AB18: 1985 | AC18: TRUE | AD18: FALSE | AE18: FALSE | AF18: 1 | AG18: 0.08054402919 | AH18: 0.07746464504 | AJ18: 1995 | AK18: 0.2938975493 | AL18: 0.163866007 | AM18: 0.1517472285 | AV18: 1999-12-01 | AW18: 7.697916985 | AX18: 1999 | AY18: FALSE | AZ18: FALSE | BA18: FALSE | BB18: 0 | BC18: -0.09878048413 | BD18: -0.1040064152 | BG18: 2009 | BH18: 63.20999908 | BI18: -0.3308219711 | BJ18: -0.4017051422
C19: 1973-12-01 | D19: 1973 | E19: FALSE | F19: FALSE | G19: FALSE | H19: 1 | I19: 13 | J19: 93.02634348 | K19: 2.148751654 | L19: 1.147006074 | N19: 1984 | O19: 89.11303346 | P19: -0.07294392063 | Q19: -0.0757412197 | S19: 11 | T19: 84.22111437 | U19: 0.1293512594 | V19: 0.1216433612 | Z19: 1985-12-01 | AA19: 0.07536222041 | AB19: 1985 | AC19: TRUE | AD19: FALSE | AE19: FALSE | AF19: 1 | AG19: 0.09316105499 | AH19: 0.08907354965 | AJ19: 1996 | AK19: 0.1798862914 | AL19: -0.3879285763 | AM19: -0.4909062979 | AV19: 2000-01-01 | AW19: 10.95833302 | AX19: 2000 | AY19: TRUE | AZ19: TRUE | BA19: TRUE | BB19: 1 | BC19: 0.4235452314 | BD19: 0.353150402 | BG19: 2010 | BH19: 59.56999969 | BI19: -0.05758581621 | BJ19: -0.05931041548
C20: 1974-01-01 | D20: 1974 | E20: FALSE | F20: TRUE | G20: FALSE | H20: 1 | I20: 13 | J20: 92.33320792 | K20: -0.007450959984 | L20: -0.007478857046 | N20: 1985 | O20: 81.70213202 | P20: -0.08316293539 | Q20: -0.0868255056 | Z20: 1986-01-01 | AA20: 0.07921651751 | AB20: 1986 | AC20: FALSE | AD20: TRUE | AE20: FALSE | AF20: 1 | AG20: 0.05114362449 | AH20: 0.04987873764 | AJ20: 1997 | AK20: 0.1299894657 | AL20: -0.2773798122 | AM20: -0.3248715229 | AV20: 2000-02-01 | AW20: 22.54166794 | AX20: 2000 | AY20: TRUE | AZ20: FALSE | BA20: FALSE | BB20: 1 | BC20: 1.057034396 | BD20: 0.7212653321 | BG20: 2011 | BH20: 36.04583343 | BI20: -0.3948995532 | BJ20: -0.502360807
C21: 1974-02-01 | D21: 1974 | E21: FALSE | F21: FALSE | G21: FALSE | H21: 1 | I21: 13 | J21: 91.60113726 | K21: -0.007928573931 | L21: -0.007960172204 | N21: 1986 | O21: 41.30542774 | P21: -0.4944388021 | Q21: -0.6820861837 | Z21: 1986-02-01 | AA21: 0.08563905954 | AB21: 1986 | AC21: FALSE | AD21: FALSE | AE21: FALSE | AF21: 1 | AG21: 0.08107579376 | AH21: 0.07795665068 | AJ21: 1998 | AK21: 0.2289424439 | AL21: 0.7612384411 | AM21: 0.5660172213 | AV21: 2000-03-01 | AW21: 17.75 | AX21: 2000 | AY21: TRUE | AZ21: FALSE | BA21: FALSE | BB21: 1 | BC21: -0.2125693605 | BD21: -0.238979989 | BG21: 2012 | BH21: 10.85499994 | BI21: -0.6988556261 | BJ21: -1.200165482
C22: 1974-03-01 | D22: 1974 | E22: FALSE | F22: FALSE | G22: FALSE | H22: 1 | I22: 10.59999847 | J22: 74.07727236 | K22: -0.1913061936 | L22: -0.2123349176 | N22: 1987 | O22: 51.89080834 | P22: 0.2562709353 | Q22: 0.2281477576 | Z22: 1986-03-01 | AA22: 0.09677217901 | AB22: 1986 | AC22: FALSE | AD22: FALSE | AE22: FALSE | AF22: 1 | AG22: 0.1300004872 | AH22: 0.1222180639 | AJ22: 1999 | AK22: 0.4461583669 | AL22: 0.9487796114 | AM22: 0.6672033363 | AV22: 2000-04-01 | AW22: 7.083333015 | AX22: 2000 | AY22: TRUE | AZ22: FALSE | BA22: FALSE | BB22: 1 | BC22: -0.600938985 | BD22: -0.9186409541 | BG22: 2013 | BH22: 10.84249997 | BI22: -0.001151540146 | BJ22: -0.001152203677
C23: 1974-04-01 | D23: 1974 | E23: FALSE | F23: FALSE | G23: FALSE | H23: 1 | I23: 10.59999847 | J23: 73.48613754 | K23: -0.007979975604 | L23: -0.008011986018 | N23: 1988 | O23: 41.01991265 | P23: -0.2094955934 | Q23: -0.2350840479 | Z23: 1986-04-01 | AA23: 0.1036236435 | AB23: 1986 | AC23: FALSE | AD23: FALSE | AE23: FALSE | AF23: 1 | AG23: 0.07079994044 | AH23: 0.06840597704 | AJ23: 2000 | AK23: 0.6528594171 | AL23: 0.463290763 | AM23: 0.3806878466 | AV23: 2000-05-01 | AW23: 5.364583015 | AX23: 2000 | AY23: TRUE | AZ23: FALSE | BA23: FALSE | BB23: 1 | BC23: -0.2426470697 | BD23: -0.2779259119 | BG23: 2014 | BH23: 9.529166579 | BI23: -0.1211282818 | BJ23: -0.1291163326
C24: 1974-05-01 | D24: 1974 | E24: FALSE | F24: FALSE | G24: FALSE | H24: 1 | I24: 10.59999847 | J24: 72.86591826 | K24: -0.008439949262 | L24: -0.008475767312 | N24: 1989 | O24: 48.52122556 | P24: 0.1828700361 | Q24: 0.1679437194 | Z24: 1986-05-01 | AA24: 0.1267462671 | AB24: 1986 | AC24: FALSE | AD24: FALSE | AE24: FALSE | AF24: 1 | AG24: 0.2231404222 | AH24: 0.2014216679 | AJ24: 2001 | AK24: 0.3055109642 | AL24: -0.5320417287 | AM24: -0.7593761509 | AV24: 2000-06-01 | AW24: 7.541666985 | AX24: 2000 | AY24: TRUE | AZ24: FALSE | BA24: FALSE | BB24: 1 | BC24: 0.4058253853 | BD24: 0.3406245931 | BG24: 2015 | BH24: 8.666666706 | BI24: -0.09051157472 | BJ24: -0.09487300757
C25: 1974-06-01 | D25: 1974 | E25: FALSE | F25: FALSE | G25: FALSE | H25: 1 | I25: 10 | J25: 68.15339398 | K25: -0.06467391615 | L25: -0.06686005771 | N25: 1990 | O25: 59.44674144 | P25: 0.2251698253 | Q25: 0.2030794673 | Z25: 1986-06-01 | AA25: 0.1228919923 | AB25: 1986 | AC25: FALSE | AD25: FALSE | AE25: FALSE | AF25: 1 | AG25: -0.03040937488 | AH25: -0.03088133252 | AJ25: 2002 | AK25: 0.2824268999 | AL25: -0.07555887358 | AM25: -0.07856591172 | AV25: 2000-07-01 | AW25: 9.03125 | AX25: 2000 | AY25: TRUE | AZ25: FALSE | BA25: FALSE | BB25: 1 | BC25: 0.1975137617 | BD25: 0.1802475422 | BG25: 2016 | BH25: 7.406666676 | BI25: -0.1453846182 | BJ25: -0.1571037571
C26: 1974-07-01 | D26: 1974 | E26: FALSE | F26: FALSE | G26: FALSE | H26: 1 | I26: 10 | J26: 67.5373301 | K26: -0.009039371924 | L26: -0.009080474931 | N26: 1991 | O26: 46.49299425 | P26: -0.2179050842 | Q26: -0.24577917 | Z26: 1986-07-01 | AA26: 0.1070489809 | AB26: 1986 | AC26: FALSE | AD26: FALSE | AE26: FALSE | AF26: 1 | AG26: -0.1289181755 | AH26: -0.1380193634 | AJ26: 2003 | AK26: 0.2805881364 | AL26: -0.006510582226 | AM26: -0.006531868508 | AV26: 2000-08-01 | AW26: 12.59375 | AX26: 2000 | AY26: TRUE | AZ26: FALSE | BA26: FALSE | BB26: 1 | BC26: 0.3944636678 | BD26: 0.3325098738 | BG26: 2017 | BH26: 9.531666716 | BI26: 0.2869036954 | BJ26: 0.252239097
C27: 1974-08-01 | D27: 1974 | E27: FALSE | F27: FALSE | G27: FALSE | H27: 1 | I27: 10 | J27: 66.95932976 | K27: -0.008558235005 | L27: -0.008595066993 | N27: 1992 | O27: 44.18471569 | P27: -0.04964787901 | Q27: -0.05092270939 | Z27: 1986-08-01 | AA27: 0.1267462671 | AB27: 1986 | AC27: FALSE | AD27: FALSE | AE27: FALSE | AF27: 1 | AG27: 0.1840025568 | AH27: 0.1689006959 | AJ27: 2004 | AK27: 0.5620388935 | AL27: 1.003074331 | AM27: 0.6946831658 | AV27: 2000-09-01 | AW27: 16.42708206 | AX27: 2000 | AY27: TRUE | AZ27: FALSE | BA27: FALSE | BB27: 1 | BC27: 0.3043836873 | BD27: 0.2657306589 | BG27: 2018 | BH27: 10.43833339 | BI27: 0.09512152525 | BJ27: 0.09086533907
C28: 1974-09-01 | D28: 1974 | E28: FALSE | F28: FALSE | G28: FALSE | H28: 1 | I28: 10.29999924 | J28: 68.32253174 | K28: 0.02035865634 | L28: 0.02015418936 | N28: 1993 | O28: 37.35011978 | P28: -0.1546823558 | Q28: -0.168042812 | Z28: 1986-09-01 | AA28: 0.1147567704 | AB28: 1986 | AC28: FALSE | AD28: FALSE | AE28: FALSE | AF28: 1 | AG28: -0.09459447544 | AH28: -0.09937234221 | AJ28: 2005 | AK28: 1.446119189 | AL28: 1.572987752 | AM28: 0.9450677732 | AV28: 2000-10-01 | AW28: 16.66666794 | AX28: 2000 | AY28: TRUE | AZ28: FALSE | BA28: FALSE | BB28: 1 | BC28: 0.01458481035 | BD28: 0.01447947497 | BG28: 2019 | BH28: 7.335000038 | BI28: -0.297301613 | BJ28: -0.3528275161
C29: 1974-10-01 | D29: 1974 | E29: FALSE | F29: FALSE | G29: FALSE | H29: 1 | I29: 10.29999924 | J29: 67.6772361 | K29: -0.009444843731 | L29: -0.009489729115 | N29: 1994 | O29: 34.75383512 | P29: -0.06951208397 | Q29: -0.07204618952 | Z29: 1986-10-01 | AA29: 0.1186103374 | AB29: 1986 | AC29: FALSE | AD29: FALSE | AE29: FALSE | AF29: 1 | AG29: 0.03358030145 | AH29: 0.03302879567 | AJ29: 2006 | AK29: 2.1627494 | AL29: 0.4955540427 | AM29: 0.4024967353 | AV29: 2000-11-01 | AW29: 10.83333302 | AX29: 2000 | AY29: TRUE | AZ29: FALSE | BA29: FALSE | BB29: 1 | BC29: -0.3500000687 | BD29: -0.4307830217 | BG29: 2020 | BH29: 5.06249996 | BI29: -0.3098159599 | BJ29: -0.3707969922
C30: 1974-11-01 | D30: 1974 | E30: FALSE | F30: FALSE | G30: FALSE | H30: 1 | I30: 10.29999924 | J30: 67.0311084 | K30: -0.009547194099 | L30: -0.009593060722 | N30: 1995 | O30: 36.24665385 | P30: 0.04295407192 | Q30: 0.04205714046 | Z30: 1986-11-01 | AA30: 0.1370223314 | AB30: 1986 | AC30: FALSE | AD30: FALSE | AE30: FALSE | AF30: 1 | AG30: 0.1552309384 | AH30: 0.1443002707 | AJ30: 2007 | AK30: 4.003282468 | AL30: 0.8510154103 | AM30: 0.6157343589 | AV30: 2000-12-01 | AW30: 13.33333302 | AX30: 2000 | AY30: TRUE | AZ30: FALSE | BA30: FALSE | BB30: 1 | BC30: 0.2307692375 | BD30: 0.2076393703 | BG30: 2021 | BH30: 10.38916675 | BI30: 1.052181103 | BJ30: 0.7189031802
C31: 1974-12-01 | D31: 1974 | E31: FALSE | F31: FALSE | G31: FALSE | H31: 1 | I31: 10.42000008 | J31: 67.15780337 | K31: 0.001890092187 | L31: 0.00188830821 | N31: 1996 | O31: 43.31121563 | P31: 0.1949024539 | Q31: 0.1780645535 | Z31: 1986-12-01 | AA31: 0.1387357861 | AB31: 1986 | AC31: FALSE | AD31: FALSE | AE31: FALSE | AF31: 1 | AG31: 0.01250493045 | AH31: 0.01242738956 | AJ31: 2008 | AK31: 4.157210767 | AL31: 0.03845052179 | AM31: 0.03772971928 | AV31: 2001-01-01 | AW31: 10.96875 | AX31: 2001 | AY31: FALSE | AZ31: TRUE | BA31: FALSE | BB31: 1 | BC31: -0.1773437304 | BD31: -0.1952168209 | BG31: 2022 | BH31: 5.773333251 | BI31: -0.4442929458 | BJ31: -0.5875140045
C32: 1975-01-01 | D32: 1975 | E32: TRUE | F32: TRUE | G32: TRUE | H32: 2 | I32: 10.42000008 | J32: 66.53632816 | K32: -0.009253953782 | L32: -0.009297037616 | N32: 1997 | O32: 36.75116559 | P32: -0.1514630781 | Q32: -0.1642416809 | Z32: 1987-01-01 | AA32: 0.1901190281 | AB32: 1987 | AC32: FALSE | AD32: TRUE | AE32: FALSE | AF32: 1 | AG32: 0.3703676136 | AH32: 0.3150790349 | AJ32: 2009 | AK32: 4.514825185 | AL32: 0.08602268153 | AM32: 0.08252210668 | AV32: 2001-02-01 | AW32: 6.447916985 | AX32: 2001 | AY32: FALSE | AZ32: FALSE | BA32: FALSE | BB32: 1 | BC32: -0.4121557165 | BD32: -0.5312931901 | BG32: 2023 | BH32: 4.470000009 | BI32: -0.2257505649 | BJ32: -0.2558611897
C33: 1975-02-01 | D33: 1975 | E33: TRUE | F33: FALSE | G33: FALSE | H33: 2 | I33: 10.42000008 | J33: 65.94887471 | K33: -0.008829063292 | L33: -0.008868270417 | N33: 1998 | O33: 24.30563758 | P33: -0.3386430828 | Q33: -0.4134616194 | Z33: 1987-02-01 | AA33: 0.2397896051 | AB33: 1987 | AC33: FALSE | AD33: FALSE | AE33: FALSE | AF33: 1 | AG33: 0.2612604196 | AH33: 0.232111554 | AJ33: 2010 | AK33: 7.805155754 | AL33: 0.7287836038 | AM33: 0.547418042 | AV33: 2001-03-01 | AW33: 3.661667109 | AX33: 2001 | AY33: FALSE | AZ33: FALSE | BA33: FALSE | BB33: 1 | BC33: -0.4321162761 | BD33: -0.5658385927 | BG33: 2024 | BH33: 2.699166636 | BI33: -0.3961595905 | BJ33: -0.5044453387
C34: 1975-03-01 | D34: 1975 | E34: TRUE | F34: FALSE | G34: FALSE | H34: 2 | I34: 10.42000008 | J34: 65.41472124 | K34: -0.008099508459 | L34: -0.008132487675 | N34: 1999 | O34: 36.57004494 | P34: 0.504591057 | Q34: 0.4085211383 | Z34: 1987-03-01 | AA34: 0.220948711 | AB34: 1987 | AC34: FALSE | AD34: FALSE | AE34: FALSE | AF34: 1 | AG34: -0.07857260573 | AH34: -0.08183129579 | AJ34: 2011 | AK34: 11.06561502 | AL34: 0.4177314799 | AM34: 0.3490580448 | AV34: 2001-04-01 | AW34: 5.653333187 | AX34: 2001 | AY34: FALSE | AZ34: FALSE | BA34: FALSE | BB34: 1 | BC34: 0.5439233058 | BD34: 0.434326778 | BG34: 2025 | BH34: 4.030587524 | BI34: 0.4932710974 | BJ34: 0.4009690811
C35: 1975-04-01 | D35: 1975 | E35: TRUE | F35: FALSE | G35: FALSE | H35: 2 | I35: 10.42000008 | J35: 64.88698972 | K35: -0.008067473326 | L35: -0.008100191476 | N35: 2000 | O35: 52.99788585 | P35: 0.4492157705 | Q35: 0.3710225622 | Z35: 1987-04-01 | AA35: 0.271476388 | AB35: 1987 | AC35: FALSE | AD35: FALSE | AE35: FALSE | AF35: 1 | AG35: 0.2286850948 | AH35: 0.205944569 | AJ35: 2012 | AK35: 17.54352872 | AL35: 0.5854092779 | AM35: 0.4608425935 | AV35: 2001-05-01 | AW35: 5.436666965 | AX35: 2001 | AY35: FALSE | AZ35: FALSE | BA35: FALSE | BB35: 1 | BC35: -0.03832539397 | BD35: -0.0390791329 | BG35: 2012 | BH35: 10.85499994 | BI35: 1.693155743 | BJ35: 0.9907136448
C36: 1975-05-01 | D36: 1975 | E36: TRUE | F36: FALSE | G36: FALSE | H36: 2 | I36: 10.42000008 | J36: 64.39982391 | K36: -0.007507912106 | L36: -0.007536238348 | N36: 2001 | O36: 43.40574287 | P36: -0.1809910494 | Q36: -0.1996602665 | Z36: 1987-05-01 | AA36: 0.2706200778 | AB36: 1987 | AC36: FALSE | AD36: FALSE | AE36: FALSE | AF36: 1 | AG36: -0.003154271116 | AH36: -0.003159256315 | AJ36: 2013 | AK36: 14.52061192 | AL36: -0.1723095076 | AM36: -0.1891159959 | AV36: 2001-06-01 | AW36: 5.375 | AX36: 2001 | AY36: FALSE | AZ36: FALSE | BA36: FALSE | BB36: 1 | BC36: -0.01134278886 | BD36: -0.01140760891 | BG36: 2013 | BH36: 10.84249997 | BI36: -0.001151540146 | BJ36: -0.001152203677
C37: 1975-06-01 | D37: 1975 | E37: TRUE | F37: FALSE | G37: FALSE | H37: 2 | I37: 10.43000031 | J37: 63.98142174 | K37: -0.006496945781 | L37: -0.006518142794 | N37: 2002 | O37: 46.181574 | P37: 0.0639507804 | Q37: 0.06198913083 | Z37: 1987-06-01 | AA37: 0.277893126 | AB37: 1987 | AC37: FALSE | AD37: FALSE | AE37: FALSE | AF37: 1 | AG37: 0.02687549357 | AH37: 0.02652069046 | AJ37: 2014 | AK37: 20.64376378 | AL37: 0.4216869021 | AM37: 0.3518441258 | AV37: 2001-07-01 | AW37: 3.921667099 | AX37: 2001 | AY37: FALSE | AZ37: FALSE | BA37: FALSE | BB37: 1 | BC37: -0.2703875165 | BD37: -0.3152417303 | BG37: 2014 | BH37: 9.529166579 | BI37: -0.1211282818 | BJ37: -0.1291163326
C38: 1975-07-01 | D38: 1975 | E38: TRUE | F38: FALSE | G38: FALSE | H38: 2 | I38: 10.43000031 | J38: 63.48890814 | K38: -0.007697759531 | L38: -0.00772754021 | N38: 2003 | O38: 50.2758115 | P38: 0.08865521768 | Q38: 0.08494318931 | Z38: 1987-07-01 | AA38: 0.2830396891 | AB38: 1987 | AC38: FALSE | AD38: FALSE | AE38: FALSE | AF38: 1 | AG38: 0.01851993652 | AH38: 0.01835053089 | AJ38: 2015 | AK38: 26.79468425 | AL38: 0.2979553795 | AM38: 0.2607902413 | AV38: 2001-08-01 | AW38: 2.809999943 | AX38: 2001 | AY38: FALSE | AZ38: FALSE | BA38: FALSE | BB38: 1 | BC38: -0.2834680069 | BD38: -0.3333323808 | BG38: 2015 | BH38: 8.666666706 | BI38: -0.09051157472 | BJ38: -0.09487300757
C39: 1975-08-01 | D39: 1975 | E39: TRUE | F39: FALSE | G39: FALSE | H39: 2 | I39: 10.43000031 | J39: 63.05391247 | K39: -0.006851522348 | L39: -0.006875101793 | N39: 2004 | O39: 67.08832975 | P39: 0.3344057062 | Q39: 0.2884860288 | Z39: 1987-08-01 | AA39: 0.370524466 | AB39: 1987 | AC39: FALSE | AD39: FALSE | AE39: FALSE | AF39: 1 | AG39: 0.3090901395 | AH39: 0.2693323459 | AJ39: 2016 | AK39: 23.86554114 | AL39: -0.1093180678 | AM39: -0.1157678937 | AV39: 2001-09-01 | AW39: 2.680000067 | AX39: 2001 | AY39: FALSE | AZ39: FALSE | BA39: FALSE | BB39: 1 | BC39: -0.04626330202 | BD39: -0.04736764355 | BG39: 2016 | BH39: 7.406666676 | BI39: -0.1453846182 | BJ39: -0.1571037571
C40: 1975-09-01 | D40: 1975 | E40: TRUE | F40: FALSE | G40: FALSE | H40: 2 | I40: 10.46000004 | J40: 62.83561848 | K40: -0.003462021268 | L40: -0.003468027931 | N40: 2005 | O40: 92.57859624 | P40: 0.3799508289 | Q40: 0.3220478673 | Z40: 1987-09-01 | AA40: 0.3881790638 | AB40: 1987 | AC40: FALSE | AD40: FALSE | AE40: FALSE | AF40: 1 | AG40: 0.04764758977 | AH40: 0.04654726005 | AJ40: 2017 | AK40: 35.26119026 | AL40: 0.4774938497 | AM40: 0.3903473077 | AV40: 2001-10-01 | AW40: 2.710000038 | AX40: 2001 | AY40: FALSE | AZ40: FALSE | BA40: FALSE | BB40: 1 | BC40: 0.0111940189 | BD40: 0.01113182954 | BG40: 2017 | BH40: 9.531666716 | BI40: 0.2869036954 | BJ40: 0.252239097
C41: 1975-10-01 | D41: 1975 | E41: TRUE | F41: FALSE | G41: FALSE | H41: 2 | I41: 10.46000004 | J41: 62.4611449 | K41: -0.005959574969 | L41: -0.005977404107 | N41: 2006 | O41: 103.1590625 | P41: 0.1142863112 | Q41: 0.1082141204 | Z41: 1987-10-01 | AA41: 0.265370369 | AB41: 1987 | AC41: FALSE | AD41: FALSE | AE41: FALSE | AF41: 1 | AG41: -0.3163712479 | AH41: -0.3803402689 | AJ41: 2018 | AK41: 44.26312764 | AL41: 0.2552930665 | AM41: 0.2273690645 | AV41: 2001-11-01 | AW41: 3.631666899 | AX41: 2001 | AY41: FALSE | AZ41: FALSE | BA41: FALSE | BB41: 1 | BC41: 0.3400984678 | BD41: 0.2927430947 | BG41: 2018 | BH41: 10.43833339 | BI41: 0.09512152525 | BJ41: 0.09086533907
C42: 1975-11-01 | D42: 1975 | E42: TRUE | F42: FALSE | G42: FALSE | H42: 2 | I42: 10.46000004 | J42: 62.09168543 | K42: -0.005915028837 | L42: -0.005932591912 | N42: 2007 | O42: 117.71307 | P42: 0.1410831691 | Q42: =LN(O42/O41) -> 0.1319779596 | Z42: 1987-11-01 | AA42: 0.2267242968 | AB42: 1987 | AC42: FALSE | AD42: FALSE | AE42: FALSE | AF42: 1 | AG42: -0.1456306983 | AH42: -0.1573917411 | AJ42: 2019 | AK42: 51.14428616 | AL42: 0.1554602866 | AM42: 0.1444987812 | AV42: 2001-12-01 | AW42: 3.953332901 | AX42: 2001 | AY42: FALSE | AZ42: FALSE | BA42: FALSE | BB42: 1 | BC42: 0.08857255118 | BD42: 0.08486725191 | BG42: 2019 | BH42: 7.335000038 | BI42: -0.297301613 | BJ42: -0.3528275161
C43: 1975-12-01 | D43: 1975 | E43: TRUE | F43: FALSE | G43: FALSE | H43: 2 | I43: 11.51000023 | J43: 67.94381982 | K43: 0.09424988785 | L43: 0.0900690946 | N43: 2008 | O43: 140.7616676 | P43: 0.1958032161 | Q43: 0.1788181069 | Z43: 1987-12-01 | AA43: 0.2891874611 | AB43: 1987 | AC43: FALSE | AD43: FALSE | AE43: FALSE | AF43: 1 | AG43: 0.2755027371 | AH43: 0.2433404045 | AJ43: 2020 | AK43: 94.25673771 | AL43: 0.8429573427 | AM43: 0.6113715329 | AV43: 2002-01-01 | AW43: 4.268332958 | AX43: 2002 | AY43: FALSE | AZ43: TRUE | BA43: FALSE | BB43: 1 | BC43: 0.07967961847 | BD43: 0.07666434756 | BG43: 2020 | BH43: 5.06249996 | BI43: -0.3098159599 | BJ43: -0.3707969922
C44: 1976-01-01 | D44: 1976 | E44: FALSE | F44: TRUE | G44: FALSE | H44: 2 | I44: 11.51000023 | J44: 67.57668297 | K44: -0.00540353558 | L44: -0.005418187483 | N44: 2009 | O44: 95.4985772 | P44: -0.321558356 | Q44: -0.3879568108 | Z44: 1988-01-01 | AA44: 0.2857449055 | AB44: 1988 | AC44: FALSE | AD44: TRUE | AE44: FALSE | AF44: 1 | AG44: -0.01190423559 | AH44: -0.01197565839 | AJ44: 2021 | AK44: 138.4823011 | AL44: 0.4692032044 | AM44: 0.384720216 | AV44: 2002-02-01 | AW44: 3.815000057 | AX44: 2002 | AY44: FALSE | AZ44: FALSE | BA44: FALSE | BB44: 1 | BC44: -0.1062084203 | BD44: -0.1122826634 | BG44: 2021 | BH44: 10.38916675 | BI44: 1.052181103 | BJ44: 0.7189031802
C45: 1976-02-01 | D45: =YEAR(C45) -> 1976 | E45: =MOD(D45,5)=0 -> FALSE | F45: =MONTH(C45)=1 -> FALSE | G45: =AND(F45,E45) -> FALSE | H45: 2 | I45: 11.51000023 | J45: 67.23426 | K45: -0.005067176419 | L45: -0.005080058092 | N45: 2010 | O45: 119.124152 | P45: 0.2473919039 | Q45: 0.2210548947 | Z45: 1988-02-01 | AA45: 0.2960730493 | AB45: 1988 | AC45: FALSE | AD45: FALSE | AE45: FALSE | AF45: 1 | AG45: 0.03614462983 | AH45: 0.03550673818 | AJ45: 2022 | AK45: 151.2589404 | AL45: 0.09226189342 | AM45: 0.08825067771 | AV45: 2002-03-01 | AW45: 4.628333092 | AX45: 2002 | AY45: FALSE | AZ45: FALSE | BA45: FALSE | BB45: 1 | BC45: 0.2131934528 | BD45: 0.1932561002 | BG45: 2022 | BH45: 5.773333251 | BI45: -0.4442929458 | BJ45: -0.5875140045
C46: 1976-03-01 | D46: 1976 | E46: FALSE | F46: FALSE | G46: FALSE | H46: =H45+G46 -> 2 | I46: 11.51000023 | J46: 66.90478765 | K46: -0.004900364025 | L46: -0.004912410179 | N46: 2011 | O46: 160.8987512 | P46: 0.3506811883 | Q46: 0.3006090491 | Z46: 1988-03-01 | AA46: 0.2759598792 | AB46: 1988 | AC46: FALSE | AD46: FALSE | AE46: FALSE | AF46: 1 | AG46: -0.06793313405 | AH46: -0.07035072229 | AJ46: 2023 | AK46: 173.5598501 | AL46: 0.147435316 | AM46: 0.1375292919 | AV46: 2002-04-01 | AW46: 2.950000048 | AX46: 2002 | AY46: FALSE | AZ46: FALSE | BA46: FALSE | BB46: 1 | BC46: -0.3626214905 | BD46: -0.4503915934 | BG46: 2023 | BH46: 4.470000009 | BI46: -0.2257505649 | BJ46: -0.2558611897
C47: 1976-04-01 | D47: 1976 | E47: FALSE | F47: FALSE | G47: FALSE | H47: 2 | I47: 11.51000023 | J47: 66.57813068 | K47: -0.004882415397 | L47: -0.004894373325 | N47: 2012 | O47: 156.4420543 | P47: -0.02769876636 | Q47: -0.02808961138 | Z47: 1988-04-01 | AA47: 0.2828582525 | AB47: 1988 | AC47: FALSE | AD47: FALSE | AE47: FALSE | AF47: 1 | AG47: 0.0249977402 | AH47: 0.02469040791 | AJ47: 2024 | AK47: 207.729894 | AL47: 0.1968775839 | AM47: 0.1797161523 | AV47: 2002-05-01 | AW47: 2.519999981 | AX47: 2002 | AY47: FALSE | AZ47: FALSE | BA47: FALSE | BB47: 1 | BC47: -0.1457627321 | BD47: -0.1575462926 | BG47: 2024 | BH47: 2.699166636 | BI47: -0.3961595905 | BJ47: -0.5044453387
C48: 1976-05-01 | D48: 1976 | E48: FALSE | F48: FALSE | G48: FALSE | H48: 2 | I48: 11.51000023 | J48: 66.24506479 | K48: -0.005002632141 | L48: -0.005015187195 | N48: 2013 | O48: 148.7242739 | P48: -0.04933315695 | Q48: -0.05059160058 | Z48: 1988-05-01 | AA48: 0.2863085568 | AB48: 1988 | AC48: FALSE | AD48: FALSE | AE48: FALSE | AF48: 1 | AG48: 0.01219799754 | AH48: 0.01212420148 | AJ48: 2025 | AK48: 219.1406422 | AL48: 0.05493069844 | AM48: 0.05347507609 | AV48: 2002-06-01 | AW48: 1.896667004 | AX48: 2002 | AY48: FALSE | AZ48: FALSE | BA48: FALSE | BB48: 1 | BC48: -0.2473543579 | BD48: -0.2841607568 | BG48: 2025 | BH48: 4.030587524 | BI48: 0.4932710974 | BJ48: 0.4009690811
C49: 1976-06-01 | D49: 1976 | E49: FALSE | F49: FALSE | G49: FALSE | H49: 2 | I49: 11.60000038 | J49: 66.44121591 | K49: 0.00296099221 | L49: 0.002956617107 | N49: 2014 | O49: 127.114047 | P49: -0.1453039663 | Q49: -0.1570093894 | Z49: 1988-06-01 | AA49: 0.3197095096 | AB49: 1988 | AC49: FALSE | AD49: FALSE | AE49: FALSE | AF49: 1 | AG49: 0.1166606866 | AH49: 0.1103427019 | AV49: 2002-07-01 | AW49: 1.956666946 | AX49: 2002 | AY49: FALSE | AZ49: FALSE | BA49: FALSE | BB49: 1 | BC49: 0.03163441061 | BD49: 0.03114435101
C50: 1976-07-01 | D50: 1976 | E50: FALSE | F50: FALSE | G50: FALSE | H50: 2 | I50: 11.60000038 | J50: 66.15324763 | K50: -0.004334181284 | L50: -0.004343601076 | N50: 2015 | O50: 68.33370359 | P50: -0.462422091 | Q50: -0.6206815825 | Z50: 1988-07-01 | AA50: 0.3067481518 | AB50: 1988 | AC50: FALSE | AD50: FALSE | AE50: FALSE | AF50: 1 | AG50: -0.04054104568 | AH50: -0.04138574264 | AV50: 2002-08-01 | AW50: 1.766667008 | AX50: 2002 | AY50: FALSE | AZ50: FALSE | BA50: FALSE | BB50: 1 | BC50: -0.09710387266 | BD50: -0.1021477628
C51: 1976-08-01 | D51: 1976 | E51: FALSE | F51: FALSE | G51: FALSE | H51: 2 | I51: 11.60000038 | J51: 65.84788513 | K51: -0.004615986514 | L51: -0.004626673079 | N51: 2016 | O51: 61.32156149 | P51: -0.1026161576 | Q51: -0.1082715906 | Z51: 1988-08-01 | AA51: 0.2756417394 | AB51: 1988 | AC51: FALSE | AD51: FALSE | AE51: FALSE | AF51: 1 | AG51: -0.1014070084 | AH51: -0.1069250816 | AV51: 2002-09-01 | AW51: 1.570000052 | AX51: 2002 | AY51: FALSE | AZ51: FALSE | BA51: FALSE | BB51: 1 | BC51: -0.1113208969 | BD51: -0.1180190726
C52: 1976-09-01 | D52: 1976 | E52: FALSE | F52: FALSE | G52: FALSE | H52: 2 | I52: 11.89999962 | J52: 67.2504129 | K52: 0.02129951125 | L52: 0.02107584704 | N52: 2017 | O52: 72.64155245 | P52: 0.1846005007 | Q52: 0.1694055875 | Z52: 1988-09-01 | AA52: 0.2995356321 | AB52: 1988 | AC52: FALSE | AD52: FALSE | AE52: FALSE | AF52: 1 | AG52: 0.08668459581 | AH52: 0.08313140578 | AV52: 2002-10-01 | AW52: 2.083333015 | AX52: 2002 | AY52: FALSE | AZ52: FALSE | BA52: FALSE | BB52: 1 | BC52: 0.3269636598 | BD52: 0.2828933697
C53: 1976-10-01 | D53: 1976 | E53: FALSE | F53: FALSE | G53: FALSE | H53: 2 | I53: 11.89999962 | J53: 66.95290679 | K53: -0.004423855567 | L53: -0.004433669771 | N53: 2018 | O53: 89.87528803 | P53: 0.2372434922 | Q53: 0.2128859149 | Z53: 1988-10-01 | AA53: 0.2675041854 | AB53: 1988 | AC53: FALSE | AD53: FALSE | AE53: FALSE | AF53: 1 | AG53: -0.106937016 | AH53: -0.1130981698 | AV53: 2002-11-01 | AW53: 2.546667099 | AX53: 2002 | AY53: FALSE | AZ53: FALSE | BA53: FALSE | BB53: 1 | BC53: 0.222400394 | BD53: 0.2008164618
C54: 1976-11-01 | D54: 1976 | E54: FALSE | F54: FALSE | G54: FALSE | H54: 2 | I54: 11.89999962 | J54: 66.6874634 | K54: -0.00396462828 | L54: -0.003972508253 | N54: 2019 | O54: 80.70176194 | P54: -0.1020695042 | Q54: -0.1076626125 | Z54: 1988-11-01 | AA54: 0.2605787516 | AB54: 1988 | AC54: FALSE | AD54: FALSE | AE54: FALSE | AF54: 1 | AG54: -0.02588906735 | AH54: -0.02623008794 | AV54: 2002-12-01 | AW54: 2.186666965 | AX54: 2002 | AY54: FALSE | AZ54: FALSE | BA54: FALSE | BB54: 1 | BC54: -0.141361285 | BD54: -0.1524070333
C55: 1976-12-01 | D55: 1976 | E55: FALSE | F55: FALSE | G55: FALSE | H55: 2 | I55: 12.5 | J55: 69.77311255 | K55: 0.04627030319 | L55: 0.04523174831 | N55: 2020 | O55: 51.23413828 | P55: -0.365142259 | Q55: -0.4543543351 | Z55: 1988-12-01 | AA55: 0.2794940472 | AB55: 1988 | AC55: FALSE | AD55: FALSE | AE55: FALSE | AF55: 1 | AG55: 0.07258955493 | AH55: 0.07007586944 | AV55: 2003-01-01 | AW55: 2.126667023 | AX55: 2003 | AY55: FALSE | AZ55: TRUE | BA55: FALSE | BB55: 1 | BC55: -0.02743899447 | BD55: -0.02782247484
